Workbook

Sheet ACCUEIL
C16: CO - CARTAS

Sheet CARTE
A1: Départ | B1: A | C1: B | D1: C | E1: D | F1: E | G1: F | H1: G | J1: I | K1: J | N1: Ctrl +X | R1: Toutes balises | AM1: Liste des parcours
B2: =IFERROR(INDEX(baliseCM,MATCH(B1,lettre,0),MATCH($A$3,parcours,0)),"") ->  | AS2: POUR PLUS DE CLARTE DU PARCOURS : SUPPRIMER LES LETTRES ET BALISES QUI NE FONT PAS PARTIE DU PARCOURS
A3: =CONCATENATE(A4,"bis") -> ORANGEbis | AS3: INDIQUER AUSSI LES POINTS DE CHAQUE BALISE OU LE NIVEAU DE DIFFICULTE DE LA BALISE
A4: ORANGE | B4: =IF(OR(B1="",B2=0),"",VLOOKUP(B2,DEBUT!$D$4:$E$100,2,FALSE)) ->  | C4: =IF(OR(C1="",C2=0),"",VLOOKUP(C2,DEBUT!$D$4:$E$100,2,FALSE)) ->  | D4: =IF(OR(D1="",D2=0),"",VLOOKUP(D2,DEBUT!$D$4:$E$100,2,FALSE)) ->  | E4: =IF(OR(E1="",E2=0),"",VLOOKUP(E2,DEBUT!$D$4:$E$100,2,FALSE)) ->  | F4: =IF(OR(F1="",F2=0),"",VLOOKUP(F2,DEBUT!$D$4:$E$100,2,FALSE)) ->  | G4: =IF(OR(G1="",G2=0),"",VLOOKUP(G2,DEBUT!$D$4:$E$100,2,FALSE)) ->  | H4: =IF(OR(H1="",H2=0),"",VLOOKUP(H2,DEBUT!$D$4:$E$100,2,FALSE)) ->  | I4: =IF(OR(I1="",I2=0),"",VLOOKUP(I2,DEBUT!$D$4:$E$100,2,FALSE)) ->  | J4: =IF(OR(J1="",J2=0),"",VLOOKUP(J2,DEBUT!$D$4:$E$100,2,FALSE)) ->  | K4: =IF(OR(K1="",K2=0),"",VLOOKUP(K2,DEBUT!$D$4:$E$100,2,FALSE)) ->  | AM4: =AS9 -> 21Steve
A5: PLACER LA CARTE SANS DEPASSER LE RECTANGLE BLANC SUR LES COTES (colonne L) (SI la CARTE DEPASSE LA HAUTEUR DU RECTANGLE (ligne 28) il faudra simplement faire glisser sur la tablette pour voir le bas de celle-ci) | N5: Echelle | O5: X | P5: Y | AM5: =AX9 -> 14ORANGE
N6: Point A | O6: 145.9881134 | P6: 483.298584 | AM6: =BC9 -> 6ROUGE
N7: Point B | O7: 203.5914917 | P7: 484.9889526 | AM7: =BH9 -> 6ZOULOU | AV7: POINTS | BA7: POINTS | BF7: POINTS | BK7: POINTS | BP7: POINTS | BU7: POINTS | BZ7: POINTS | CE7: POINTS | CJ7: POINTS | CO7: POINTS | CT7: POINTS | CY7: POINTS | DD7: POINTS | DI7: POINTS | DN7: POINTS | DS7: POINTS | DX7: POINTS | EC7: POINTS | EH7: POINTS | EM7: POINTS | ER7: POINTS | EW7: POINTS | FB7: POINTS | FG7: POINTS | FL7: POINTS | FQ7: POINTS | FV7: POINTS | GA7: POINTS | GF7: POINTS | GK7: POINTS | GP7: POINTS | GU7: POINTS | GZ7: POINTS | HE7: POINTS | HJ7: POINTS | HO7: POINTS
N8: Conversion coordonnées / distance | O8: =O7-O6 -> 57.6033783 | P8: 200 | Q8: m | AM8: =BM9 -> 8violet
O9: =O8/P8 -> 0.2880168915 | P9: 1 | Q9: m | AM9: =BR9 -> 6BLUE | AS9: 21Steve | AX9: 14ORANGE | BC9: 6ROUGE | BH9: 6ZOULOU | BM9: 8violet | BR9: 6BLUE | BW9: Parcours 7bleu | CB9: rouge | CG9: gris | CL9: Parcours 7HERBE | CQ9: Parcours 7CIEL | CV9: le tueur du parc | DA9: Parcours 6J2 | DF9: Parcours 6J3 | DK9: Parcours 6J4 | DP9: Parcours 6J5 | DU9: Parcours 6J6 | DZ9: Parcours 6J7 | EE9: Parcours 6J8 | EJ9: Parcours 6J9 | EO9: Parcours 6J10 | ET9: Parcours 7SuiviB | EY9: Parcours 6suiviR | FD9: alchimiste | FI9: Parcours 5rando3 | FN9: Parcours 4selfie1 | FS9: Parcours 5trail1 | FX9: Parcours 5sportif1 | GC9: Parcours 12points5 | GH9: Parcours 12points8 | GM9: Parcours 12points3 | GR9: Parcours 12points4 | GW9: L'oracle della luna | HB9: Parcours 8SIVIOLET | HG9: Parcours 7SIVERT | HL9: Parcours 9SIBLEU
AM10: =BW9 -> Parcours 7bleu | AN10: X | AO10: Y | AR10: =AS9 -> 21Steve | AS10: =CONCATENATE(AS9,"bis") -> 21Stevebis | AV10: =CONCATENATE(AS9,"points") -> 21Stevepoints | AW10: =AX9 -> 14ORANGE | AX10: =CONCATENATE(AX9,"bis") -> 14ORANGEbis | BA10: =CONCATENATE(AX9,"points") -> 14ORANGEpoints | BB10: =BC9 -> 6ROUGE | BC10: =CONCATENATE(BC9,"bis") -> 6ROUGEbis | BF10: =CONCATENATE(BC9,"points") -> 6ROUGEpoints | BG10: =BH9 -> 6ZOULOU | BH10: =CONCATENATE(BH9,"bis") -> 6ZOULOUbis | BK10: =CONCATENATE(BH9,"points") -> 6ZOULOUpoints | BL10: =BM9 -> 8violet | BM10: =CONCATENATE(BM9,"bis") -> 8violetbis | BP10: =CONCATENATE(BM9,"points") -> 8violetpoints | BQ10: =BR9 -> 6BLUE | BR10: =CONCATENATE(BR9,"bis") -> 6BLUEbis | BU10: =CONCATENATE(BR9,"points") -> 6BLUEpoints | BV10: =BW9 -> Parcours 7bleu | BW10: =CONCATENATE(BW9,"bis") -> Parcours 7bleubis | BZ10: =CONCATENATE(BW9,"points") -> Parcours 7bleupoints | CA10: =CB9 -> rouge | CB10: =CONCATENATE(CB9,"bis") -> rougebis | CE10: =CONCATENATE(CB9,"points") -> rougepoints | CF10: =CG9 -> gris | CG10: =CONCATENATE(CG9,"bis") -> grisbis | CJ10: =CONCATENATE(CG9,"points") -> grispoints | CK10: =CL9 -> Parcours 7HERBE | CL10: =CONCATENATE(CL9,"bis") -> Parcours 7HERBEbis | CO10: =CONCATENATE(CL9,"points") -> Parcours 7HERBEpoints | CP10: =CQ9 -> Parcours 7CIEL | CQ10: =CONCATENATE(CQ9,"bis") -> Parcours 7CIELbis | CT10: =CONCATENATE(CQ9,"points") -> Parcours 7CIELpoints | CU10: =CV9 -> le tueur du parc | CV10: =CONCATENATE(CV9,"bis") -> le tueur du parcbis | CY10: =CONCATENATE(CV9,"points") -> le tueur du parcpoints | CZ10: =DA9 -> Parcours 6J2 | DA10: =CONCATENATE(DA9,"bis") -> Parcours 6J2bis | DD10: =CONCATENATE(DA9,"points") -> Parcours 6J2points | DE10: =DF9 -> Parcours 6J3 | DF10: =CONCATENATE(DF9,"bis") -> Parcours 6J3bis | DI10: =CONCATENATE(DF9,"points") -> Parcours 6J3points | DJ10: =DK9 -> Parcours 6J4 | DK10: =CONCATENATE(DK9,"bis") -> Parcours 6J4bis | DN10: =CONCATENATE(DK9,"points") -> Parcours 6J4points | DO10: =DP9 -> Parcours 6J5 | DP10: =CONCATENATE(DP9,"bis") -> Parcours 6J5bis | DS10: =CONCATENATE(DP9,"points") -> Parcours 6J5points | DT10: =DU9 -> Parcours 6J6 | DU10: =CONCATENATE(DU9,"bis") -> Parcours 6J6bis | DX10: =CONCATENATE(DU9,"points") -> Parcours 6J6points | DY10: =DZ9 -> Parcours 6J7 | DZ10: =CONCATENATE(DZ9,"bis") -> Parcours 6J7bis | EC10: =CONCATENATE(DZ9,"points") -> Parcours 6J7points | ED10: =EE9 -> Parcours 6J8 | EE10: =CONCATENATE(EE9,"bis") -> Parcours 6J8bis | EH10: =CONCATENATE(EE9,"points") -> Parcours 6J8points | EI10: =EJ9 -> Parcours 6J9 | EJ10: =CONCATENATE(EJ9,"bis") -> Parcours 6J9bis | EM10: =CONCATENATE(EJ9,"points") -> Parcours 6J9points | EN10: =EO9 -> Parcours 6J10 | EO10: =CONCATENATE(EO9,"bis") -> Parcours 6J10bis | ER10: =CONCATENATE(EO9,"points") -> Parcours 6J10points | ES10: =ET9 -> Parcours 7SuiviB | ET10: =CONCATENATE(ET9,"bis") -> Parcours 7SuiviBbis | EW10: =CONCATENATE(ET9,"points") -> Parcours 7SuiviBpoints | EX10: =EY9 -> Parcours 6suiviR | EY10: =CONCATENATE(EY9,"bis") -> Parcours 6suiviRbis | FB10: =CONCATENATE(EY9,"points") -> Parcours 6suiviRpoints | FC10: =FD9 -> alchimiste | FD10: =CONCATENATE(FD9,"bis") -> alchimistebis | FG10: =CONCATENATE(FD9,"points") -> alchimistepoints | FH10: =FI9 -> Parcours 5rando3 | FI10: =CONCATENATE(FI9,"bis") -> Parcours 5rando3bis | FL10: =CONCATENATE(FI9,"points") -> Parcours 5rando3points | FM10: =FN9 -> Parcours 4selfie1 | FN10: =CONCATENATE(FN9,"bis") -> Parcours 4selfie1bis | FQ10: =CONCATENATE(FN9,"points") -> Parcours 4selfie1points | FR10: =FS9 -> Parcours 5trail1 | FS10: =CONCATENATE(FS9,"bis") -> Parcours 5trail1bis | FV10: =CONCATENATE(FS9,"points") -> Parcours 5trail1points | FW10: =FX9 -> Parcours 5sportif1 | FX10: =CONCATENATE(FX9,"bis") -> Parcours 5sportif1bis | GA10: =CONCATENATE(FX9,"points") -> Parcours 5sportif1points | GB10: =GC9 -> Parcours 12points5 | GC10: =CONCATENATE(GC9,"bis") -> Parcours 12points5bis | GF10: =CONCATENATE(GC9,"points") -> Parcours 12points5points | GG10: =GH9 -> Parcours 12points8 | GH10: =CONCATENATE(GH9,"bis") -> Parcours 12points8bis | GK10: =CONCATENATE(GH9,"points") -> Parcours 12points8points | GL10: =GM9 -> Parcours 12points3 | GM10: =CONCATENATE(GM9,"bis") -> Parcours 12points3bis | GP10: =CONCATENATE(GM9,"points") -> Parcours 12points3points | GQ10: =GR9 -> Parcours 12points4 | GR10: =CONCATENATE(GR9,"bis") -> Parcours 12points4bis | GU10: =CONCATENATE(GR9,"points") -> Parcours 12points4points | GV10: =GW9 -> L'oracle della luna | GW10: =CONCATENATE(GW9,"bis") -> L'oracle della lunabis | GZ10: =CONCATENATE(GW9,"points") -> L'oracle della lunapoints | HA10: =HB9 -> Parcours 8SIVIOLET | HB10: =CONCATENATE(HB9,"bis") -> Parcours 8SIVIOLETbis | HE10: =CONCATENATE(HB9,"points") -> Parcours 8SIVIOLETpoints | HF10: =HG9 -> Parcours 7SIVERT | HG10: =CONCATENATE(HG9,"bis") -> Parcours 7SIVERTbis | HJ10: =CONCATENATE(HG9,"points") -> Parcours 7SIVERTpoints | HK10: =HL9 -> Parcours 9SIBLEU | HL10: =CONCATENATE(HL9,"bis") -> Parcours 9SIBLEUbis | HO10: =CONCATENATE(HL9,"points") -> Parcours 9SIBLEUpoints
N11: D | O11: 156.4165344 | P11: 184.2082825 | T11: x | U11: y | Y11: x | Z11: y | AD11: x | AE11: y | AI11: x | AJ11: y | AM11: =CB9 -> rouge | AN11: 147.9687347 | AO11: 178.3314819 | AS11: Balise carte mère | AT11: x | AU11: y | AV11: points | AX11: Balise carte mère | AY11: x | AZ11: y | BC11: Balise carte mère | BD11: x | BE11: y | BH11: Balise carte mère | BI11: x | BJ11: y | BM11: Balise carte mère | BN11: x | BO11: y | BR11: Balise carte mère | BS11: x | BT11: y | BW11: Balise carte mère | BX11: x | BY11: y | CB11: Balise carte mère | CC11: x | CD11: y | CG11: Balise carte mère | CH11: x | CI11: y | CL11: Balise carte mère | CM11: x | CN11: y | CQ11: Balise carte mère | CR11: x | CS11: y | CV11: Balise carte mère | CW11: x | CX11: y | DA11: Balise carte mère | DB11: x | DC11: y | DF11: Balise carte mère | DG11: x | DH11: y | DK11: Balise carte mère | DL11: x | DM11: y | DP11: Balise carte mère | DQ11: x | DR11: y | DU11: Balise carte mère | DV11: x | DW11: y | DZ11: Balise carte mère | EA11: x | EB11: y | EE11: Balise carte mère | EF11: x | EG11: y | EJ11: Balise carte mère | EK11: x | EL11: y | EO11: Balise carte mère | EP11: x | EQ11: y | ET11: Balise carte mère | EU11: x | EV11: y | EY11: Balise carte mère | EZ11: x | FA11: y | FD11: Balise carte mère | FE11: x | FF11: y | FI11: Balise carte mère | FJ11: x | FK11: y | FN11: Balise carte mère | FO11: x | FP11: y | FS11: Balise carte mère | FT11: x | FU11: y | FX11: Balise carte mère | FY11: x | FZ11: y | GC11: Balise carte mère | GD11: x | GE11: y | GH11: Balise carte mère | GI11: x | GJ11: y | GM11: Balise carte mère | GN11: x | GO11: y | GR11: Balise carte mère | GS11: x | GT11: y | GW11: Balise carte mère | GX11: x | GY11: y | HB11: Balise carte mère | HC11: x | HD11: y | HG11: Balise carte mère | HH11: x | HI11: y | HL11: Balise carte mère | HM11: x | HN11: y
N12: 1 | O12: 152 | P12: 40 | S12: 17 | T12: 308 | U12: 147 | X12: 33 | Y12: 236 | Z12: 165 | AC12: 49 | AD12: 220 | AE12: 299 | AH12: 65 | AI12: 350 | AJ12: 447 | AM12: =CG9 -> gris | AN12: 443 | AO12: 66.00000763 | AQ12: A | AR12: A | AS12: 12 | AT12: =IF(AS12="",0,VLOOKUP(AS12,$N$12:$P$101,2,FALSE)) -> 248 | AU12: =IF(AS12="",0,VLOOKUP(AS12,$N$12:$P$101,3,FALSE)) -> 97 | AV12: 1 | AW12: A | AX12: 7 | AY12: =IF(AX12="",0,VLOOKUP(AX12,$N$12:$P$101,2,FALSE)) -> 116 | AZ12: =IF(AX12="",0,VLOOKUP(AX12,$N$12:$P$101,3,FALSE)) -> 153 | BA12: 1 | BB12: A | BC12: 7 | BD12: =IF(BC12="",0,VLOOKUP(BC12,$N$12:$P$101,2,FALSE)) -> 116 | BE12: =IF(BC12="",0,VLOOKUP(BC12,$N$12:$P$101,3,FALSE)) -> 153 | BF12: 1 | BG12: A | BH12: 7 | BI12: =IF(BH12="",0,VLOOKUP(BH12,$N$12:$P$101,2,FALSE)) -> 116 | BJ12: =IF(BH12="",0,VLOOKUP(BH12,$N$12:$P$101,3,FALSE)) -> 153 | BK12: 1 | BL12: A | BM12: 7 | BN12: =IF(BM12="",0,VLOOKUP(BM12,$N$12:$P$101,2,FALSE)) -> 116 | BO12: =IF(BM12="",0,VLOOKUP(BM12,$N$12:$P$101,3,FALSE)) -> 153 | BP12: 1 | BQ12: A | BR12: 7 | BS12: =IF(BR12="",0,VLOOKUP(BR12,$N$12:$P$101,2,FALSE)) -> 116 | BT12: =IF(BR12="",0,VLOOKUP(BR12,$N$12:$P$101,3,FALSE)) -> 153 | BU12: 1 | BV12: A | BW12: 7 | BX12: =IF(BW12="",0,VLOOKUP(BW12,$N$12:$P$101,2,FALSE)) -> 116 | BY12: =IF(BW12="",0,VLOOKUP(BW12,$N$12:$P$101,3,FALSE)) -> 153 | BZ12: 1 | CA12: A | CB12: 7 | CC12: =IF(CB12="",0,VLOOKUP(CB12,$N$12:$P$101,2,FALSE)) -> 116 | CD12: =IF(CB12="",0,VLOOKUP(CB12,$N$12:$P$101,3,FALSE)) -> 153 | CE12: 1 | CF12: A | CG12: 7 | CH12: =IF(CG12="",0,VLOOKUP(CG12,$N$12:$P$101,2,FALSE)) -> 116 | CI12: =IF(CG12="",0,VLOOKUP(CG12,$N$12:$P$101,3,FALSE)) -> 153 | CJ12: 1 | CK12: A | CL12: 7 | CM12: =IF(CL12="",0,VLOOKUP(CL12,$N$12:$P$101,2,FALSE)) -> 116 | CN12: =IF(CL12="",0,VLOOKUP(CL12,$N$12:$P$101,3,FALSE)) -> 153 | CO12: 1 | CP12: A | CQ12: 7 | CR12: =IF(CQ12="",0,VLOOKUP(CQ12,$N$12:$P$101,2,FALSE)) -> 116 | CS12: =IF(CQ12="",0,VLOOKUP(CQ12,$N$12:$P$101,3,FALSE)) -> 153 | CT12: 1 | CU12: A | CV12: 7 | CW12: =IF(CV12="",0,VLOOKUP(CV12,$N$12:$P$101,2,FALSE)) -> 116 | CX12: =IF(CV12="",0,VLOOKUP(CV12,$N$12:$P$101,3,FALSE)) -> 153 | CY12: 1 | CZ12: A | DA12: 7 | DB12: =IF(DA12="",0,VLOOKUP(DA12,$N$12:$P$101,2,FALSE)) -> 116 | DC12: =IF(DA12="",0,VLOOKUP(DA12,$N$12:$P$101,3,FALSE)) -> 153 | DD12: 1 | DE12: A | DF12: 7 | DG12: =IF(DF12="",0,VLOOKUP(DF12,$N$12:$P$101,2,FALSE)) -> 116 | DH12: =IF(DF12="",0,VLOOKUP(DF12,$N$12:$P$101,3,FALSE)) -> 153 | DI12: 1 | DJ12: A | DK12: 7 | DL12: =IF(DK12="",0,VLOOKUP(DK12,$N$12:$P$101,2,FALSE)) -> 116 | DM12: =IF(DK12="",0,VLOOKUP(DK12,$N$12:$P$101,3,FALSE)) -> 153 | DN12: 1 | DO12: A | DP12: 7 | DQ12: =IF(DP12="",0,VLOOKUP(DP12,$N$12:$P$101,2,FALSE)) -> 116 | DR12: =IF(DP12="",0,VLOOKUP(DP12,$N$12:$P$101,3,FALSE)) -> 153 | DS12: 1 | DT12: A | DU12: 7 | DV12: =IF(DU12="",0,VLOOKUP(DU12,$N$12:$P$101,2,FALSE)) -> 116 | DW12: =IF(DU12="",0,VLOOKUP(DU12,$N$12:$P$101,3,FALSE)) -> 153 | DX12: 1 | DY12: A | DZ12: 7 | EA12: =IF(DZ12="",0,VLOOKUP(DZ12,$N$12:$P$101,2,FALSE)) -> 116 | EB12: =IF(DZ12="",0,VLOOKUP(DZ12,$N$12:$P$101,3,FALSE)) -> 153 | EC12: 1 | ED12: A | EE12: 7 | EF12: =IF(EE12="",0,VLOOKUP(EE12,$N$12:$P$101,2,FALSE)) -> 116 | EG12: =IF(EE12="",0,VLOOKUP(EE12,$N$12:$P$101,3,FALSE)) -> 153 | EH12: 1 | EI12: A | EJ12: 7 | EK12: =IF(EJ12="",0,VLOOKUP(EJ12,$N$12:$P$101,2,FALSE)) -> 116 | EL12: =IF(EJ12="",0,VLOOKUP(EJ12,$N$12:$P$101,3,FALSE)) -> 153 | EM12: 1 | EN12: A | EO12: 7 | EP12: =IF(EO12="",0,VLOOKUP(EO12,$N$12:$P$101,2,FALSE)) -> 116 | EQ12: =IF(EO12="",0,VLOOKUP(EO12,$N$12:$P$101,3,FALSE)) -> 153 | ER12: 1 | ES12: A | ET12: 7 | EU12: =IF(ET12="",0,VLOOKUP(ET12,$N$12:$P$101,2,FALSE)) -> 116 | EV12: =IF(ET12="",0,VLOOKUP(ET12,$N$12:$P$101,3,FALSE)) -> 153 | EW12: 1 | EX12: A | EY12: 7 | EZ12: =IF(EY12="",0,VLOOKUP(EY12,$N$12:$P$101,2,FALSE)) -> 116 | FA12: =IF(EY12="",0,VLOOKUP(EY12,$N$12:$P$101,3,FALSE)) -> 153 | FB12: 1 | FC12: A | FD12: 7 | FE12: =IF(FD12="",0,VLOOKUP(FD12,$N$12:$P$101,2,FALSE)) -> 116 | FF12: =IF(FD12="",0,VLOOKUP(FD12,$N$12:$P$101,3,FALSE)) -> 153 | FG12: 1 | FH12: A | FI12: 7 | FJ12: =IF(FI12="",0,VLOOKUP(FI12,$N$12:$P$101,2,FALSE)) -> 116 | FK12: =IF(FI12="",0,VLOOKUP(FI12,$N$12:$P$101,3,FALSE)) -> 153 | FL12: 1 | FM12: A | FN12: 7 | FO12: =IF(FN12="",0,VLOOKUP(FN12,$N$12:$P$101,2,FALSE)) -> 116 | FP12: =IF(FN12="",0,VLOOKUP(FN12,$N$12:$P$101,3,FALSE)) -> 153 | FQ12: 1 | FR12: A | FS12: 7 | FT12: =IF(FS12="",0,VLOOKUP(FS12,$N$12:$P$101,2,FALSE)) -> 116 | FU12: =IF(FS12="",0,VLOOKUP(FS12,$N$12:$P$101,3,FALSE)) -> 153 | FV12: 1 | FW12: A | FX12: 7 | FY12: =IF(FX12="",0,VLOOKUP(FX12,$N$12:$P$101,2,FALSE)) -> 116 | FZ12: =IF(FX12="",0,VLOOKUP(FX12,$N$12:$P$101,3,FALSE)) -> 153 | GA12: 1 | GB12: A | GC12: 7 | GD12: =IF(GC12="",0,VLOOKUP(GC12,$N$12:$P$101,2,FALSE)) -> 116 | GE12: =IF(GC12="",0,VLOOKUP(GC12,$N$12:$P$101,3,FALSE)) -> 153 | GF12: 1 | GG12: A | GH12: 7 | GI12: =IF(GH12="",0,VLOOKUP(GH12,$N$12:$P$101,2,FALSE)) -> 116 | GJ12: =IF(GH12="",0,VLOOKUP(GH12,$N$12:$P$101,3,FALSE)) -> 153 | GK12: 1 | GL12: A | GM12: 7 | GN12: =IF(GM12="",0,VLOOKUP(GM12,$N$12:$P$101,2,FALSE)) -> 116 | GO12: =IF(GM12="",0,VLOOKUP(GM12,$N$12:$P$101,3,FALSE)) -> 153 | GP12: 1 | GQ12: A | GR12: 7 | GS12: =IF(GR12="",0,VLOOKUP(GR12,$N$12:$P$101,2,FALSE)) -> 116 | GT12: =IF(GR12="",0,VLOOKUP(GR12,$N$12:$P$101,3,FALSE)) -> 153 | GU12: 1 | GV12: A | GW12: 7 | GX12: =IF(GW12="",0,VLOOKUP(GW12,$N$12:$P$101,2,FALSE)) -> 116 | GY12: =IF(GW12="",0,VLOOKUP(GW12,$N$12:$P$101,3,FALSE)) -> 153 | GZ12: 1 | HA12: A | HB12: 7 | HC12: =IF(HB12="",0,VLOOKUP(HB12,$N$12:$P$101,2,FALSE)) -> 116 | HD12: =IF(HB12="",0,VLOOKUP(HB12,$N$12:$P$101,3,FALSE)) -> 153 | HE12: 1 | HF12: A | HG12: 7 | HH12: =IF(HG12="",0,VLOOKUP(HG12,$N$12:$P$101,2,FALSE)) -> 116 | HI12: =IF(HG12="",0,VLOOKUP(HG12,$N$12:$P$101,3,FALSE)) -> 153 | HJ12: 1 | HK12: A | HL12: 7 | HM12: =IF(HL12="",0,VLOOKUP(HL12,$N$12:$P$101,2,FALSE)) -> 116 | HN12: =IF(HL12="",0,VLOOKUP(HL12,$N$12:$P$101,3,FALSE)) -> 153 | HO12: 1
N13: 2 | O13: 151 | P13: 58 | S13: 18 | T13: 477 | U13: 92.00007629 | X13: 34 | Y13: 223 | Z13: 160 | AC13: 50 | AD13: 238 | AE13: 329 | AH13: 66 | AI13: 366 | AJ13: 461.999939 | AM13: =CL9 -> Parcours 7HERBE | AN13: 2517 | AO13: 158 | AQ13: B | AR13: B | AS13: 13 | AT13: =IF(AS13="",0,VLOOKUP(AS13,$N$12:$P$101,2,FALSE)) -> 258 | AU13: =IF(AS13="",0,VLOOKUP(AS13,$N$12:$P$101,3,FALSE)) -> 73 | AV13: 2 | AW13: B | AX13: 10 | AY13: =IF(AX13="",0,VLOOKUP(AX13,$N$12:$P$101,2,FALSE)) -> 178 | AZ13: =IF(AX13="",0,VLOOKUP(AX13,$N$12:$P$101,3,FALSE)) -> 96 | BA13: 2 | BB13: B | BC13: 10 | BD13: =IF(BC13="",0,VLOOKUP(BC13,$N$12:$P$101,2,FALSE)) -> 178 | BE13: =IF(BC13="",0,VLOOKUP(BC13,$N$12:$P$101,3,FALSE)) -> 96 | BF13: 2 | BG13: B | BH13: 10 | BI13: =IF(BH13="",0,VLOOKUP(BH13,$N$12:$P$101,2,FALSE)) -> 178 | BJ13: =IF(BH13="",0,VLOOKUP(BH13,$N$12:$P$101,3,FALSE)) -> 96 | BK13: 2 | BL13: B | BM13: 10 | BN13: =IF(BM13="",0,VLOOKUP(BM13,$N$12:$P$101,2,FALSE)) -> 178 | BO13: =IF(BM13="",0,VLOOKUP(BM13,$N$12:$P$101,3,FALSE)) -> 96 | BP13: 2 | BQ13: B | BR13: 10 | BS13: =IF(BR13="",0,VLOOKUP(BR13,$N$12:$P$101,2,FALSE)) -> 178 | BT13: =IF(BR13="",0,VLOOKUP(BR13,$N$12:$P$101,3,FALSE)) -> 96 | BU13: 2 | BV13: B | BW13: 10 | BX13: =IF(BW13="",0,VLOOKUP(BW13,$N$12:$P$101,2,FALSE)) -> 178 | BY13: =IF(BW13="",0,VLOOKUP(BW13,$N$12:$P$101,3,FALSE)) -> 96 | BZ13: 2 | CA13: B | CB13: 10 | CC13: =IF(CB13="",0,VLOOKUP(CB13,$N$12:$P$101,2,FALSE)) -> 178 | CD13: =IF(CB13="",0,VLOOKUP(CB13,$N$12:$P$101,3,FALSE)) -> 96 | CE13: 2 | CF13: B | CG13: 10 | CH13: =IF(CG13="",0,VLOOKUP(CG13,$N$12:$P$101,2,FALSE)) -> 178 | CI13: =IF(CG13="",0,VLOOKUP(CG13,$N$12:$P$101,3,FALSE)) -> 96 | CJ13: 2 | CK13: B | CL13: 10 | CM13: =IF(CL13="",0,VLOOKUP(CL13,$N$12:$P$101,2,FALSE)) -> 178 | CN13: =IF(CL13="",0,VLOOKUP(CL13,$N$12:$P$101,3,FALSE)) -> 96 | CO13: 2 | CP13: B | CQ13: 10 | CR13: =IF(CQ13="",0,VLOOKUP(CQ13,$N$12:$P$101,2,FALSE)) -> 178 | CS13: =IF(CQ13="",0,VLOOKUP(CQ13,$N$12:$P$101,3,FALSE)) -> 96 | CT13: 2 | CU13: B | CV13: 10 | CW13: =IF(CV13="",0,VLOOKUP(CV13,$N$12:$P$101,2,FALSE)) -> 178 | CX13: =IF(CV13="",0,VLOOKUP(CV13,$N$12:$P$101,3,FALSE)) -> 96 | CY13: 2 | CZ13: B | DA13: 10 | DB13: =IF(DA13="",0,VLOOKUP(DA13,$N$12:$P$101,2,FALSE)) -> 178 | DC13: =IF(DA13="",0,VLOOKUP(DA13,$N$12:$P$101,3,FALSE)) -> 96 | DD13: 2 | DE13: B | DF13: 10 | DG13: =IF(DF13="",0,VLOOKUP(DF13,$N$12:$P$101,2,FALSE)) -> 178 | DH13: =IF(DF13="",0,VLOOKUP(DF13,$N$12:$P$101,3,FALSE)) -> 96 | DI13: 2 | DJ13: B | DK13: 10 | DL13: =IF(DK13="",0,VLOOKUP(DK13,$N$12:$P$101,2,FALSE)) -> 178 | DM13: =IF(DK13="",0,VLOOKUP(DK13,$N$12:$P$101,3,FALSE)) -> 96 | DN13: 2 | DO13: B | DP13: 10 | DQ13: =IF(DP13="",0,VLOOKUP(DP13,$N$12:$P$101,2,FALSE)) -> 178 | DR13: =IF(DP13="",0,VLOOKUP(DP13,$N$12:$P$101,3,FALSE)) -> 96 | DS13: 2 | DT13: B | DU13: 10 | DV13: =IF(DU13="",0,VLOOKUP(DU13,$N$12:$P$101,2,FALSE)) -> 178 | DW13: =IF(DU13="",0,VLOOKUP(DU13,$N$12:$P$101,3,FALSE)) -> 96 | DX13: 2 | DY13: B | DZ13: 10 | EA13: =IF(DZ13="",0,VLOOKUP(DZ13,$N$12:$P$101,2,FALSE)) -> 178 | EB13: =IF(DZ13="",0,VLOOKUP(DZ13,$N$12:$P$101,3,FALSE)) -> 96 | EC13: 2 | ED13: B | EE13: 10 | EF13: =IF(EE13="",0,VLOOKUP(EE13,$N$12:$P$101,2,FALSE)) -> 178 | EG13: =IF(EE13="",0,VLOOKUP(EE13,$N$12:$P$101,3,FALSE)) -> 96 | EH13: 2 | EI13: B | EJ13: 10 | EK13: =IF(EJ13="",0,VLOOKUP(EJ13,$N$12:$P$101,2,FALSE)) -> 178 | EL13: =IF(EJ13="",0,VLOOKUP(EJ13,$N$12:$P$101,3,FALSE)) -> 96 | EM13: 2 | EN13: B | EO13: 10 | EP13: =IF(EO13="",0,VLOOKUP(EO13,$N$12:$P$101,2,FALSE)) -> 178 | EQ13: =IF(EO13="",0,VLOOKUP(EO13,$N$12:$P$101,3,FALSE)) -> 96 | ER13: 2 | ES13: B | ET13: 10 | EU13: =IF(ET13="",0,VLOOKUP(ET13,$N$12:$P$101,2,FALSE)) -> 178 | EV13: =IF(ET13="",0,VLOOKUP(ET13,$N$12:$P$101,3,FALSE)) -> 96 | EW13: 2 | EX13: B | EY13: 10 | EZ13: =IF(EY13="",0,VLOOKUP(EY13,$N$12:$P$101,2,FALSE)) -> 178 | FA13: =IF(EY13="",0,VLOOKUP(EY13,$N$12:$P$101,3,FALSE)) -> 96 | FB13: 2 | FC13: B | FD13: 10 | FE13: =IF(FD13="",0,VLOOKUP(FD13,$N$12:$P$101,2,FALSE)) -> 178 | FF13: =IF(FD13="",0,VLOOKUP(FD13,$N$12:$P$101,3,FALSE)) -> 96 | FG13: 2 | FH13: B | FI13: 10 | FJ13: =IF(FI13="",0,VLOOKUP(FI13,$N$12:$P$101,2,FALSE)) -> 178 | FK13: =IF(FI13="",0,VLOOKUP(FI13,$N$12:$P$101,3,FALSE)) -> 96 | FL13: 2 | FM13: B | FN13: 10 | FO13: =IF(FN13="",0,VLOOKUP(FN13,$N$12:$P$101,2,FALSE)) -> 178 | FP13: =IF(FN13="",0,VLOOKUP(FN13,$N$12:$P$101,3,FALSE)) -> 96 | FQ13: 2 | FR13: B | FS13: 10 | FT13: =IF(FS13="",0,VLOOKUP(FS13,$N$12:$P$101,2,FALSE)) -> 178 | FU13: =IF(FS13="",0,VLOOKUP(FS13,$N$12:$P$101,3,FALSE)) -> 96 | FV13: 2 | FW13: B | FX13: 10 | FY13: =IF(FX13="",0,VLOOKUP(FX13,$N$12:$P$101,2,FALSE)) -> 178 | FZ13: =IF(FX13="",0,VLOOKUP(FX13,$N$12:$P$101,3,FALSE)) -> 96 | GA13: 2 | GB13: B | GC13: 10 | GD13: =IF(GC13="",0,VLOOKUP(GC13,$N$12:$P$101,2,FALSE)) -> 178 | GE13: =IF(GC13="",0,VLOOKUP(GC13,$N$12:$P$101,3,FALSE)) -> 96 | GF13: 2 | GG13: B | GH13: 10 | GI13: =IF(GH13="",0,VLOOKUP(GH13,$N$12:$P$101,2,FALSE)) -> 178 | GJ13: =IF(GH13="",0,VLOOKUP(GH13,$N$12:$P$101,3,FALSE)) -> 96 | GK13: 2 | GL13: B | GM13: 10 | GN13: =IF(GM13="",0,VLOOKUP(GM13,$N$12:$P$101,2,FALSE)) -> 178 | GO13: =IF(GM13="",0,VLOOKUP(GM13,$N$12:$P$101,3,FALSE)) -> 96 | GP13: 2 | GQ13: B | GR13: 10 | GS13: =IF(GR13="",0,VLOOKUP(GR13,$N$12:$P$101,2,FALSE)) -> 178 | GT13: =IF(GR13="",0,VLOOKUP(GR13,$N$12:$P$101,3,FALSE)) -> 96 | GU13: 2 | GV13: B | GW13: 10 | GX13: =IF(GW13="",0,VLOOKUP(GW13,$N$12:$P$101,2,FALSE)) -> 178 | GY13: =IF(GW13="",0,VLOOKUP(GW13,$N$12:$P$101,3,FALSE)) -> 96 | GZ13: 2 | HA13: B | HB13: 10 | HC13: =IF(HB13="",0,VLOOKUP(HB13,$N$12:$P$101,2,FALSE)) -> 178 | HD13: =IF(HB13="",0,VLOOKUP(HB13,$N$12:$P$101,3,FALSE)) -> 96 | HE13: 2 | HF13: B | HG13: 10 | HH13: =IF(HG13="",0,VLOOKUP(HG13,$N$12:$P$101,2,FALSE)) -> 178 | HI13: =IF(HG13="",0,VLOOKUP(HG13,$N$12:$P$101,3,FALSE)) -> 96 | HJ13: 2 | HK13: B | HL13: 10 | HM13: =IF(HL13="",0,VLOOKUP(HL13,$N$12:$P$101,2,FALSE)) -> 178 | HN13: =IF(HL13="",0,VLOOKUP(HL13,$N$12:$P$101,3,FALSE)) -> 96 | HO13: 2
N14: 3 | O14: 133 | P14: 58 | S14: 19 | T14: 545 | U14: 97.00007629 | X14: 35 | Y14: 210 | Z14: 160.0000763 | AC14: 51 | AD14: 274 | AE14: 293 | AH14: 67 | AI14: 330 | AJ14: 462 | AM14: =CQ9 -> Parcours 7CIEL | AN14: 2517 | AO14: 187 | AQ14: C | AR14: C | AS14: 11 | AT14: 220 | AU14: 129 | AV14: 2 | AW14: C | AX14: 11 | AY14: 220 | AZ14: 129 | BA14: 2 | BB14: C | BC14: 11 | BD14: 220 | BE14: 129 | BF14: 2 | BG14: C | BH14: 11 | BI14: 220 | BJ14: 129 | BK14: 2 | BL14: C | BM14: 11 | BN14: 220 | BO14: 129 | BP14: 2 | BQ14: C | BR14: 11 | BS14: 220 | BT14: 129 | BU14: 2 | BV14: C | BW14: 11 | BX14: 220 | BY14: 129 | BZ14: 2 | CA14: C | CB14: 11 | CC14: 220 | CD14: 129 | CE14: 2 | CF14: C | CG14: 11 | CH14: 220 | CI14: 129 | CJ14: 2 | CK14: C | CL14: 11 | CM14: 220 | CN14: 129 | CO14: 2 | CP14: C | CQ14: 11 | CR14: 220 | CS14: 129 | CT14: 2 | CU14: C | CV14: 11 | CW14: 220 | CX14: 129 | CY14: 2 | CZ14: C | DA14: 11 | DB14: 220 | DC14: 129 | DD14: 2 | DE14: C | DF14: 11 | DG14: 220 | DH14: 129 | DI14: 2 | DJ14: C | DK14: 11 | DL14: 220 | DM14: 129 | DN14: 2 | DO14: C | DP14: 11 | DQ14: 220 | DR14: 129 | DS14: 2 | DT14: C | DU14: 11 | DV14: 220 | DW14: 129 | DX14: 2 | DY14: C | DZ14: 11 | EA14: 220 | EB14: 129 | EC14: 2 | ED14: C | EE14: 11 | EF14: 220 | EG14: 129 | EH14: 2 | EI14: C | EJ14: 11 | EK14: 220 | EL14: 129 | EM14: 2 | EN14: C | EO14: 11 | EP14: 220 | EQ14: 129 | ER14: 2 | ES14: C | ET14: 11 | EU14: 220 | EV14: 129 | EW14: 2 | EX14: C | EY14: 11 | EZ14: 220 | FA14: 129 | FB14: 2 | FC14: C | FD14: 11 | FE14: 220 | FF14: 129 | FG14: 2 | FH14: C | FI14: 11 | FJ14: 220 | FK14: 129 | FL14: 2 | FM14: C | FN14: 11 | FO14: 220 | FP14: 129 | FQ14: 2 | FR14: C | FS14: 11 | FT14: 220 | FU14: 129 | FV14: 2 | FW14: C | FX14: 11 | FY14: 220 | FZ14: 129 | GA14: 2 | GB14: C | GC14: 11 | GD14: 220 | GE14: 129 | GF14: 2 | GG14: C | GH14: 11 | GI14: 220 | GJ14: 129 | GK14: 2 | GL14: C | GM14: 11 | GN14: 220 | GO14: 129 | GP14: 2 | GQ14: C | GR14: 11 | GS14: 220 | GT14: 129 | GU14: 2 | GV14: C | GW14: 11 | GX14: 220 | GY14: 129 | GZ14: 2 | HA14: C | HB14: 11 | HC14: 220 | HD14: 129 | HE14: 2 | HF14: C | HG14: 11 | HH14: 220 | HI14: 129 | HJ14: 2 | HK14: C | HL14: 11 | HM14: 220 | HN14: 129 | HO14: 2
N15: 4 | O15: 143 | P15: 102 | S15: 20 | T15: 582 | U15: 109.0000763 | X15: 36 | Y15: 165 | Z15: 182.0000916 | AC15: 52 | AD15: 268 | AE15: 315 | AH15: 68 | AI15: 298 | AJ15: 492.000061 | AM15: =CV9 -> le tueur du parc | AN15: 2517 | AO15: 216 | AQ15: D | AR15: D | AS15: 16 | AT15: 249 | AU15: 146 | AV15: 2 | AW15: D | AX15: 1 | AY15: 152 | AZ15: 40 | BA15: 2 | BB15: D | BC15: 1 | BD15: 152 | BE15: 40 | BF15: 2 | BG15: D | BH15: 1 | BI15: 152 | BJ15: 40 | BK15: 2 | BL15: D | BM15: 1 | BN15: 152 | BO15: 40 | BP15: 2 | BQ15: D | BR15: 1 | BS15: 152 | BT15: 40 | BU15: 2 | BV15: D | BW15: 1 | BX15: 152 | BY15: 40 | BZ15: 2 | CA15: D | CB15: 1 | CC15: 152 | CD15: 40 | CE15: 2 | CF15: D | CG15: 1 | CH15: 152 | CI15: 40 | CJ15: 2 | CK15: D | CL15: 1 | CM15: 152 | CN15: 40 | CO15: 2 | CP15: D | CQ15: 1 | CR15: 152 | CS15: 40 | CT15: 2 | CU15: D | CV15: 1 | CW15: 152 | CX15: 40 | CY15: 2 | CZ15: D | DA15: 1 | DB15: 152 | DC15: 40 | DD15: 2 | DE15: D | DF15: 1 | DG15: 152 | DH15: 40 | DI15: 2 | DJ15: D | DK15: 1 | DL15: 152 | DM15: 40 | DN15: 2 | DO15: D | DP15: 1 | DQ15: 152 | DR15: 40 | DS15: 2 | DT15: D | DU15: 1 | DV15: 152 | DW15: 40 | DX15: 2 | DY15: D | DZ15: 1 | EA15: 152 | EB15: 40 | EC15: 2 | ED15: D | EE15: 1 | EF15: 152 | EG15: 40 | EH15: 2 | EI15: D | EJ15: 1 | EK15: 152 | EL15: 40 | EM15: 2 | EN15: D | EO15: 1 | EP15: 152 | EQ15: 40 | ER15: 2 | ES15: D | ET15: 1 | EU15: 152 | EV15: 40 | EW15: 2 | EX15: D | EY15: 1 | EZ15: 152 | FA15: 40 | FB15: 2 | FC15: D | FD15: 1 | FE15: 152 | FF15: 40 | FG15: 2 | FH15: D | FI15: 1 | FJ15: 152 | FK15: 40 | FL15: 2 | FM15: D | FN15: 1 | FO15: 152 | FP15: 40 | FQ15: 2 | FR15: D | FS15: 1 | FT15: 152 | FU15: 40 | FV15: 2 | FW15: D | FX15: 1 | FY15: 152 | FZ15: 40 | GA15: 2 | GB15: D | GC15: 1 | GD15: 152 | GE15: 40 | GF15: 2 | GG15: D | GH15: 1 | GI15: 152 | GJ15: 40 | GK15: 2 | GL15: D | GM15: 1 | GN15: 152 | GO15: 40 | GP15: 2 | GQ15: D | GR15: 1 | GS15: 152 | GT15: 40 | GU15: 2 | GV15: D | GW15: 1 | GX15: 152 | GY15: 40 | GZ15: 2 | HA15: D | HB15: 1 | HC15: 152 | HD15: 40 | HE15: 2 | HF15: D | HG15: 1 | HH15: 152 | HI15: 40 | HJ15: 2 | HK15: D | HL15: 1 | HM15: 152 | HN15: 40 | HO15: 2
N16: 5 | O16: 102 | P16: 102 | S16: 21 | T16: 593 | U16: 120 | X16: 37 | Y16: 218 | Z16: 205 | AC16: 53 | AD16: 295 | AE16: 314 | AH16: 69 | AI16: 299.8973083 | AJ16: 433.2051392 | AM16: =DA9 -> Parcours 6J2 | AN16: 2517 | AO16: 245 | AQ16: E | AR16: E | AS16: 35 | AT16: 210 | AU16: 160.0000763 | AV16: 3 | AW16: E | AX16: 76 | AY16: 172 | AZ16: 420 | BA16: 3 | BB16: E | BC16: 76 | BD16: 172 | BE16: 420 | BF16: 3 | BG16: E | BH16: 76 | BI16: 172 | BJ16: 420 | BK16: 3 | BL16: E | BM16: 76 | BN16: 172 | BO16: 420 | BP16: 3 | BQ16: E | BR16: 76 | BS16: 172 | BT16: 420 | BU16: 3 | BV16: E | BW16: 76 | BX16: 172 | BY16: 420 | BZ16: 3 | CA16: E | CB16: 76 | CC16: 172 | CD16: 420 | CE16: 3 | CF16: E | CG16: 76 | CH16: 172 | CI16: 420 | CJ16: 3 | CK16: E | CL16: 76 | CM16: 172 | CN16: 420 | CO16: 3 | CP16: E | CQ16: 76 | CR16: 172 | CS16: 420 | CT16: 3 | CU16: E | CV16: 76 | CW16: 172 | CX16: 420 | CY16: 3 | CZ16: E | DA16: 76 | DB16: 172 | DC16: 420 | DD16: 3 | DE16: E | DF16: 76 | DG16: 172 | DH16: 420 | DI16: 3 | DJ16: E | DK16: 76 | DL16: 172 | DM16: 420 | DN16: 3 | DO16: E | DP16: 76 | DQ16: 172 | DR16: 420 | DS16: 3 | DT16: E | DU16: 76 | DV16: 172 | DW16: 420 | DX16: 3 | DY16: E | DZ16: 76 | EA16: 172 | EB16: 420 | EC16: 3 | ED16: E | EE16: 76 | EF16: 172 | EG16: 420 | EH16: 3 | EI16: E | EJ16: 76 | EK16: 172 | EL16: 420 | EM16: 3 | EN16: E | EO16: 76 | EP16: 172 | EQ16: 420 | ER16: 3 | ES16: E | ET16: 76 | EU16: 172 | EV16: 420 | EW16: 3 | EX16: E | EY16: 76 | EZ16: 172 | FA16: 420 | FB16: 3 | FC16: E | FD16: 76 | FE16: 172 | FF16: 420 | FG16: 3 | FH16: E | FI16: 76 | FJ16: 172 | FK16: 420 | FL16: 3 | FM16: E | FN16: 76 | FO16: 172 | FP16: 420 | FQ16: 3 | FR16: E | FS16: 76 | FT16: 172 | FU16: 420 | FV16: 3 | FW16: E | FX16: 76 | FY16: 172 | FZ16: 420 | GA16: 3 | GB16: E | GC16: 76 | GD16: 172 | GE16: 420 | GF16: 3 | GG16: E | GH16: 76 | GI16: 172 | GJ16: 420 | GK16: 3 | GL16: E | GM16: 76 | GN16: 172 | GO16: 420 | GP16: 3 | GQ16: E | GR16: 76 | GS16: 172 | GT16: 420 | GU16: 3 | GV16: E | GW16: 76 | GX16: 172 | GY16: 420 | GZ16: 3 | HA16: E | HB16: 76 | HC16: 172 | HD16: 420 | HE16: 3 | HF16: E | HG16: 76 | HH16: 172 | HI16: 420 | HJ16: 3 | HK16: E | HL16: 76 | HM16: 172 | HN16: 420 | HO16: 3
L17: Edition de cartes | N17: 6 | O17: 114 | P17: 138 | S17: 22 | T17: 571 | U17: 142.0000763 | X17: 38 | Y17: 234 | Z17: 207 | AC17: 54 | AD17: 334 | AE17: 289 | AH17: 70 | AI17: 258 | AJ17: 415 | AM17: =DF9 -> Parcours 6J3 | AN17: 2517 | AO17: 274 | AQ17: F | AR17: F | AS17: 28 | AT17: 325 | AU17: 168.0000763 | AV17: 3 | AW17: F | AX17: 46 | AY17: 265 | AZ17: 267 | BA17: 3 | BB17: F | BC17: 46 | BD17: 265 | BE17: 267 | BF17: 3 | BG17: F | BH17: 46 | BI17: 265 | BJ17: 267 | BK17: 3 | BL17: F | BM17: 46 | BN17: 265 | BO17: 267 | BP17: 3 | BQ17: F | BR17: 46 | BS17: 265 | BT17: 267 | BU17: 3 | BV17: F | BW17: 46 | BX17: 265 | BY17: 267 | BZ17: 3 | CA17: F | CB17: 46 | CC17: 265 | CD17: 267 | CE17: 3 | CF17: F | CG17: 46 | CH17: 265 | CI17: 267 | CJ17: 3 | CK17: F | CL17: 46 | CM17: 265 | CN17: 267 | CO17: 3 | CP17: F | CQ17: 46 | CR17: 265 | CS17: 267 | CT17: 3 | CU17: F | CV17: 46 | CW17: 265 | CX17: 267 | CY17: 3 | CZ17: F | DA17: 46 | DB17: 265 | DC17: 267 | DD17: 3 | DE17: F | DF17: 46 | DG17: 265 | DH17: 267 | DI17: 3 | DJ17: F | DK17: 46 | DL17: 265 | DM17: 267 | DN17: 3 | DO17: F | DP17: 46 | DQ17: 265 | DR17: 267 | DS17: 3 | DT17: F | DU17: 46 | DV17: 265 | DW17: 267 | DX17: 3 | DY17: F | DZ17: 46 | EA17: 265 | EB17: 267 | EC17: 3 | ED17: F | EE17: 46 | EF17: 265 | EG17: 267 | EH17: 3 | EI17: F | EJ17: 46 | EK17: 265 | EL17: 267 | EM17: 3 | EN17: F | EO17: 46 | EP17: 265 | EQ17: 267 | ER17: 3 | ES17: F | ET17: 46 | EU17: 265 | EV17: 267 | EW17: 3 | EX17: F | EY17: 46 | EZ17: 265 | FA17: 267 | FB17: 3 | FC17: F | FD17: 46 | FE17: 265 | FF17: 267 | FG17: 3 | FH17: F | FI17: 46 | FJ17: 265 | FK17: 267 | FL17: 3 | FM17: F | FN17: 46 | FO17: 265 | FP17: 267 | FQ17: 3 | FR17: F | FS17: 46 | FT17: 265 | FU17: 267 | FV17: 3 | FW17: F | FX17: 46 | FY17: 265 | FZ17: 267 | GA17: 3 | GB17: F | GC17: 46 | GD17: 265 | GE17: 267 | GF17: 3 | GG17: F | GH17: 46 | GI17: 265 | GJ17: 267 | GK17: 3 | GL17: F | GM17: 46 | GN17: 265 | GO17: 267 | GP17: 3 | GQ17: F | GR17: 46 | GS17: 265 | GT17: 267 | GU17: 3 | GV17: F | GW17: 46 | GX17: 265 | GY17: 267 | GZ17: 3 | HA17: F | HB17: 46 | HC17: 265 | HD17: 267 | HE17: 3 | HF17: F | HG17: 46 | HH17: 265 | HI17: 267 | HJ17: 3 | HK17: F | HL17: 46 | HM17: 265 | HN17: 267 | HO17: 3
N18: 7 | O18: 116 | P18: 153 | S18: 23 | T18: 493 | U18: 119.0000763 | X18: 39 | Y18: 255 | Z18: 206.0000916 | AC18: 55 | AD18: 436 | AE18: 279.0000916 | AH18: 71 | AI18: 240 | AJ18: 419.9999084 | AM18: =DK9 -> Parcours 6J4 | AN18: 2517 | AO18: 303 | AQ18: G | AR18: G | AS18: 26 | AT18: 370 | AU18: 159 | AV18: 3 | AW18: G | AX18: 12 | AY18: 248 | AZ18: =IF(AX18="",0,VLOOKUP(AX18,$N$12:$P$101,3,FALSE)) -> 97 | BA18: 3 | BD18: 0 | BE18: 0 | BI18: 0 | BJ18: 0 | BL18: G | BM18: 32 | BN18: 227 | BO18: 181 | BP18: 2 | BS18: 0 | BT18: 0 | BX18: 0 | BY18: 0 | CC18: 0 | CD18: 0 | CH18: 0 | CI18: 0 | CM18: 0 | CN18: 0 | CR18: 0 | CS18: 0 | CW18: 0 | CX18: 0 | DB18: 0 | DC18: 0 | DE18: G | DG18: 0 | DH18: 0 | DJ18: G | DL18: 0 | DM18: 0 | DO18: G | DQ18: 0 | DR18: 0 | DT18: G | DV18: 0 | DW18: 0 | DY18: G | EA18: 0 | EB18: 0 | ED18: G | EF18: 0 | EG18: 0 | EI18: G | EK18: 0 | EL18: 0 | EN18: G | EP18: 0 | EQ18: 0 | ES18: G | EU18: 0 | EV18: 0 | EX18: G | EZ18: 0 | FA18: 0 | FE18: 0 | FF18: 0 | FH18: G | FJ18: 0 | FK18: 0 | FM18: G | FO18: 0 | FP18: 0 | FR18: G | FT18: 0 | FU18: 0 | FW18: G | FY18: 0 | FZ18: 0 | GB18: G | GD18: 0 | GE18: 0 | GG18: G | GI18: 0 | GJ18: 0 | GL18: G | GN18: 0 | GO18: 0 | GQ18: G | GS18: 0 | GT18: 0 | GV18: G | GX18: 0 | GY18: 0 | HA18: G | HC18: 0 | HD18: 0 | HF18: G | HH18: 0 | HI18: 0 | HK18: G | HM18: 0 | HN18: 0
N19: 8 | O19: 166 | P19: 150 | S19: 24 | T19: 418 | U19: 147.0000763 | X19: 40 | Y19: 276 | Z19: 207.0000916 | AC19: 56 | AD19: 396 | AE19: 303.0000916 | AH19: 72 | AI19: 226 | AJ19: 434.000061 | AM19: =DP9 -> Parcours 6J5 | AN19: 2517 | AO19: 332 | AQ19: H | AR19: H | AS19: 40 | AT19: 276 | AU19: 207.0000916 | AV19: 3 | AY19: 0 | AZ19: 0 | BD19: 0 | BE19: 0 | BI19: 0 | BJ19: 0 | BL19: H | BM19: 15 | BN19: 258.8462219 | BO19: 136.7947998 | BP19: 2 | BS19: 0 | BT19: 0 | BX19: 0 | BY19: 0 | CC19: 0 | CD19: 0 | CH19: 0 | CI19: 0 | CM19: 0 | CN19: 0 | CR19: 0 | CS19: 0 | CW19: 0 | CX19: 0 | DB19: 0 | DC19: 0 | DE19: H | DG19: 0 | DH19: 0 | DJ19: H | DL19: 0 | DM19: 0 | DO19: H | DQ19: 0 | DR19: 0 | DT19: H | DV19: 0 | DW19: 0 | DY19: H | EA19: 0 | EB19: 0 | ED19: H | EF19: 0 | EG19: 0 | EI19: H | EK19: 0 | EL19: 0 | EN19: H | EP19: 0 | EQ19: 0 | ES19: H | EU19: 0 | EV19: 0 | EX19: H | EZ19: 0 | FA19: 0 | FE19: 0 | FF19: 0 | FH19: H | FJ19: 0 | FK19: 0 | FM19: H | FO19: 0 | FP19: 0 | FR19: H | FT19: 0 | FU19: 0 | FW19: H | FY19: 0 | FZ19: 0 | GB19: H | GD19: 0 | GE19: 0 | GG19: H | GI19: 0 | GJ19: 0 | GL19: H | GN19: 0 | GO19: 0 | GQ19: H | GS19: 0 | GT19: 0 | GV19: H | GX19: 0 | GY19: 0 | HA19: H | HC19: 0 | HD19: 0 | HF19: H | HH19: 0 | HI19: 0 | HK19: H | HM19: 0 | HN19: 0
N20: 9 | O20: 167 | P20: 109 | S20: 25 | T20: 403 | U20: 137 | X20: 41 | Y20: 322 | Z20: 207 | AC20: 57 | AD20: 336 | AE20: 326 | AH20: 73 | AI20: 202 | AJ20: 450.000061 | AM20: =DU9 -> Parcours 6J6 | AN20: 2517 | AO20: 361 | AQ20: I | AR20: I | AS20: 39 | AT20: 255 | AU20: 206.0000916 | AV20: 3 | AY20: 0 | AZ20: 0 | BD20: 0 | BE20: 0 | BI20: 0 | BJ20: 0 | BN20: 0 | BO20: 0 | BS20: 0 | BT20: 0 | BX20: 0 | BY20: 0 | CC20: 0 | CD20: 0 | CH20: 0 | CI20: 0 | CM20: 0 | CN20: 0 | CR20: 0 | CS20: 0 | CW20: 0 | CX20: 0 | DB20: 0 | DC20: 0 | DE20: I | DG20: 0 | DH20: 0 | DJ20: I | DL20: 0 | DM20: 0 | DO20: I | DQ20: 0 | DR20: 0 | DT20: I | DV20: 0 | DW20: 0 | DY20: I | EA20: 0 | EB20: 0 | ED20: I | EF20: 0 | EG20: 0 | EI20: I | EK20: 0 | EL20: 0 | EN20: I | EP20: 0 | EQ20: 0 | ES20: I | EU20: 0 | EV20: 0 | EX20: I | EZ20: 0 | FA20: 0 | FE20: 0 | FF20: 0 | FH20: I | FJ20: 0 | FK20: 0 | FM20: I | FO20: 0 | FP20: 0 | FR20: I | FT20: 0 | FU20: 0 | FW20: I | FY20: 0 | FZ20: 0 | GB20: I | GD20: 0 | GE20: 0 | GG20: I | GI20: 0 | GJ20: 0 | GL20: I | GN20: 0 | GO20: 0 | GQ20: I | GS20: 0 | GT20: 0 | GV20: I | GX20: 0 | GY20: 0 | HA20: I | HC20: 0 | HD20: 0 | HF20: I | HH20: 0 | HI20: 0 | HK20: I | HM20: 0 | HN20: 0
N21: 10 | O21: 178 | P21: 96 | S21: 26 | T21: 370 | U21: 159 | X21: 42 | Y21: 274 | Z21: 223 | AC21: 58 | AD21: 320 | AE21: 340 | AH21: 74 | AI21: 113.9230728 | AJ21: 290.282135 | AM21: =DZ9 -> Parcours 6J7 | AN21: 2517 | AO21: 390 | AQ21: J | AR21: J | AS21: 45 | AT21: 236 | AU21: 253.0000916 | AV21: 3 | AW21: J | AX21: 16 | AY21: 249 | AZ21: 146 | BA21: 3 | BD21: 0 | BE21: 0 | BI21: 0 | BJ21: 0 | BN21: 0 | BO21: 0 | BS21: 0 | BT21: 0 | BX21: 0 | BY21: 0 | CC21: 0 | CD21: 0 | CF21: J | CH21: 0 | CI21: 0 | CM21: 0 | CN21: 0 | CR21: 0 | CS21: 0 | CW21: 0 | CX21: 0 | DB21: 0 | DC21: 0 | DE21: J | DG21: 0 | DH21: 0 | DJ21: J | DL21: 0 | DM21: 0 | DO21: J | DQ21: 0 | DR21: 0 | DT21: J | DV21: 0 | DW21: 0 | DY21: J | EA21: 0 | EB21: 0 | ED21: J | EF21: 0 | EG21: 0 | EI21: J | EK21: 0 | EL21: 0 | EN21: J | EP21: 0 | EQ21: 0 | ES21: J | EU21: 0 | EV21: 0 | EX21: J | EZ21: 0 | FA21: 0 | FE21: 0 | FF21: 0 | FH21: J | FJ21: 0 | FK21: 0 | FM21: J | FO21: 0 | FP21: 0 | FR21: J | FT21: 0 | FU21: 0 | FW21: J | FY21: 0 | FZ21: 0 | GB21: J | GD21: 0 | GE21: 0 | GG21: J | GI21: 0 | GJ21: 0 | GL21: J | GN21: 0 | GO21: 0 | GQ21: J | GS21: 0 | GT21: 0 | GV21: J | GX21: 0 | GY21: 0 | HA21: J | HC21: 0 | HD21: 0 | HF21: J | HH21: 0 | HI21: 0 | HK21: J | HM21: 0 | HN21: 0
N22: 11 | O22: 220 | P22: 129 | S22: 27 | T22: 327 | U22: 183.0000916 | X22: 43 | Y22: 271 | Z22: 240 | AC22: 59 | AD22: 318 | AE22: 355 | AH22: 75 | AI22: 111 | AJ22: 356 | AM22: =EE9 -> Parcours 6J8 | AN22: 2517 | AO22: 419 | AQ22: K | AR22: K | AT22: 0 | AU22: 0 | AV22: 3 | AW22: K | AY22: 0 | AZ22: 0 | BB22: K | BD22: 0 | BE22: 0 | BG22: K | BI22: 0 | BJ22: 0 | BN22: 0 | BO22: 0 | BS22: 0 | BT22: 0 | BV22: K | BX22: 0 | BY22: 0 | CA22: K | CC22: 0 | CD22: 0 | CF22: K | CH22: 0 | CI22: 0 | CK22: K | CM22: 0 | CN22: 0 | CP22: K | CR22: 0 | CS22: 0 | CU22: K | CW22: 0 | CX22: 0 | CZ22: K | DB22: 0 | DC22: 0 | DE22: K | DG22: 0 | DH22: 0 | DJ22: K | DL22: 0 | DM22: 0 | DO22: K | DQ22: 0 | DR22: 0 | DT22: K | DV22: 0 | DW22: 0 | DY22: K | EA22: 0 | EB22: 0 | ED22: K | EF22: 0 | EG22: 0 | EI22: K | EK22: 0 | EL22: 0 | EN22: K | EP22: 0 | EQ22: 0 | ES22: K | EU22: 0 | EV22: 0 | EX22: K | EZ22: 0 | FA22: 0 | FC22: K | FE22: 0 | FF22: 0 | FH22: K | FJ22: 0 | FK22: 0 | FM22: K | FO22: 0 | FP22: 0 | FR22: K | FT22: 0 | FU22: 0 | FW22: K | FY22: 0 | FZ22: 0 | GB22: K | GD22: 0 | GE22: 0 | GG22: K | GI22: 0 | GJ22: 0 | GL22: K | GN22: 0 | GO22: 0 | GQ22: K | GS22: 0 | GT22: 0 | GV22: K | GX22: 0 | GY22: 0 | HA22: K | HC22: 0 | HD22: 0 | HF22: K | HH22: 0 | HI22: 0 | HK22: K | HM22: 0 | HN22: 0
N23: 12 | O23: 248 | P23: 97 | S23: 28 | T23: 325 | U23: 168.0000763 | X23: 44 | Y23: 224 | Z23: 237.0000916 | AC23: 60 | AD23: 274 | AE23: 355.0000916 | AH23: 76 | AI23: 172 | AJ23: 420 | AM23: =EJ9 -> Parcours 6J9 | AN23: 2517 | AO23: 448 | AQ23: L | AR23: L | AS23: 51 | AT23: 274 | AU23: 293 | AV23: 3 | AW23: L | AY23: 0 | AZ23: 0 | BB23: L | BD23: 0 | BE23: 0 | BG23: L | BI23: 0 | BJ23: 0 | BL23: L | BN23: 0 | BO23: 0 | BQ23: L | BS23: 0 | BT23: 0 | BV23: L | BX23: 0 | BY23: 0 | CA23: L | CC23: 0 | CD23: 0 | CF23: L | CH23: 0 | CI23: 0 | CK23: L | CM23: 0 | CN23: 0 | CP23: L | CR23: 0 | CS23: 0 | CU23: L | CW23: 0 | CX23: 0 | CZ23: L | DB23: 0 | DC23: 0 | DE23: L | DG23: 0 | DH23: 0 | DJ23: L | DL23: 0 | DM23: 0 | DO23: L | DQ23: 0 | DR23: 0 | DT23: L | DV23: 0 | DW23: 0 | DY23: L | EA23: 0 | EB23: 0 | ED23: L | EF23: 0 | EG23: 0 | EI23: L | EK23: 0 | EL23: 0 | EN23: L | EP23: 0 | EQ23: 0 | ES23: L | EU23: 0 | EV23: 0 | EX23: L | EZ23: 0 | FA23: 0 | FC23: L | FE23: 0 | FF23: 0 | FH23: L | FJ23: 0 | FK23: 0 | FM23: L | FO23: 0 | FP23: 0 | FR23: L | FT23: 0 | FU23: 0 | FW23: L | FY23: 0 | FZ23: 0 | GB23: L | GD23: 0 | GE23: 0 | GG23: L | GI23: 0 | GJ23: 0 | GL23: L | GN23: 0 | GO23: 0 | GQ23: L | GS23: 0 | GT23: 0 | GV23: L | GX23: 0 | GY23: 0 | HA23: L | HC23: 0 | HD23: 0 | HF23: L | HH23: 0 | HI23: 0 | HK23: L | HM23: 0 | HN23: 0
N24: 13 | O24: 258 | P24: 73 | S24: 29 | T24: 289 | U24: 184.0000916 | X24: 45 | Y24: 236 | Z24: 253.0000916 | AC24: 61 | AD24: 383 | AE24: 349.0000916 | AM24: =EO9 -> Parcours 6J10 | AN24: 2517 | AO24: 477 | AQ24: M | AR24: M | AS24: 50 | AT24: 238 | AU24: 329 | AV24: 3 | AW24: M | AY24: 0 | AZ24: 0 | BB24: M | BD24: 0 | BE24: 0 | BG24: M | BI24: 0 | BJ24: 0 | BL24: M | BN24: 0 | BO24: 0 | BQ24: M | BS24: 0 | BT24: 0 | BV24: M | BX24: 0 | BY24: 0 | CA24: M | CC24: 0 | CD24: 0 | CF24: M | CH24: 0 | CI24: 0 | CK24: M | CM24: 0 | CN24: 0 | CP24: M | CR24: 0 | CS24: 0 | CU24: M | CW24: 0 | CX24: 0 | CZ24: M | DB24: 0 | DC24: 0 | DE24: M | DG24: 0 | DH24: 0 | DJ24: M | DL24: 0 | DM24: 0 | DO24: M | DQ24: 0 | DR24: 0 | DT24: M | DV24: 0 | DW24: 0 | DY24: M | EA24: 0 | EB24: 0 | ED24: M | EF24: 0 | EG24: 0 | EI24: M | EK24: 0 | EL24: 0 | EN24: M | EP24: 0 | EQ24: 0 | ES24: M | EU24: 0 | EV24: 0 | EX24: M | EZ24: 0 | FA24: 0 | FC24: M | FE24: 0 | FF24: 0 | FH24: M | FJ24: 0 | FK24: 0 | FM24: M | FO24: 0 | FP24: 0 | FR24: M | FT24: 0 | FU24: 0 | FW24: M | FY24: 0 | FZ24: 0 | GB24: M | GD24: 0 | GE24: 0 | GG24: M | GI24: 0 | GJ24: 0 | GL24: M | GN24: 0 | GO24: 0 | GQ24: M | GS24: 0 | GT24: 0 | GV24: M | GX24: 0 | GY24: 0 | HA24: M | HC24: 0 | HD24: 0 | HF24: M | HH24: 0 | HI24: 0 | HK24: M | HM24: 0 | HN24: 0
N25: 14 | O25: 267 | P25: 119 | S25: 30 | T25: 296 | U25: 169 | X25: 46 | Y25: 265 | Z25: 267 | AC25: 62 | AD25: 484 | AE25: 302 | AM25: =ET9 -> Parcours 7SuiviB | AN25: 2517 | AO25: 506 | AQ25: N | AR25: N | AS25: 74 | AT25: 113.9230728 | AU25: 290.282135 | AV25: 3 | AW25: N | AY25: 0 | AZ25: 0 | BB25: N | BD25: 0 | BE25: 0 | BG25: N | BI25: 0 | BJ25: 0 | BL25: N | BN25: 0 | BO25: 0 | BQ25: N | BS25: 0 | BT25: 0 | BV25: N | BX25: 0 | BY25: 0 | CA25: N | CC25: 0 | CD25: 0 | CF25: N | CH25: 0 | CI25: 0 | CK25: N | CM25: 0 | CN25: 0 | CP25: N | CR25: 0 | CS25: 0 | CU25: N | CW25: 0 | CX25: 0 | CZ25: N | DB25: 0 | DC25: 0 | DE25: N | DG25: 0 | DH25: 0 | DJ25: N | DL25: 0 | DM25: 0 | DO25: N | DQ25: 0 | DR25: 0 | DT25: N | DV25: 0 | DW25: 0 | DY25: N | EA25: 0 | EB25: 0 | ED25: N | EF25: 0 | EG25: 0 | EI25: N | EK25: 0 | EL25: 0 | EN25: N | EP25: 0 | EQ25: 0 | ES25: N | EU25: 0 | EV25: 0 | EX25: N | EZ25: 0 | FA25: 0 | FC25: N | FE25: 0 | FF25: 0 | FH25: N | FJ25: 0 | FK25: 0 | FM25: N | FO25: 0 | FP25: 0 | FR25: N | FT25: 0 | FU25: 0 | FW25: N | FY25: 0 | FZ25: 0 | GB25: N | GD25: 0 | GE25: 0 | GG25: N | GI25: 0 | GJ25: 0 | GL25: N | GN25: 0 | GO25: 0 | GQ25: N | GS25: 0 | GT25: 0 | GV25: N | GX25: 0 | GY25: 0 | HA25: N | HC25: 0 | HD25: 0 | HF25: N | HH25: 0 | HI25: 0 | HK25: N | HM25: 0 | HN25: 0
N26: 15 | O26: 258.8462219 | P26: 136.7947998 | S26: 31 | T26: 251 | U26: 170.0000916 | X26: 47 | Y26: 310 | Z26: 263 | AC26: 63 | AD26: 385 | AE26: 434 | AM26: =EY9 -> Parcours 6suiviR | AN26: 2517 | AO26: 535 | AQ26: O | AR26: O | AT26: 0 | AU26: 0 | AV26: 3 | AW26: O | AY26: 0 | AZ26: 0 | BB26: O | BD26: 0 | BE26: 0 | BG26: O | BI26: 0 | BJ26: 0 | BL26: O | BN26: 0 | BO26: 0 | BQ26: O | BS26: 0 | BT26: 0 | BV26: O | BX26: 0 | BY26: 0 | CA26: O | CC26: 0 | CD26: 0 | CF26: O | CH26: 0 | CI26: 0 | CK26: O | CM26: 0 | CN26: 0 | CP26: O | CR26: 0 | CS26: 0 | CU26: O | CW26: 0 | CX26: 0 | CZ26: O | DB26: 0 | DC26: 0 | DE26: O | DG26: 0 | DH26: 0 | DJ26: O | DL26: 0 | DM26: 0 | DO26: O | DQ26: 0 | DR26: 0 | DT26: O | DV26: 0 | DW26: 0 | DY26: O | EA26: 0 | EB26: 0 | ED26: O | EF26: 0 | EG26: 0 | EI26: O | EK26: 0 | EL26: 0 | EN26: O | EP26: 0 | EQ26: 0 | ES26: O | EU26: 0 | EV26: 0 | EX26: O | EZ26: 0 | FA26: 0 | FC26: O | FE26: 0 | FF26: 0 | FH26: O | FJ26: 0 | FK26: 0 | FM26: O | FO26: 0 | FP26: 0 | FR26: O | FT26: 0 | FU26: 0 | FW26: O | FY26: 0 | FZ26: 0 | GB26: O | GD26: 0 | GE26: 0 | GG26: O | GI26: 0 | GJ26: 0 | GL26: O | GN26: 0 | GO26: 0 | GQ26: O | GS26: 0 | GT26: 0 | GV26: O | GX26: 0 | GY26: 0 | HA26: O | HC26: 0 | HD26: 0 | HF26: O | HH26: 0 | HI26: 0 | HK26: O | HM26: 0 | HN26: 0
N27: 16 | O27: 249 | P27: 146 | S27: 32 | T27: 227 | U27: 181 | X27: 48 | Y27: 238 | Z27: 278.0000916 | AC27: 64 | AD27: 333 | AE27: 394.0000916 | AM27: =FD9 -> alchimiste | AN27: 2517 | AO27: 564 | AQ27: P | AR27: P | AS27: 6 | AT27: 114 | AU27: 138 | AV27: 3 | AW27: P | AX27: 13 | AY27: 258 | AZ27: 73 | BA27: 2 | BB27: P | BD27: 0 | BE27: 0 | BG27: P | BI27: 0 | BJ27: 0 | BL27: P | BN27: 0 | BO27: 0 | BQ27: P | BS27: 0 | BT27: 0 | BV27: P | BX27: 0 | BY27: 0 | CA27: P | CC27: 0 | CD27: 0 | CF27: P | CH27: 0 | CI27: 0 | CK27: P | CM27: 0 | CN27: 0 | CP27: P | CR27: 0 | CS27: 0 | CU27: P | CW27: 0 | CX27: 0 | CZ27: P | DB27: 0 | DC27: 0 | DE27: P | DG27: 0 | DH27: 0 | DJ27: P | DL27: 0 | DM27: 0 | DO27: P | DQ27: 0 | DR27: 0 | DT27: P | DV27: 0 | DW27: 0 | DY27: P | EA27: 0 | EB27: 0 | ED27: P | EF27: 0 | EG27: 0 | EI27: P | EK27: 0 | EL27: 0 | EN27: P | EP27: 0 | EQ27: 0 | ES27: P | EU27: 0 | EV27: 0 | EX27: P | EZ27: 0 | FA27: 0 | FC27: P | FE27: 0 | FF27: 0 | FH27: P | FJ27: 0 | FK27: 0 | FM27: P | FO27: 0 | FP27: 0 | FR27: P | FT27: 0 | FU27: 0 | FW27: P | FY27: 0 | FZ27: 0 | GB27: P | GD27: 0 | GE27: 0 | GG27: P | GI27: 0 | GJ27: 0 | GL27: P | GN27: 0 | GO27: 0 | GQ27: P | GS27: 0 | GT27: 0 | GV27: P | GX27: 0 | GY27: 0 | HA27: P | HC27: 0 | HD27: 0 | HF27: P | HH27: 0 | HI27: 0 | HK27: P | HM27: 0 | HN27: 0
N28: 17 | O28: =T12 -> 308 | P28: =U12 -> 147 | AM28: =FI9 -> Parcours 5rando3 | AN28: 2517 | AO28: 593 | AQ28: Q | AR28: Q | AS28: 33 | AT28: 236 | AU28: 165 | AV28: 3 | AW28: Q | AX28: 19 | AY28: 545 | AZ28: 97.00007629 | BA28: 2 | BB28: Q | BD28: 0 | BE28: 0 | BG28: Q | BI28: 0 | BJ28: 0 | BL28: Q | BN28: 0 | BO28: 0 | BQ28: Q | BS28: 0 | BT28: 0 | BV28: Q | BX28: 0 | BY28: 0 | CA28: Q | CC28: 0 | CD28: 0 | CF28: Q | CH28: 0 | CI28: 0 | CK28: Q | CM28: 0 | CN28: 0 | CP28: Q | CR28: 0 | CS28: 0 | CU28: Q | CW28: 0 | CX28: 0 | CZ28: Q | DB28: 0 | DC28: 0 | DE28: Q | DG28: 0 | DH28: 0 | DJ28: Q | DL28: 0 | DM28: 0 | DO28: Q | DQ28: 0 | DR28: 0 | DT28: Q | DV28: 0 | DW28: 0 | DY28: Q | EA28: 0 | EB28: 0 | ED28: Q | EF28: 0 | EG28: 0 | EI28: Q | EK28: 0 | EL28: 0 | EN28: Q | EP28: 0 | EQ28: 0 | ES28: Q | EU28: 0 | EV28: 0 | EX28: Q | EZ28: 0 | FA28: 0 | FC28: Q | FE28: 0 | FF28: 0 | FH28: Q | FJ28: 0 | FK28: 0 | FM28: Q | FO28: 0 | FP28: 0 | FR28: Q | FT28: 0 | FU28: 0 | FW28: Q | FY28: 0 | FZ28: 0 | GB28: Q | GD28: 0 | GE28: 0 | GG28: Q | GI28: 0 | GJ28: 0 | GL28: Q | GN28: 0 | GO28: 0 | GQ28: Q | GS28: 0 | GT28: 0 | GV28: Q | GX28: 0 | GY28: 0 | HA28: Q | HC28: 0 | HD28: 0 | HF28: Q | HH28: 0 | HI28: 0 | HK28: Q | HM28: 0 | HN28: 0
N29: 18 | O29: =T13 -> 477 | P29: 92.00007629 | AM29: =FN9 -> Parcours 4selfie1 | AN29: 2517 | AO29: 622 | AQ29: R | AR29: R | AS29: 29 | AT29: 289 | AU29: 184.0000916 | AV29: 3 | AW29: R | AX29: 75 | AY29: 111 | AZ29: 356 | BA29: 3 | BB29: R | BD29: 0 | BE29: 0 | BG29: R | BI29: 0 | BJ29: 0 | BL29: R | BN29: 0 | BO29: 0 | BQ29: R | BS29: 0 | BT29: 0 | BV29: R | BX29: 0 | BY29: 0 | CA29: R | CC29: 0 | CD29: 0 | CF29: R | CH29: 0 | CI29: 0 | CK29: R | CM29: 0 | CN29: 0 | CP29: R | CR29: 0 | CS29: 0 | CU29: R | CW29: 0 | CX29: 0 | CZ29: R | DB29: 0 | DC29: 0 | DE29: R | DG29: 0 | DH29: 0 | DJ29: R | DL29: 0 | DM29: 0 | DO29: R | DQ29: 0 | DR29: 0 | DT29: R | DV29: 0 | DW29: 0 | DY29: R | EA29: 0 | EB29: 0 | ED29: R | EF29: 0 | EG29: 0 | EI29: R | EK29: 0 | EL29: 0 | EN29: R | EP29: 0 | EQ29: 0 | ES29: R | EU29: 0 | EV29: 0 | EX29: R | EZ29: 0 | FA29: 0 | FC29: R | FE29: 0 | FF29: 0 | FH29: R | FJ29: 0 | FK29: 0 | FM29: R | FO29: 0 | FP29: 0 | FR29: R | FT29: 0 | FU29: 0 | FW29: R | FY29: 0 | FZ29: 0 | GB29: R | GD29: 0 | GE29: 0 | GG29: R | GI29: 0 | GJ29: 0 | GL29: R | GN29: 0 | GO29: 0 | GQ29: R | GS29: 0 | GT29: 0 | GV29: R | GX29: 0 | GY29: 0 | HA29: R | HC29: 0 | HD29: 0 | HF29: R | HH29: 0 | HI29: 0 | HK29: R | HM29: 0 | HN29: 0
N30: 19 | O30: =T14 -> 545 | P30: 97.00007629 | AM30: =FS9 -> Parcours 5trail1 | AN30: 2517 | AO30: 680 | AQ30: S | AR30: S | AS30: 24 | AT30: 418 | AU30: 147.0000763 | AV30: 3 | AW30: S | AX30: 14 | AY30: 267 | AZ30: 119 | BA30: 3 | BB30: S | BD30: 0 | BE30: 0 | BG30: S | BI30: 0 | BJ30: 0 | BL30: S | BN30: 0 | BO30: 0 | BQ30: S | BS30: 0 | BT30: 0 | BV30: S | BX30: 0 | BY30: 0 | CA30: S | CC30: 0 | CD30: 0 | CF30: S | CH30: 0 | CI30: 0 | CK30: S | CM30: 0 | CN30: 0 | CP30: S | CR30: 0 | CS30: 0 | CU30: S | CW30: 0 | CX30: 0 | CZ30: S | DB30: 0 | DC30: 0 | DE30: S | DG30: 0 | DH30: 0 | DJ30: S | DL30: 0 | DM30: 0 | DO30: S | DQ30: 0 | DR30: 0 | DT30: S | DV30: 0 | DW30: 0 | DY30: S | EA30: 0 | EB30: 0 | ED30: S | EF30: 0 | EG30: 0 | EI30: S | EK30: 0 | EL30: 0 | EN30: S | EP30: 0 | EQ30: 0 | ES30: S | EU30: 0 | EV30: 0 | EX30: S | EZ30: 0 | FA30: 0 | FC30: S | FE30: 0 | FF30: 0 | FH30: S | FJ30: 0 | FK30: 0 | FM30: S | FO30: 0 | FP30: 0 | FR30: S | FT30: 0 | FU30: 0 | FW30: S | FY30: 0 | FZ30: 0 | GB30: S | GD30: 0 | GE30: 0 | GG30: S | GI30: 0 | GJ30: 0 | GL30: S | GN30: 0 | GO30: 0 | GQ30: S | GS30: 0 | GT30: 0 | GV30: S | GX30: 0 | GY30: 0 | HA30: S | HC30: 0 | HD30: 0 | HF30: S | HH30: 0 | HI30: 0 | HK30: S | HM30: 0 | HN30: 0
N31: 20 | O31: =T15 -> 582 | P31: 109.0000763 | AM31: =FX9 -> Parcours 5sportif1 | AN31: 2517 | AO31: 709 | AQ31: T | AR31: T | AS31: 54 | AT31: 334 | AU31: 289 | AV31: 3 | AW31: T | AX31: 63 | AY31: 385 | AZ31: 434 | BA31: 3 | BB31: T | BD31: 0 | BE31: 0 | BG31: T | BI31: 0 | BJ31: 0 | BL31: T | BN31: 0 | BO31: 0 | BQ31: T | BS31: 0 | BT31: 0 | BV31: T | BX31: 0 | BY31: 0 | CA31: T | CC31: 0 | CD31: 0 | CF31: T | CH31: 0 | CI31: 0 | CK31: T | CM31: 0 | CN31: 0 | CP31: T | CR31: 0 | CS31: 0 | CU31: T | CW31: 0 | CX31: 0 | CZ31: T | DB31: 0 | DC31: 0 | DE31: T | DG31: 0 | DH31: 0 | DJ31: T | DL31: 0 | DM31: 0 | DO31: T | DQ31: 0 | DR31: 0 | DT31: T | DV31: 0 | DW31: 0 | DY31: T | EA31: 0 | EB31: 0 | ED31: T | EF31: 0 | EG31: 0 | EI31: T | EK31: 0 | EL31: 0 | EN31: T | EP31: 0 | EQ31: 0 | ES31: T | EU31: 0 | EV31: 0 | EX31: T | EZ31: 0 | FA31: 0 | FC31: T | FE31: 0 | FF31: 0 | FH31: T | FJ31: 0 | FK31: 0 | FM31: T | FO31: 0 | FP31: 0 | FR31: T | FT31: 0 | FU31: 0 | FW31: T | FY31: 0 | FZ31: 0 | GB31: T | GD31: 0 | GE31: 0 | GG31: T | GI31: 0 | GJ31: 0 | GL31: T | GN31: 0 | GO31: 0 | GQ31: T | GS31: 0 | GT31: 0 | GV31: T | GX31: 0 | GY31: 0 | HA31: T | HC31: 0 | HD31: 0 | HF31: T | HH31: 0 | HI31: 0 | HK31: T | HM31: 0 | HN31: 0
N32: 21 | O32: =T16 -> 593 | P32: 120 | AM32: =GC9 -> Parcours 12points5 | AN32: 2517 | AO32: 738 | AQ32: U | AR32: U | AS32: 56 | AT32: 396 | AU32: 303.0000916 | AV32: 3 | AW32: U | AY32: 0 | AZ32: 0 | BB32: U | BD32: 0 | BE32: 0 | BG32: U | BI32: 0 | BJ32: 0 | BL32: U | BN32: 0 | BO32: 0 | BQ32: U | BS32: 0 | BT32: 0 | BV32: U | BX32: 0 | BY32: 0 | CA32: U | CC32: 0 | CD32: 0 | CF32: U | CH32: 0 | CI32: 0 | CK32: U | CM32: 0 | CN32: 0 | CP32: U | CR32: 0 | CS32: 0 | CU32: U | CW32: 0 | CX32: 0 | CZ32: U | DB32: 0 | DC32: 0 | DE32: U | DG32: 0 | DH32: 0 | DJ32: U | DL32: 0 | DM32: 0 | DO32: U | DQ32: 0 | DR32: 0 | DT32: U | DV32: 0 | DW32: 0 | DY32: U | EA32: 0 | EB32: 0 | ED32: U | EF32: 0 | EG32: 0 | EI32: U | EK32: 0 | EL32: 0 | EN32: U | EP32: 0 | EQ32: 0 | ES32: U | EU32: 0 | EV32: 0 | EX32: U | EZ32: 0 | FA32: 0 | FC32: U | FE32: 0 | FF32: 0 | FH32: U | FJ32: 0 | FK32: 0 | FM32: U | FO32: 0 | FP32: 0 | FR32: U | FT32: 0 | FU32: 0 | FW32: U | FY32: 0 | FZ32: 0 | GB32: U | GD32: 0 | GE32: 0 | GG32: U | GI32: 0 | GJ32: 0 | GL32: U | GN32: 0 | GO32: 0 | GQ32: U | GS32: 0 | GT32: 0 | GV32: U | GX32: 0 | GY32: 0 | HA32: U | HC32: 0 | HD32: 0 | HF32: U | HH32: 0 | HI32: 0 | HK32: U | HM32: 0 | HN32: 0
N33: 22 | O33: =T17 -> 571 | P33: 142.0000763 | AM33: =GH9 -> Parcours 12points8 | AN33: 2517 | AO33: 767 | AQ33: V | AR33: V | AS33: 59 | AT33: 318 | AU33: 355 | AV33: 3 | AW33: V | AY33: 0 | AZ33: 0 | BB33: V | BD33: 0 | BE33: 0 | BG33: V | BI33: 0 | BJ33: 0 | BL33: V | BN33: 0 | BO33: 0 | BQ33: V | BS33: 0 | BT33: 0 | BV33: V | BX33: 0 | BY33: 0 | CA33: V | CC33: 0 | CD33: 0 | CF33: V | CH33: 0 | CI33: 0 | CK33: V | CM33: 0 | CN33: 0 | CP33: V | CR33: 0 | CS33: 0 | CU33: V | CW33: 0 | CX33: 0 | CZ33: V | DB33: 0 | DC33: 0 | DE33: V | DG33: 0 | DH33: 0 | DJ33: V | DL33: 0 | DM33: 0 | DO33: V | DQ33: 0 | DR33: 0 | DT33: V | DV33: 0 | DW33: 0 | DY33: V | EA33: 0 | EB33: 0 | ED33: V | EF33: 0 | EG33: 0 | EI33: V | EK33: 0 | EL33: 0 | EN33: V | EP33: 0 | EQ33: 0 | ES33: V | EU33: 0 | EV33: 0 | EX33: V | EZ33: 0 | FA33: 0 | FC33: V | FE33: 0 | FF33: 0 | FH33: V | FJ33: 0 | FK33: 0 | FM33: V | FO33: 0 | FP33: 0 | FR33: V | FT33: 0 | FU33: 0 | FW33: V | FY33: 0 | FZ33: 0 | GB33: V | GD33: 0 | GE33: 0 | GG33: V | GI33: 0 | GJ33: 0 | GL33: V | GN33: 0 | GO33: 0 | GQ33: V | GS33: 0 | GT33: 0 | GV33: V | GX33: 0 | GY33: 0 | HA33: V | HC33: 0 | HD33: 0 | HF33: V | HH33: 0 | HI33: 0 | HK33: V | HM33: 0 | HN33: 0
N34: 23 | O34: =T18 -> 493 | P34: 119.0000763 | AM34: =GM9 -> Parcours 12points3 | AN34: 2517 | AO34: 796 | AQ34: W | AR34: W | AT34: 0 | AU34: 0 | AV34: 3 | AW34: W | AY34: 0 | AZ34: 0 | BB34: W | BD34: 0 | BE34: 0 | BG34: W | BI34: 0 | BJ34: 0 | BL34: W | BN34: 0 | BO34: 0 | BQ34: W | BS34: 0 | BT34: 0 | BV34: W | BX34: 0 | BY34: 0 | CA34: W | CC34: 0 | CD34: 0 | CF34: W | CH34: 0 | CI34: 0 | CK34: W | CM34: 0 | CN34: 0 | CP34: W | CR34: 0 | CS34: 0 | CU34: W | CW34: 0 | CX34: 0 | CZ34: W | DB34: 0 | DC34: 0 | DE34: W | DG34: 0 | DH34: 0 | DJ34: W | DL34: 0 | DM34: 0 | DO34: W | DQ34: 0 | DR34: 0 | DT34: W | DV34: 0 | DW34: 0 | DY34: W | EA34: 0 | EB34: 0 | ED34: W | EF34: 0 | EG34: 0 | EI34: W | EK34: 0 | EL34: 0 | EN34: W | EP34: 0 | EQ34: 0 | ES34: W | EU34: 0 | EV34: 0 | EX34: W | EZ34: 0 | FA34: 0 | FC34: W | FE34: 0 | FF34: 0 | FH34: W | FJ34: 0 | FK34: 0 | FM34: W | FO34: 0 | FP34: 0 | FR34: W | FT34: 0 | FU34: 0 | FW34: W | FY34: 0 | FZ34: 0 | GB34: W | GD34: 0 | GE34: 0 | GG34: W | GI34: 0 | GJ34: 0 | GL34: W | GN34: 0 | GO34: 0 | GQ34: W | GS34: 0 | GT34: 0 | GV34: W | GX34: 0 | GY34: 0 | HA34: W | HC34: 0 | HD34: 0 | HF34: W | HH34: 0 | HI34: 0 | HK34: W | HM34: 0 | HN34: 0
N35: 24 | O35: =T19 -> 418 | P35: 147.0000763 | AM35: =GR9 -> Parcours 12points4 | AN35: 2517 | AO35: 825 | AQ35: X | AR35: X | AS35: 76 | AT35: 172 | AU35: 420 | AV35: 3 | AW35: X | AY35: 0 | AZ35: 0 | BB35: X | BD35: 0 | BE35: 0 | BG35: X | BI35: 0 | BJ35: 0 | BL35: X | BN35: 0 | BO35: 0 | BQ35: X | BS35: 0 | BT35: 0 | BV35: X | BX35: 0 | BY35: 0 | CA35: X | CC35: 0 | CD35: 0 | CF35: X | CH35: 0 | CI35: 0 | CK35: X | CM35: 0 | CN35: 0 | CP35: X | CR35: 0 | CS35: 0 | CU35: X | CW35: 0 | CX35: 0 | CZ35: X | DB35: 0 | DC35: 0 | DE35: X | DG35: 0 | DH35: 0 | DJ35: X | DL35: 0 | DM35: 0 | DO35: X | DQ35: 0 | DR35: 0 | DT35: X | DV35: 0 | DW35: 0 | DY35: X | EA35: 0 | EB35: 0 | ED35: X | EF35: 0 | EG35: 0 | EI35: X | EK35: 0 | EL35: 0 | EN35: X | EP35: 0 | EQ35: 0 | ES35: X | EU35: 0 | EV35: 0 | EX35: X | EZ35: 0 | FA35: 0 | FC35: X | FE35: 0 | FF35: 0 | FH35: X | FJ35: 0 | FK35: 0 | FM35: X | FO35: 0 | FP35: 0 | FR35: X | FT35: 0 | FU35: 0 | FW35: X | FY35: 0 | FZ35: 0 | GB35: X | GD35: 0 | GE35: 0 | GG35: X | GI35: 0 | GJ35: 0 | GL35: X | GN35: 0 | GO35: 0 | GQ35: X | GS35: 0 | GT35: 0 | GV35: X | GX35: 0 | GY35: 0 | HA35: X | HC35: 0 | HD35: 0 | HF35: X | HH35: 0 | HI35: 0 | HK35: X | HM35: 0 | HN35: 0
N36: 25 | O36: =T20 -> 403 | P36: 137 | AM36: =GW9 -> L'oracle della luna | AN36: 2517 | AO36: 854 | AQ36: Y | AR36: Y | AT36: 0 | AU36: 0 | AV36: 3 | AW36: Y | AY36: 0 | AZ36: 0 | BB36: Y | BD36: 0 | BE36: 0 | BG36: Y | BI36: 0 | BJ36: 0 | BL36: Y | BN36: 0 | BO36: 0 | BQ36: Y | BS36: 0 | BT36: 0 | BV36: Y | BX36: 0 | BY36: 0 | CA36: Y | CC36: 0 | CD36: 0 | CF36: Y | CH36: 0 | CI36: 0 | CK36: Y | CM36: 0 | CN36: 0 | CP36: Y | CR36: 0 | CS36: 0 | CU36: Y | CW36: 0 | CX36: 0 | CZ36: Y | DB36: 0 | DC36: 0 | DE36: Y | DG36: 0 | DH36: 0 | DJ36: Y | DL36: 0 | DM36: 0 | DO36: Y | DQ36: 0 | DR36: 0 | DT36: Y | DV36: 0 | DW36: 0 | DY36: Y | EA36: 0 | EB36: 0 | ED36: Y | EF36: 0 | EG36: 0 | EI36: Y | EK36: 0 | EL36: 0 | EN36: Y | EP36: 0 | EQ36: 0 | ES36: Y | EU36: 0 | EV36: 0 | EX36: Y | EZ36: 0 | FA36: 0 | FC36: Y | FE36: 0 | FF36: 0 | FH36: Y | FJ36: 0 | FK36: 0 | FM36: Y | FO36: 0 | FP36: 0 | FR36: Y | FT36: 0 | FU36: 0 | FW36: Y | FY36: 0 | FZ36: 0 | GB36: Y | GD36: 0 | GE36: 0 | GG36: Y | GI36: 0 | GJ36: 0 | GL36: Y | GN36: 0 | GO36: 0 | GQ36: Y | GS36: 0 | GT36: 0 | GV36: Y | GX36: 0 | GY36: 0 | HA36: Y | HC36: 0 | HD36: 0 | HF36: Y | HH36: 0 | HI36: 0 | HK36: Y | HM36: 0 | HN36: 0
N37: 26 | O37: =T21 -> 370 | P37: 159 | AM37: =HB9 -> Parcours 8SIVIOLET | AN37: 2521.395508 | AO37: 1145.032837 | AQ37: Z | AR37: Z | AT37: 0 | AU37: 0 | AV37: 3 | AW37: Z | AX37: 23 | AY37: 493 | AZ37: 119.0000763 | BA37: 3 | BB37: Z | BD37: 0 | BE37: 0 | BG37: Z | BI37: 0 | BJ37: 0 | BL37: Z | BN37: 0 | BO37: 0 | BQ37: Z | BS37: 0 | BT37: 0 | BV37: Z | BX37: 0 | BY37: 0 | CA37: Z | CC37: 0 | CD37: 0 | CF37: Z | CH37: 0 | CI37: 0 | CK37: Z | CM37: 0 | CN37: 0 | CP37: Z | CR37: 0 | CS37: 0 | CU37: Z | CW37: 0 | CX37: 0 | CZ37: Z | DB37: 0 | DC37: 0 | DE37: Z | DG37: 0 | DH37: 0 | DJ37: Z | DL37: 0 | DM37: 0 | DO37: Z | DQ37: 0 | DR37: 0 | DT37: Z | DV37: 0 | DW37: 0 | DY37: Z | EA37: 0 | EB37: 0 | ED37: Z | EF37: 0 | EG37: 0 | EI37: Z | EK37: 0 | EL37: 0 | EN37: Z | EP37: 0 | EQ37: 0 | ES37: Z | EU37: 0 | EV37: 0 | EX37: Z | EZ37: 0 | FA37: 0 | FC37: Z | FE37: 0 | FF37: 0 | FH37: Z | FJ37: 0 | FK37: 0 | FM37: Z | FO37: 0 | FP37: 0 | FR37: Z | FT37: 0 | FU37: 0 | FW37: Z | FY37: 0 | FZ37: 0 | GB37: Z | GD37: 0 | GE37: 0 | GG37: Z | GI37: 0 | GJ37: 0 | GL37: Z | GN37: 0 | GO37: 0 | GQ37: Z | GS37: 0 | GT37: 0 | GV37: Z | GX37: 0 | GY37: 0 | HA37: Z | HC37: 0 | HD37: 0 | HF37: Z | HH37: 0 | HI37: 0 | HK37: Z | HM37: 0 | HN37: 0
C38: =CONCATENATE(A4,"bis") -> ORANGEbis | N38: 27 | O38: =T22 -> 327 | P38: 183.0000916 | AM38: =HG9 -> Parcours 7SIVERT
B39: A | C39: =INDEX(baliseCM,MATCH(B39,lettre,0),MATCH($C$38,parcours,0)) ->  | D39: =IF(C39=0,0,VLOOKUP(C39,$N$12:$P$101,2,FALSE)) ->  | E39: =IF(C39=0,0,VLOOKUP(C39,$N$12:$P$101,3,FALSE)) ->  | N39: 28 | O39: =T23 -> 325 | P39: 168.0000763 | AM39: =HL9 -> Parcours 9SIBLEU
B40: B | D40: =IF(C40=0,0,VLOOKUP(C40,$N$12:$P$101,2,FALSE)) ->  | E40: =IF(C40=0,0,VLOOKUP(C40,$N$12:$P$101,3,FALSE)) ->  | N40: 29 | O40: =T24 -> 289 | P40: 184.0000916
B41: C | N41: 30 | O41: =T25 -> 296 | P41: 169
B42: D | N42: 31 | O42: =T26 -> 251 | P42: 170.0000916
B43: E | N43: 32 | O43: =T27 -> 227 | P43: 181
B44: F | N44: 33 | O44: =Y12 -> 236 | P44: =Z12 -> 165
B45: G | N45: 34 | O45: =Y13 -> 223 | P45: 160
B46: H | N46: 35 | O46: =Y14 -> 210 | P46: 160.0000763
B47: I | N47: 36 | O47: =Y15 -> 165 | P47: 182.0000916
B48: J | N48: 37 | O48: =Y16 -> 218 | P48: 205
B49: K | N49: 38 | O49: =Y17 -> 234 | P49: 207
B50: L | N50: 39 | O50: =Y18 -> 255 | P50: 206.0000916
B51: M | N51: 40 | O51: =Y19 -> 276 | P51: 207.0000916
B52: N | N52: 41 | O52: =Y20 -> 322 | P52: 207
B53: O | N53: 42 | O53: =Y21 -> 274 | P53: 223
B54: P | N54: 43 | O54: =Y22 -> 271 | P54: 240
B55: Q | N55: 44 | O55: =Y23 -> 224 | P55: 237.0000916
B56: R | N56: 45 | O56: =Y24 -> 236 | P56: 253.0000916
B57: S | N57: 46 | O57: =Y25 -> 265 | P57: 267
B58: T | N58: 47 | O58: =Y26 -> 310 | P58: 263
B59: U | N59: 48 | O59: =Y27 -> 238 | P59: =Z27 -> 278.0000916
B60: V | N60: 49 | O60: =AD12 -> 220 | P60: =AE12 -> 299
B61: W | N61: 50 | O61: =AD13 -> 238 | P61: 329
B62: X | N62: 51 | O62: =AD14 -> 274 | P62: 293
B63: Y | N63: 52 | O63: =AD15 -> 268 | P63: 315
B64: Z | N64: 53 | O64: =AD16 -> 295 | P64: 314
N65: 54 | O65: =AD17 -> 334 | P65: 289
N66: 55 | O66: =AD18 -> 436 | P66: 279.0000916
N67: 56 | O67: =AD19 -> 396 | P67: 303.0000916
N68: 57 | O68: =AD20 -> 336 | P68: 326
N69: 58 | O69: =AD21 -> 320 | P69: 340
N70: 59 | O70: =AD22 -> 318 | P70: 355
N71: 60 | O71: =AD23 -> 274 | P71: =AE23 -> 355.0000916
N72: 61 | O72: =AD24 -> 383 | P72: =AE24 -> 349.0000916
N73: 62 | O73: 484 | P73: 302
N74: 63 | O74: 385 | P74: 434
N75: 64 | O75: 333 | P75: 394.0000916
N76: 65 | O76: =AI12 -> 350 | P76: =AJ12 -> 447
N77: 66 | O77: =AI13 -> 366 | P77: 461.999939
N78: 67 | O78: =AI14 -> 330 | P78: 462
N79: 68 | O79: =AI15 -> 298 | P79: 492.000061
N80: 69 | O80: =AI16 -> 299.8973083 | P80: 433.2051392
N81: 70 | O81: =AI17 -> 258 | P81: 415
N82: 71 | O82: =AI18 -> 240 | P82: 419.9999084
N83: 72 | O83: =AI19 -> 226 | P83: 434.000061
N84: 73 | O84: =AI20 -> 202 | P84: 450.000061
N85: 74 | O85: =AI21 -> 113.9230728 | P85: 290.282135
N86: 75 | O86: =AI22 -> 111 | P86: 356
N87: 76 | O87: =AI23 -> 172 | P87: 420
N88: D | O88: =O11 -> 156.4165344 | P88: =P11 -> 184.2082825

Sheet MESCARTES

Sheet CORRECTEUR
H1: =CONCATENATE(H2,"bis") -> 6BLUEbis
E2: 22:20:00 | H2: 6BLUE | M2: 30.02430556
E3: =IF(ISTEXT($H2),HLOOKUP($H2,DEBUT!$O$3:$XX$100,3,FALSE),"") -> A | F3: =IF(ISTEXT($H2),HLOOKUP($H2,DEBUT!$O$3:$XX$100,4,FALSE),"") -> B | G3: =IF(ISTEXT($H2),HLOOKUP($H2,DEBUT!$O$3:$XX$100,5,FALSE),"") -> C | H3: =IF(ISTEXT($H2),HLOOKUP($H2,DEBUT!$O$3:$XX$100,6,FALSE),"") -> D | I3: =IF(ISTEXT($H2),HLOOKUP($H2,DEBUT!$O$3:$XX$100,7,FALSE),"") -> E | J3: =IF(ISTEXT($H2),HLOOKUP($H2,DEBUT!$O$3:$XX$100,8,FALSE),"") -> F | K3: =IF(ISTEXT($H2),HLOOKUP($H2,DEBUT!$O$3:$XX$100,9,FALSE),"") -> 0 | L3: =IF(ISTEXT($H2),HLOOKUP($H2,DEBUT!$O$3:$XX$100,10,FALSE),"") -> 0 | M3: =IF(ISTEXT($H2),HLOOKUP($H2,DEBUT!$O$3:$XX$100,11,FALSE),"") -> 0 | N3: =IF(ISTEXT($H2),HLOOKUP($H2,DEBUT!$O$3:$XX$100,12,FALSE),"") -> 0
E4: =IFERROR(INDEX(baliseCM,MATCH(E3,lettre,0),MATCH($H$1,parcours,0)),"") -> 7 | F4: 10 | G4: 11 | H4: 1 | I4: 76 | J4: 46

Sheet CCF
H1: =CONCATENATE(H2,"bis") -> 6BLUEbis | M1: Temps limite
B2: STAGE | E2: 22:20:00 | H2: 6BLUE | M2: 30.02430556 | N2: min
E3: =IF(ISTEXT($H2),HLOOKUP($H2,DEBUT!$O$3:$XX$100,3,FALSE),"") -> A | F3: =IF(ISTEXT($H2),HLOOKUP($H2,DEBUT!$O$3:$XX$100,4,FALSE),"") -> B | G3: =IF(ISTEXT($H2),HLOOKUP($H2,DEBUT!$O$3:$XX$100,5,FALSE),"") -> C | H3: =IF(ISTEXT($H2),HLOOKUP($H2,DEBUT!$O$3:$XX$100,6,FALSE),"") -> D | I3: =IF(ISTEXT($H2),HLOOKUP($H2,DEBUT!$O$3:$XX$100,7,FALSE),"") -> E | J3: =IF(ISTEXT($H2),HLOOKUP($H2,DEBUT!$O$3:$XX$100,8,FALSE),"") -> F | K3: =IF(ISTEXT($H2),HLOOKUP($H2,DEBUT!$O$3:$XX$100,9,FALSE),"") -> 0 | L3: =IF(ISTEXT($H2),HLOOKUP($H2,DEBUT!$O$3:$XX$100,10,FALSE),"") -> 0 | M3: =IF(ISTEXT($H2),HLOOKUP($H2,DEBUT!$O$3:$XX$100,11,FALSE),"") -> 0 | N3: =IF(ISTEXT($H2),HLOOKUP($H2,DEBUT!$O$3:$XX$100,12,FALSE),"") -> 0
E4: =IFERROR(INDEX(baliseCM,MATCH(E3,lettre,0),MATCH($H$1,parcours,0)),"") -> 7 | F4: 10 | G4: 11 | H4: 1 | I4: 76 | J4: 46 | P4: CCF | Q4: N3
B5: EQUIPE 1 | N5: =(HOUR(M6)*3600+MINUTE(M6)*60+SECOND(M6))-(HOUR($M$2)*3600+MINUTE($M$2)*60+SECOND($M$2)) -> -1466 | T5: Analyse du parcours | AL5: 1 | AM5: =OFFSET(INDEX(eleves,MATCH(AL5,chiffre,0),MATCH($B$2,classes,0)),0,1) -> POL
B6: CORALINE | D6: =CONCATENATE(D7,"bis") -> 6BLUEbis | E6: 15:22:53 | I6: 15:33:27 | K6: Durée : | M6: =I6-E6 -> 00:10:34 | P6: Vitesse de course | Q6: =IF(AND(N5<0,Q10=8),HLOOKUP(N5,REFERENTIELS!$E$33:$I$34,2,TRUE),IF(AND(N5<=0,Q10<>8),2,HLOOKUP(N5,REFERENTIELS!$I$33:$L$34,2,TRUE))) -> 2 | R6: / 6 | AL6: 2 | AM6: CARINE
B7: GREGORY | D7: =$H$2 -> 6BLUE | E7: =SQRT(POWER((VLOOKUP(E9,DEBUT!$D$5:$J$110,6,FALSE)-VLOOKUP(F9,DEBUT!$D$5:$J$110,6,FALSE)),2)+POWER((VLOOKUP(E9,DEBUT!$D$5:$J$110,7,FALSE)-VLOOKUP(F9,DEBUT!$D$5:$J$110,7,FALSE)),2))/CARTE!$O$9 ->  | F7: =SQRT(POWER((VLOOKUP(F9,DEBUT!$D$5:$J$110,6,FALSE)-VLOOKUP(G9,DEBUT!$D$5:$J$110,6,FALSE)),2)+POWER((VLOOKUP(F9,DEBUT!$D$5:$J$110,7,FALSE)-VLOOKUP(G9,DEBUT!$D$5:$J$110,7,FALSE)),2))/CARTE!$O$9 ->  | G7: =SQRT(POWER((VLOOKUP(G9,DEBUT!$D$5:$J$110,6,FALSE)-VLOOKUP(H9,DEBUT!$D$5:$J$110,6,FALSE)),2)+POWER((VLOOKUP(G9,DEBUT!$D$5:$J$110,7,FALSE)-VLOOKUP(H9,DEBUT!$D$5:$J$110,7,FALSE)),2))/CARTE!$O$9 ->  | H7: =SQRT(POWER((VLOOKUP(H9,DEBUT!$D$5:$J$110,6,FALSE)-VLOOKUP(I9,DEBUT!$D$5:$J$110,6,FALSE)),2)+POWER((VLOOKUP(H9,DEBUT!$D$5:$J$110,7,FALSE)-VLOOKUP(I9,DEBUT!$D$5:$J$110,7,FALSE)),2))/CARTE!$O$9 ->  | I7: =SQRT(POWER((VLOOKUP(I9,DEBUT!$D$5:$J$110,6,FALSE)-VLOOKUP(J9,DEBUT!$D$5:$J$110,6,FALSE)),2)+POWER((VLOOKUP(I9,DEBUT!$D$5:$J$110,7,FALSE)-VLOOKUP(J9,DEBUT!$D$5:$J$110,7,FALSE)),2))/CARTE!$O$9 ->  | J7: =SQRT(POWER((VLOOKUP(J9,DEBUT!$D$5:$J$110,6,FALSE)-VLOOKUP(K9,DEBUT!$D$5:$J$110,6,FALSE)),2)+POWER((VLOOKUP(J9,DEBUT!$D$5:$J$110,7,FALSE)-VLOOKUP(K9,DEBUT!$D$5:$J$110,7,FALSE)),2))/CARTE!$O$9 ->  | K7: =SQRT(POWER((VLOOKUP(K9,DEBUT!$D$5:$J$110,6,FALSE)-VLOOKUP(L9,DEBUT!$D$5:$J$110,6,FALSE)),2)+POWER((VLOOKUP(K9,DEBUT!$D$5:$J$110,7,FALSE)-VLOOKUP(L9,DEBUT!$D$5:$J$110,7,FALSE)),2))/CARTE!$O$9 ->  | L7: =SQRT(POWER((VLOOKUP(L9,DEBUT!$D$5:$J$110,6,FALSE)-VLOOKUP(M9,DEBUT!$D$5:$J$110,6,FALSE)),2)+POWER((VLOOKUP(L9,DEBUT!$D$5:$J$110,7,FALSE)-VLOOKUP(M9,DEBUT!$D$5:$J$110,7,FALSE)),2))/CARTE!$O$9 ->  | M7: =SQRT(POWER((VLOOKUP(M9,DEBUT!$D$5:$J$110,6,FALSE)-VLOOKUP(N9,DEBUT!$D$5:$J$110,6,FALSE)),2)+POWER((VLOOKUP(M9,DEBUT!$D$5:$J$110,7,FALSE)-VLOOKUP(N9,DEBUT!$D$5:$J$110,7,FALSE)),2))/CARTE!$O$9 ->  | N7: =SQRT(POWER((VLOOKUP(N9,DEBUT!$D$5:$J$110,6,FALSE)-VLOOKUP(O9,DEBUT!$D$5:$J$110,6,FALSE)),2)+POWER((VLOOKUP(N9,DEBUT!$D$5:$J$110,7,FALSE)-VLOOKUP(O9,DEBUT!$D$5:$J$110,7,FALSE)),2))/CARTE!$O$9 ->  | P7: Analyse | R7: / 2 | AL7: 3 | AM7: BASTIEN
B8: QUENTIN | D8: Balises prévues | E8: =IF(ISTEXT($D7),HLOOKUP($D7,DEBUT!$O$3:$XX$100,3,FALSE),"") -> A | F8: =IF(ISTEXT($D7),HLOOKUP($D7,DEBUT!$O$3:$XX$100,4,FALSE),"") -> B | G8: =IF(ISTEXT($D7),HLOOKUP($D7,DEBUT!$O$3:$XX$100,5,FALSE),"") -> C | H8: =IF(ISTEXT($D7),HLOOKUP($D7,DEBUT!$O$3:$XX$100,6,FALSE),"") -> D | I8: =IF(ISTEXT($D7),HLOOKUP($D7,DEBUT!$O$3:$XX$100,7,FALSE),"") -> E | J8: =IF(ISTEXT($D7),HLOOKUP($D7,DEBUT!$O$3:$XX$100,8,FALSE),"") -> F | K8: =IF(ISTEXT($D7),HLOOKUP($D7,DEBUT!$O$3:$XX$100,9,FALSE),"") -> 0 | L8: =IF(ISTEXT($D7),HLOOKUP($D7,DEBUT!$O$3:$XX$100,10,FALSE),"") -> 0 | M8: =IF(ISTEXT($D7),HLOOKUP($D7,DEBUT!$O$3:$XX$100,11,FALSE),"") -> 0 | N8: =IF(ISTEXT($D7),HLOOKUP($D7,DEBUT!$O$3:$XX$100,12,FALSE),"") -> 0 | P8: Carton contrôle | Q8: 1 | R8: / 2 | AL8: 4 | AM8: CORALINE
B9: ANDY | D9: En course | E9: =IF($D9=DEBUT!$L$5,E10,"") ->  | F9: =IF($D9=DEBUT!$L$5,F10,"") ->  | G9: =IF($D9=DEBUT!$L$5,G10,"") ->  | H9: =IF($D9=DEBUT!$L$5,H10,"") ->  | I9: =IF($D9=DEBUT!$L$5,I10,"") ->  | J9: =IF($D9=DEBUT!$L$5,J10,"") ->  | K9: =IF($D9=DEBUT!$L$5,K10,"") ->  | L9: =IF($D9=DEBUT!$L$5,L10,"") ->  | M9: =IF($D9=DEBUT!$L$5,M10,"") ->  | N9: =IF($D9=DEBUT!$L$5,N10,"") ->  | P9: Conduite itinéraire | Q9: =IF($Q$4=DEBUT!$K$6,HLOOKUP(Q10,REFERENTIELS!$E$7:$M$8,2,TRUE)+COUNTIF(E11:N11,2)*0.5,HLOOKUP(Q10,REFERENTIELS!$E$7:$M$8,2,TRUE)+COUNTIF(E11:N11,3)*0.5) -> 0 | R9: / 10 | AL9: 5 | AM9: GREGORY
D10: Balises CM | E10: =IFERROR(INDEX(baliseCM,MATCH(E8,lettre,0),MATCH($D6,parcours,0)),"") -> 7 | F10: =IFERROR(INDEX(baliseCM,MATCH(F8,lettre,0),MATCH($D6,parcours,0)),"") -> 10 | G10: 11 | H10: 1 | I10: 76 | J10: 46 | P10: Nombre balises justes | Q10: =COUNTIF(E11:N11,">0") -> 0 | R10: =IF(Q10>1,"trouvées","trouvée") -> trouvée | AL10: 6 | AM10: THOMAS
D11: Points | E11: =IF(E10=E9,IFERROR(INDEX(baliseCM,MATCH(E8,lettre,0),MATCH($U11,parcours,0)),""),"") ->  | P11: Note | Q11: =Q6+Q7+Q8+Q9 -> 3 | R11: /20 | U11: =CONCATENATE(D7,"points") -> 6BLUEpoints | AL11: 7 | AM11: ALAIN
B12: EQUIPE 2 | N12: =(HOUR(M13)*3600+MINUTE(M13)*60+SECOND(M13))-(HOUR($M$2)*3600+MINUTE($M$2)*60+SECOND($M$2)) ->  | T12: Analyse du parcours | AL12: 8 | AM12: QUENTIN
D13: =CONCATENATE(D14,"bis") -> 6BLUEbis | E13: =$E$2 -> 22:20:00 | I13: 11:40:29 | K13: Durée : | M13: =I13-E13 -> -0.4441087963 | P13: Vitesse de course | Q13: =IF(AND(N12<0,Q17=8),HLOOKUP(N12,REFERENTIELS!$E$33:$I$34,2,TRUE),IF(AND(N12<=0,Q17<>8),2,HLOOKUP(N12,REFERENTIELS!$I$33:$L$34,2,TRUE))) ->  | R13: / 6 | AL13: 9 | AM13: BAPTISTE
D14: =$H$2 -> 6BLUE | E14: =SQRT(POWER((VLOOKUP(E16,DEBUT!$D$5:$J$110,6,FALSE)-VLOOKUP(F16,DEBUT!$D$5:$J$110,6,FALSE)),2)+POWER((VLOOKUP(E16,DEBUT!$D$5:$J$110,7,FALSE)-VLOOKUP(F16,DEBUT!$D$5:$J$110,7,FALSE)),2))/CARTE!$O$9 ->  | F14: =SQRT(POWER((VLOOKUP(F16,DEBUT!$D$5:$J$110,6,FALSE)-VLOOKUP(G16,DEBUT!$D$5:$J$110,6,FALSE)),2)+POWER((VLOOKUP(F16,DEBUT!$D$5:$J$110,7,FALSE)-VLOOKUP(G16,DEBUT!$D$5:$J$110,7,FALSE)),2))/CARTE!$O$9 ->  | G14: =SQRT(POWER((VLOOKUP(G16,DEBUT!$D$5:$J$110,6,FALSE)-VLOOKUP(H16,DEBUT!$D$5:$J$110,6,FALSE)),2)+POWER((VLOOKUP(G16,DEBUT!$D$5:$J$110,7,FALSE)-VLOOKUP(H16,DEBUT!$D$5:$J$110,7,FALSE)),2))/CARTE!$O$9 ->  | H14: =SQRT(POWER((VLOOKUP(H16,DEBUT!$D$5:$J$110,6,FALSE)-VLOOKUP(I16,DEBUT!$D$5:$J$110,6,FALSE)),2)+POWER((VLOOKUP(H16,DEBUT!$D$5:$J$110,7,FALSE)-VLOOKUP(I16,DEBUT!$D$5:$J$110,7,FALSE)),2))/CARTE!$O$9 ->  | I14: =SQRT(POWER((VLOOKUP(I16,DEBUT!$D$5:$J$110,6,FALSE)-VLOOKUP(J16,DEBUT!$D$5:$J$110,6,FALSE)),2)+POWER((VLOOKUP(I16,DEBUT!$D$5:$J$110,7,FALSE)-VLOOKUP(J16,DEBUT!$D$5:$J$110,7,FALSE)),2))/CARTE!$O$9 ->  | J14: =SQRT(POWER((VLOOKUP(J16,DEBUT!$D$5:$J$110,6,FALSE)-VLOOKUP(K16,DEBUT!$D$5:$J$110,6,FALSE)),2)+POWER((VLOOKUP(J16,DEBUT!$D$5:$J$110,7,FALSE)-VLOOKUP(K16,DEBUT!$D$5:$J$110,7,FALSE)),2))/CARTE!$O$9 ->  | K14: =SQRT(POWER((VLOOKUP(K16,DEBUT!$D$5:$J$110,6,FALSE)-VLOOKUP(L16,DEBUT!$D$5:$J$110,6,FALSE)),2)+POWER((VLOOKUP(K16,DEBUT!$D$5:$J$110,7,FALSE)-VLOOKUP(L16,DEBUT!$D$5:$J$110,7,FALSE)),2))/CARTE!$O$9 ->  | L14: =SQRT(POWER((VLOOKUP(L16,DEBUT!$D$5:$J$110,6,FALSE)-VLOOKUP(M16,DEBUT!$D$5:$J$110,6,FALSE)),2)+POWER((VLOOKUP(L16,DEBUT!$D$5:$J$110,7,FALSE)-VLOOKUP(M16,DEBUT!$D$5:$J$110,7,FALSE)),2))/CARTE!$O$9 ->  | M14: =SQRT(POWER((VLOOKUP(M16,DEBUT!$D$5:$J$110,6,FALSE)-VLOOKUP(N16,DEBUT!$D$5:$J$110,6,FALSE)),2)+POWER((VLOOKUP(M16,DEBUT!$D$5:$J$110,7,FALSE)-VLOOKUP(N16,DEBUT!$D$5:$J$110,7,FALSE)),2))/CARTE!$O$9 ->  | N14: =SQRT(POWER((VLOOKUP(N16,DEBUT!$D$5:$J$110,6,FALSE)-VLOOKUP(O16,DEBUT!$D$5:$J$110,6,FALSE)),2)+POWER((VLOOKUP(N16,DEBUT!$D$5:$J$110,7,FALSE)-VLOOKUP(O16,DEBUT!$D$5:$J$110,7,FALSE)),2))/CARTE!$O$9 ->  | P14: Analyse | R14: / 2 | AL14: 10 | AM14: FRANCK
D15: Balises prévues | E15: =IF(ISTEXT($D14),HLOOKUP($D14,DEBUT!$O$3:$XX$100,3,FALSE),"") -> A | F15: =IF(ISTEXT($D14),HLOOKUP($D14,DEBUT!$O$3:$XX$100,4,FALSE),"") -> B | G15: =IF(ISTEXT($D14),HLOOKUP($D14,DEBUT!$O$3:$XX$100,5,FALSE),"") -> C | H15: =IF(ISTEXT($D14),HLOOKUP($D14,DEBUT!$O$3:$XX$100,6,FALSE),"") -> D | I15: =IF(ISTEXT($D14),HLOOKUP($D14,DEBUT!$O$3:$XX$100,7,FALSE),"") -> E | J15: =IF(ISTEXT($D14),HLOOKUP($D14,DEBUT!$O$3:$XX$100,8,FALSE),"") -> F | K15: =IF(ISTEXT($D14),HLOOKUP($D14,DEBUT!$O$3:$XX$100,9,FALSE),"") -> 0 | L15: =IF(ISTEXT($D14),HLOOKUP($D14,DEBUT!$O$3:$XX$100,10,FALSE),"") -> 0 | M15: =IF(ISTEXT($D14),HLOOKUP($D14,DEBUT!$O$3:$XX$100,11,FALSE),"") -> 0 | N15: =IF(ISTEXT($D14),HLOOKUP($D14,DEBUT!$O$3:$XX$100,12,FALSE),"") -> 0 | O15: 2 | P15: Carton contrôle | Q15: 1 | R15: / 2 | AL15: 11 | AM15: VALENTIN
D16: En course | E16: =IF($D16=DEBUT!$L$5,E17,"") ->  | F16: =IF($D16=DEBUT!$L$5,F17,"") ->  | G16: =IF($D16=DEBUT!$L$5,G17,"") ->  | H16: =IF($D16=DEBUT!$L$5,H17,"") ->  | I16: =IF($D16=DEBUT!$L$5,I17,"") ->  | J16: =IF($D16=DEBUT!$L$5,J17,"") ->  | K16: =IF($D16=DEBUT!$L$5,K17,"") ->  | L16: =IF($D16=DEBUT!$L$5,L17,"") ->  | M16: =IF($D16=DEBUT!$L$5,M17,"") ->  | N16: =IF($D16=DEBUT!$L$5,N17,"") ->  | P16: Conduite itinéraire | Q16: =IF($Q$4=DEBUT!$K$6,HLOOKUP(Q17,REFERENTIELS!$E$7:$M$8,2,TRUE)+COUNTIF(E18:N18,2)*0.5,HLOOKUP(Q17,REFERENTIELS!$E$7:$M$8,2,TRUE)+COUNTIF(E18:N18,3)*0.5) -> 0 | R16: / 10 | AL16: 12 | AM16: BENJAMIN
D17: Balises CM | E17: =IFERROR(INDEX(baliseCM,MATCH(E15,lettre,0),MATCH($D13,parcours,0)),"") -> 7 | F17: =IFERROR(INDEX(baliseCM,MATCH(F15,lettre,0),MATCH($D13,parcours,0)),"") -> 10 | G17: 11 | H17: 1 | I17: 76 | J17: 46 | P17: Nombre balises justes | Q17: =COUNTIF(E18:N18,">0") -> 0 | R17: =IF(Q17>1,"trouvées","trouvée") -> trouvée | AL17: 13 | AM17: ANDY
D18: Points | E18: =IF(E17=E16,IFERROR(INDEX(baliseCM,MATCH(E15,lettre,0),MATCH($U18,parcours,0)),""),"") ->  | P18: Note | Q18: =Q13+Q14+Q15+Q16 ->  | R18: /20 | U18: =CONCATENATE(D14,"points") -> 6BLUEpoints | AL18: 14 | AM18: OLIVIER
B19: EQUIPE 3 | N19: =(HOUR(M20)*3600+MINUTE(M20)*60+SECOND(M20))-(HOUR($M$2)*3600+MINUTE($M$2)*60+SECOND($M$2)) ->  | T19: Analyse du parcours | AL19: 15 | AM19: CHRISTIAN
D20: =CONCATENATE(D21,"bis") -> 6BLUEbis | E20: 22:20:01 | I20: 21:15:35 | K20: Durée : | M20: =I20-E20 -> -0.04474537037 | P20: Vitesse de course | Q20: =IF(AND(N19<0,Q24=8),HLOOKUP(N19,REFERENTIELS!$E$33:$I$34,2,TRUE),IF(AND(N19<=0,Q24<>8),2,HLOOKUP(N19,REFERENTIELS!$I$33:$L$34,2,TRUE))) ->  | R20: / 6 | AL20: 16 | AM20: CELINE
D21: =$H$2 -> 6BLUE | E21: =SQRT(POWER((VLOOKUP(E23,DEBUT!$D$5:$J$110,6,FALSE)-VLOOKUP(F23,DEBUT!$D$5:$J$110,6,FALSE)),2)+POWER((VLOOKUP(E23,DEBUT!$D$5:$J$110,7,FALSE)-VLOOKUP(F23,DEBUT!$D$5:$J$110,7,FALSE)),2))/CARTE!$O$9 -> 292.4132321 | F21: =SQRT(POWER((VLOOKUP(F23,DEBUT!$D$5:$J$110,6,FALSE)-VLOOKUP(G23,DEBUT!$D$5:$J$110,6,FALSE)),2)+POWER((VLOOKUP(F23,DEBUT!$D$5:$J$110,7,FALSE)-VLOOKUP(G23,DEBUT!$D$5:$J$110,7,FALSE)),2))/CARTE!$O$9 -> 185.4526003 | G21: =SQRT(POWER((VLOOKUP(G23,DEBUT!$D$5:$J$110,6,FALSE)-VLOOKUP(H23,DEBUT!$D$5:$J$110,6,FALSE)),2)+POWER((VLOOKUP(G23,DEBUT!$D$5:$J$110,7,FALSE)-VLOOKUP(H23,DEBUT!$D$5:$J$110,7,FALSE)),2))/CARTE!$O$9 -> 388.8815813 | H21: =SQRT(POWER((VLOOKUP(H23,DEBUT!$D$5:$J$110,6,FALSE)-VLOOKUP(I23,DEBUT!$D$5:$J$110,6,FALSE)),2)+POWER((VLOOKUP(H23,DEBUT!$D$5:$J$110,7,FALSE)-VLOOKUP(I23,DEBUT!$D$5:$J$110,7,FALSE)),2))/CARTE!$O$9 -> 1321.193177 | I21: =SQRT(POWER((VLOOKUP(I23,DEBUT!$D$5:$J$110,6,FALSE)-VLOOKUP(J23,DEBUT!$D$5:$J$110,6,FALSE)),2)+POWER((VLOOKUP(I23,DEBUT!$D$5:$J$110,7,FALSE)-VLOOKUP(J23,DEBUT!$D$5:$J$110,7,FALSE)),2))/CARTE!$O$9 -> 621.6561772 | J21: =SQRT(POWER((VLOOKUP(J23,DEBUT!$D$5:$J$110,6,FALSE)-VLOOKUP(K23,DEBUT!$D$5:$J$110,6,FALSE)),2)+POWER((VLOOKUP(J23,DEBUT!$D$5:$J$110,7,FALSE)-VLOOKUP(K23,DEBUT!$D$5:$J$110,7,FALSE)),2))/CARTE!$O$9 ->  | K21: =SQRT(POWER((VLOOKUP(K23,DEBUT!$D$5:$J$110,6,FALSE)-VLOOKUP(L23,DEBUT!$D$5:$J$110,6,FALSE)),2)+POWER((VLOOKUP(K23,DEBUT!$D$5:$J$110,7,FALSE)-VLOOKUP(L23,DEBUT!$D$5:$J$110,7,FALSE)),2))/CARTE!$O$9 ->  | L21: =SQRT(POWER((VLOOKUP(L23,DEBUT!$D$5:$J$110,6,FALSE)-VLOOKUP(M23,DEBUT!$D$5:$J$110,6,FALSE)),2)+POWER((VLOOKUP(L23,DEBUT!$D$5:$J$110,7,FALSE)-VLOOKUP(M23,DEBUT!$D$5:$J$110,7,FALSE)),2))/CARTE!$O$9 ->  | M21: =SQRT(POWER((VLOOKUP(M23,DEBUT!$D$5:$J$110,6,FALSE)-VLOOKUP(N23,DEBUT!$D$5:$J$110,6,FALSE)),2)+POWER((VLOOKUP(M23,DEBUT!$D$5:$J$110,7,FALSE)-VLOOKUP(N23,DEBUT!$D$5:$J$110,7,FALSE)),2))/CARTE!$O$9 ->  | N21: =SQRT(POWER((VLOOKUP(N23,DEBUT!$D$5:$J$110,6,FALSE)-VLOOKUP(O23,DEBUT!$D$5:$J$110,6,FALSE)),2)+POWER((VLOOKUP(N23,DEBUT!$D$5:$J$110,7,FALSE)-VLOOKUP(O23,DEBUT!$D$5:$J$110,7,FALSE)),2))/CARTE!$O$9 ->  | P21: Analyse | R21: / 2 | AL21: 17 | AM21: SEBASTIEN
D22: Balises prévues | E22: =IF(ISTEXT($D21),HLOOKUP($D21,DEBUT!$O$3:$XX$100,3,FALSE),"") -> A | F22: =IF(ISTEXT($D21),HLOOKUP($D21,DEBUT!$O$3:$XX$100,4,FALSE),"") -> B | G22: =IF(ISTEXT($D21),HLOOKUP($D21,DEBUT!$O$3:$XX$100,5,FALSE),"") -> C | H22: =IF(ISTEXT($D21),HLOOKUP($D21,DEBUT!$O$3:$XX$100,6,FALSE),"") -> D | I22: =IF(ISTEXT($D21),HLOOKUP($D21,DEBUT!$O$3:$XX$100,7,FALSE),"") -> E | J22: =IF(ISTEXT($D21),HLOOKUP($D21,DEBUT!$O$3:$XX$100,8,FALSE),"") -> F | K22: =IF(ISTEXT($D21),HLOOKUP($D21,DEBUT!$O$3:$XX$100,9,FALSE),"") -> 0 | L22: =IF(ISTEXT($D21),HLOOKUP($D21,DEBUT!$O$3:$XX$100,10,FALSE),"") -> 0 | M22: =IF(ISTEXT($D21),HLOOKUP($D21,DEBUT!$O$3:$XX$100,11,FALSE),"") -> 0 | N22: =IF(ISTEXT($D21),HLOOKUP($D21,DEBUT!$O$3:$XX$100,12,FALSE),"") -> 0 | O22: 2 | P22: Carton contrôle | Q22: 1 | R22: / 2 | AL22: 18 | AM22: PASCAL
D23: Validé | E23: =IF($D23=DEBUT!$L$5,E24,"") -> 7 | F23: =IF($D23=DEBUT!$L$5,F24,"") -> 10 | G23: =IF($D23=DEBUT!$L$5,G24,"") -> 11 | H23: =IF($D23=DEBUT!$L$5,H24,"") -> 1 | I23: =IF($D23=DEBUT!$L$5,I24,"") -> 76 | J23: =IF($D23=DEBUT!$L$5,J24,"") -> 46 | K23: =IF($D23=DEBUT!$L$5,K24,"") ->  | L23: =IF($D23=DEBUT!$L$5,L24,"") ->  | M23: =IF($D23=DEBUT!$L$5,M24,"") ->  | N23: =IF($D23=DEBUT!$L$5,N24,"") ->  | P23: Conduite itinéraire | Q23: =IF($Q$4=DEBUT!$K$6,HLOOKUP(Q24,REFERENTIELS!$E$7:$M$8,2,TRUE)+COUNTIF(E25:N25,2)*0.5,HLOOKUP(Q24,REFERENTIELS!$E$7:$M$8,2,TRUE)+COUNTIF(E25:N25,3)*0.5) -> 5.5 | R23: / 10 | AL23: 19 | AM23: CAROLE
D24: Balises CM | E24: =IFERROR(INDEX(baliseCM,MATCH(E22,lettre,0),MATCH($D20,parcours,0)),"") -> 7 | F24: =IFERROR(INDEX(baliseCM,MATCH(F22,lettre,0),MATCH($D20,parcours,0)),"") -> 10 | G24: 11 | H24: 1 | I24: 76 | J24: 46 | P24: Nombre balises justes | Q24: =COUNTIF(E25:N25,">0") -> 6 | R24: =IF(Q24>1,"trouvées","trouvée") -> trouvées | AL24: 20 | AM24: ISABELLE
D25: Points | E25: =IF(E24=E23,IFERROR(INDEX(baliseCM,MATCH(E22,lettre,0),MATCH($U25,parcours,0)),""),"") -> 1 | F25: 2 | G25: 2 | H25: 2 | I25: 3 | J25: 3 | P25: Note | Q25: =Q20+Q21+Q22+Q23 ->  | R25: /20 | U25: =CONCATENATE(D21,"points") -> 6BLUEpoints | AL25: 21 | AM25: DAVID
B26: EQUIPE 4 | N26: =(HOUR(M27)*3600+MINUTE(M27)*60+SECOND(M27))-(HOUR($M$2)*3600+MINUTE($M$2)*60+SECOND($M$2)) ->  | T26: Analyse du parcours | AL26: 22 | AM26: FRANCOIS
D27: =CONCATENATE(D28,"bis") -> 6BLUEbis | E27: 22:20:01 | I27: 21:05:05 | K27: Durée : | M27: =I27-E27 -> -0.05203703704 | P27: Vitesse de course | Q27: =IF(AND(N26<0,Q31=8),HLOOKUP(N26,REFERENTIELS!$E$33:$I$34,2,TRUE),IF(AND(N26<=0,Q31<>8),2,HLOOKUP(N26,REFERENTIELS!$I$33:$L$34,2,TRUE))) ->  | R27: / 6 | AL27: 23 | AM27: Mick
D28: =$H$2 -> 6BLUE | E28: =SQRT(POWER((VLOOKUP(E30,DEBUT!$D$5:$J$110,6,FALSE)-VLOOKUP(F30,DEBUT!$D$5:$J$110,6,FALSE)),2)+POWER((VLOOKUP(E30,DEBUT!$D$5:$J$110,7,FALSE)-VLOOKUP(F30,DEBUT!$D$5:$J$110,7,FALSE)),2))/CARTE!$O$9 -> 292.4132321 | F28: =SQRT(POWER((VLOOKUP(F30,DEBUT!$D$5:$J$110,6,FALSE)-VLOOKUP(G30,DEBUT!$D$5:$J$110,6,FALSE)),2)+POWER((VLOOKUP(F30,DEBUT!$D$5:$J$110,7,FALSE)-VLOOKUP(G30,DEBUT!$D$5:$J$110,7,FALSE)),2))/CARTE!$O$9 -> 185.4526003 | G28: =SQRT(POWER((VLOOKUP(G30,DEBUT!$D$5:$J$110,6,FALSE)-VLOOKUP(H30,DEBUT!$D$5:$J$110,6,FALSE)),2)+POWER((VLOOKUP(G30,DEBUT!$D$5:$J$110,7,FALSE)-VLOOKUP(H30,DEBUT!$D$5:$J$110,7,FALSE)),2))/CARTE!$O$9 -> 388.8815813 | H28: =SQRT(POWER((VLOOKUP(H30,DEBUT!$D$5:$J$110,6,FALSE)-VLOOKUP(I30,DEBUT!$D$5:$J$110,6,FALSE)),2)+POWER((VLOOKUP(H30,DEBUT!$D$5:$J$110,7,FALSE)-VLOOKUP(I30,DEBUT!$D$5:$J$110,7,FALSE)),2))/CARTE!$O$9 -> 1321.193177 | I28: =SQRT(POWER((VLOOKUP(I30,DEBUT!$D$5:$J$110,6,FALSE)-VLOOKUP(J30,DEBUT!$D$5:$J$110,6,FALSE)),2)+POWER((VLOOKUP(I30,DEBUT!$D$5:$J$110,7,FALSE)-VLOOKUP(J30,DEBUT!$D$5:$J$110,7,FALSE)),2))/CARTE!$O$9 -> 621.6561772 | J28: =SQRT(POWER((VLOOKUP(J30,DEBUT!$D$5:$J$110,6,FALSE)-VLOOKUP(K30,DEBUT!$D$5:$J$110,6,FALSE)),2)+POWER((VLOOKUP(J30,DEBUT!$D$5:$J$110,7,FALSE)-VLOOKUP(K30,DEBUT!$D$5:$J$110,7,FALSE)),2))/CARTE!$O$9 ->  | K28: =SQRT(POWER((VLOOKUP(K30,DEBUT!$D$5:$J$110,6,FALSE)-VLOOKUP(L30,DEBUT!$D$5:$J$110,6,FALSE)),2)+POWER((VLOOKUP(K30,DEBUT!$D$5:$J$110,7,FALSE)-VLOOKUP(L30,DEBUT!$D$5:$J$110,7,FALSE)),2))/CARTE!$O$9 ->  | L28: =SQRT(POWER((VLOOKUP(L30,DEBUT!$D$5:$J$110,6,FALSE)-VLOOKUP(M30,DEBUT!$D$5:$J$110,6,FALSE)),2)+POWER((VLOOKUP(L30,DEBUT!$D$5:$J$110,7,FALSE)-VLOOKUP(M30,DEBUT!$D$5:$J$110,7,FALSE)),2))/CARTE!$O$9 ->  | M28: =SQRT(POWER((VLOOKUP(M30,DEBUT!$D$5:$J$110,6,FALSE)-VLOOKUP(N30,DEBUT!$D$5:$J$110,6,FALSE)),2)+POWER((VLOOKUP(M30,DEBUT!$D$5:$J$110,7,FALSE)-VLOOKUP(N30,DEBUT!$D$5:$J$110,7,FALSE)),2))/CARTE!$O$9 ->  | N28: =SQRT(POWER((VLOOKUP(N30,DEBUT!$D$5:$J$110,6,FALSE)-VLOOKUP(O30,DEBUT!$D$5:$J$110,6,FALSE)),2)+POWER((VLOOKUP(N30,DEBUT!$D$5:$J$110,7,FALSE)-VLOOKUP(O30,DEBUT!$D$5:$J$110,7,FALSE)),2))/CARTE!$O$9 ->  | P28: Analyse | R28: / 2 | AL28: 24 | AM28: 0
D29: Balises prévues | E29: =IF(ISTEXT($D28),HLOOKUP($D28,DEBUT!$O$3:$XX$100,3,FALSE),"") -> A | F29: =IF(ISTEXT($D28),HLOOKUP($D28,DEBUT!$O$3:$XX$100,4,FALSE),"") -> B | G29: =IF(ISTEXT($D28),HLOOKUP($D28,DEBUT!$O$3:$XX$100,5,FALSE),"") -> C | H29: =IF(ISTEXT($D28),HLOOKUP($D28,DEBUT!$O$3:$XX$100,6,FALSE),"") -> D | I29: =IF(ISTEXT($D28),HLOOKUP($D28,DEBUT!$O$3:$XX$100,7,FALSE),"") -> E | J29: =IF(ISTEXT($D28),HLOOKUP($D28,DEBUT!$O$3:$XX$100,8,FALSE),"") -> F | K29: =IF(ISTEXT($D28),HLOOKUP($D28,DEBUT!$O$3:$XX$100,9,FALSE),"") -> 0 | L29: =IF(ISTEXT($D28),HLOOKUP($D28,DEBUT!$O$3:$XX$100,10,FALSE),"") -> 0 | M29: =IF(ISTEXT($D28),HLOOKUP($D28,DEBUT!$O$3:$XX$100,11,FALSE),"") -> 0 | N29: =IF(ISTEXT($D28),HLOOKUP($D28,DEBUT!$O$3:$XX$100,12,FALSE),"") -> 0 | O29: 2 | P29: Carton contrôle | Q29: 1 | R29: / 2 | AL29: 25 | AM29: 0
D30: Validé | E30: =IF($D30=DEBUT!$L$5,E31,"") -> 7 | F30: =IF($D30=DEBUT!$L$5,F31,"") -> 10 | G30: =IF($D30=DEBUT!$L$5,G31,"") -> 11 | H30: =IF($D30=DEBUT!$L$5,H31,"") -> 1 | I30: =IF($D30=DEBUT!$L$5,I31,"") -> 76 | J30: =IF($D30=DEBUT!$L$5,J31,"") -> 46 | K30: =IF($D30=DEBUT!$L$5,K31,"") ->  | L30: =IF($D30=DEBUT!$L$5,L31,"") ->  | M30: =IF($D30=DEBUT!$L$5,M31,"") ->  | N30: =IF($D30=DEBUT!$L$5,N31,"") ->  | P30: Conduite itinéraire | Q30: =HLOOKUP(Q31,REFERENTIELS!$E$7:$M$8,2,TRUE) -> 4 | R30: / 10 | AL30: 26 | AM30: 0
D31: Balises CM | E31: =IFERROR(INDEX(baliseCM,MATCH(E29,lettre,0),MATCH($D27,parcours,0)),"") -> 7 | F31: =IFERROR(INDEX(baliseCM,MATCH(F29,lettre,0),MATCH($D27,parcours,0)),"") -> 10 | G31: 11 | H31: 1 | I31: 76 | J31: 46 | P31: Nombre balises justes | Q31: =COUNTIF(E32:N32,">0") -> 6 | R31: =IF(Q31>1,"trouvées","trouvée") -> trouvées | AL31: 27 | AM31: 0
D32: Points | E32: =IF(E31=E30,IFERROR(INDEX(baliseCM,MATCH(E29,lettre,0),MATCH($U32,parcours,0)),""),"") -> 1 | F32: 2 | G32: 2 | H32: 2 | I32: 3 | J32: 3 | P32: Note | Q32: =Q27+Q28+Q29+Q30 ->  | R32: /20 | U32: =CONCATENATE(D28,"points") -> 6BLUEpoints | AL32: 28 | AM32: 0
B33: EQUIPE 5 | N33: =(HOUR(M34)*3600+MINUTE(M34)*60+SECOND(M34))-(HOUR($M$2)*3600+MINUTE($M$2)*60+SECOND($M$2)) ->  | T33: Analyse du parcours | AL33: 29 | AM33: 0
D34: =CONCATENATE(D35,"bis") -> 6BLUEbis | E34: 22:20:01 | I34: 21:05:07 | K34: Durée : | M34: =I34-E34 -> -0.05201388889 | P34: Vitesse de course | Q34: =IF(AND(N33<0,Q38=8),HLOOKUP(N33,REFERENTIELS!$E$33:$I$34,2,TRUE),IF(AND(N33<=0,Q38<>8),2,HLOOKUP(N33,REFERENTIELS!$I$33:$L$34,2,TRUE))) ->  | R34: / 6 | AL34: 30 | AM34: 0
D35: =$H$2 -> 6BLUE | E35: =SQRT(POWER((VLOOKUP(E37,DEBUT!$D$5:$J$110,6,FALSE)-VLOOKUP(F37,DEBUT!$D$5:$J$110,6,FALSE)),2)+POWER((VLOOKUP(E37,DEBUT!$D$5:$J$110,7,FALSE)-VLOOKUP(F37,DEBUT!$D$5:$J$110,7,FALSE)),2))/CARTE!$O$9 ->  | F35: =SQRT(POWER((VLOOKUP(F37,DEBUT!$D$5:$J$110,6,FALSE)-VLOOKUP(G37,DEBUT!$D$5:$J$110,6,FALSE)),2)+POWER((VLOOKUP(F37,DEBUT!$D$5:$J$110,7,FALSE)-VLOOKUP(G37,DEBUT!$D$5:$J$110,7,FALSE)),2))/CARTE!$O$9 ->  | G35: =SQRT(POWER((VLOOKUP(G37,DEBUT!$D$5:$J$110,6,FALSE)-VLOOKUP(H37,DEBUT!$D$5:$J$110,6,FALSE)),2)+POWER((VLOOKUP(G37,DEBUT!$D$5:$J$110,7,FALSE)-VLOOKUP(H37,DEBUT!$D$5:$J$110,7,FALSE)),2))/CARTE!$O$9 ->  | H35: =SQRT(POWER((VLOOKUP(H37,DEBUT!$D$5:$J$110,6,FALSE)-VLOOKUP(I37,DEBUT!$D$5:$J$110,6,FALSE)),2)+POWER((VLOOKUP(H37,DEBUT!$D$5:$J$110,7,FALSE)-VLOOKUP(I37,DEBUT!$D$5:$J$110,7,FALSE)),2))/CARTE!$O$9 ->  | I35: =SQRT(POWER((VLOOKUP(I37,DEBUT!$D$5:$J$110,6,FALSE)-VLOOKUP(J37,DEBUT!$D$5:$J$110,6,FALSE)),2)+POWER((VLOOKUP(I37,DEBUT!$D$5:$J$110,7,FALSE)-VLOOKUP(J37,DEBUT!$D$5:$J$110,7,FALSE)),2))/CARTE!$O$9 ->  | J35: =SQRT(POWER((VLOOKUP(J37,DEBUT!$D$5:$J$110,6,FALSE)-VLOOKUP(K37,DEBUT!$D$5:$J$110,6,FALSE)),2)+POWER((VLOOKUP(J37,DEBUT!$D$5:$J$110,7,FALSE)-VLOOKUP(K37,DEBUT!$D$5:$J$110,7,FALSE)),2))/CARTE!$O$9 ->  | K35: =SQRT(POWER((VLOOKUP(K37,DEBUT!$D$5:$J$110,6,FALSE)-VLOOKUP(L37,DEBUT!$D$5:$J$110,6,FALSE)),2)+POWER((VLOOKUP(K37,DEBUT!$D$5:$J$110,7,FALSE)-VLOOKUP(L37,DEBUT!$D$5:$J$110,7,FALSE)),2))/CARTE!$O$9 ->  | L35: =SQRT(POWER((VLOOKUP(L37,DEBUT!$D$5:$J$110,6,FALSE)-VLOOKUP(M37,DEBUT!$D$5:$J$110,6,FALSE)),2)+POWER((VLOOKUP(L37,DEBUT!$D$5:$J$110,7,FALSE)-VLOOKUP(M37,DEBUT!$D$5:$J$110,7,FALSE)),2))/CARTE!$O$9 ->  | M35: =SQRT(POWER((VLOOKUP(M37,DEBUT!$D$5:$J$110,6,FALSE)-VLOOKUP(N37,DEBUT!$D$5:$J$110,6,FALSE)),2)+POWER((VLOOKUP(M37,DEBUT!$D$5:$J$110,7,FALSE)-VLOOKUP(N37,DEBUT!$D$5:$J$110,7,FALSE)),2))/CARTE!$O$9 ->  | N35: =SQRT(POWER((VLOOKUP(N37,DEBUT!$D$5:$J$110,6,FALSE)-VLOOKUP(O37,DEBUT!$D$5:$J$110,6,FALSE)),2)+POWER((VLOOKUP(N37,DEBUT!$D$5:$J$110,7,FALSE)-VLOOKUP(O37,DEBUT!$D$5:$J$110,7,FALSE)),2))/CARTE!$O$9 ->  | P35: Analyse | R35: / 2 | AL35: 31 | AM35: 0
D36: Balises prévues | E36: =IF(ISTEXT($D35),HLOOKUP($D35,DEBUT!$O$3:$XX$100,3,FALSE),"") -> A | F36: =IF(ISTEXT($D35),HLOOKUP($D35,DEBUT!$O$3:$XX$100,4,FALSE),"") -> B | G36: =IF(ISTEXT($D35),HLOOKUP($D35,DEBUT!$O$3:$XX$100,5,FALSE),"") -> C | H36: =IF(ISTEXT($D35),HLOOKUP($D35,DEBUT!$O$3:$XX$100,6,FALSE),"") -> D | I36: =IF(ISTEXT($D35),HLOOKUP($D35,DEBUT!$O$3:$XX$100,7,FALSE),"") -> E | J36: =IF(ISTEXT($D35),HLOOKUP($D35,DEBUT!$O$3:$XX$100,8,FALSE),"") -> F | K36: =IF(ISTEXT($D35),HLOOKUP($D35,DEBUT!$O$3:$XX$100,9,FALSE),"") -> 0 | L36: =IF(ISTEXT($D35),HLOOKUP($D35,DEBUT!$O$3:$XX$100,10,FALSE),"") -> 0 | M36: =IF(ISTEXT($D35),HLOOKUP($D35,DEBUT!$O$3:$XX$100,11,FALSE),"") -> 0 | N36: =IF(ISTEXT($D35),HLOOKUP($D35,DEBUT!$O$3:$XX$100,12,FALSE),"") -> 0 | O36: 2 | P36: Carton contrôle | Q36: 1 | R36: / 2 | AL36: 32 | AM36: 0
D37: En course | E37: =IF($D37=DEBUT!$L$5,E38,"") ->  | F37: =IF($D37=DEBUT!$L$5,F38,"") ->  | G37: =IF($D37=DEBUT!$L$5,G38,"") ->  | H37: =IF($D37=DEBUT!$L$5,H38,"") ->  | I37: =IF($D37=DEBUT!$L$5,I38,"") ->  | J37: =IF($D37=DEBUT!$L$5,J38,"") ->  | K37: =IF($D37=DEBUT!$L$5,K38,"") ->  | L37: =IF($D37=DEBUT!$L$5,L38,"") ->  | M37: =IF($D37=DEBUT!$L$5,M38,"") ->  | N37: =IF($D37=DEBUT!$L$5,N38,"") ->  | P37: Conduite itinéraire | Q37: =IF($Q$4=DEBUT!$K$6,HLOOKUP(Q38,REFERENTIELS!$E$7:$M$8,2,TRUE)+COUNTIF(E39:N39,2)*0.5,HLOOKUP(Q38,REFERENTIELS!$E$7:$M$8,2,TRUE)+COUNTIF(E39:N39,3)*0.5) -> 0 | R37: / 10 | AL37: 33 | AM37: 0
D38: Balises CM | E38: =IFERROR(INDEX(baliseCM,MATCH(E36,lettre,0),MATCH($D34,parcours,0)),"") -> 7 | F38: =IFERROR(INDEX(baliseCM,MATCH(F36,lettre,0),MATCH($D34,parcours,0)),"") -> 10 | G38: 11 | H38: 1 | I38: 76 | J38: 46 | P38: Nombre balises justes | Q38: =COUNTIF(E39:N39,">0") -> 0 | R38: =IF(Q38>1,"trouvées","trouvée") -> trouvée | AL38: 34 | AM38: 0
D39: Points | E39: =IF(E38=E37,IFERROR(INDEX(baliseCM,MATCH(E36,lettre,0),MATCH($U39,parcours,0)),""),"") ->  | P39: Note | Q39: =Q34+Q35+Q36+Q37 ->  | R39: /20 | U39: =CONCATENATE(D35,"points") -> 6BLUEpoints | AL39: 35 | AM39: 0
B40: EQUIPE 6 | N40: =(HOUR(M41)*3600+MINUTE(M41)*60+SECOND(M41))-(HOUR($M$2)*3600+MINUTE($M$2)*60+SECOND($M$2)) ->  | T40: Analyse du parcours | AL40: 36 | AM40: 0
D41: =CONCATENATE(D42,"bis") -> 6BLUEbis | E41: 22:20:01 | K41: Durée : | M41: =I41-E41 -> -0.9305671296 | P41: Vitesse de course | Q41: =IF(AND(N40<0,Q45=8),HLOOKUP(N40,REFERENTIELS!$E$33:$I$34,2,TRUE),IF(AND(N40<=0,Q45<>8),2,HLOOKUP(N40,REFERENTIELS!$I$33:$L$34,2,TRUE))) ->  | R41: / 6
D42: =$H$2 -> 6BLUE | E42: =SQRT(POWER((VLOOKUP(E44,DEBUT!$D$5:$J$110,6,FALSE)-VLOOKUP(F44,DEBUT!$D$5:$J$110,6,FALSE)),2)+POWER((VLOOKUP(E44,DEBUT!$D$5:$J$110,7,FALSE)-VLOOKUP(F44,DEBUT!$D$5:$J$110,7,FALSE)),2))/CARTE!$O$9 -> 292.4132321 | F42: =SQRT(POWER((VLOOKUP(F44,DEBUT!$D$5:$J$110,6,FALSE)-VLOOKUP(G44,DEBUT!$D$5:$J$110,6,FALSE)),2)+POWER((VLOOKUP(F44,DEBUT!$D$5:$J$110,7,FALSE)-VLOOKUP(G44,DEBUT!$D$5:$J$110,7,FALSE)),2))/CARTE!$O$9 -> 185.4526003 | G42: =SQRT(POWER((VLOOKUP(G44,DEBUT!$D$5:$J$110,6,FALSE)-VLOOKUP(H44,DEBUT!$D$5:$J$110,6,FALSE)),2)+POWER((VLOOKUP(G44,DEBUT!$D$5:$J$110,7,FALSE)-VLOOKUP(H44,DEBUT!$D$5:$J$110,7,FALSE)),2))/CARTE!$O$9 -> 388.8815813 | H42: =SQRT(POWER((VLOOKUP(H44,DEBUT!$D$5:$J$110,6,FALSE)-VLOOKUP(I44,DEBUT!$D$5:$J$110,6,FALSE)),2)+POWER((VLOOKUP(H44,DEBUT!$D$5:$J$110,7,FALSE)-VLOOKUP(I44,DEBUT!$D$5:$J$110,7,FALSE)),2))/CARTE!$O$9 -> 1321.193177 | I42: =SQRT(POWER((VLOOKUP(I44,DEBUT!$D$5:$J$110,6,FALSE)-VLOOKUP(J44,DEBUT!$D$5:$J$110,6,FALSE)),2)+POWER((VLOOKUP(I44,DEBUT!$D$5:$J$110,7,FALSE)-VLOOKUP(J44,DEBUT!$D$5:$J$110,7,FALSE)),2))/CARTE!$O$9 -> 621.6561772 | J42: =SQRT(POWER((VLOOKUP(J44,DEBUT!$D$5:$J$110,6,FALSE)-VLOOKUP(K44,DEBUT!$D$5:$J$110,6,FALSE)),2)+POWER((VLOOKUP(J44,DEBUT!$D$5:$J$110,7,FALSE)-VLOOKUP(K44,DEBUT!$D$5:$J$110,7,FALSE)),2))/CARTE!$O$9 ->  | K42: =SQRT(POWER((VLOOKUP(K44,DEBUT!$D$5:$J$110,6,FALSE)-VLOOKUP(L44,DEBUT!$D$5:$J$110,6,FALSE)),2)+POWER((VLOOKUP(K44,DEBUT!$D$5:$J$110,7,FALSE)-VLOOKUP(L44,DEBUT!$D$5:$J$110,7,FALSE)),2))/CARTE!$O$9 ->  | L42: =SQRT(POWER((VLOOKUP(L44,DEBUT!$D$5:$J$110,6,FALSE)-VLOOKUP(M44,DEBUT!$D$5:$J$110,6,FALSE)),2)+POWER((VLOOKUP(L44,DEBUT!$D$5:$J$110,7,FALSE)-VLOOKUP(M44,DEBUT!$D$5:$J$110,7,FALSE)),2))/CARTE!$O$9 ->  | M42: =SQRT(POWER((VLOOKUP(M44,DEBUT!$D$5:$J$110,6,FALSE)-VLOOKUP(N44,DEBUT!$D$5:$J$110,6,FALSE)),2)+POWER((VLOOKUP(M44,DEBUT!$D$5:$J$110,7,FALSE)-VLOOKUP(N44,DEBUT!$D$5:$J$110,7,FALSE)),2))/CARTE!$O$9 ->  | N42: =SQRT(POWER((VLOOKUP(N44,DEBUT!$D$5:$J$110,6,FALSE)-VLOOKUP(O44,DEBUT!$D$5:$J$110,6,FALSE)),2)+POWER((VLOOKUP(N44,DEBUT!$D$5:$J$110,7,FALSE)-VLOOKUP(O44,DEBUT!$D$5:$J$110,7,FALSE)),2))/CARTE!$O$9 ->  | P42: Analyse | R42: / 2
D43: Balises prévues | E43: =IF(ISTEXT($D42),HLOOKUP($D42,DEBUT!$O$3:$XX$100,3,FALSE),"") -> A | F43: =IF(ISTEXT($D42),HLOOKUP($D42,DEBUT!$O$3:$XX$100,4,FALSE),"") -> B | G43: =IF(ISTEXT($D42),HLOOKUP($D42,DEBUT!$O$3:$XX$100,5,FALSE),"") -> C | H43: =IF(ISTEXT($D42),HLOOKUP($D42,DEBUT!$O$3:$XX$100,6,FALSE),"") -> D | I43: =IF(ISTEXT($D42),HLOOKUP($D42,DEBUT!$O$3:$XX$100,7,FALSE),"") -> E | J43: =IF(ISTEXT($D42),HLOOKUP($D42,DEBUT!$O$3:$XX$100,8,FALSE),"") -> F | K43: =IF(ISTEXT($D42),HLOOKUP($D42,DEBUT!$O$3:$XX$100,9,FALSE),"") -> 0 | L43: =IF(ISTEXT($D42),HLOOKUP($D42,DEBUT!$O$3:$XX$100,10,FALSE),"") -> 0 | M43: =IF(ISTEXT($D42),HLOOKUP($D42,DEBUT!$O$3:$XX$100,11,FALSE),"") -> 0 | N43: =IF(ISTEXT($D42),HLOOKUP($D42,DEBUT!$O$3:$XX$100,12,FALSE),"") -> 0 | O43: 2 | P43: Carton contrôle | Q43: 1 | R43: / 2
D44: Validé | E44: =IF($D44=DEBUT!$L$5,E45,"") -> 7 | F44: =IF($D44=DEBUT!$L$5,F45,"") -> 10 | G44: =IF($D44=DEBUT!$L$5,G45,"") -> 11 | H44: =IF($D44=DEBUT!$L$5,H45,"") -> 1 | I44: =IF($D44=DEBUT!$L$5,I45,"") -> 76 | J44: =IF($D44=DEBUT!$L$5,J45,"") -> 46 | K44: =IF($D44=DEBUT!$L$5,K45,"") ->  | L44: =IF($D44=DEBUT!$L$5,L45,"") ->  | M44: =IF($D44=DEBUT!$L$5,M45,"") ->  | N44: =IF($D44=DEBUT!$L$5,N45,"") ->  | P44: Conduite itinéraire | Q44: =HLOOKUP(Q45,REFERENTIELS!$E$7:$M$8,2,TRUE) -> 4 | R44: / 10
D45: Balises CM | E45: =IFERROR(INDEX(baliseCM,MATCH(E43,lettre,0),MATCH($D41,parcours,0)),"") -> 7 | F45: =IFERROR(INDEX(baliseCM,MATCH(F43,lettre,0),MATCH($D41,parcours,0)),"") -> 10 | G45: 11 | H45: 1 | I45: 76 | J45: 46 | P45: Nombre balises justes | Q45: =COUNTIF(E46:N46,">0") -> 6 | R45: =IF(Q45>1,"trouvées","trouvée") -> trouvées
D46: Points | E46: =IF(E45=E44,IFERROR(INDEX(baliseCM,MATCH(E43,lettre,0),MATCH($U46,parcours,0)),""),"") -> 1 | F46: 2 | G46: 2 | H46: 2 | I46: 3 | J46: 3 | P46: Note | Q46: =Q41+Q42+Q43+Q44 ->  | R46: /20 | U46: =CONCATENATE(D42,"points") -> 6BLUEpoints
B47: EQUIPE 7 | N47: =(HOUR(M48)*3600+MINUTE(M48)*60+SECOND(M48))-(HOUR($M$2)*3600+MINUTE($M$2)*60+SECOND($M$2)) ->  | T47: Analyse du parcours
D48: =CONCATENATE(D49,"bis") -> 6BLUEbis | E48: 22:20:01 | K48: Durée : | M48: =I48-E48 -> -0.9305671296 | P48: Vitesse de course | Q48: =IF(AND(N47<0,Q52=8),HLOOKUP(N47,REFERENTIELS!$E$33:$I$34,2,TRUE),IF(AND(N47<=0,Q52<>8),2,HLOOKUP(N47,REFERENTIELS!$I$33:$L$34,2,TRUE))) ->  | R48: / 6
D49: =$H$2 -> 6BLUE | E49: =SQRT(POWER((VLOOKUP(E51,DEBUT!$D$5:$J$110,6,FALSE)-VLOOKUP(F51,DEBUT!$D$5:$J$110,6,FALSE)),2)+POWER((VLOOKUP(E51,DEBUT!$D$5:$J$110,7,FALSE)-VLOOKUP(F51,DEBUT!$D$5:$J$110,7,FALSE)),2))/CARTE!$O$9 -> 292.4132321 | F49: =SQRT(POWER((VLOOKUP(F51,DEBUT!$D$5:$J$110,6,FALSE)-VLOOKUP(G51,DEBUT!$D$5:$J$110,6,FALSE)),2)+POWER((VLOOKUP(F51,DEBUT!$D$5:$J$110,7,FALSE)-VLOOKUP(G51,DEBUT!$D$5:$J$110,7,FALSE)),2))/CARTE!$O$9 -> 185.4526003 | G49: =SQRT(POWER((VLOOKUP(G51,DEBUT!$D$5:$J$110,6,FALSE)-VLOOKUP(H51,DEBUT!$D$5:$J$110,6,FALSE)),2)+POWER((VLOOKUP(G51,DEBUT!$D$5:$J$110,7,FALSE)-VLOOKUP(H51,DEBUT!$D$5:$J$110,7,FALSE)),2))/CARTE!$O$9 -> 388.8815813 | H49: =SQRT(POWER((VLOOKUP(H51,DEBUT!$D$5:$J$110,6,FALSE)-VLOOKUP(I51,DEBUT!$D$5:$J$110,6,FALSE)),2)+POWER((VLOOKUP(H51,DEBUT!$D$5:$J$110,7,FALSE)-VLOOKUP(I51,DEBUT!$D$5:$J$110,7,FALSE)),2))/CARTE!$O$9 -> 1321.193177 | I49: =SQRT(POWER((VLOOKUP(I51,DEBUT!$D$5:$J$110,6,FALSE)-VLOOKUP(J51,DEBUT!$D$5:$J$110,6,FALSE)),2)+POWER((VLOOKUP(I51,DEBUT!$D$5:$J$110,7,FALSE)-VLOOKUP(J51,DEBUT!$D$5:$J$110,7,FALSE)),2))/CARTE!$O$9 -> 621.6561772 | J49: =SQRT(POWER((VLOOKUP(J51,DEBUT!$D$5:$J$110,6,FALSE)-VLOOKUP(K51,DEBUT!$D$5:$J$110,6,FALSE)),2)+POWER((VLOOKUP(J51,DEBUT!$D$5:$J$110,7,FALSE)-VLOOKUP(K51,DEBUT!$D$5:$J$110,7,FALSE)),2))/CARTE!$O$9 ->  | K49: =SQRT(POWER((VLOOKUP(K51,DEBUT!$D$5:$J$110,6,FALSE)-VLOOKUP(L51,DEBUT!$D$5:$J$110,6,FALSE)),2)+POWER((VLOOKUP(K51,DEBUT!$D$5:$J$110,7,FALSE)-VLOOKUP(L51,DEBUT!$D$5:$J$110,7,FALSE)),2))/CARTE!$O$9 ->  | L49: =SQRT(POWER((VLOOKUP(L51,DEBUT!$D$5:$J$110,6,FALSE)-VLOOKUP(M51,DEBUT!$D$5:$J$110,6,FALSE)),2)+POWER((VLOOKUP(L51,DEBUT!$D$5:$J$110,7,FALSE)-VLOOKUP(M51,DEBUT!$D$5:$J$110,7,FALSE)),2))/CARTE!$O$9 ->  | M49: =SQRT(POWER((VLOOKUP(M51,DEBUT!$D$5:$J$110,6,FALSE)-VLOOKUP(N51,DEBUT!$D$5:$J$110,6,FALSE)),2)+POWER((VLOOKUP(M51,DEBUT!$D$5:$J$110,7,FALSE)-VLOOKUP(N51,DEBUT!$D$5:$J$110,7,FALSE)),2))/CARTE!$O$9 ->  | N49: =SQRT(POWER((VLOOKUP(N51,DEBUT!$D$5:$J$110,6,FALSE)-VLOOKUP(O51,DEBUT!$D$5:$J$110,6,FALSE)),2)+POWER((VLOOKUP(N51,DEBUT!$D$5:$J$110,7,FALSE)-VLOOKUP(O51,DEBUT!$D$5:$J$110,7,FALSE)),2))/CARTE!$O$9 ->  | P49: Analyse | R49: / 2
D50: Balises prévues | E50: =IF(ISTEXT($D49),HLOOKUP($D49,DEBUT!$O$3:$XX$100,3,FALSE),"") -> A | F50: =IF(ISTEXT($D49),HLOOKUP($D49,DEBUT!$O$3:$XX$100,4,FALSE),"") -> B | G50: =IF(ISTEXT($D49),HLOOKUP($D49,DEBUT!$O$3:$XX$100,5,FALSE),"") -> C | H50: =IF(ISTEXT($D49),HLOOKUP($D49,DEBUT!$O$3:$XX$100,6,FALSE),"") -> D | I50: =IF(ISTEXT($D49),HLOOKUP($D49,DEBUT!$O$3:$XX$100,7,FALSE),"") -> E | J50: =IF(ISTEXT($D49),HLOOKUP($D49,DEBUT!$O$3:$XX$100,8,FALSE),"") -> F | K50: =IF(ISTEXT($D49),HLOOKUP($D49,DEBUT!$O$3:$XX$100,9,FALSE),"") -> 0 | L50: =IF(ISTEXT($D49),HLOOKUP($D49,DEBUT!$O$3:$XX$100,10,FALSE),"") -> 0 | M50: =IF(ISTEXT($D49),HLOOKUP($D49,DEBUT!$O$3:$XX$100,11,FALSE),"") -> 0 | N50: =IF(ISTEXT($D49),HLOOKUP($D49,DEBUT!$O$3:$XX$100,12,FALSE),"") -> 0 | O50: 2 | P50: Carton contrôle | Q50: 1 | R50: / 2
D51: Validé | E51: =IF($D51=DEBUT!$L$5,E52,"") -> 7 | F51: =IF($D51=DEBUT!$L$5,F52,"") -> 10 | G51: =IF($D51=DEBUT!$L$5,G52,"") -> 11 | H51: =IF($D51=DEBUT!$L$5,H52,"") -> 1 | I51: =IF($D51=DEBUT!$L$5,I52,"") -> 76 | J51: =IF($D51=DEBUT!$L$5,J52,"") -> 46 | K51: =IF($D51=DEBUT!$L$5,K52,"") ->  | L51: =IF($D51=DEBUT!$L$5,L52,"") ->  | M51: =IF($D51=DEBUT!$L$5,M52,"") ->  | N51: =IF($D51=DEBUT!$L$5,N52,"") ->  | P51: Conduite itinéraire | Q51: =IF($Q$4=DEBUT!$K$6,HLOOKUP(Q52,REFERENTIELS!$E$7:$M$8,2,TRUE)+COUNTIF(E53:N53,2)*0.5,HLOOKUP(Q52,REFERENTIELS!$E$7:$M$8,2,TRUE)+COUNTIF(E53:N53,3)*0.5) -> 5.5 | R51: / 10
D52: Balises CM | E52: =IFERROR(INDEX(baliseCM,MATCH(E50,lettre,0),MATCH($D48,parcours,0)),"") -> 7 | F52: =IFERROR(INDEX(baliseCM,MATCH(F50,lettre,0),MATCH($D48,parcours,0)),"") -> 10 | G52: 11 | H52: 1 | I52: 76 | J52: 46 | P52: Nombre balises justes | Q52: =COUNTIF(E53:N53,">0") -> 6 | R52: =IF(Q52>1,"trouvées","trouvée") -> trouvées
D53: Points | E53: =IF(E52=E51,IFERROR(INDEX(baliseCM,MATCH(E50,lettre,0),MATCH($U53,parcours,0)),""),"") -> 1 | F53: 2 | G53: 2 | H53: 2 | I53: 3 | J53: 3 | P53: Note | Q53: =Q48+Q49+Q50+Q51 ->  | R53: /20 | U53: =CONCATENATE(D49,"points") -> 6BLUEpoints
B54: EQUIPE 8 | N54: =(HOUR(M55)*3600+MINUTE(M55)*60+SECOND(M55))-(HOUR($M$2)*3600+MINUTE($M$2)*60+SECOND($M$2)) ->  | T54: Analyse du parcours
D55: =CONCATENATE(D56,"bis") -> 6BLUEbis | E55: 22:20:01 | K55: Durée : | M55: =I55-E55 -> -0.9305671296 | P55: Vitesse de course | Q55: =IF(AND(N54<0,Q59=8),HLOOKUP(N54,REFERENTIELS!$E$33:$I$34,2,TRUE),IF(AND(N54<=0,Q59<>8),2,HLOOKUP(N54,REFERENTIELS!$I$33:$L$34,2,TRUE))) ->  | R55: / 6
D56: =$H$2 -> 6BLUE | E56: =SQRT(POWER((VLOOKUP(E58,DEBUT!$D$5:$J$110,6,FALSE)-VLOOKUP(F58,DEBUT!$D$5:$J$110,6,FALSE)),2)+POWER((VLOOKUP(E58,DEBUT!$D$5:$J$110,7,FALSE)-VLOOKUP(F58,DEBUT!$D$5:$J$110,7,FALSE)),2))/CARTE!$O$9 -> 292.4132321 | F56: =SQRT(POWER((VLOOKUP(F58,DEBUT!$D$5:$J$110,6,FALSE)-VLOOKUP(G58,DEBUT!$D$5:$J$110,6,FALSE)),2)+POWER((VLOOKUP(F58,DEBUT!$D$5:$J$110,7,FALSE)-VLOOKUP(G58,DEBUT!$D$5:$J$110,7,FALSE)),2))/CARTE!$O$9 -> 185.4526003 | G56: =SQRT(POWER((VLOOKUP(G58,DEBUT!$D$5:$J$110,6,FALSE)-VLOOKUP(H58,DEBUT!$D$5:$J$110,6,FALSE)),2)+POWER((VLOOKUP(G58,DEBUT!$D$5:$J$110,7,FALSE)-VLOOKUP(H58,DEBUT!$D$5:$J$110,7,FALSE)),2))/CARTE!$O$9 -> 388.8815813 | H56: =SQRT(POWER((VLOOKUP(H58,DEBUT!$D$5:$J$110,6,FALSE)-VLOOKUP(I58,DEBUT!$D$5:$J$110,6,FALSE)),2)+POWER((VLOOKUP(H58,DEBUT!$D$5:$J$110,7,FALSE)-VLOOKUP(I58,DEBUT!$D$5:$J$110,7,FALSE)),2))/CARTE!$O$9 -> 1321.193177 | I56: =SQRT(POWER((VLOOKUP(I58,DEBUT!$D$5:$J$110,6,FALSE)-VLOOKUP(J58,DEBUT!$D$5:$J$110,6,FALSE)),2)+POWER((VLOOKUP(I58,DEBUT!$D$5:$J$110,7,FALSE)-VLOOKUP(J58,DEBUT!$D$5:$J$110,7,FALSE)),2))/CARTE!$O$9 -> 621.6561772 | J56: =SQRT(POWER((VLOOKUP(J58,DEBUT!$D$5:$J$110,6,FALSE)-VLOOKUP(K58,DEBUT!$D$5:$J$110,6,FALSE)),2)+POWER((VLOOKUP(J58,DEBUT!$D$5:$J$110,7,FALSE)-VLOOKUP(K58,DEBUT!$D$5:$J$110,7,FALSE)),2))/CARTE!$O$9 ->  | K56: =SQRT(POWER((VLOOKUP(K58,DEBUT!$D$5:$J$110,6,FALSE)-VLOOKUP(L58,DEBUT!$D$5:$J$110,6,FALSE)),2)+POWER((VLOOKUP(K58,DEBUT!$D$5:$J$110,7,FALSE)-VLOOKUP(L58,DEBUT!$D$5:$J$110,7,FALSE)),2))/CARTE!$O$9 ->  | L56: =SQRT(POWER((VLOOKUP(L58,DEBUT!$D$5:$J$110,6,FALSE)-VLOOKUP(M58,DEBUT!$D$5:$J$110,6,FALSE)),2)+POWER((VLOOKUP(L58,DEBUT!$D$5:$J$110,7,FALSE)-VLOOKUP(M58,DEBUT!$D$5:$J$110,7,FALSE)),2))/CARTE!$O$9 ->  | M56: =SQRT(POWER((VLOOKUP(M58,DEBUT!$D$5:$J$110,6,FALSE)-VLOOKUP(N58,DEBUT!$D$5:$J$110,6,FALSE)),2)+POWER((VLOOKUP(M58,DEBUT!$D$5:$J$110,7,FALSE)-VLOOKUP(N58,DEBUT!$D$5:$J$110,7,FALSE)),2))/CARTE!$O$9 ->  | N56: =SQRT(POWER((VLOOKUP(N58,DEBUT!$D$5:$J$110,6,FALSE)-VLOOKUP(O58,DEBUT!$D$5:$J$110,6,FALSE)),2)+POWER((VLOOKUP(N58,DEBUT!$D$5:$J$110,7,FALSE)-VLOOKUP(O58,DEBUT!$D$5:$J$110,7,FALSE)),2))/CARTE!$O$9 ->  | P56: Analyse | R56: / 2
D57: Balises prévues | E57: =IF(ISTEXT($D56),HLOOKUP($D56,DEBUT!$O$3:$XX$100,3,FALSE),"") -> A | F57: =IF(ISTEXT($D56),HLOOKUP($D56,DEBUT!$O$3:$XX$100,4,FALSE),"") -> B | G57: =IF(ISTEXT($D56),HLOOKUP($D56,DEBUT!$O$3:$XX$100,5,FALSE),"") -> C | H57: =IF(ISTEXT($D56),HLOOKUP($D56,DEBUT!$O$3:$XX$100,6,FALSE),"") -> D | I57: =IF(ISTEXT($D56),HLOOKUP($D56,DEBUT!$O$3:$XX$100,7,FALSE),"") -> E | J57: =IF(ISTEXT($D56),HLOOKUP($D56,DEBUT!$O$3:$XX$100,8,FALSE),"") -> F | K57: =IF(ISTEXT($D56),HLOOKUP($D56,DEBUT!$O$3:$XX$100,9,FALSE),"") -> 0 | L57: =IF(ISTEXT($D56),HLOOKUP($D56,DEBUT!$O$3:$XX$100,10,FALSE),"") -> 0 | M57: =IF(ISTEXT($D56),HLOOKUP($D56,DEBUT!$O$3:$XX$100,11,FALSE),"") -> 0 | N57: =IF(ISTEXT($D56),HLOOKUP($D56,DEBUT!$O$3:$XX$100,12,FALSE),"") -> 0 | O57: 2 | P57: Carton contrôle | Q57: 1 | R57: / 2
D58: Validé | E58: =IF($D58=DEBUT!$L$5,E59,"") -> 7 | F58: =IF($D58=DEBUT!$L$5,F59,"") -> 10 | G58: =IF($D58=DEBUT!$L$5,G59,"") -> 11 | H58: =IF($D58=DEBUT!$L$5,H59,"") -> 1 | I58: =IF($D58=DEBUT!$L$5,I59,"") -> 76 | J58: =IF($D58=DEBUT!$L$5,J59,"") -> 46 | K58: =IF($D58=DEBUT!$L$5,K59,"") ->  | L58: =IF($D58=DEBUT!$L$5,L59,"") ->  | M58: =IF($D58=DEBUT!$L$5,M59,"") ->  | N58: =IF($D58=DEBUT!$L$5,N59,"") ->  | P58: Conduite itinéraire | Q58: =IF($Q$4=DEBUT!$K$6,HLOOKUP(Q59,REFERENTIELS!$E$7:$M$8,2,TRUE)+COUNTIF(E60:N60,2)*0.5,HLOOKUP(Q59,REFERENTIELS!$E$7:$M$8,2,TRUE)+COUNTIF(E60:N60,3)*0.5) -> 5.5 | R58: / 10
D59: Balises CM | E59: =IFERROR(INDEX(baliseCM,MATCH(E57,lettre,0),MATCH($D55,parcours,0)),"") -> 7 | F59: =IFERROR(INDEX(baliseCM,MATCH(F57,lettre,0),MATCH($D55,parcours,0)),"") -> 10 | G59: 11 | H59: 1 | I59: 76 | J59: 46 | P59: Nombre balises justes | Q59: =COUNTIF(E60:N60,">0") -> 6 | R59: =IF(Q59>1,"trouvées","trouvée") -> trouvées
D60: Points | E60: =IF(E59=E58,IFERROR(INDEX(baliseCM,MATCH(E57,lettre,0),MATCH($U60,parcours,0)),""),"") -> 1 | F60: 2 | G60: 2 | H60: 2 | I60: 3 | J60: 3 | P60: Note | Q60: =Q55+Q56+Q57+Q58 ->  | R60: /20 | U60: =CONCATENATE(D56,"points") -> 6BLUEpoints
B61: EQUIPE 9 | N61: =(HOUR(M62)*3600+MINUTE(M62)*60+SECOND(M62))-(HOUR($M$2)*3600+MINUTE($M$2)*60+SECOND($M$2)) ->  | T61: Analyse du parcours
D62: =CONCATENATE(D63,"bis") -> 6BLUEbis | E62: 22:20:01 | K62: Durée : | M62: =I62-E62 -> -0.9305671296 | P62: Vitesse de course | Q62: =IF(AND(N61<0,Q66=8),HLOOKUP(N61,REFERENTIELS!$E$33:$I$34,2,TRUE),IF(AND(N61<=0,Q66<>8),2,HLOOKUP(N61,REFERENTIELS!$I$33:$L$34,2,TRUE))) ->  | R62: / 6
D63: =$H$2 -> 6BLUE | E63: =SQRT(POWER((VLOOKUP(E65,DEBUT!$D$5:$J$110,6,FALSE)-VLOOKUP(F65,DEBUT!$D$5:$J$110,6,FALSE)),2)+POWER((VLOOKUP(E65,DEBUT!$D$5:$J$110,7,FALSE)-VLOOKUP(F65,DEBUT!$D$5:$J$110,7,FALSE)),2))/CARTE!$O$9 -> 292.4132321 | F63: =SQRT(POWER((VLOOKUP(F65,DEBUT!$D$5:$J$110,6,FALSE)-VLOOKUP(G65,DEBUT!$D$5:$J$110,6,FALSE)),2)+POWER((VLOOKUP(F65,DEBUT!$D$5:$J$110,7,FALSE)-VLOOKUP(G65,DEBUT!$D$5:$J$110,7,FALSE)),2))/CARTE!$O$9 -> 185.4526003 | G63: =SQRT(POWER((VLOOKUP(G65,DEBUT!$D$5:$J$110,6,FALSE)-VLOOKUP(H65,DEBUT!$D$5:$J$110,6,FALSE)),2)+POWER((VLOOKUP(G65,DEBUT!$D$5:$J$110,7,FALSE)-VLOOKUP(H65,DEBUT!$D$5:$J$110,7,FALSE)),2))/CARTE!$O$9 -> 388.8815813 | H63: =SQRT(POWER((VLOOKUP(H65,DEBUT!$D$5:$J$110,6,FALSE)-VLOOKUP(I65,DEBUT!$D$5:$J$110,6,FALSE)),2)+POWER((VLOOKUP(H65,DEBUT!$D$5:$J$110,7,FALSE)-VLOOKUP(I65,DEBUT!$D$5:$J$110,7,FALSE)),2))/CARTE!$O$9 -> 1321.193177 | I63: =SQRT(POWER((VLOOKUP(I65,DEBUT!$D$5:$J$110,6,FALSE)-VLOOKUP(J65,DEBUT!$D$5:$J$110,6,FALSE)),2)+POWER((VLOOKUP(I65,DEBUT!$D$5:$J$110,7,FALSE)-VLOOKUP(J65,DEBUT!$D$5:$J$110,7,FALSE)),2))/CARTE!$O$9 -> 621.6561772 | J63: =SQRT(POWER((VLOOKUP(J65,DEBUT!$D$5:$J$110,6,FALSE)-VLOOKUP(K65,DEBUT!$D$5:$J$110,6,FALSE)),2)+POWER((VLOOKUP(J65,DEBUT!$D$5:$J$110,7,FALSE)-VLOOKUP(K65,DEBUT!$D$5:$J$110,7,FALSE)),2))/CARTE!$O$9 ->  | K63: =SQRT(POWER((VLOOKUP(K65,DEBUT!$D$5:$J$110,6,FALSE)-VLOOKUP(L65,DEBUT!$D$5:$J$110,6,FALSE)),2)+POWER((VLOOKUP(K65,DEBUT!$D$5:$J$110,7,FALSE)-VLOOKUP(L65,DEBUT!$D$5:$J$110,7,FALSE)),2))/CARTE!$O$9 ->  | L63: =SQRT(POWER((VLOOKUP(L65,DEBUT!$D$5:$J$110,6,FALSE)-VLOOKUP(M65,DEBUT!$D$5:$J$110,6,FALSE)),2)+POWER((VLOOKUP(L65,DEBUT!$D$5:$J$110,7,FALSE)-VLOOKUP(M65,DEBUT!$D$5:$J$110,7,FALSE)),2))/CARTE!$O$9 ->  | M63: =SQRT(POWER((VLOOKUP(M65,DEBUT!$D$5:$J$110,6,FALSE)-VLOOKUP(N65,DEBUT!$D$5:$J$110,6,FALSE)),2)+POWER((VLOOKUP(M65,DEBUT!$D$5:$J$110,7,FALSE)-VLOOKUP(N65,DEBUT!$D$5:$J$110,7,FALSE)),2))/CARTE!$O$9 ->  | N63: =SQRT(POWER((VLOOKUP(N65,DEBUT!$D$5:$J$110,6,FALSE)-VLOOKUP(O65,DEBUT!$D$5:$J$110,6,FALSE)),2)+POWER((VLOOKUP(N65,DEBUT!$D$5:$J$110,7,FALSE)-VLOOKUP(O65,DEBUT!$D$5:$J$110,7,FALSE)),2))/CARTE!$O$9 ->  | P63: Analyse | R63: / 2
D64: Balises prévues | E64: =IF(ISTEXT($D63),HLOOKUP($D63,DEBUT!$O$3:$XX$100,3,FALSE),"") -> A | F64: =IF(ISTEXT($D63),HLOOKUP($D63,DEBUT!$O$3:$XX$100,4,FALSE),"") -> B | G64: =IF(ISTEXT($D63),HLOOKUP($D63,DEBUT!$O$3:$XX$100,5,FALSE),"") -> C | H64: =IF(ISTEXT($D63),HLOOKUP($D63,DEBUT!$O$3:$XX$100,6,FALSE),"") -> D | I64: =IF(ISTEXT($D63),HLOOKUP($D63,DEBUT!$O$3:$XX$100,7,FALSE),"") -> E | J64: =IF(ISTEXT($D63),HLOOKUP($D63,DEBUT!$O$3:$XX$100,8,FALSE),"") -> F | K64: =IF(ISTEXT($D63),HLOOKUP($D63,DEBUT!$O$3:$XX$100,9,FALSE),"") -> 0 | L64: =IF(ISTEXT($D63),HLOOKUP($D63,DEBUT!$O$3:$XX$100,10,FALSE),"") -> 0 | M64: =IF(ISTEXT($D63),HLOOKUP($D63,DEBUT!$O$3:$XX$100,11,FALSE),"") -> 0 | N64: =IF(ISTEXT($D63),HLOOKUP($D63,DEBUT!$O$3:$XX$100,12,FALSE),"") -> 0 | O64: 2 | P64: Carton contrôle | Q64: 1 | R64: / 2
D65: Validé | E65: =IF($D65=DEBUT!$L$5,E66,"") -> 7 | F65: =IF($D65=DEBUT!$L$5,F66,"") -> 10 | G65: =IF($D65=DEBUT!$L$5,G66,"") -> 11 | H65: =IF($D65=DEBUT!$L$5,H66,"") -> 1 | I65: =IF($D65=DEBUT!$L$5,I66,"") -> 76 | J65: =IF($D65=DEBUT!$L$5,J66,"") -> 46 | K65: =IF($D65=DEBUT!$L$5,K66,"") ->  | L65: =IF($D65=DEBUT!$L$5,L66,"") ->  | M65: =IF($D65=DEBUT!$L$5,M66,"") ->  | N65: =IF($D65=DEBUT!$L$5,N66,"") ->  | P65: Conduite itinéraire | Q65: =IF($Q$4=DEBUT!$K$6,HLOOKUP(Q66,REFERENTIELS!$E$7:$M$8,2,TRUE)+COUNTIF(E67:N67,2)*0.5,HLOOKUP(Q66,REFERENTIELS!$E$7:$M$8,2,TRUE)+COUNTIF(E67:N67,3)*0.5) -> 5.5 | R65: / 10
D66: Balises CM | E66: =IFERROR(INDEX(baliseCM,MATCH(E64,lettre,0),MATCH($D62,parcours,0)),"") -> 7 | F66: =IFERROR(INDEX(baliseCM,MATCH(F64,lettre,0),MATCH($D62,parcours,0)),"") -> 10 | G66: 11 | H66: 1 | I66: 76 | J66: 46 | P66: Nombre balises justes | Q66: =COUNTIF(E67:N67,">0") -> 6 | R66: =IF(Q66>1,"trouvées","trouvée") -> trouvées
D67: Points | E67: =IF(E66=E65,IFERROR(INDEX(baliseCM,MATCH(E64,lettre,0),MATCH($U67,parcours,0)),""),"") -> 1 | F67: 2 | G67: 2 | H67: 2 | I67: 3 | J67: 3 | P67: Note | Q67: =Q62+Q63+Q64+Q65 ->  | R67: /20 | U67: =CONCATENATE(D63,"points") -> 6BLUEpoints
B68: EQUIPE 10 | N68: =(HOUR(M69)*3600+MINUTE(M69)*60+SECOND(M69))-(HOUR($M$2)*3600+MINUTE($M$2)*60+SECOND($M$2)) ->  | T68: Analyse du parcours
D69: =CONCATENATE(D70,"bis") -> 6BLUEbis | E69: 22:20:02 | K69: Durée : | M69: =I69-E69 -> -0.9305787037 | P69: Vitesse de course | Q69: =IF(AND(N68<0,Q73=8),HLOOKUP(N68,REFERENTIELS!$E$33:$I$34,2,TRUE),IF(AND(N68<=0,Q73<>8),2,HLOOKUP(N68,REFERENTIELS!$I$33:$L$34,2,TRUE))) ->  | R69: / 6
D70: =$H$2 -> 6BLUE | E70: =SQRT(POWER((VLOOKUP(E72,DEBUT!$D$5:$J$110,6,FALSE)-VLOOKUP(F72,DEBUT!$D$5:$J$110,6,FALSE)),2)+POWER((VLOOKUP(E72,DEBUT!$D$5:$J$110,7,FALSE)-VLOOKUP(F72,DEBUT!$D$5:$J$110,7,FALSE)),2))/CARTE!$O$9 -> 292.4132321 | F70: =SQRT(POWER((VLOOKUP(F72,DEBUT!$D$5:$J$110,6,FALSE)-VLOOKUP(G72,DEBUT!$D$5:$J$110,6,FALSE)),2)+POWER((VLOOKUP(F72,DEBUT!$D$5:$J$110,7,FALSE)-VLOOKUP(G72,DEBUT!$D$5:$J$110,7,FALSE)),2))/CARTE!$O$9 -> 185.4526003 | G70: =SQRT(POWER((VLOOKUP(G72,DEBUT!$D$5:$J$110,6,FALSE)-VLOOKUP(H72,DEBUT!$D$5:$J$110,6,FALSE)),2)+POWER((VLOOKUP(G72,DEBUT!$D$5:$J$110,7,FALSE)-VLOOKUP(H72,DEBUT!$D$5:$J$110,7,FALSE)),2))/CARTE!$O$9 -> 388.8815813 | H70: =SQRT(POWER((VLOOKUP(H72,DEBUT!$D$5:$J$110,6,FALSE)-VLOOKUP(I72,DEBUT!$D$5:$J$110,6,FALSE)),2)+POWER((VLOOKUP(H72,DEBUT!$D$5:$J$110,7,FALSE)-VLOOKUP(I72,DEBUT!$D$5:$J$110,7,FALSE)),2))/CARTE!$O$9 -> 1321.193177 | I70: =SQRT(POWER((VLOOKUP(I72,DEBUT!$D$5:$J$110,6,FALSE)-VLOOKUP(J72,DEBUT!$D$5:$J$110,6,FALSE)),2)+POWER((VLOOKUP(I72,DEBUT!$D$5:$J$110,7,FALSE)-VLOOKUP(J72,DEBUT!$D$5:$J$110,7,FALSE)),2))/CARTE!$O$9 -> 621.6561772 | J70: =SQRT(POWER((VLOOKUP(J72,DEBUT!$D$5:$J$110,6,FALSE)-VLOOKUP(K72,DEBUT!$D$5:$J$110,6,FALSE)),2)+POWER((VLOOKUP(J72,DEBUT!$D$5:$J$110,7,FALSE)-VLOOKUP(K72,DEBUT!$D$5:$J$110,7,FALSE)),2))/CARTE!$O$9 ->  | K70: =SQRT(POWER((VLOOKUP(K72,DEBUT!$D$5:$J$110,6,FALSE)-VLOOKUP(L72,DEBUT!$D$5:$J$110,6,FALSE)),2)+POWER((VLOOKUP(K72,DEBUT!$D$5:$J$110,7,FALSE)-VLOOKUP(L72,DEBUT!$D$5:$J$110,7,FALSE)),2))/CARTE!$O$9 ->  | L70: =SQRT(POWER((VLOOKUP(L72,DEBUT!$D$5:$J$110,6,FALSE)-VLOOKUP(M72,DEBUT!$D$5:$J$110,6,FALSE)),2)+POWER((VLOOKUP(L72,DEBUT!$D$5:$J$110,7,FALSE)-VLOOKUP(M72,DEBUT!$D$5:$J$110,7,FALSE)),2))/CARTE!$O$9 ->  | M70: =SQRT(POWER((VLOOKUP(M72,DEBUT!$D$5:$J$110,6,FALSE)-VLOOKUP(N72,DEBUT!$D$5:$J$110,6,FALSE)),2)+POWER((VLOOKUP(M72,DEBUT!$D$5:$J$110,7,FALSE)-VLOOKUP(N72,DEBUT!$D$5:$J$110,7,FALSE)),2))/CARTE!$O$9 ->  | N70: =SQRT(POWER((VLOOKUP(N72,DEBUT!$D$5:$J$110,6,FALSE)-VLOOKUP(O72,DEBUT!$D$5:$J$110,6,FALSE)),2)+POWER((VLOOKUP(N72,DEBUT!$D$5:$J$110,7,FALSE)-VLOOKUP(O72,DEBUT!$D$5:$J$110,7,FALSE)),2))/CARTE!$O$9 ->  | P70: Analyse | R70: / 2
D71: Balises prévues | E71: =IF(ISTEXT($D70),HLOOKUP($D70,DEBUT!$O$3:$XX$100,3,FALSE),"") -> A | F71: =IF(ISTEXT($D70),HLOOKUP($D70,DEBUT!$O$3:$XX$100,4,FALSE),"") -> B | G71: =IF(ISTEXT($D70),HLOOKUP($D70,DEBUT!$O$3:$XX$100,5,FALSE),"") -> C | H71: =IF(ISTEXT($D70),HLOOKUP($D70,DEBUT!$O$3:$XX$100,6,FALSE),"") -> D | I71: =IF(ISTEXT($D70),HLOOKUP($D70,DEBUT!$O$3:$XX$100,7,FALSE),"") -> E | J71: =IF(ISTEXT($D70),HLOOKUP($D70,DEBUT!$O$3:$XX$100,8,FALSE),"") -> F | K71: =IF(ISTEXT($D70),HLOOKUP($D70,DEBUT!$O$3:$XX$100,9,FALSE),"") -> 0 | L71: =IF(ISTEXT($D70),HLOOKUP($D70,DEBUT!$O$3:$XX$100,10,FALSE),"") -> 0 | M71: =IF(ISTEXT($D70),HLOOKUP($D70,DEBUT!$O$3:$XX$100,11,FALSE),"") -> 0 | N71: =IF(ISTEXT($D70),HLOOKUP($D70,DEBUT!$O$3:$XX$100,12,FALSE),"") -> 0 | O71: 2 | P71: Carton contrôle | Q71: 1 | R71: / 2
D72: Validé | E72: =IF($D72=DEBUT!$L$5,E73,"") -> 7 | F72: =IF($D72=DEBUT!$L$5,F73,"") -> 10 | G72: =IF($D72=DEBUT!$L$5,G73,"") -> 11 | H72: =IF($D72=DEBUT!$L$5,H73,"") -> 1 | I72: =IF($D72=DEBUT!$L$5,I73,"") -> 76 | J72: =IF($D72=DEBUT!$L$5,J73,"") -> 46 | K72: =IF($D72=DEBUT!$L$5,K73,"") ->  | L72: =IF($D72=DEBUT!$L$5,L73,"") ->  | M72: =IF($D72=DEBUT!$L$5,M73,"") ->  | N72: =IF($D72=DEBUT!$L$5,N73,"") ->  | P72: Conduite itinéraire | Q72: =IF($Q$4=DEBUT!$K$6,HLOOKUP(Q73,REFERENTIELS!$E$7:$M$8,2,TRUE)+COUNTIF(E74:N74,2)*0.5,HLOOKUP(Q73,REFERENTIELS!$E$7:$M$8,2,TRUE)+COUNTIF(E74:N74,3)*0.5) -> 5.5 | R72: / 10
D73: Balises CM | E73: =IFERROR(INDEX(baliseCM,MATCH(E71,lettre,0),MATCH($D69,parcours,0)),"") -> 7 | F73: =IFERROR(INDEX(baliseCM,MATCH(F71,lettre,0),MATCH($D69,parcours,0)),"") -> 10 | G73: 11 | H73: 1 | I73: 76 | J73: 46 | P73: Nombre balises justes | Q73: =COUNTIF(E74:N74,">0") -> 6 | R73: =IF(Q73>1,"trouvées","trouvée") -> trouvées
D74: Points | E74: =IF(E73=E72,IFERROR(INDEX(baliseCM,MATCH(E71,lettre,0),MATCH($U74,parcours,0)),""),"") -> 1 | F74: 2 | G74: 2 | H74: 2 | I74: 3 | J74: 3 | P74: Note | Q74: =Q69+Q70+Q71+Q72 ->  | R74: /20 | U74: =CONCATENATE(D70,"points") -> 6BLUEpoints
B75: EQUIPE 11 | N75: =(HOUR(M76)*3600+MINUTE(M76)*60+SECOND(M76))-(HOUR($M$2)*3600+MINUTE($M$2)*60+SECOND($M$2)) -> -2097 | T75: Analyse du parcours
D76: =CONCATENATE(D77,"bis") -> 6BLUEbis | E76: 15:34:57 | I76: 15:35:00 | K76: Durée : | M76: =I76-E76 -> 00:00:03 | P76: Vitesse de course | Q76: =IF(AND(N75<0,Q80=8),HLOOKUP(N75,REFERENTIELS!$E$33:$I$34,2,TRUE),IF(AND(N75<=0,Q80<>8),2,HLOOKUP(N75,REFERENTIELS!$I$33:$L$34,2,TRUE))) -> 2 | R76: / 6
D77: =$H$2 -> 6BLUE | E77: =SQRT(POWER((VLOOKUP(E79,DEBUT!$D$5:$J$110,6,FALSE)-VLOOKUP(F79,DEBUT!$D$5:$J$110,6,FALSE)),2)+POWER((VLOOKUP(E79,DEBUT!$D$5:$J$110,7,FALSE)-VLOOKUP(F79,DEBUT!$D$5:$J$110,7,FALSE)),2))/CARTE!$O$9 -> 292.4132321 | F77: =SQRT(POWER((VLOOKUP(F79,DEBUT!$D$5:$J$110,6,FALSE)-VLOOKUP(G79,DEBUT!$D$5:$J$110,6,FALSE)),2)+POWER((VLOOKUP(F79,DEBUT!$D$5:$J$110,7,FALSE)-VLOOKUP(G79,DEBUT!$D$5:$J$110,7,FALSE)),2))/CARTE!$O$9 -> 185.4526003 | G77: =SQRT(POWER((VLOOKUP(G79,DEBUT!$D$5:$J$110,6,FALSE)-VLOOKUP(H79,DEBUT!$D$5:$J$110,6,FALSE)),2)+POWER((VLOOKUP(G79,DEBUT!$D$5:$J$110,7,FALSE)-VLOOKUP(H79,DEBUT!$D$5:$J$110,7,FALSE)),2))/CARTE!$O$9 -> 388.8815813 | H77: =SQRT(POWER((VLOOKUP(H79,DEBUT!$D$5:$J$110,6,FALSE)-VLOOKUP(I79,DEBUT!$D$5:$J$110,6,FALSE)),2)+POWER((VLOOKUP(H79,DEBUT!$D$5:$J$110,7,FALSE)-VLOOKUP(I79,DEBUT!$D$5:$J$110,7,FALSE)),2))/CARTE!$O$9 -> 1321.193177 | I77: =SQRT(POWER((VLOOKUP(I79,DEBUT!$D$5:$J$110,6,FALSE)-VLOOKUP(J79,DEBUT!$D$5:$J$110,6,FALSE)),2)+POWER((VLOOKUP(I79,DEBUT!$D$5:$J$110,7,FALSE)-VLOOKUP(J79,DEBUT!$D$5:$J$110,7,FALSE)),2))/CARTE!$O$9 -> 621.6561772 | J77: =SQRT(POWER((VLOOKUP(J79,DEBUT!$D$5:$J$110,6,FALSE)-VLOOKUP(K79,DEBUT!$D$5:$J$110,6,FALSE)),2)+POWER((VLOOKUP(J79,DEBUT!$D$5:$J$110,7,FALSE)-VLOOKUP(K79,DEBUT!$D$5:$J$110,7,FALSE)),2))/CARTE!$O$9 ->  | K77: =SQRT(POWER((VLOOKUP(K79,DEBUT!$D$5:$J$110,6,FALSE)-VLOOKUP(L79,DEBUT!$D$5:$J$110,6,FALSE)),2)+POWER((VLOOKUP(K79,DEBUT!$D$5:$J$110,7,FALSE)-VLOOKUP(L79,DEBUT!$D$5:$J$110,7,FALSE)),2))/CARTE!$O$9 ->  | L77: =SQRT(POWER((VLOOKUP(L79,DEBUT!$D$5:$J$110,6,FALSE)-VLOOKUP(M79,DEBUT!$D$5:$J$110,6,FALSE)),2)+POWER((VLOOKUP(L79,DEBUT!$D$5:$J$110,7,FALSE)-VLOOKUP(M79,DEBUT!$D$5:$J$110,7,FALSE)),2))/CARTE!$O$9 ->  | M77: =SQRT(POWER((VLOOKUP(M79,DEBUT!$D$5:$J$110,6,FALSE)-VLOOKUP(N79,DEBUT!$D$5:$J$110,6,FALSE)),2)+POWER((VLOOKUP(M79,DEBUT!$D$5:$J$110,7,FALSE)-VLOOKUP(N79,DEBUT!$D$5:$J$110,7,FALSE)),2))/CARTE!$O$9 ->  | N77: =SQRT(POWER((VLOOKUP(N79,DEBUT!$D$5:$J$110,6,FALSE)-VLOOKUP(O79,DEBUT!$D$5:$J$110,6,FALSE)),2)+POWER((VLOOKUP(N79,DEBUT!$D$5:$J$110,7,FALSE)-VLOOKUP(O79,DEBUT!$D$5:$J$110,7,FALSE)),2))/CARTE!$O$9 ->  | P77: Analyse | R77: / 2
D78: Balises prévues | E78: =IF(ISTEXT($D77),HLOOKUP($D77,DEBUT!$O$3:$XX$100,3,FALSE),"") -> A | F78: =IF(ISTEXT($D77),HLOOKUP($D77,DEBUT!$O$3:$XX$100,4,FALSE),"") -> B | G78: =IF(ISTEXT($D77),HLOOKUP($D77,DEBUT!$O$3:$XX$100,5,FALSE),"") -> C | H78: =IF(ISTEXT($D77),HLOOKUP($D77,DEBUT!$O$3:$XX$100,6,FALSE),"") -> D | I78: =IF(ISTEXT($D77),HLOOKUP($D77,DEBUT!$O$3:$XX$100,7,FALSE),"") -> E | J78: =IF(ISTEXT($D77),HLOOKUP($D77,DEBUT!$O$3:$XX$100,8,FALSE),"") -> F | K78: =IF(ISTEXT($D77),HLOOKUP($D77,DEBUT!$O$3:$XX$100,9,FALSE),"") -> 0 | L78: =IF(ISTEXT($D77),HLOOKUP($D77,DEBUT!$O$3:$XX$100,10,FALSE),"") -> 0 | M78: =IF(ISTEXT($D77),HLOOKUP($D77,DEBUT!$O$3:$XX$100,11,FALSE),"") -> 0 | N78: =IF(ISTEXT($D77),HLOOKUP($D77,DEBUT!$O$3:$XX$100,12,FALSE),"") -> 0 | O78: 2 | P78: Carton contrôle | Q78: 1 | R78: / 2
D79: Validé | E79: =IF($D79=DEBUT!$L$5,E80,"") -> 7 | F79: =IF($D79=DEBUT!$L$5,F80,"") -> 10 | G79: =IF($D79=DEBUT!$L$5,G80,"") -> 11 | H79: =IF($D79=DEBUT!$L$5,H80,"") -> 1 | I79: =IF($D79=DEBUT!$L$5,I80,"") -> 76 | J79: =IF($D79=DEBUT!$L$5,J80,"") -> 46 | K79: =IF($D79=DEBUT!$L$5,K80,"") ->  | L79: =IF($D79=DEBUT!$L$5,L80,"") ->  | M79: =IF($D79=DEBUT!$L$5,M80,"") ->  | N79: =IF($D79=DEBUT!$L$5,N80,"") ->  | P79: Conduite itinéraire | Q79: =IF($Q$4=DEBUT!$K$6,HLOOKUP(Q80,REFERENTIELS!$E$7:$M$8,2,TRUE)+COUNTIF(E81:N81,2)*0.5,HLOOKUP(Q80,REFERENTIELS!$E$7:$M$8,2,TRUE)+COUNTIF(E81:N81,3)*0.5) -> 5.5 | R79: / 10
D80: Balises CM | E80: =IFERROR(INDEX(baliseCM,MATCH(E78,lettre,0),MATCH($D76,parcours,0)),"") -> 7 | F80: =IFERROR(INDEX(baliseCM,MATCH(F78,lettre,0),MATCH($D76,parcours,0)),"") -> 10 | G80: 11 | H80: 1 | I80: 76 | J80: 46 | P80: Nombre balises justes | Q80: =COUNTIF(E81:N81,">0") -> 6 | R80: =IF(Q80>1,"trouvées","trouvée") -> trouvées
D81: Points | E81: =IF(E80=E79,IFERROR(INDEX(baliseCM,MATCH(E78,lettre,0),MATCH($U81,parcours,0)),""),"") -> 1 | F81: 2 | G81: 2 | H81: 2 | I81: 3 | J81: 3 | P81: Note | Q81: =Q76+Q77+Q78+Q79 -> 8.5 | R81: /20 | U81: =CONCATENATE(D77,"points") -> 6BLUEpoints
B82: EQUIPE 12 | N82: =(HOUR(M83)*3600+MINUTE(M83)*60+SECOND(M83))-(HOUR($M$2)*3600+MINUTE($M$2)*60+SECOND($M$2)) ->  | T82: Analyse du parcours
D83: =CONCATENATE(D84,"bis") -> 6BLUEbis | E83: 22:20:02 | I83: 22:15:22 | K83: Durée : | M83: =I83-E83 -> -0.003240740741 | P83: Vitesse de course | Q83: =IF(AND(N82<0,Q87=8),HLOOKUP(N82,REFERENTIELS!$E$33:$I$34,2,TRUE),IF(AND(N82<=0,Q87<>8),2,HLOOKUP(N82,REFERENTIELS!$I$33:$L$34,2,TRUE))) ->  | R83: / 6
D84: =$H$2 -> 6BLUE | E84: =SQRT(POWER((VLOOKUP(E86,DEBUT!$D$5:$J$110,6,FALSE)-VLOOKUP(F86,DEBUT!$D$5:$J$110,6,FALSE)),2)+POWER((VLOOKUP(E86,DEBUT!$D$5:$J$110,7,FALSE)-VLOOKUP(F86,DEBUT!$D$5:$J$110,7,FALSE)),2))/CARTE!$O$9 -> 292.4132321 | F84: =SQRT(POWER((VLOOKUP(F86,DEBUT!$D$5:$J$110,6,FALSE)-VLOOKUP(G86,DEBUT!$D$5:$J$110,6,FALSE)),2)+POWER((VLOOKUP(F86,DEBUT!$D$5:$J$110,7,FALSE)-VLOOKUP(G86,DEBUT!$D$5:$J$110,7,FALSE)),2))/CARTE!$O$9 -> 185.4526003 | G84: =SQRT(POWER((VLOOKUP(G86,DEBUT!$D$5:$J$110,6,FALSE)-VLOOKUP(H86,DEBUT!$D$5:$J$110,6,FALSE)),2)+POWER((VLOOKUP(G86,DEBUT!$D$5:$J$110,7,FALSE)-VLOOKUP(H86,DEBUT!$D$5:$J$110,7,FALSE)),2))/CARTE!$O$9 -> 388.8815813 | H84: =SQRT(POWER((VLOOKUP(H86,DEBUT!$D$5:$J$110,6,FALSE)-VLOOKUP(I86,DEBUT!$D$5:$J$110,6,FALSE)),2)+POWER((VLOOKUP(H86,DEBUT!$D$5:$J$110,7,FALSE)-VLOOKUP(I86,DEBUT!$D$5:$J$110,7,FALSE)),2))/CARTE!$O$9 -> 1321.193177 | I84: =SQRT(POWER((VLOOKUP(I86,DEBUT!$D$5:$J$110,6,FALSE)-VLOOKUP(J86,DEBUT!$D$5:$J$110,6,FALSE)),2)+POWER((VLOOKUP(I86,DEBUT!$D$5:$J$110,7,FALSE)-VLOOKUP(J86,DEBUT!$D$5:$J$110,7,FALSE)),2))/CARTE!$O$9 -> 621.6561772 | J84: =SQRT(POWER((VLOOKUP(J86,DEBUT!$D$5:$J$110,6,FALSE)-VLOOKUP(K86,DEBUT!$D$5:$J$110,6,FALSE)),2)+POWER((VLOOKUP(J86,DEBUT!$D$5:$J$110,7,FALSE)-VLOOKUP(K86,DEBUT!$D$5:$J$110,7,FALSE)),2))/CARTE!$O$9 ->  | K84: =SQRT(POWER((VLOOKUP(K86,DEBUT!$D$5:$J$110,6,FALSE)-VLOOKUP(L86,DEBUT!$D$5:$J$110,6,FALSE)),2)+POWER((VLOOKUP(K86,DEBUT!$D$5:$J$110,7,FALSE)-VLOOKUP(L86,DEBUT!$D$5:$J$110,7,FALSE)),2))/CARTE!$O$9 ->  | L84: =SQRT(POWER((VLOOKUP(L86,DEBUT!$D$5:$J$110,6,FALSE)-VLOOKUP(M86,DEBUT!$D$5:$J$110,6,FALSE)),2)+POWER((VLOOKUP(L86,DEBUT!$D$5:$J$110,7,FALSE)-VLOOKUP(M86,DEBUT!$D$5:$J$110,7,FALSE)),2))/CARTE!$O$9 ->  | M84: =SQRT(POWER((VLOOKUP(M86,DEBUT!$D$5:$J$110,6,FALSE)-VLOOKUP(N86,DEBUT!$D$5:$J$110,6,FALSE)),2)+POWER((VLOOKUP(M86,DEBUT!$D$5:$J$110,7,FALSE)-VLOOKUP(N86,DEBUT!$D$5:$J$110,7,FALSE)),2))/CARTE!$O$9 ->  | N84: =SQRT(POWER((VLOOKUP(N86,DEBUT!$D$5:$J$110,6,FALSE)-VLOOKUP(O86,DEBUT!$D$5:$J$110,6,FALSE)),2)+POWER((VLOOKUP(N86,DEBUT!$D$5:$J$110,7,FALSE)-VLOOKUP(O86,DEBUT!$D$5:$J$110,7,FALSE)),2))/CARTE!$O$9 ->  | P84: Analyse | R84: / 2
D85: Balises prévues | E85: =IF(ISTEXT($D84),HLOOKUP($D84,DEBUT!$O$3:$XX$100,3,FALSE),"") -> A | F85: =IF(ISTEXT($D84),HLOOKUP($D84,DEBUT!$O$3:$XX$100,4,FALSE),"") -> B | G85: =IF(ISTEXT($D84),HLOOKUP($D84,DEBUT!$O$3:$XX$100,5,FALSE),"") -> C | H85: =IF(ISTEXT($D84),HLOOKUP($D84,DEBUT!$O$3:$XX$100,6,FALSE),"") -> D | I85: =IF(ISTEXT($D84),HLOOKUP($D84,DEBUT!$O$3:$XX$100,7,FALSE),"") -> E | J85: =IF(ISTEXT($D84),HLOOKUP($D84,DEBUT!$O$3:$XX$100,8,FALSE),"") -> F | K85: =IF(ISTEXT($D84),HLOOKUP($D84,DEBUT!$O$3:$XX$100,9,FALSE),"") -> 0 | L85: =IF(ISTEXT($D84),HLOOKUP($D84,DEBUT!$O$3:$XX$100,10,FALSE),"") -> 0 | M85: =IF(ISTEXT($D84),HLOOKUP($D84,DEBUT!$O$3:$XX$100,11,FALSE),"") -> 0 | N85: =IF(ISTEXT($D84),HLOOKUP($D84,DEBUT!$O$3:$XX$100,12,FALSE),"") -> 0 | O85: 2 | P85: Carton contrôle | Q85: 1 | R85: / 2
D86: Validé | E86: =IF($D86=DEBUT!$L$5,E87,"") -> 7 | F86: =IF($D86=DEBUT!$L$5,F87,"") -> 10 | G86: =IF($D86=DEBUT!$L$5,G87,"") -> 11 | H86: =IF($D86=DEBUT!$L$5,H87,"") -> 1 | I86: =IF($D86=DEBUT!$L$5,I87,"") -> 76 | J86: =IF($D86=DEBUT!$L$5,J87,"") -> 46 | K86: =IF($D86=DEBUT!$L$5,K87,"") ->  | L86: =IF($D86=DEBUT!$L$5,L87,"") ->  | M86: =IF($D86=DEBUT!$L$5,M87,"") ->  | N86: =IF($D86=DEBUT!$L$5,N87,"") ->  | P86: Conduite itinéraire | Q86: =IF($Q$4=DEBUT!$K$6,HLOOKUP(Q87,REFERENTIELS!$E$7:$M$8,2,TRUE)+COUNTIF(E88:N88,2)*0.5,HLOOKUP(Q87,REFERENTIELS!$E$7:$M$8,2,TRUE)+COUNTIF(E88:N88,3)*0.5) -> 5.5 | R86: / 10
D87: Balises CM | E87: =IFERROR(INDEX(baliseCM,MATCH(E85,lettre,0),MATCH($D83,parcours,0)),"") -> 7 | F87: =IFERROR(INDEX(baliseCM,MATCH(F85,lettre,0),MATCH($D83,parcours,0)),"") -> 10 | G87: 11 | H87: 1 | I87: 76 | J87: 46 | P87: Nombre balises justes | Q87: =COUNTIF(E88:N88,">0") -> 6 | R87: =IF(Q87>1,"trouvées","trouvée") -> trouvées
D88: Points | E88: =IF(E87=E86,IFERROR(INDEX(baliseCM,MATCH(E85,lettre,0),MATCH($U88,parcours,0)),""),"") -> 1 | F88: 2 | G88: 2 | H88: 2 | I88: 3 | J88: 3 | P88: Note | Q88: =Q83+Q84+Q85+Q86 ->  | R88: /20 | U88: =CONCATENATE(D84,"points") -> 6BLUEpoints

Sheet CCF (2)
H1: =CONCATENATE(H2,"bis") -> 14ORANGEbis | M1: Temps limite
B2: STAGE | E2: 22:22:06 | H2: 14ORANGE | M2: 30.02430556 | N2: min
E3: =IF(ISTEXT($H2),HLOOKUP($H2,DEBUT!$O$3:$XX$100,3,FALSE),"") -> A | F3: =IF(ISTEXT($H2),HLOOKUP($H2,DEBUT!$O$3:$XX$100,4,FALSE),"") -> B | G3: =IF(ISTEXT($H2),HLOOKUP($H2,DEBUT!$O$3:$XX$100,5,FALSE),"") -> C | H3: =IF(ISTEXT($H2),HLOOKUP($H2,DEBUT!$O$3:$XX$100,6,FALSE),"") -> D | I3: =IF(ISTEXT($H2),HLOOKUP($H2,DEBUT!$O$3:$XX$100,7,FALSE),"") -> E | J3: =IF(ISTEXT($H2),HLOOKUP($H2,DEBUT!$O$3:$XX$100,8,FALSE),"") -> F | K3: =IF(ISTEXT($H2),HLOOKUP($H2,DEBUT!$O$3:$XX$100,9,FALSE),"") -> G | L3: =IF(ISTEXT($H2),HLOOKUP($H2,DEBUT!$O$3:$XX$100,10,FALSE),"") -> 0 | M3: =IF(ISTEXT($H2),HLOOKUP($H2,DEBUT!$O$3:$XX$100,11,FALSE),"") -> 0 | N3: =IF(ISTEXT($H2),HLOOKUP($H2,DEBUT!$O$3:$XX$100,12,FALSE),"") -> J
E4: =IFERROR(INDEX(baliseCM,MATCH(E3,lettre,0),MATCH($H$1,parcours,0)),"") -> 7 | F4: 10 | G4: 11 | H4: 1 | I4: 76 | J4: 46 | K4: 12 | N4: 16 | P4: RATTRAPAGE | Q4: N3
B5: EQUIPE 1 | N5: =(HOUR(M6)*3600+MINUTE(M6)*60+SECOND(M6))-(HOUR($M$2)*3600+MINUTE($M$2)*60+SECOND($M$2)) -> -2097 | T5: Analyse du parcours | AL5: 1 | AM5: =OFFSET(INDEX(eleves,MATCH(AL5,chiffre,0),MATCH($B$2,classes,0)),0,1) -> POL
B6: Pascal | D6: =CONCATENATE(D7,"bis") -> 14ORANGEbis | E6: 22:22:06 | I6: 22:22:09 | K6: Durée : | M6: =I6-E6 -> 00:00:03 | P6: Vitesse de course | Q6: =IF(AND(N5<0,Q10=8),HLOOKUP(N5,REFERENTIELS!$E$33:$I$34,2,TRUE),IF(AND(N5<=0,Q10<>8),2,HLOOKUP(N5,REFERENTIELS!$I$33:$L$34,2,TRUE))) ->  | R6: / 6 | AL6: 2 | AM6: CARINE
B7: Christian | D7: =$H$2 -> 14ORANGE | E7: =SQRT(POWER((VLOOKUP(E9,DEBUT!$D$5:$J$110,6,FALSE)-VLOOKUP(F9,DEBUT!$D$5:$J$110,6,FALSE)),2)+POWER((VLOOKUP(E9,DEBUT!$D$5:$J$110,7,FALSE)-VLOOKUP(F9,DEBUT!$D$5:$J$110,7,FALSE)),2))/CARTE!$O$9 -> 292.4132321 | F7: =SQRT(POWER((VLOOKUP(F9,DEBUT!$D$5:$J$110,6,FALSE)-VLOOKUP(G9,DEBUT!$D$5:$J$110,6,FALSE)),2)+POWER((VLOOKUP(F9,DEBUT!$D$5:$J$110,7,FALSE)-VLOOKUP(G9,DEBUT!$D$5:$J$110,7,FALSE)),2))/CARTE!$O$9 -> 185.4526003 | G7: =SQRT(POWER((VLOOKUP(G9,DEBUT!$D$5:$J$110,6,FALSE)-VLOOKUP(H9,DEBUT!$D$5:$J$110,6,FALSE)),2)+POWER((VLOOKUP(G9,DEBUT!$D$5:$J$110,7,FALSE)-VLOOKUP(H9,DEBUT!$D$5:$J$110,7,FALSE)),2))/CARTE!$O$9 -> 388.8815813 | H7: =SQRT(POWER((VLOOKUP(H9,DEBUT!$D$5:$J$110,6,FALSE)-VLOOKUP(I9,DEBUT!$D$5:$J$110,6,FALSE)),2)+POWER((VLOOKUP(H9,DEBUT!$D$5:$J$110,7,FALSE)-VLOOKUP(I9,DEBUT!$D$5:$J$110,7,FALSE)),2))/CARTE!$O$9 -> 1321.193177 | I7: =SQRT(POWER((VLOOKUP(I9,DEBUT!$D$5:$J$110,6,FALSE)-VLOOKUP(J9,DEBUT!$D$5:$J$110,6,FALSE)),2)+POWER((VLOOKUP(I9,DEBUT!$D$5:$J$110,7,FALSE)-VLOOKUP(J9,DEBUT!$D$5:$J$110,7,FALSE)),2))/CARTE!$O$9 -> 621.6561772 | J7: =SQRT(POWER((VLOOKUP(J9,DEBUT!$D$5:$J$110,6,FALSE)-VLOOKUP(K9,DEBUT!$D$5:$J$110,6,FALSE)),2)+POWER((VLOOKUP(J9,DEBUT!$D$5:$J$110,7,FALSE)-VLOOKUP(K9,DEBUT!$D$5:$J$110,7,FALSE)),2))/CARTE!$O$9 -> 593.1870339 | K7: =SQRT(POWER((VLOOKUP(K9,DEBUT!$D$5:$J$110,6,FALSE)-VLOOKUP(L9,DEBUT!$D$5:$J$110,6,FALSE)),2)+POWER((VLOOKUP(K9,DEBUT!$D$5:$J$110,7,FALSE)-VLOOKUP(L9,DEBUT!$D$5:$J$110,7,FALSE)),2))/CARTE!$O$9 ->  | L7: =SQRT(POWER((VLOOKUP(L9,DEBUT!$D$5:$J$110,6,FALSE)-VLOOKUP(M9,DEBUT!$D$5:$J$110,6,FALSE)),2)+POWER((VLOOKUP(L9,DEBUT!$D$5:$J$110,7,FALSE)-VLOOKUP(M9,DEBUT!$D$5:$J$110,7,FALSE)),2))/CARTE!$O$9 ->  | M7: =SQRT(POWER((VLOOKUP(M9,DEBUT!$D$5:$J$110,6,FALSE)-VLOOKUP(N9,DEBUT!$D$5:$J$110,6,FALSE)),2)+POWER((VLOOKUP(M9,DEBUT!$D$5:$J$110,7,FALSE)-VLOOKUP(N9,DEBUT!$D$5:$J$110,7,FALSE)),2))/CARTE!$O$9 ->  | N7: =SQRT(POWER((VLOOKUP(N9,DEBUT!$D$5:$J$110,6,FALSE)-VLOOKUP(O9,DEBUT!$D$5:$J$110,6,FALSE)),2)+POWER((VLOOKUP(N9,DEBUT!$D$5:$J$110,7,FALSE)-VLOOKUP(O9,DEBUT!$D$5:$J$110,7,FALSE)),2))/CARTE!$O$9 -> 1002.187204 | P7: Analyse | R7: / 2 | AL7: 3 | AM7: BASTIEN
D8: Balises prévues | E8: =IF(ISTEXT($D7),HLOOKUP($D7,DEBUT!$O$3:$XX$100,3,FALSE),"") -> A | F8: =IF(ISTEXT($D7),HLOOKUP($D7,DEBUT!$O$3:$XX$100,4,FALSE),"") -> B | G8: =IF(ISTEXT($D7),HLOOKUP($D7,DEBUT!$O$3:$XX$100,5,FALSE),"") -> C | H8: =IF(ISTEXT($D7),HLOOKUP($D7,DEBUT!$O$3:$XX$100,6,FALSE),"") -> D | I8: =IF(ISTEXT($D7),HLOOKUP($D7,DEBUT!$O$3:$XX$100,7,FALSE),"") -> E | J8: =IF(ISTEXT($D7),HLOOKUP($D7,DEBUT!$O$3:$XX$100,8,FALSE),"") -> F | K8: =IF(ISTEXT($D7),HLOOKUP($D7,DEBUT!$O$3:$XX$100,9,FALSE),"") -> G | L8: =IF(ISTEXT($D7),HLOOKUP($D7,DEBUT!$O$3:$XX$100,10,FALSE),"") -> 0 | M8: =IF(ISTEXT($D7),HLOOKUP($D7,DEBUT!$O$3:$XX$100,11,FALSE),"") -> 0 | N8: =IF(ISTEXT($D7),HLOOKUP($D7,DEBUT!$O$3:$XX$100,12,FALSE),"") -> J | P8: Carton contrôle | Q8: 1 | R8: / 2 | AL8: 4 | AM8: CORALINE
D9: Validé | E9: =IF($D9=DEBUT!$L$5,E10,"") -> 7 | F9: =IF($D9=DEBUT!$L$5,F10,"") -> 10 | G9: =IF($D9=DEBUT!$L$5,G10,"") -> 11 | H9: =IF($D9=DEBUT!$L$5,H10,"") -> 1 | I9: =IF($D9=DEBUT!$L$5,I10,"") -> 76 | J9: =IF($D9=DEBUT!$L$5,J10,"") -> 46 | K9: =IF($D9=DEBUT!$L$5,K10,"") -> 12 | L9: =IF($D9=DEBUT!$L$5,L10,"") ->  | M9: =IF($D9=DEBUT!$L$5,M10,"") ->  | N9: =IF($D9=DEBUT!$L$5,N10,"") -> 16 | P9: Conduite itinéraire | Q9: =IF($Q$4=DEBUT!$K$6,HLOOKUP(Q10,REFERENTIELS!$E$7:$M$8,2,TRUE)+COUNTIF(E11:N11,2)*0.5,HLOOKUP(Q10,REFERENTIELS!$E$7:$M$8,2,TRUE)+COUNTIF(E11:N11,3)*0.5) -> 7.5 | R9: / 10 | AL9: 5 | AM9: GREGORY
D10: Balises CM | E10: =IFERROR(INDEX(baliseCM,MATCH(E8,lettre,0),MATCH($D6,parcours,0)),"") -> 7 | F10: =IFERROR(INDEX(baliseCM,MATCH(F8,lettre,0),MATCH($D6,parcours,0)),"") -> 10 | G10: 11 | H10: 1 | I10: 76 | J10: 46 | K10: 12 | N10: 16 | P10: Nombre balises justes | Q10: =COUNTIF(E11:N11,">0") -> 8 | R10: =IF(Q10>1,"trouvées","trouvée") -> trouvées | AL10: 6 | AM10: THOMAS
D11: Points | E11: =IF(E10=E9,IFERROR(INDEX(baliseCM,MATCH(E8,lettre,0),MATCH($U11,parcours,0)),""),"") -> 1 | F11: 2 | G11: 2 | H11: 2 | I11: 3 | J11: 3 | K11: 3 | N11: 3 | P11: Note | Q11: =Q6+Q7+Q8+Q9 ->  | R11: /20 | U11: =CONCATENATE(D7,"points") -> 14ORANGEpoints | AL11: 7 | AM11: ALAIN
B12: EQUIPE 2 | N12: =(HOUR(M13)*3600+MINUTE(M13)*60+SECOND(M13))-(HOUR($M$2)*3600+MINUTE($M$2)*60+SECOND($M$2)) -> -2078 | T12: Analyse du parcours | AL12: 8 | AM12: QUENTIN
D13: =CONCATENATE(D14,"bis") -> 14ORANGEbis | E13: 22:22:06 | I13: 22:22:28 | K13: Durée : | M13: =I13-E13 -> 00:00:22 | P13: Vitesse de course | Q13: =IF(AND(N12<0,Q17=8),HLOOKUP(N12,REFERENTIELS!$E$33:$I$34,2,TRUE),IF(AND(N12<=0,Q17<>8),2,HLOOKUP(N12,REFERENTIELS!$I$33:$L$34,2,TRUE))) ->  | R13: / 6 | AL13: 9 | AM13: BAPTISTE
D14: =$H$2 -> 14ORANGE | E14: =SQRT(POWER((VLOOKUP(E16,DEBUT!$D$5:$J$110,6,FALSE)-VLOOKUP(F16,DEBUT!$D$5:$J$110,6,FALSE)),2)+POWER((VLOOKUP(E16,DEBUT!$D$5:$J$110,7,FALSE)-VLOOKUP(F16,DEBUT!$D$5:$J$110,7,FALSE)),2))/CARTE!$O$9 -> 292.4132321 | F14: =SQRT(POWER((VLOOKUP(F16,DEBUT!$D$5:$J$110,6,FALSE)-VLOOKUP(G16,DEBUT!$D$5:$J$110,6,FALSE)),2)+POWER((VLOOKUP(F16,DEBUT!$D$5:$J$110,7,FALSE)-VLOOKUP(G16,DEBUT!$D$5:$J$110,7,FALSE)),2))/CARTE!$O$9 -> 185.4526003 | G14: =SQRT(POWER((VLOOKUP(G16,DEBUT!$D$5:$J$110,6,FALSE)-VLOOKUP(H16,DEBUT!$D$5:$J$110,6,FALSE)),2)+POWER((VLOOKUP(G16,DEBUT!$D$5:$J$110,7,FALSE)-VLOOKUP(H16,DEBUT!$D$5:$J$110,7,FALSE)),2))/CARTE!$O$9 -> 388.8815813 | H14: =SQRT(POWER((VLOOKUP(H16,DEBUT!$D$5:$J$110,6,FALSE)-VLOOKUP(I16,DEBUT!$D$5:$J$110,6,FALSE)),2)+POWER((VLOOKUP(H16,DEBUT!$D$5:$J$110,7,FALSE)-VLOOKUP(I16,DEBUT!$D$5:$J$110,7,FALSE)),2))/CARTE!$O$9 -> 1321.193177 | I14: =SQRT(POWER((VLOOKUP(I16,DEBUT!$D$5:$J$110,6,FALSE)-VLOOKUP(J16,DEBUT!$D$5:$J$110,6,FALSE)),2)+POWER((VLOOKUP(I16,DEBUT!$D$5:$J$110,7,FALSE)-VLOOKUP(J16,DEBUT!$D$5:$J$110,7,FALSE)),2))/CARTE!$O$9 -> 621.6561772 | J14: =SQRT(POWER((VLOOKUP(J16,DEBUT!$D$5:$J$110,6,FALSE)-VLOOKUP(K16,DEBUT!$D$5:$J$110,6,FALSE)),2)+POWER((VLOOKUP(J16,DEBUT!$D$5:$J$110,7,FALSE)-VLOOKUP(K16,DEBUT!$D$5:$J$110,7,FALSE)),2))/CARTE!$O$9 -> 593.1870339 | K14: =SQRT(POWER((VLOOKUP(K16,DEBUT!$D$5:$J$110,6,FALSE)-VLOOKUP(L16,DEBUT!$D$5:$J$110,6,FALSE)),2)+POWER((VLOOKUP(K16,DEBUT!$D$5:$J$110,7,FALSE)-VLOOKUP(L16,DEBUT!$D$5:$J$110,7,FALSE)),2))/CARTE!$O$9 ->  | L14: =SQRT(POWER((VLOOKUP(L16,DEBUT!$D$5:$J$110,6,FALSE)-VLOOKUP(M16,DEBUT!$D$5:$J$110,6,FALSE)),2)+POWER((VLOOKUP(L16,DEBUT!$D$5:$J$110,7,FALSE)-VLOOKUP(M16,DEBUT!$D$5:$J$110,7,FALSE)),2))/CARTE!$O$9 ->  | M14: =SQRT(POWER((VLOOKUP(M16,DEBUT!$D$5:$J$110,6,FALSE)-VLOOKUP(N16,DEBUT!$D$5:$J$110,6,FALSE)),2)+POWER((VLOOKUP(M16,DEBUT!$D$5:$J$110,7,FALSE)-VLOOKUP(N16,DEBUT!$D$5:$J$110,7,FALSE)),2))/CARTE!$O$9 ->  | N14: =SQRT(POWER((VLOOKUP(N16,DEBUT!$D$5:$J$110,6,FALSE)-VLOOKUP(O16,DEBUT!$D$5:$J$110,6,FALSE)),2)+POWER((VLOOKUP(N16,DEBUT!$D$5:$J$110,7,FALSE)-VLOOKUP(O16,DEBUT!$D$5:$J$110,7,FALSE)),2))/CARTE!$O$9 -> 1002.187204 | P14: Analyse | R14: / 2 | AL14: 10 | AM14: FRANCK
D15: Balises prévues | E15: =IF(ISTEXT($D14),HLOOKUP($D14,DEBUT!$O$3:$XX$100,3,FALSE),"") -> A | F15: =IF(ISTEXT($D14),HLOOKUP($D14,DEBUT!$O$3:$XX$100,4,FALSE),"") -> B | G15: =IF(ISTEXT($D14),HLOOKUP($D14,DEBUT!$O$3:$XX$100,5,FALSE),"") -> C | H15: =IF(ISTEXT($D14),HLOOKUP($D14,DEBUT!$O$3:$XX$100,6,FALSE),"") -> D | I15: =IF(ISTEXT($D14),HLOOKUP($D14,DEBUT!$O$3:$XX$100,7,FALSE),"") -> E | J15: =IF(ISTEXT($D14),HLOOKUP($D14,DEBUT!$O$3:$XX$100,8,FALSE),"") -> F | K15: =IF(ISTEXT($D14),HLOOKUP($D14,DEBUT!$O$3:$XX$100,9,FALSE),"") -> G | L15: =IF(ISTEXT($D14),HLOOKUP($D14,DEBUT!$O$3:$XX$100,10,FALSE),"") -> 0 | M15: =IF(ISTEXT($D14),HLOOKUP($D14,DEBUT!$O$3:$XX$100,11,FALSE),"") -> 0 | N15: =IF(ISTEXT($D14),HLOOKUP($D14,DEBUT!$O$3:$XX$100,12,FALSE),"") -> J | O15: 2 | P15: Carton contrôle | Q15: 1 | R15: / 2 | AL15: 11 | AM15: VALENTIN
D16: Validé | E16: =IF($D16=DEBUT!$L$5,E17,"") -> 7 | F16: =IF($D16=DEBUT!$L$5,F17,"") -> 10 | G16: =IF($D16=DEBUT!$L$5,G17,"") -> 11 | H16: =IF($D16=DEBUT!$L$5,H17,"") -> 1 | I16: =IF($D16=DEBUT!$L$5,I17,"") -> 76 | J16: =IF($D16=DEBUT!$L$5,J17,"") -> 46 | K16: =IF($D16=DEBUT!$L$5,K17,"") -> 12 | L16: =IF($D16=DEBUT!$L$5,L17,"") ->  | M16: =IF($D16=DEBUT!$L$5,M17,"") ->  | N16: =IF($D16=DEBUT!$L$5,N17,"") -> 16 | P16: Conduite itinéraire | Q16: =IF(Q11=DEBUT!$K$6,HLOOKUP(Q17,REFERENTIELS!$E$7:$M$8,2,TRUE)+COUNTIF(E18:N18,2)*0.5,HLOOKUP(Q17,REFERENTIELS!$E$7:$M$8,2,TRUE)+COUNTIF(E18:N18,3)*0.5) ->  | R16: / 10 | AL16: 12 | AM16: BENJAMIN
D17: Balises CM | E17: =IFERROR(INDEX(baliseCM,MATCH(E15,lettre,0),MATCH($D13,parcours,0)),"") -> 7 | F17: =IFERROR(INDEX(baliseCM,MATCH(F15,lettre,0),MATCH($D13,parcours,0)),"") -> 10 | G17: 11 | H17: 1 | I17: 76 | J17: 46 | K17: 12 | N17: 16 | P17: Nombre balises justes | Q17: =COUNTIF(E18:N18,">0") -> 8 | R17: =IF(Q17>1,"trouvées","trouvée") -> trouvées | AL17: 13 | AM17: ANDY
D18: Points | E18: =IF(E17=E16,IFERROR(INDEX(baliseCM,MATCH(E15,lettre,0),MATCH($U18,parcours,0)),""),"") -> 1 | F18: 2 | G18: 2 | H18: 2 | I18: 3 | J18: 3 | K18: 3 | N18: 3 | P18: Note | Q18: =Q13+Q14+Q15+Q16 ->  | R18: /20 | U18: =CONCATENATE(D14,"points") -> 14ORANGEpoints | AL18: 14 | AM18: OLIVIER
B19: EQUIPE 3 | N19: =(HOUR(M20)*3600+MINUTE(M20)*60+SECOND(M20))-(HOUR($M$2)*3600+MINUTE($M$2)*60+SECOND($M$2)) -> -2075 | T19: Analyse du parcours | AL19: 15 | AM19: CHRISTIAN
D20: =CONCATENATE(D21,"bis") -> 14ORANGEbis | E20: 22:22:07 | I20: 22:22:32 | K20: Durée : | M20: =I20-E20 -> 00:00:25 | P20: Vitesse de course | Q20: =IF(AND(N19<0,Q24=8),HLOOKUP(N19,REFERENTIELS!$E$33:$I$34,2,TRUE),IF(AND(N19<=0,Q24<>8),2,HLOOKUP(N19,REFERENTIELS!$I$33:$L$34,2,TRUE))) ->  | R20: / 6 | AL20: 16 | AM20: CELINE
D21: =$H$2 -> 14ORANGE | E21: =SQRT(POWER((VLOOKUP(E23,DEBUT!$D$5:$J$110,6,FALSE)-VLOOKUP(F23,DEBUT!$D$5:$J$110,6,FALSE)),2)+POWER((VLOOKUP(E23,DEBUT!$D$5:$J$110,7,FALSE)-VLOOKUP(F23,DEBUT!$D$5:$J$110,7,FALSE)),2))/CARTE!$O$9 -> 292.4132321 | F21: =SQRT(POWER((VLOOKUP(F23,DEBUT!$D$5:$J$110,6,FALSE)-VLOOKUP(G23,DEBUT!$D$5:$J$110,6,FALSE)),2)+POWER((VLOOKUP(F23,DEBUT!$D$5:$J$110,7,FALSE)-VLOOKUP(G23,DEBUT!$D$5:$J$110,7,FALSE)),2))/CARTE!$O$9 -> 185.4526003 | G21: =SQRT(POWER((VLOOKUP(G23,DEBUT!$D$5:$J$110,6,FALSE)-VLOOKUP(H23,DEBUT!$D$5:$J$110,6,FALSE)),2)+POWER((VLOOKUP(G23,DEBUT!$D$5:$J$110,7,FALSE)-VLOOKUP(H23,DEBUT!$D$5:$J$110,7,FALSE)),2))/CARTE!$O$9 -> 388.8815813 | H21: =SQRT(POWER((VLOOKUP(H23,DEBUT!$D$5:$J$110,6,FALSE)-VLOOKUP(I23,DEBUT!$D$5:$J$110,6,FALSE)),2)+POWER((VLOOKUP(H23,DEBUT!$D$5:$J$110,7,FALSE)-VLOOKUP(I23,DEBUT!$D$5:$J$110,7,FALSE)),2))/CARTE!$O$9 -> 1321.193177 | I21: =SQRT(POWER((VLOOKUP(I23,DEBUT!$D$5:$J$110,6,FALSE)-VLOOKUP(J23,DEBUT!$D$5:$J$110,6,FALSE)),2)+POWER((VLOOKUP(I23,DEBUT!$D$5:$J$110,7,FALSE)-VLOOKUP(J23,DEBUT!$D$5:$J$110,7,FALSE)),2))/CARTE!$O$9 -> 621.6561772 | J21: =SQRT(POWER((VLOOKUP(J23,DEBUT!$D$5:$J$110,6,FALSE)-VLOOKUP(K23,DEBUT!$D$5:$J$110,6,FALSE)),2)+POWER((VLOOKUP(J23,DEBUT!$D$5:$J$110,7,FALSE)-VLOOKUP(K23,DEBUT!$D$5:$J$110,7,FALSE)),2))/CARTE!$O$9 -> 593.1870339 | K21: =SQRT(POWER((VLOOKUP(K23,DEBUT!$D$5:$J$110,6,FALSE)-VLOOKUP(L23,DEBUT!$D$5:$J$110,6,FALSE)),2)+POWER((VLOOKUP(K23,DEBUT!$D$5:$J$110,7,FALSE)-VLOOKUP(L23,DEBUT!$D$5:$J$110,7,FALSE)),2))/CARTE!$O$9 ->  | L21: =SQRT(POWER((VLOOKUP(L23,DEBUT!$D$5:$J$110,6,FALSE)-VLOOKUP(M23,DEBUT!$D$5:$J$110,6,FALSE)),2)+POWER((VLOOKUP(L23,DEBUT!$D$5:$J$110,7,FALSE)-VLOOKUP(M23,DEBUT!$D$5:$J$110,7,FALSE)),2))/CARTE!$O$9 ->  | M21: =SQRT(POWER((VLOOKUP(M23,DEBUT!$D$5:$J$110,6,FALSE)-VLOOKUP(N23,DEBUT!$D$5:$J$110,6,FALSE)),2)+POWER((VLOOKUP(M23,DEBUT!$D$5:$J$110,7,FALSE)-VLOOKUP(N23,DEBUT!$D$5:$J$110,7,FALSE)),2))/CARTE!$O$9 ->  | N21: =SQRT(POWER((VLOOKUP(N23,DEBUT!$D$5:$J$110,6,FALSE)-VLOOKUP(O23,DEBUT!$D$5:$J$110,6,FALSE)),2)+POWER((VLOOKUP(N23,DEBUT!$D$5:$J$110,7,FALSE)-VLOOKUP(O23,DEBUT!$D$5:$J$110,7,FALSE)),2))/CARTE!$O$9 -> 1002.187204 | P21: Analyse | R21: / 2 | AL21: 17 | AM21: SEBASTIEN
D22: Balises prévues | E22: =IF(ISTEXT($D21),HLOOKUP($D21,DEBUT!$O$3:$XX$100,3,FALSE),"") -> A | F22: =IF(ISTEXT($D21),HLOOKUP($D21,DEBUT!$O$3:$XX$100,4,FALSE),"") -> B | G22: =IF(ISTEXT($D21),HLOOKUP($D21,DEBUT!$O$3:$XX$100,5,FALSE),"") -> C | H22: =IF(ISTEXT($D21),HLOOKUP($D21,DEBUT!$O$3:$XX$100,6,FALSE),"") -> D | I22: =IF(ISTEXT($D21),HLOOKUP($D21,DEBUT!$O$3:$XX$100,7,FALSE),"") -> E | J22: =IF(ISTEXT($D21),HLOOKUP($D21,DEBUT!$O$3:$XX$100,8,FALSE),"") -> F | K22: =IF(ISTEXT($D21),HLOOKUP($D21,DEBUT!$O$3:$XX$100,9,FALSE),"") -> G | L22: =IF(ISTEXT($D21),HLOOKUP($D21,DEBUT!$O$3:$XX$100,10,FALSE),"") -> 0 | M22: =IF(ISTEXT($D21),HLOOKUP($D21,DEBUT!$O$3:$XX$100,11,FALSE),"") -> 0 | N22: =IF(ISTEXT($D21),HLOOKUP($D21,DEBUT!$O$3:$XX$100,12,FALSE),"") -> J | O22: 2 | P22: Carton contrôle | Q22: 1 | R22: / 2 | AL22: 18 | AM22: PASCAL
D23: Validé | E23: =IF($D23=DEBUT!$L$5,E24,"") -> 7 | F23: =IF($D23=DEBUT!$L$5,F24,"") -> 10 | G23: =IF($D23=DEBUT!$L$5,G24,"") -> 11 | H23: =IF($D23=DEBUT!$L$5,H24,"") -> 1 | I23: =IF($D23=DEBUT!$L$5,I24,"") -> 76 | J23: =IF($D23=DEBUT!$L$5,J24,"") -> 46 | K23: =IF($D23=DEBUT!$L$5,K24,"") -> 12 | L23: =IF($D23=DEBUT!$L$5,L24,"") ->  | M23: =IF($D23=DEBUT!$L$5,M24,"") ->  | N23: =IF($D23=DEBUT!$L$5,N24,"") -> 16 | P23: Conduite itinéraire | Q23: =IF($Q$4=DEBUT!$K$6,HLOOKUP(Q24,REFERENTIELS!$E$7:$M$8,2,TRUE)+COUNTIF(E25:N25,2)*0.5,HLOOKUP(Q24,REFERENTIELS!$E$7:$M$8,2,TRUE)+COUNTIF(E25:N25,3)*0.5) -> 7.5 | R23: / 10 | AL23: 19 | AM23: CAROLE
D24: Balises CM | E24: =IFERROR(INDEX(baliseCM,MATCH(E22,lettre,0),MATCH($D20,parcours,0)),"") -> 7 | F24: =IFERROR(INDEX(baliseCM,MATCH(F22,lettre,0),MATCH($D20,parcours,0)),"") -> 10 | G24: 11 | H24: 1 | I24: 76 | J24: 46 | K24: 12 | N24: 16 | P24: Nombre balises justes | Q24: =COUNTIF(E25:N25,">0") -> 8 | R24: =IF(Q24>1,"trouvées","trouvée") -> trouvées | AL24: 20 | AM24: ISABELLE
D25: Points | E25: =IF(E24=E23,IFERROR(INDEX(baliseCM,MATCH(E22,lettre,0),MATCH($U25,parcours,0)),""),"") -> 1 | F25: 2 | G25: 2 | H25: 2 | I25: 3 | J25: 3 | K25: 3 | N25: 3 | P25: Note | Q25: =Q20+Q21+Q22+Q23 ->  | R25: /20 | U25: =CONCATENATE(D21,"points") -> 14ORANGEpoints | AL25: 21 | AM25: DAVID
B26: EQUIPE 4 | N26: =(HOUR(M27)*3600+MINUTE(M27)*60+SECOND(M27))-(HOUR($M$2)*3600+MINUTE($M$2)*60+SECOND($M$2)) ->  | T26: Analyse du parcours | AL26: 22 | AM26: FRANCOIS
D27: =CONCATENATE(D28,"bis") -> 14ORANGEbis | E27: 22:22:07 | I27: 21:05:05 | K27: Durée : | M27: =I27-E27 -> -0.05349537037 | P27: Vitesse de course | Q27: =IF(AND(N26<0,Q31=8),HLOOKUP(N26,REFERENTIELS!$E$33:$I$34,2,TRUE),IF(AND(N26<=0,Q31<>8),2,HLOOKUP(N26,REFERENTIELS!$I$33:$L$34,2,TRUE))) ->  | R27: / 6 | AL27: 23 | AM27: Mick
D28: =$H$2 -> 14ORANGE | E28: =SQRT(POWER((VLOOKUP(E30,DEBUT!$D$5:$J$110,6,FALSE)-VLOOKUP(F30,DEBUT!$D$5:$J$110,6,FALSE)),2)+POWER((VLOOKUP(E30,DEBUT!$D$5:$J$110,7,FALSE)-VLOOKUP(F30,DEBUT!$D$5:$J$110,7,FALSE)),2))/CARTE!$O$9 -> 292.4132321 | F28: =SQRT(POWER((VLOOKUP(F30,DEBUT!$D$5:$J$110,6,FALSE)-VLOOKUP(G30,DEBUT!$D$5:$J$110,6,FALSE)),2)+POWER((VLOOKUP(F30,DEBUT!$D$5:$J$110,7,FALSE)-VLOOKUP(G30,DEBUT!$D$5:$J$110,7,FALSE)),2))/CARTE!$O$9 -> 185.4526003 | G28: =SQRT(POWER((VLOOKUP(G30,DEBUT!$D$5:$J$110,6,FALSE)-VLOOKUP(H30,DEBUT!$D$5:$J$110,6,FALSE)),2)+POWER((VLOOKUP(G30,DEBUT!$D$5:$J$110,7,FALSE)-VLOOKUP(H30,DEBUT!$D$5:$J$110,7,FALSE)),2))/CARTE!$O$9 -> 388.8815813 | H28: =SQRT(POWER((VLOOKUP(H30,DEBUT!$D$5:$J$110,6,FALSE)-VLOOKUP(I30,DEBUT!$D$5:$J$110,6,FALSE)),2)+POWER((VLOOKUP(H30,DEBUT!$D$5:$J$110,7,FALSE)-VLOOKUP(I30,DEBUT!$D$5:$J$110,7,FALSE)),2))/CARTE!$O$9 -> 1321.193177 | I28: =SQRT(POWER((VLOOKUP(I30,DEBUT!$D$5:$J$110,6,FALSE)-VLOOKUP(J30,DEBUT!$D$5:$J$110,6,FALSE)),2)+POWER((VLOOKUP(I30,DEBUT!$D$5:$J$110,7,FALSE)-VLOOKUP(J30,DEBUT!$D$5:$J$110,7,FALSE)),2))/CARTE!$O$9 -> 621.6561772 | J28: =SQRT(POWER((VLOOKUP(J30,DEBUT!$D$5:$J$110,6,FALSE)-VLOOKUP(K30,DEBUT!$D$5:$J$110,6,FALSE)),2)+POWER((VLOOKUP(J30,DEBUT!$D$5:$J$110,7,FALSE)-VLOOKUP(K30,DEBUT!$D$5:$J$110,7,FALSE)),2))/CARTE!$O$9 -> 593.1870339 | K28: =SQRT(POWER((VLOOKUP(K30,DEBUT!$D$5:$J$110,6,FALSE)-VLOOKUP(L30,DEBUT!$D$5:$J$110,6,FALSE)),2)+POWER((VLOOKUP(K30,DEBUT!$D$5:$J$110,7,FALSE)-VLOOKUP(L30,DEBUT!$D$5:$J$110,7,FALSE)),2))/CARTE!$O$9 ->  | L28: =SQRT(POWER((VLOOKUP(L30,DEBUT!$D$5:$J$110,6,FALSE)-VLOOKUP(M30,DEBUT!$D$5:$J$110,6,FALSE)),2)+POWER((VLOOKUP(L30,DEBUT!$D$5:$J$110,7,FALSE)-VLOOKUP(M30,DEBUT!$D$5:$J$110,7,FALSE)),2))/CARTE!$O$9 ->  | M28: =SQRT(POWER((VLOOKUP(M30,DEBUT!$D$5:$J$110,6,FALSE)-VLOOKUP(N30,DEBUT!$D$5:$J$110,6,FALSE)),2)+POWER((VLOOKUP(M30,DEBUT!$D$5:$J$110,7,FALSE)-VLOOKUP(N30,DEBUT!$D$5:$J$110,7,FALSE)),2))/CARTE!$O$9 ->  | N28: =SQRT(POWER((VLOOKUP(N30,DEBUT!$D$5:$J$110,6,FALSE)-VLOOKUP(O30,DEBUT!$D$5:$J$110,6,FALSE)),2)+POWER((VLOOKUP(N30,DEBUT!$D$5:$J$110,7,FALSE)-VLOOKUP(O30,DEBUT!$D$5:$J$110,7,FALSE)),2))/CARTE!$O$9 -> 1002.187204 | P28: Analyse | R28: / 2 | AL28: 24 | AM28: 0
D29: Balises prévues | E29: =IF(ISTEXT($D28),HLOOKUP($D28,DEBUT!$O$3:$XX$100,3,FALSE),"") -> A | F29: =IF(ISTEXT($D28),HLOOKUP($D28,DEBUT!$O$3:$XX$100,4,FALSE),"") -> B | G29: =IF(ISTEXT($D28),HLOOKUP($D28,DEBUT!$O$3:$XX$100,5,FALSE),"") -> C | H29: =IF(ISTEXT($D28),HLOOKUP($D28,DEBUT!$O$3:$XX$100,6,FALSE),"") -> D | I29: =IF(ISTEXT($D28),HLOOKUP($D28,DEBUT!$O$3:$XX$100,7,FALSE),"") -> E | J29: =IF(ISTEXT($D28),HLOOKUP($D28,DEBUT!$O$3:$XX$100,8,FALSE),"") -> F | K29: =IF(ISTEXT($D28),HLOOKUP($D28,DEBUT!$O$3:$XX$100,9,FALSE),"") -> G | L29: =IF(ISTEXT($D28),HLOOKUP($D28,DEBUT!$O$3:$XX$100,10,FALSE),"") -> 0 | M29: =IF(ISTEXT($D28),HLOOKUP($D28,DEBUT!$O$3:$XX$100,11,FALSE),"") -> 0 | N29: =IF(ISTEXT($D28),HLOOKUP($D28,DEBUT!$O$3:$XX$100,12,FALSE),"") -> J | O29: 2 | P29: Carton contrôle | Q29: 1 | R29: / 2 | AL29: 25 | AM29: 0
D30: Validé | E30: =IF($D30=DEBUT!$L$5,E31,"") -> 7 | F30: =IF($D30=DEBUT!$L$5,F31,"") -> 10 | G30: =IF($D30=DEBUT!$L$5,G31,"") -> 11 | H30: =IF($D30=DEBUT!$L$5,H31,"") -> 1 | I30: =IF($D30=DEBUT!$L$5,I31,"") -> 76 | J30: =IF($D30=DEBUT!$L$5,J31,"") -> 46 | K30: =IF($D30=DEBUT!$L$5,K31,"") -> 12 | L30: =IF($D30=DEBUT!$L$5,L31,"") ->  | M30: =IF($D30=DEBUT!$L$5,M31,"") ->  | N30: =IF($D30=DEBUT!$L$5,N31,"") -> 16 | P30: Conduite itinéraire | Q30: =HLOOKUP(Q31,REFERENTIELS!$E$7:$M$8,2,TRUE) -> 6 | R30: / 10 | AL30: 26 | AM30: 0
D31: Balises CM | E31: =IFERROR(INDEX(baliseCM,MATCH(E29,lettre,0),MATCH($D27,parcours,0)),"") -> 7 | F31: =IFERROR(INDEX(baliseCM,MATCH(F29,lettre,0),MATCH($D27,parcours,0)),"") -> 10 | G31: 11 | H31: 1 | I31: 76 | J31: 46 | K31: 12 | N31: 16 | P31: Nombre balises justes | Q31: =COUNTIF(E32:N32,">0") -> 8 | R31: =IF(Q31>1,"trouvées","trouvée") -> trouvées | AL31: 27 | AM31: 0
D32: Points | E32: =IF(E31=E30,IFERROR(INDEX(baliseCM,MATCH(E29,lettre,0),MATCH($U32,parcours,0)),""),"") -> 1 | F32: 2 | G32: 2 | H32: 2 | I32: 3 | J32: 3 | K32: 3 | N32: 3 | P32: Note | Q32: =Q27+Q28+Q29+Q30 ->  | R32: /20 | U32: =CONCATENATE(D28,"points") -> 14ORANGEpoints | AL32: 28 | AM32: 0
B33: EQUIPE 5 | N33: =(HOUR(M34)*3600+MINUTE(M34)*60+SECOND(M34))-(HOUR($M$2)*3600+MINUTE($M$2)*60+SECOND($M$2)) -> -2098 | T33: Analyse du parcours | AL33: 29 | AM33: 0
D34: =CONCATENATE(D35,"bis") -> 14ORANGEbis | E34: 16:06:25 | I34: 16:06:27 | K34: Durée : | M34: =I34-E34 -> 00:00:02 | P34: Vitesse de course | Q34: =IF(AND(N33<0,Q38=8),HLOOKUP(N33,REFERENTIELS!$E$33:$I$34,2,TRUE),IF(AND(N33<=0,Q38<>8),2,HLOOKUP(N33,REFERENTIELS!$I$33:$L$34,2,TRUE))) ->  | R34: / 6 | AL34: 30 | AM34: 0
D35: =$H$2 -> 14ORANGE | E35: =SQRT(POWER((VLOOKUP(E37,DEBUT!$D$5:$J$110,6,FALSE)-VLOOKUP(F37,DEBUT!$D$5:$J$110,6,FALSE)),2)+POWER((VLOOKUP(E37,DEBUT!$D$5:$J$110,7,FALSE)-VLOOKUP(F37,DEBUT!$D$5:$J$110,7,FALSE)),2))/CARTE!$O$9 -> 292.4132321 | F35: =SQRT(POWER((VLOOKUP(F37,DEBUT!$D$5:$J$110,6,FALSE)-VLOOKUP(G37,DEBUT!$D$5:$J$110,6,FALSE)),2)+POWER((VLOOKUP(F37,DEBUT!$D$5:$J$110,7,FALSE)-VLOOKUP(G37,DEBUT!$D$5:$J$110,7,FALSE)),2))/CARTE!$O$9 -> 185.4526003 | G35: =SQRT(POWER((VLOOKUP(G37,DEBUT!$D$5:$J$110,6,FALSE)-VLOOKUP(H37,DEBUT!$D$5:$J$110,6,FALSE)),2)+POWER((VLOOKUP(G37,DEBUT!$D$5:$J$110,7,FALSE)-VLOOKUP(H37,DEBUT!$D$5:$J$110,7,FALSE)),2))/CARTE!$O$9 -> 388.8815813 | H35: =SQRT(POWER((VLOOKUP(H37,DEBUT!$D$5:$J$110,6,FALSE)-VLOOKUP(I37,DEBUT!$D$5:$J$110,6,FALSE)),2)+POWER((VLOOKUP(H37,DEBUT!$D$5:$J$110,7,FALSE)-VLOOKUP(I37,DEBUT!$D$5:$J$110,7,FALSE)),2))/CARTE!$O$9 -> 1321.193177 | I35: =SQRT(POWER((VLOOKUP(I37,DEBUT!$D$5:$J$110,6,FALSE)-VLOOKUP(J37,DEBUT!$D$5:$J$110,6,FALSE)),2)+POWER((VLOOKUP(I37,DEBUT!$D$5:$J$110,7,FALSE)-VLOOKUP(J37,DEBUT!$D$5:$J$110,7,FALSE)),2))/CARTE!$O$9 -> 621.6561772 | J35: =SQRT(POWER((VLOOKUP(J37,DEBUT!$D$5:$J$110,6,FALSE)-VLOOKUP(K37,DEBUT!$D$5:$J$110,6,FALSE)),2)+POWER((VLOOKUP(J37,DEBUT!$D$5:$J$110,7,FALSE)-VLOOKUP(K37,DEBUT!$D$5:$J$110,7,FALSE)),2))/CARTE!$O$9 -> 593.1870339 | K35: =SQRT(POWER((VLOOKUP(K37,DEBUT!$D$5:$J$110,6,FALSE)-VLOOKUP(L37,DEBUT!$D$5:$J$110,6,FALSE)),2)+POWER((VLOOKUP(K37,DEBUT!$D$5:$J$110,7,FALSE)-VLOOKUP(L37,DEBUT!$D$5:$J$110,7,FALSE)),2))/CARTE!$O$9 ->  | L35: =SQRT(POWER((VLOOKUP(L37,DEBUT!$D$5:$J$110,6,FALSE)-VLOOKUP(M37,DEBUT!$D$5:$J$110,6,FALSE)),2)+POWER((VLOOKUP(L37,DEBUT!$D$5:$J$110,7,FALSE)-VLOOKUP(M37,DEBUT!$D$5:$J$110,7,FALSE)),2))/CARTE!$O$9 ->  | M35: =SQRT(POWER((VLOOKUP(M37,DEBUT!$D$5:$J$110,6,FALSE)-VLOOKUP(N37,DEBUT!$D$5:$J$110,6,FALSE)),2)+POWER((VLOOKUP(M37,DEBUT!$D$5:$J$110,7,FALSE)-VLOOKUP(N37,DEBUT!$D$5:$J$110,7,FALSE)),2))/CARTE!$O$9 ->  | N35: =SQRT(POWER((VLOOKUP(N37,DEBUT!$D$5:$J$110,6,FALSE)-VLOOKUP(O37,DEBUT!$D$5:$J$110,6,FALSE)),2)+POWER((VLOOKUP(N37,DEBUT!$D$5:$J$110,7,FALSE)-VLOOKUP(O37,DEBUT!$D$5:$J$110,7,FALSE)),2))/CARTE!$O$9 -> 1002.187204 | P35: Analyse | R35: / 2 | AL35: 31 | AM35: 0
D36: Balises prévues | E36: =IF(ISTEXT($D35),HLOOKUP($D35,DEBUT!$O$3:$XX$100,3,FALSE),"") -> A | F36: =IF(ISTEXT($D35),HLOOKUP($D35,DEBUT!$O$3:$XX$100,4,FALSE),"") -> B | G36: =IF(ISTEXT($D35),HLOOKUP($D35,DEBUT!$O$3:$XX$100,5,FALSE),"") -> C | H36: =IF(ISTEXT($D35),HLOOKUP($D35,DEBUT!$O$3:$XX$100,6,FALSE),"") -> D | I36: =IF(ISTEXT($D35),HLOOKUP($D35,DEBUT!$O$3:$XX$100,7,FALSE),"") -> E | J36: =IF(ISTEXT($D35),HLOOKUP($D35,DEBUT!$O$3:$XX$100,8,FALSE),"") -> F | K36: =IF(ISTEXT($D35),HLOOKUP($D35,DEBUT!$O$3:$XX$100,9,FALSE),"") -> G | L36: =IF(ISTEXT($D35),HLOOKUP($D35,DEBUT!$O$3:$XX$100,10,FALSE),"") -> 0 | M36: =IF(ISTEXT($D35),HLOOKUP($D35,DEBUT!$O$3:$XX$100,11,FALSE),"") -> 0 | N36: =IF(ISTEXT($D35),HLOOKUP($D35,DEBUT!$O$3:$XX$100,12,FALSE),"") -> J | O36: 2 | P36: Carton contrôle | Q36: 1 | R36: / 2 | AL36: 32 | AM36: 0
D37: Validé | E37: =IF($D37=DEBUT!$L$5,E38,"") -> 7 | F37: =IF($D37=DEBUT!$L$5,F38,"") -> 10 | G37: =IF($D37=DEBUT!$L$5,G38,"") -> 11 | H37: =IF($D37=DEBUT!$L$5,H38,"") -> 1 | I37: =IF($D37=DEBUT!$L$5,I38,"") -> 76 | J37: =IF($D37=DEBUT!$L$5,J38,"") -> 46 | K37: =IF($D37=DEBUT!$L$5,K38,"") -> 12 | L37: =IF($D37=DEBUT!$L$5,L38,"") ->  | M37: =IF($D37=DEBUT!$L$5,M38,"") ->  | N37: =IF($D37=DEBUT!$L$5,N38,"") -> 16 | P37: Conduite itinéraire | Q37: =IF($Q$4=DEBUT!$K$6,HLOOKUP(Q38,REFERENTIELS!$E$7:$M$8,2,TRUE)+COUNTIF(E39:N39,2)*0.5,HLOOKUP(Q38,REFERENTIELS!$E$7:$M$8,2,TRUE)+COUNTIF(E39:N39,3)*0.5) -> 7.5 | R37: / 10 | AL37: 33 | AM37: 0
D38: Balises CM | E38: =IFERROR(INDEX(baliseCM,MATCH(E36,lettre,0),MATCH($D34,parcours,0)),"") -> 7 | F38: =IFERROR(INDEX(baliseCM,MATCH(F36,lettre,0),MATCH($D34,parcours,0)),"") -> 10 | G38: 11 | H38: 1 | I38: 76 | J38: 46 | K38: 12 | N38: 16 | P38: Nombre balises justes | Q38: =COUNTIF(E39:N39,">0") -> 8 | R38: =IF(Q38>1,"trouvées","trouvée") -> trouvées | AL38: 34 | AM38: 0
D39: Points | E39: =IF(E38=E37,IFERROR(INDEX(baliseCM,MATCH(E36,lettre,0),MATCH($U39,parcours,0)),""),"") -> 1 | F39: 2 | G39: 2 | H39: 2 | I39: 3 | J39: 3 | K39: 3 | N39: 3 | P39: Note | Q39: =Q34+Q35+Q36+Q37 ->  | R39: /20 | U39: =CONCATENATE(D35,"points") -> 14ORANGEpoints | AL39: 35 | AM39: 0
B40: EQUIPE 6 | N40: =(HOUR(M41)*3600+MINUTE(M41)*60+SECOND(M41))-(HOUR($M$2)*3600+MINUTE($M$2)*60+SECOND($M$2)) ->  | T40: Analyse du parcours | AL40: 36 | AM40: 0
D41: =CONCATENATE(D42,"bis") -> 14ORANGEbis | E41: 22:22:07 | K41: Durée : | M41: =I41-E41 -> -0.932025463 | P41: Vitesse de course | Q41: =IF(AND(N40<0,Q45=8),HLOOKUP(N40,REFERENTIELS!$E$33:$I$34,2,TRUE),IF(AND(N40<=0,Q45<>8),2,HLOOKUP(N40,REFERENTIELS!$I$33:$L$34,2,TRUE))) ->  | R41: / 6
D42: =$H$2 -> 14ORANGE | E42: =SQRT(POWER((VLOOKUP(E44,DEBUT!$D$5:$J$110,6,FALSE)-VLOOKUP(F44,DEBUT!$D$5:$J$110,6,FALSE)),2)+POWER((VLOOKUP(E44,DEBUT!$D$5:$J$110,7,FALSE)-VLOOKUP(F44,DEBUT!$D$5:$J$110,7,FALSE)),2))/CARTE!$O$9 -> 292.4132321 | F42: =SQRT(POWER((VLOOKUP(F44,DEBUT!$D$5:$J$110,6,FALSE)-VLOOKUP(G44,DEBUT!$D$5:$J$110,6,FALSE)),2)+POWER((VLOOKUP(F44,DEBUT!$D$5:$J$110,7,FALSE)-VLOOKUP(G44,DEBUT!$D$5:$J$110,7,FALSE)),2))/CARTE!$O$9 -> 185.4526003 | G42: =SQRT(POWER((VLOOKUP(G44,DEBUT!$D$5:$J$110,6,FALSE)-VLOOKUP(H44,DEBUT!$D$5:$J$110,6,FALSE)),2)+POWER((VLOOKUP(G44,DEBUT!$D$5:$J$110,7,FALSE)-VLOOKUP(H44,DEBUT!$D$5:$J$110,7,FALSE)),2))/CARTE!$O$9 -> 388.8815813 | H42: =SQRT(POWER((VLOOKUP(H44,DEBUT!$D$5:$J$110,6,FALSE)-VLOOKUP(I44,DEBUT!$D$5:$J$110,6,FALSE)),2)+POWER((VLOOKUP(H44,DEBUT!$D$5:$J$110,7,FALSE)-VLOOKUP(I44,DEBUT!$D$5:$J$110,7,FALSE)),2))/CARTE!$O$9 -> 1321.193177 | I42: =SQRT(POWER((VLOOKUP(I44,DEBUT!$D$5:$J$110,6,FALSE)-VLOOKUP(J44,DEBUT!$D$5:$J$110,6,FALSE)),2)+POWER((VLOOKUP(I44,DEBUT!$D$5:$J$110,7,FALSE)-VLOOKUP(J44,DEBUT!$D$5:$J$110,7,FALSE)),2))/CARTE!$O$9 -> 621.6561772 | J42: =SQRT(POWER((VLOOKUP(J44,DEBUT!$D$5:$J$110,6,FALSE)-VLOOKUP(K44,DEBUT!$D$5:$J$110,6,FALSE)),2)+POWER((VLOOKUP(J44,DEBUT!$D$5:$J$110,7,FALSE)-VLOOKUP(K44,DEBUT!$D$5:$J$110,7,FALSE)),2))/CARTE!$O$9 -> 593.1870339 | K42: =SQRT(POWER((VLOOKUP(K44,DEBUT!$D$5:$J$110,6,FALSE)-VLOOKUP(L44,DEBUT!$D$5:$J$110,6,FALSE)),2)+POWER((VLOOKUP(K44,DEBUT!$D$5:$J$110,7,FALSE)-VLOOKUP(L44,DEBUT!$D$5:$J$110,7,FALSE)),2))/CARTE!$O$9 ->  | L42: =SQRT(POWER((VLOOKUP(L44,DEBUT!$D$5:$J$110,6,FALSE)-VLOOKUP(M44,DEBUT!$D$5:$J$110,6,FALSE)),2)+POWER((VLOOKUP(L44,DEBUT!$D$5:$J$110,7,FALSE)-VLOOKUP(M44,DEBUT!$D$5:$J$110,7,FALSE)),2))/CARTE!$O$9 ->  | M42: =SQRT(POWER((VLOOKUP(M44,DEBUT!$D$5:$J$110,6,FALSE)-VLOOKUP(N44,DEBUT!$D$5:$J$110,6,FALSE)),2)+POWER((VLOOKUP(M44,DEBUT!$D$5:$J$110,7,FALSE)-VLOOKUP(N44,DEBUT!$D$5:$J$110,7,FALSE)),2))/CARTE!$O$9 ->  | N42: =SQRT(POWER((VLOOKUP(N44,DEBUT!$D$5:$J$110,6,FALSE)-VLOOKUP(O44,DEBUT!$D$5:$J$110,6,FALSE)),2)+POWER((VLOOKUP(N44,DEBUT!$D$5:$J$110,7,FALSE)-VLOOKUP(O44,DEBUT!$D$5:$J$110,7,FALSE)),2))/CARTE!$O$9 -> 1002.187204 | P42: Analyse | R42: / 2
D43: Balises prévues | E43: =IF(ISTEXT($D42),HLOOKUP($D42,DEBUT!$O$3:$XX$100,3,FALSE),"") -> A | F43: =IF(ISTEXT($D42),HLOOKUP($D42,DEBUT!$O$3:$XX$100,4,FALSE),"") -> B | G43: =IF(ISTEXT($D42),HLOOKUP($D42,DEBUT!$O$3:$XX$100,5,FALSE),"") -> C | H43: =IF(ISTEXT($D42),HLOOKUP($D42,DEBUT!$O$3:$XX$100,6,FALSE),"") -> D | I43: =IF(ISTEXT($D42),HLOOKUP($D42,DEBUT!$O$3:$XX$100,7,FALSE),"") -> E | J43: =IF(ISTEXT($D42),HLOOKUP($D42,DEBUT!$O$3:$XX$100,8,FALSE),"") -> F | K43: =IF(ISTEXT($D42),HLOOKUP($D42,DEBUT!$O$3:$XX$100,9,FALSE),"") -> G | L43: =IF(ISTEXT($D42),HLOOKUP($D42,DEBUT!$O$3:$XX$100,10,FALSE),"") -> 0 | M43: =IF(ISTEXT($D42),HLOOKUP($D42,DEBUT!$O$3:$XX$100,11,FALSE),"") -> 0 | N43: =IF(ISTEXT($D42),HLOOKUP($D42,DEBUT!$O$3:$XX$100,12,FALSE),"") -> J | O43: 2 | P43: Carton contrôle | Q43: 1 | R43: / 2
D44: Validé | E44: =IF($D44=DEBUT!$L$5,E45,"") -> 7 | F44: =IF($D44=DEBUT!$L$5,F45,"") -> 10 | G44: =IF($D44=DEBUT!$L$5,G45,"") -> 11 | H44: =IF($D44=DEBUT!$L$5,H45,"") -> 1 | I44: =IF($D44=DEBUT!$L$5,I45,"") -> 76 | J44: =IF($D44=DEBUT!$L$5,J45,"") -> 46 | K44: =IF($D44=DEBUT!$L$5,K45,"") -> 12 | L44: =IF($D44=DEBUT!$L$5,L45,"") ->  | M44: =IF($D44=DEBUT!$L$5,M45,"") ->  | N44: =IF($D44=DEBUT!$L$5,N45,"") -> 16 | P44: Conduite itinéraire | Q44: =HLOOKUP(Q45,REFERENTIELS!$E$7:$M$8,2,TRUE) -> 6 | R44: / 10
D45: Balises CM | E45: =IFERROR(INDEX(baliseCM,MATCH(E43,lettre,0),MATCH($D41,parcours,0)),"") -> 7 | F45: =IFERROR(INDEX(baliseCM,MATCH(F43,lettre,0),MATCH($D41,parcours,0)),"") -> 10 | G45: 11 | H45: 1 | I45: 76 | J45: 46 | K45: 12 | N45: 16 | P45: Nombre balises justes | Q45: =COUNTIF(E46:N46,">0") -> 8 | R45: =IF(Q45>1,"trouvées","trouvée") -> trouvées
D46: Points | E46: =IF(E45=E44,IFERROR(INDEX(baliseCM,MATCH(E43,lettre,0),MATCH($U46,parcours,0)),""),"") -> 1 | F46: 2 | G46: 2 | H46: 2 | I46: 3 | J46: 3 | K46: 3 | N46: 3 | P46: Note | Q46: =Q41+Q42+Q43+Q44 ->  | R46: /20 | U46: =CONCATENATE(D42,"points") -> 14ORANGEpoints
B47: EQUIPE 7 | N47: =(HOUR(M48)*3600+MINUTE(M48)*60+SECOND(M48))-(HOUR($M$2)*3600+MINUTE($M$2)*60+SECOND($M$2)) ->  | T47: Analyse du parcours
D48: =CONCATENATE(D49,"bis") -> 14ORANGEbis | E48: 22:22:08 | K48: Durée : | M48: =I48-E48 -> -0.932037037 | P48: Vitesse de course | Q48: =IF(AND(N47<0,Q52=8),HLOOKUP(N47,REFERENTIELS!$E$33:$I$34,2,TRUE),IF(AND(N47<=0,Q52<>8),2,HLOOKUP(N47,REFERENTIELS!$I$33:$L$34,2,TRUE))) ->  | R48: / 6
D49: =$H$2 -> 14ORANGE | E49: =SQRT(POWER((VLOOKUP(E51,DEBUT!$D$5:$J$110,6,FALSE)-VLOOKUP(F51,DEBUT!$D$5:$J$110,6,FALSE)),2)+POWER((VLOOKUP(E51,DEBUT!$D$5:$J$110,7,FALSE)-VLOOKUP(F51,DEBUT!$D$5:$J$110,7,FALSE)),2))/CARTE!$O$9 -> 292.4132321 | F49: =SQRT(POWER((VLOOKUP(F51,DEBUT!$D$5:$J$110,6,FALSE)-VLOOKUP(G51,DEBUT!$D$5:$J$110,6,FALSE)),2)+POWER((VLOOKUP(F51,DEBUT!$D$5:$J$110,7,FALSE)-VLOOKUP(G51,DEBUT!$D$5:$J$110,7,FALSE)),2))/CARTE!$O$9 -> 185.4526003 | G49: =SQRT(POWER((VLOOKUP(G51,DEBUT!$D$5:$J$110,6,FALSE)-VLOOKUP(H51,DEBUT!$D$5:$J$110,6,FALSE)),2)+POWER((VLOOKUP(G51,DEBUT!$D$5:$J$110,7,FALSE)-VLOOKUP(H51,DEBUT!$D$5:$J$110,7,FALSE)),2))/CARTE!$O$9 -> 388.8815813 | H49: =SQRT(POWER((VLOOKUP(H51,DEBUT!$D$5:$J$110,6,FALSE)-VLOOKUP(I51,DEBUT!$D$5:$J$110,6,FALSE)),2)+POWER((VLOOKUP(H51,DEBUT!$D$5:$J$110,7,FALSE)-VLOOKUP(I51,DEBUT!$D$5:$J$110,7,FALSE)),2))/CARTE!$O$9 -> 1321.193177 | I49: =SQRT(POWER((VLOOKUP(I51,DEBUT!$D$5:$J$110,6,FALSE)-VLOOKUP(J51,DEBUT!$D$5:$J$110,6,FALSE)),2)+POWER((VLOOKUP(I51,DEBUT!$D$5:$J$110,7,FALSE)-VLOOKUP(J51,DEBUT!$D$5:$J$110,7,FALSE)),2))/CARTE!$O$9 -> 621.6561772 | J49: =SQRT(POWER((VLOOKUP(J51,DEBUT!$D$5:$J$110,6,FALSE)-VLOOKUP(K51,DEBUT!$D$5:$J$110,6,FALSE)),2)+POWER((VLOOKUP(J51,DEBUT!$D$5:$J$110,7,FALSE)-VLOOKUP(K51,DEBUT!$D$5:$J$110,7,FALSE)),2))/CARTE!$O$9 -> 593.1870339 | K49: =SQRT(POWER((VLOOKUP(K51,DEBUT!$D$5:$J$110,6,FALSE)-VLOOKUP(L51,DEBUT!$D$5:$J$110,6,FALSE)),2)+POWER((VLOOKUP(K51,DEBUT!$D$5:$J$110,7,FALSE)-VLOOKUP(L51,DEBUT!$D$5:$J$110,7,FALSE)),2))/CARTE!$O$9 ->  | L49: =SQRT(POWER((VLOOKUP(L51,DEBUT!$D$5:$J$110,6,FALSE)-VLOOKUP(M51,DEBUT!$D$5:$J$110,6,FALSE)),2)+POWER((VLOOKUP(L51,DEBUT!$D$5:$J$110,7,FALSE)-VLOOKUP(M51,DEBUT!$D$5:$J$110,7,FALSE)),2))/CARTE!$O$9 ->  | M49: =SQRT(POWER((VLOOKUP(M51,DEBUT!$D$5:$J$110,6,FALSE)-VLOOKUP(N51,DEBUT!$D$5:$J$110,6,FALSE)),2)+POWER((VLOOKUP(M51,DEBUT!$D$5:$J$110,7,FALSE)-VLOOKUP(N51,DEBUT!$D$5:$J$110,7,FALSE)),2))/CARTE!$O$9 ->  | N49: =SQRT(POWER((VLOOKUP(N51,DEBUT!$D$5:$J$110,6,FALSE)-VLOOKUP(O51,DEBUT!$D$5:$J$110,6,FALSE)),2)+POWER((VLOOKUP(N51,DEBUT!$D$5:$J$110,7,FALSE)-VLOOKUP(O51,DEBUT!$D$5:$J$110,7,FALSE)),2))/CARTE!$O$9 -> 1002.187204 | P49: Analyse | R49: / 2
D50: Balises prévues | E50: =IF(ISTEXT($D49),HLOOKUP($D49,DEBUT!$O$3:$XX$100,3,FALSE),"") -> A | F50: =IF(ISTEXT($D49),HLOOKUP($D49,DEBUT!$O$3:$XX$100,4,FALSE),"") -> B | G50: =IF(ISTEXT($D49),HLOOKUP($D49,DEBUT!$O$3:$XX$100,5,FALSE),"") -> C | H50: =IF(ISTEXT($D49),HLOOKUP($D49,DEBUT!$O$3:$XX$100,6,FALSE),"") -> D | I50: =IF(ISTEXT($D49),HLOOKUP($D49,DEBUT!$O$3:$XX$100,7,FALSE),"") -> E | J50: =IF(ISTEXT($D49),HLOOKUP($D49,DEBUT!$O$3:$XX$100,8,FALSE),"") -> F | K50: =IF(ISTEXT($D49),HLOOKUP($D49,DEBUT!$O$3:$XX$100,9,FALSE),"") -> G | L50: =IF(ISTEXT($D49),HLOOKUP($D49,DEBUT!$O$3:$XX$100,10,FALSE),"") -> 0 | M50: =IF(ISTEXT($D49),HLOOKUP($D49,DEBUT!$O$3:$XX$100,11,FALSE),"") -> 0 | N50: =IF(ISTEXT($D49),HLOOKUP($D49,DEBUT!$O$3:$XX$100,12,FALSE),"") -> J | O50: 2 | P50: Carton contrôle | Q50: 1 | R50: / 2
D51: Validé | E51: =IF($D51=DEBUT!$L$5,E52,"") -> 7 | F51: =IF($D51=DEBUT!$L$5,F52,"") -> 10 | G51: =IF($D51=DEBUT!$L$5,G52,"") -> 11 | H51: =IF($D51=DEBUT!$L$5,H52,"") -> 1 | I51: =IF($D51=DEBUT!$L$5,I52,"") -> 76 | J51: =IF($D51=DEBUT!$L$5,J52,"") -> 46 | K51: =IF($D51=DEBUT!$L$5,K52,"") -> 12 | L51: =IF($D51=DEBUT!$L$5,L52,"") ->  | M51: =IF($D51=DEBUT!$L$5,M52,"") ->  | N51: =IF($D51=DEBUT!$L$5,N52,"") -> 16 | P51: Conduite itinéraire | Q51: =IF($Q$4=DEBUT!$K$6,HLOOKUP(Q52,REFERENTIELS!$E$7:$M$8,2,TRUE)+COUNTIF(E53:N53,2)*0.5,HLOOKUP(Q52,REFERENTIELS!$E$7:$M$8,2,TRUE)+COUNTIF(E53:N53,3)*0.5) -> 7.5 | R51: / 10
D52: Balises CM | E52: =IFERROR(INDEX(baliseCM,MATCH(E50,lettre,0),MATCH($D48,parcours,0)),"") -> 7 | F52: =IFERROR(INDEX(baliseCM,MATCH(F50,lettre,0),MATCH($D48,parcours,0)),"") -> 10 | G52: 11 | H52: 1 | I52: 76 | J52: 46 | K52: 12 | N52: 16 | P52: Nombre balises justes | Q52: =COUNTIF(E53:N53,">0") -> 8 | R52: =IF(Q52>1,"trouvées","trouvée") -> trouvées
D53: Points | E53: =IF(E52=E51,IFERROR(INDEX(baliseCM,MATCH(E50,lettre,0),MATCH($U53,parcours,0)),""),"") -> 1 | F53: 2 | G53: 2 | H53: 2 | I53: 3 | J53: 3 | K53: 3 | N53: 3 | P53: Note | Q53: =Q48+Q49+Q50+Q51 ->  | R53: /20 | U53: =CONCATENATE(D49,"points") -> 14ORANGEpoints
B54: EQUIPE 8 | N54: =(HOUR(M55)*3600+MINUTE(M55)*60+SECOND(M55))-(HOUR($M$2)*3600+MINUTE($M$2)*60+SECOND($M$2)) ->  | T54: Analyse du parcours
D55: =CONCATENATE(D56,"bis") -> 14ORANGEbis | E55: 22:22:08 | K55: Durée : | M55: =I55-E55 -> -0.932037037 | P55: Vitesse de course | Q55: =IF(AND(N54<0,Q59=8),HLOOKUP(N54,REFERENTIELS!$E$33:$I$34,2,TRUE),IF(AND(N54<=0,Q59<>8),2,HLOOKUP(N54,REFERENTIELS!$I$33:$L$34,2,TRUE))) ->  | R55: / 6
D56: =$H$2 -> 14ORANGE | E56: =SQRT(POWER((VLOOKUP(E58,DEBUT!$D$5:$J$110,6,FALSE)-VLOOKUP(F58,DEBUT!$D$5:$J$110,6,FALSE)),2)+POWER((VLOOKUP(E58,DEBUT!$D$5:$J$110,7,FALSE)-VLOOKUP(F58,DEBUT!$D$5:$J$110,7,FALSE)),2))/CARTE!$O$9 -> 292.4132321 | F56: =SQRT(POWER((VLOOKUP(F58,DEBUT!$D$5:$J$110,6,FALSE)-VLOOKUP(G58,DEBUT!$D$5:$J$110,6,FALSE)),2)+POWER((VLOOKUP(F58,DEBUT!$D$5:$J$110,7,FALSE)-VLOOKUP(G58,DEBUT!$D$5:$J$110,7,FALSE)),2))/CARTE!$O$9 -> 185.4526003 | G56: =SQRT(POWER((VLOOKUP(G58,DEBUT!$D$5:$J$110,6,FALSE)-VLOOKUP(H58,DEBUT!$D$5:$J$110,6,FALSE)),2)+POWER((VLOOKUP(G58,DEBUT!$D$5:$J$110,7,FALSE)-VLOOKUP(H58,DEBUT!$D$5:$J$110,7,FALSE)),2))/CARTE!$O$9 -> 388.8815813 | H56: =SQRT(POWER((VLOOKUP(H58,DEBUT!$D$5:$J$110,6,FALSE)-VLOOKUP(I58,DEBUT!$D$5:$J$110,6,FALSE)),2)+POWER((VLOOKUP(H58,DEBUT!$D$5:$J$110,7,FALSE)-VLOOKUP(I58,DEBUT!$D$5:$J$110,7,FALSE)),2))/CARTE!$O$9 -> 1321.193177 | I56: =SQRT(POWER((VLOOKUP(I58,DEBUT!$D$5:$J$110,6,FALSE)-VLOOKUP(J58,DEBUT!$D$5:$J$110,6,FALSE)),2)+POWER((VLOOKUP(I58,DEBUT!$D$5:$J$110,7,FALSE)-VLOOKUP(J58,DEBUT!$D$5:$J$110,7,FALSE)),2))/CARTE!$O$9 -> 621.6561772 | J56: =SQRT(POWER((VLOOKUP(J58,DEBUT!$D$5:$J$110,6,FALSE)-VLOOKUP(K58,DEBUT!$D$5:$J$110,6,FALSE)),2)+POWER((VLOOKUP(J58,DEBUT!$D$5:$J$110,7,FALSE)-VLOOKUP(K58,DEBUT!$D$5:$J$110,7,FALSE)),2))/CARTE!$O$9 -> 593.1870339 | K56: =SQRT(POWER((VLOOKUP(K58,DEBUT!$D$5:$J$110,6,FALSE)-VLOOKUP(L58,DEBUT!$D$5:$J$110,6,FALSE)),2)+POWER((VLOOKUP(K58,DEBUT!$D$5:$J$110,7,FALSE)-VLOOKUP(L58,DEBUT!$D$5:$J$110,7,FALSE)),2))/CARTE!$O$9 ->  | L56: =SQRT(POWER((VLOOKUP(L58,DEBUT!$D$5:$J$110,6,FALSE)-VLOOKUP(M58,DEBUT!$D$5:$J$110,6,FALSE)),2)+POWER((VLOOKUP(L58,DEBUT!$D$5:$J$110,7,FALSE)-VLOOKUP(M58,DEBUT!$D$5:$J$110,7,FALSE)),2))/CARTE!$O$9 ->  | M56: =SQRT(POWER((VLOOKUP(M58,DEBUT!$D$5:$J$110,6,FALSE)-VLOOKUP(N58,DEBUT!$D$5:$J$110,6,FALSE)),2)+POWER((VLOOKUP(M58,DEBUT!$D$5:$J$110,7,FALSE)-VLOOKUP(N58,DEBUT!$D$5:$J$110,7,FALSE)),2))/CARTE!$O$9 ->  | N56: =SQRT(POWER((VLOOKUP(N58,DEBUT!$D$5:$J$110,6,FALSE)-VLOOKUP(O58,DEBUT!$D$5:$J$110,6,FALSE)),2)+POWER((VLOOKUP(N58,DEBUT!$D$5:$J$110,7,FALSE)-VLOOKUP(O58,DEBUT!$D$5:$J$110,7,FALSE)),2))/CARTE!$O$9 -> 1002.187204 | P56: Analyse | R56: / 2
D57: Balises prévues | E57: =IF(ISTEXT($D56),HLOOKUP($D56,DEBUT!$O$3:$XX$100,3,FALSE),"") -> A | F57: =IF(ISTEXT($D56),HLOOKUP($D56,DEBUT!$O$3:$XX$100,4,FALSE),"") -> B | G57: =IF(ISTEXT($D56),HLOOKUP($D56,DEBUT!$O$3:$XX$100,5,FALSE),"") -> C | H57: =IF(ISTEXT($D56),HLOOKUP($D56,DEBUT!$O$3:$XX$100,6,FALSE),"") -> D | I57: =IF(ISTEXT($D56),HLOOKUP($D56,DEBUT!$O$3:$XX$100,7,FALSE),"") -> E | J57: =IF(ISTEXT($D56),HLOOKUP($D56,DEBUT!$O$3:$XX$100,8,FALSE),"") -> F | K57: =IF(ISTEXT($D56),HLOOKUP($D56,DEBUT!$O$3:$XX$100,9,FALSE),"") -> G | L57: =IF(ISTEXT($D56),HLOOKUP($D56,DEBUT!$O$3:$XX$100,10,FALSE),"") -> 0 | M57: =IF(ISTEXT($D56),HLOOKUP($D56,DEBUT!$O$3:$XX$100,11,FALSE),"") -> 0 | N57: =IF(ISTEXT($D56),HLOOKUP($D56,DEBUT!$O$3:$XX$100,12,FALSE),"") -> J | O57: 2 | P57: Carton contrôle | Q57: 1 | R57: / 2
D58: Validé | E58: =IF($D58=DEBUT!$L$5,E59,"") -> 7 | F58: =IF($D58=DEBUT!$L$5,F59,"") -> 10 | G58: =IF($D58=DEBUT!$L$5,G59,"") -> 11 | H58: =IF($D58=DEBUT!$L$5,H59,"") -> 1 | I58: =IF($D58=DEBUT!$L$5,I59,"") -> 76 | J58: =IF($D58=DEBUT!$L$5,J59,"") -> 46 | K58: =IF($D58=DEBUT!$L$5,K59,"") -> 12 | L58: =IF($D58=DEBUT!$L$5,L59,"") ->  | M58: =IF($D58=DEBUT!$L$5,M59,"") ->  | N58: =IF($D58=DEBUT!$L$5,N59,"") -> 16 | P58: Conduite itinéraire | Q58: =IF($Q$4=DEBUT!$K$6,HLOOKUP(Q59,REFERENTIELS!$E$7:$M$8,2,TRUE)+COUNTIF(E60:N60,2)*0.5,HLOOKUP(Q59,REFERENTIELS!$E$7:$M$8,2,TRUE)+COUNTIF(E60:N60,3)*0.5) -> 7.5 | R58: / 10
D59: Balises CM | E59: =IFERROR(INDEX(baliseCM,MATCH(E57,lettre,0),MATCH($D55,parcours,0)),"") -> 7 | F59: =IFERROR(INDEX(baliseCM,MATCH(F57,lettre,0),MATCH($D55,parcours,0)),"") -> 10 | G59: 11 | H59: 1 | I59: 76 | J59: 46 | K59: 12 | N59: 16 | P59: Nombre balises justes | Q59: =COUNTIF(E60:N60,">0") -> 8 | R59: =IF(Q59>1,"trouvées","trouvée") -> trouvées
D60: Points | E60: =IF(E59=E58,IFERROR(INDEX(baliseCM,MATCH(E57,lettre,0),MATCH($U60,parcours,0)),""),"") -> 1 | F60: 2 | G60: 2 | H60: 2 | I60: 3 | J60: 3 | K60: 3 | N60: 3 | P60: Note | Q60: =Q55+Q56+Q57+Q58 ->  | R60: /20 | U60: =CONCATENATE(D56,"points") -> 14ORANGEpoints
B61: EQUIPE 9 | N61: =(HOUR(M62)*3600+MINUTE(M62)*60+SECOND(M62))-(HOUR($M$2)*3600+MINUTE($M$2)*60+SECOND($M$2)) ->  | T61: Analyse du parcours
D62: =CONCATENATE(D63,"bis") -> 14ORANGEbis | E62: 22:22:08 | K62: Durée : | M62: =I62-E62 -> -0.932037037 | P62: Vitesse de course | Q62: =IF(AND(N61<0,Q66=8),HLOOKUP(N61,REFERENTIELS!$E$33:$I$34,2,TRUE),IF(AND(N61<=0,Q66<>8),2,HLOOKUP(N61,REFERENTIELS!$I$33:$L$34,2,TRUE))) ->  | R62: / 6
D63: =$H$2 -> 14ORANGE | E63: =SQRT(POWER((VLOOKUP(E65,DEBUT!$D$5:$J$110,6,FALSE)-VLOOKUP(F65,DEBUT!$D$5:$J$110,6,FALSE)),2)+POWER((VLOOKUP(E65,DEBUT!$D$5:$J$110,7,FALSE)-VLOOKUP(F65,DEBUT!$D$5:$J$110,7,FALSE)),2))/CARTE!$O$9 -> 292.4132321 | F63: =SQRT(POWER((VLOOKUP(F65,DEBUT!$D$5:$J$110,6,FALSE)-VLOOKUP(G65,DEBUT!$D$5:$J$110,6,FALSE)),2)+POWER((VLOOKUP(F65,DEBUT!$D$5:$J$110,7,FALSE)-VLOOKUP(G65,DEBUT!$D$5:$J$110,7,FALSE)),2))/CARTE!$O$9 -> 185.4526003 | G63: =SQRT(POWER((VLOOKUP(G65,DEBUT!$D$5:$J$110,6,FALSE)-VLOOKUP(H65,DEBUT!$D$5:$J$110,6,FALSE)),2)+POWER((VLOOKUP(G65,DEBUT!$D$5:$J$110,7,FALSE)-VLOOKUP(H65,DEBUT!$D$5:$J$110,7,FALSE)),2))/CARTE!$O$9 -> 388.8815813 | H63: =SQRT(POWER((VLOOKUP(H65,DEBUT!$D$5:$J$110,6,FALSE)-VLOOKUP(I65,DEBUT!$D$5:$J$110,6,FALSE)),2)+POWER((VLOOKUP(H65,DEBUT!$D$5:$J$110,7,FALSE)-VLOOKUP(I65,DEBUT!$D$5:$J$110,7,FALSE)),2))/CARTE!$O$9 -> 1321.193177 | I63: =SQRT(POWER((VLOOKUP(I65,DEBUT!$D$5:$J$110,6,FALSE)-VLOOKUP(J65,DEBUT!$D$5:$J$110,6,FALSE)),2)+POWER((VLOOKUP(I65,DEBUT!$D$5:$J$110,7,FALSE)-VLOOKUP(J65,DEBUT!$D$5:$J$110,7,FALSE)),2))/CARTE!$O$9 -> 621.6561772 | J63: =SQRT(POWER((VLOOKUP(J65,DEBUT!$D$5:$J$110,6,FALSE)-VLOOKUP(K65,DEBUT!$D$5:$J$110,6,FALSE)),2)+POWER((VLOOKUP(J65,DEBUT!$D$5:$J$110,7,FALSE)-VLOOKUP(K65,DEBUT!$D$5:$J$110,7,FALSE)),2))/CARTE!$O$9 -> 593.1870339 | K63: =SQRT(POWER((VLOOKUP(K65,DEBUT!$D$5:$J$110,6,FALSE)-VLOOKUP(L65,DEBUT!$D$5:$J$110,6,FALSE)),2)+POWER((VLOOKUP(K65,DEBUT!$D$5:$J$110,7,FALSE)-VLOOKUP(L65,DEBUT!$D$5:$J$110,7,FALSE)),2))/CARTE!$O$9 ->  | L63: =SQRT(POWER((VLOOKUP(L65,DEBUT!$D$5:$J$110,6,FALSE)-VLOOKUP(M65,DEBUT!$D$5:$J$110,6,FALSE)),2)+POWER((VLOOKUP(L65,DEBUT!$D$5:$J$110,7,FALSE)-VLOOKUP(M65,DEBUT!$D$5:$J$110,7,FALSE)),2))/CARTE!$O$9 ->  | M63: =SQRT(POWER((VLOOKUP(M65,DEBUT!$D$5:$J$110,6,FALSE)-VLOOKUP(N65,DEBUT!$D$5:$J$110,6,FALSE)),2)+POWER((VLOOKUP(M65,DEBUT!$D$5:$J$110,7,FALSE)-VLOOKUP(N65,DEBUT!$D$5:$J$110,7,FALSE)),2))/CARTE!$O$9 ->  | N63: =SQRT(POWER((VLOOKUP(N65,DEBUT!$D$5:$J$110,6,FALSE)-VLOOKUP(O65,DEBUT!$D$5:$J$110,6,FALSE)),2)+POWER((VLOOKUP(N65,DEBUT!$D$5:$J$110,7,FALSE)-VLOOKUP(O65,DEBUT!$D$5:$J$110,7,FALSE)),2))/CARTE!$O$9 -> 1002.187204 | P63: Analyse | R63: / 2
D64: Balises prévues | E64: =IF(ISTEXT($D63),HLOOKUP($D63,DEBUT!$O$3:$XX$100,3,FALSE),"") -> A | F64: =IF(ISTEXT($D63),HLOOKUP($D63,DEBUT!$O$3:$XX$100,4,FALSE),"") -> B | G64: =IF(ISTEXT($D63),HLOOKUP($D63,DEBUT!$O$3:$XX$100,5,FALSE),"") -> C | H64: =IF(ISTEXT($D63),HLOOKUP($D63,DEBUT!$O$3:$XX$100,6,FALSE),"") -> D | I64: =IF(ISTEXT($D63),HLOOKUP($D63,DEBUT!$O$3:$XX$100,7,FALSE),"") -> E | J64: =IF(ISTEXT($D63),HLOOKUP($D63,DEBUT!$O$3:$XX$100,8,FALSE),"") -> F | K64: =IF(ISTEXT($D63),HLOOKUP($D63,DEBUT!$O$3:$XX$100,9,FALSE),"") -> G | L64: =IF(ISTEXT($D63),HLOOKUP($D63,DEBUT!$O$3:$XX$100,10,FALSE),"") -> 0 | M64: =IF(ISTEXT($D63),HLOOKUP($D63,DEBUT!$O$3:$XX$100,11,FALSE),"") -> 0 | N64: =IF(ISTEXT($D63),HLOOKUP($D63,DEBUT!$O$3:$XX$100,12,FALSE),"") -> J | O64: 2 | P64: Carton contrôle | Q64: 1 | R64: / 2
D65: Validé | E65: =IF($D65=DEBUT!$L$5,E66,"") -> 7 | F65: =IF($D65=DEBUT!$L$5,F66,"") -> 10 | G65: =IF($D65=DEBUT!$L$5,G66,"") -> 11 | H65: =IF($D65=DEBUT!$L$5,H66,"") -> 1 | I65: =IF($D65=DEBUT!$L$5,I66,"") -> 76 | J65: =IF($D65=DEBUT!$L$5,J66,"") -> 46 | K65: =IF($D65=DEBUT!$L$5,K66,"") -> 12 | L65: =IF($D65=DEBUT!$L$5,L66,"") ->  | M65: =IF($D65=DEBUT!$L$5,M66,"") ->  | N65: =IF($D65=DEBUT!$L$5,N66,"") -> 16 | P65: Conduite itinéraire | Q65: =IF($Q$4=DEBUT!$K$6,HLOOKUP(Q66,REFERENTIELS!$E$7:$M$8,2,TRUE)+COUNTIF(E67:N67,2)*0.5,HLOOKUP(Q66,REFERENTIELS!$E$7:$M$8,2,TRUE)+COUNTIF(E67:N67,3)*0.5) -> 7.5 | R65: / 10
D66: Balises CM | E66: =IFERROR(INDEX(baliseCM,MATCH(E64,lettre,0),MATCH($D62,parcours,0)),"") -> 7 | F66: =IFERROR(INDEX(baliseCM,MATCH(F64,lettre,0),MATCH($D62,parcours,0)),"") -> 10 | G66: 11 | H66: 1 | I66: 76 | J66: 46 | K66: 12 | N66: 16 | P66: Nombre balises justes | Q66: =COUNTIF(E67:N67,">0") -> 8 | R66: =IF(Q66>1,"trouvées","trouvée") -> trouvées
D67: Points | E67: =IF(E66=E65,IFERROR(INDEX(baliseCM,MATCH(E64,lettre,0),MATCH($U67,parcours,0)),""),"") -> 1 | F67: 2 | G67: 2 | H67: 2 | I67: 3 | J67: 3 | K67: 3 | N67: 3 | P67: Note | Q67: =Q62+Q63+Q64+Q65 ->  | R67: /20 | U67: =CONCATENATE(D63,"points") -> 14ORANGEpoints
B68: EQUIPE 10 | N68: =(HOUR(M69)*3600+MINUTE(M69)*60+SECOND(M69))-(HOUR($M$2)*3600+MINUTE($M$2)*60+SECOND($M$2)) ->  | T68: Analyse du parcours
D69: =CONCATENATE(D70,"bis") -> 14ORANGEbis | E69: 22:22:08 | K69: Durée : | M69: =I69-E69 -> -0.932037037 | P69: Vitesse de course | Q69: =IF(AND(N68<0,Q73=8),HLOOKUP(N68,REFERENTIELS!$E$33:$I$34,2,TRUE),IF(AND(N68<=0,Q73<>8),2,HLOOKUP(N68,REFERENTIELS!$I$33:$L$34,2,TRUE))) ->  | R69: / 6
D70: =$H$2 -> 14ORANGE | E70: =SQRT(POWER((VLOOKUP(E72,DEBUT!$D$5:$J$110,6,FALSE)-VLOOKUP(F72,DEBUT!$D$5:$J$110,6,FALSE)),2)+POWER((VLOOKUP(E72,DEBUT!$D$5:$J$110,7,FALSE)-VLOOKUP(F72,DEBUT!$D$5:$J$110,7,FALSE)),2))/CARTE!$O$9 -> 292.4132321 | F70: =SQRT(POWER((VLOOKUP(F72,DEBUT!$D$5:$J$110,6,FALSE)-VLOOKUP(G72,DEBUT!$D$5:$J$110,6,FALSE)),2)+POWER((VLOOKUP(F72,DEBUT!$D$5:$J$110,7,FALSE)-VLOOKUP(G72,DEBUT!$D$5:$J$110,7,FALSE)),2))/CARTE!$O$9 -> 185.4526003 | G70: =SQRT(POWER((VLOOKUP(G72,DEBUT!$D$5:$J$110,6,FALSE)-VLOOKUP(H72,DEBUT!$D$5:$J$110,6,FALSE)),2)+POWER((VLOOKUP(G72,DEBUT!$D$5:$J$110,7,FALSE)-VLOOKUP(H72,DEBUT!$D$5:$J$110,7,FALSE)),2))/CARTE!$O$9 -> 388.8815813 | H70: =SQRT(POWER((VLOOKUP(H72,DEBUT!$D$5:$J$110,6,FALSE)-VLOOKUP(I72,DEBUT!$D$5:$J$110,6,FALSE)),2)+POWER((VLOOKUP(H72,DEBUT!$D$5:$J$110,7,FALSE)-VLOOKUP(I72,DEBUT!$D$5:$J$110,7,FALSE)),2))/CARTE!$O$9 -> 1321.193177 | I70: =SQRT(POWER((VLOOKUP(I72,DEBUT!$D$5:$J$110,6,FALSE)-VLOOKUP(J72,DEBUT!$D$5:$J$110,6,FALSE)),2)+POWER((VLOOKUP(I72,DEBUT!$D$5:$J$110,7,FALSE)-VLOOKUP(J72,DEBUT!$D$5:$J$110,7,FALSE)),2))/CARTE!$O$9 -> 621.6561772 | J70: =SQRT(POWER((VLOOKUP(J72,DEBUT!$D$5:$J$110,6,FALSE)-VLOOKUP(K72,DEBUT!$D$5:$J$110,6,FALSE)),2)+POWER((VLOOKUP(J72,DEBUT!$D$5:$J$110,7,FALSE)-VLOOKUP(K72,DEBUT!$D$5:$J$110,7,FALSE)),2))/CARTE!$O$9 -> 593.1870339 | K70: =SQRT(POWER((VLOOKUP(K72,DEBUT!$D$5:$J$110,6,FALSE)-VLOOKUP(L72,DEBUT!$D$5:$J$110,6,FALSE)),2)+POWER((VLOOKUP(K72,DEBUT!$D$5:$J$110,7,FALSE)-VLOOKUP(L72,DEBUT!$D$5:$J$110,7,FALSE)),2))/CARTE!$O$9 ->  | L70: =SQRT(POWER((VLOOKUP(L72,DEBUT!$D$5:$J$110,6,FALSE)-VLOOKUP(M72,DEBUT!$D$5:$J$110,6,FALSE)),2)+POWER((VLOOKUP(L72,DEBUT!$D$5:$J$110,7,FALSE)-VLOOKUP(M72,DEBUT!$D$5:$J$110,7,FALSE)),2))/CARTE!$O$9 ->  | M70: =SQRT(POWER((VLOOKUP(M72,DEBUT!$D$5:$J$110,6,FALSE)-VLOOKUP(N72,DEBUT!$D$5:$J$110,6,FALSE)),2)+POWER((VLOOKUP(M72,DEBUT!$D$5:$J$110,7,FALSE)-VLOOKUP(N72,DEBUT!$D$5:$J$110,7,FALSE)),2))/CARTE!$O$9 ->  | N70: =SQRT(POWER((VLOOKUP(N72,DEBUT!$D$5:$J$110,6,FALSE)-VLOOKUP(O72,DEBUT!$D$5:$J$110,6,FALSE)),2)+POWER((VLOOKUP(N72,DEBUT!$D$5:$J$110,7,FALSE)-VLOOKUP(O72,DEBUT!$D$5:$J$110,7,FALSE)),2))/CARTE!$O$9 -> 1002.187204 | P70: Analyse | R70: / 2
D71: Balises prévues | E71: =IF(ISTEXT($D70),HLOOKUP($D70,DEBUT!$O$3:$XX$100,3,FALSE),"") -> A | F71: =IF(ISTEXT($D70),HLOOKUP($D70,DEBUT!$O$3:$XX$100,4,FALSE),"") -> B | G71: =IF(ISTEXT($D70),HLOOKUP($D70,DEBUT!$O$3:$XX$100,5,FALSE),"") -> C | H71: =IF(ISTEXT($D70),HLOOKUP($D70,DEBUT!$O$3:$XX$100,6,FALSE),"") -> D | I71: =IF(ISTEXT($D70),HLOOKUP($D70,DEBUT!$O$3:$XX$100,7,FALSE),"") -> E | J71: =IF(ISTEXT($D70),HLOOKUP($D70,DEBUT!$O$3:$XX$100,8,FALSE),"") -> F | K71: =IF(ISTEXT($D70),HLOOKUP($D70,DEBUT!$O$3:$XX$100,9,FALSE),"") -> G | L71: =IF(ISTEXT($D70),HLOOKUP($D70,DEBUT!$O$3:$XX$100,10,FALSE),"") -> 0 | M71: =IF(ISTEXT($D70),HLOOKUP($D70,DEBUT!$O$3:$XX$100,11,FALSE),"") -> 0 | N71: =IF(ISTEXT($D70),HLOOKUP($D70,DEBUT!$O$3:$XX$100,12,FALSE),"") -> J | O71: 2 | P71: Carton contrôle | Q71: 1 | R71: / 2
D72: Validé | E72: =IF($D72=DEBUT!$L$5,E73,"") -> 7 | F72: =IF($D72=DEBUT!$L$5,F73,"") -> 10 | G72: =IF($D72=DEBUT!$L$5,G73,"") -> 11 | H72: =IF($D72=DEBUT!$L$5,H73,"") -> 1 | I72: =IF($D72=DEBUT!$L$5,I73,"") -> 76 | J72: =IF($D72=DEBUT!$L$5,J73,"") -> 46 | K72: =IF($D72=DEBUT!$L$5,K73,"") -> 12 | L72: =IF($D72=DEBUT!$L$5,L73,"") ->  | M72: =IF($D72=DEBUT!$L$5,M73,"") ->  | N72: =IF($D72=DEBUT!$L$5,N73,"") -> 16 | P72: Conduite itinéraire | Q72: =IF($Q$4=DEBUT!$K$6,HLOOKUP(Q73,REFERENTIELS!$E$7:$M$8,2,TRUE)+COUNTIF(E74:N74,2)*0.5,HLOOKUP(Q73,REFERENTIELS!$E$7:$M$8,2,TRUE)+COUNTIF(E74:N74,3)*0.5) -> 7.5 | R72: / 10
D73: Balises CM | E73: =IFERROR(INDEX(baliseCM,MATCH(E71,lettre,0),MATCH($D69,parcours,0)),"") -> 7 | F73: =IFERROR(INDEX(baliseCM,MATCH(F71,lettre,0),MATCH($D69,parcours,0)),"") -> 10 | G73: 11 | H73: 1 | I73: 76 | J73: 46 | K73: 12 | N73: 16 | P73: Nombre balises justes | Q73: =COUNTIF(E74:N74,">0") -> 8 | R73: =IF(Q73>1,"trouvées","trouvée") -> trouvées
D74: Points | E74: =IF(E73=E72,IFERROR(INDEX(baliseCM,MATCH(E71,lettre,0),MATCH($U74,parcours,0)),""),"") -> 1 | F74: 2 | G74: 2 | H74: 2 | I74: 3 | J74: 3 | K74: 3 | N74: 3 | P74: Note | Q74: =Q69+Q70+Q71+Q72 ->  | R74: /20 | U74: =CONCATENATE(D70,"points") -> 14ORANGEpoints
B75: EQUIPE 11 | N75: =(HOUR(M76)*3600+MINUTE(M76)*60+SECOND(M76))-(HOUR($M$2)*3600+MINUTE($M$2)*60+SECOND($M$2)) ->  | T75: Analyse du parcours
D76: =CONCATENATE(D77,"bis") -> 14ORANGEbis | E76: 22:22:09 | K76: Durée : | M76: =I76-E76 -> -0.9320486111 | P76: Vitesse de course | Q76: =IF(AND(N75<0,Q80=8),HLOOKUP(N75,REFERENTIELS!$E$33:$I$34,2,TRUE),IF(AND(N75<=0,Q80<>8),2,HLOOKUP(N75,REFERENTIELS!$I$33:$L$34,2,TRUE))) ->  | R76: / 6
D77: =$H$2 -> 14ORANGE | E77: =SQRT(POWER((VLOOKUP(E79,DEBUT!$D$5:$J$110,6,FALSE)-VLOOKUP(F79,DEBUT!$D$5:$J$110,6,FALSE)),2)+POWER((VLOOKUP(E79,DEBUT!$D$5:$J$110,7,FALSE)-VLOOKUP(F79,DEBUT!$D$5:$J$110,7,FALSE)),2))/CARTE!$O$9 -> 292.4132321 | F77: =SQRT(POWER((VLOOKUP(F79,DEBUT!$D$5:$J$110,6,FALSE)-VLOOKUP(G79,DEBUT!$D$5:$J$110,6,FALSE)),2)+POWER((VLOOKUP(F79,DEBUT!$D$5:$J$110,7,FALSE)-VLOOKUP(G79,DEBUT!$D$5:$J$110,7,FALSE)),2))/CARTE!$O$9 -> 185.4526003 | G77: =SQRT(POWER((VLOOKUP(G79,DEBUT!$D$5:$J$110,6,FALSE)-VLOOKUP(H79,DEBUT!$D$5:$J$110,6,FALSE)),2)+POWER((VLOOKUP(G79,DEBUT!$D$5:$J$110,7,FALSE)-VLOOKUP(H79,DEBUT!$D$5:$J$110,7,FALSE)),2))/CARTE!$O$9 -> 388.8815813 | H77: =SQRT(POWER((VLOOKUP(H79,DEBUT!$D$5:$J$110,6,FALSE)-VLOOKUP(I79,DEBUT!$D$5:$J$110,6,FALSE)),2)+POWER((VLOOKUP(H79,DEBUT!$D$5:$J$110,7,FALSE)-VLOOKUP(I79,DEBUT!$D$5:$J$110,7,FALSE)),2))/CARTE!$O$9 -> 1321.193177 | I77: =SQRT(POWER((VLOOKUP(I79,DEBUT!$D$5:$J$110,6,FALSE)-VLOOKUP(J79,DEBUT!$D$5:$J$110,6,FALSE)),2)+POWER((VLOOKUP(I79,DEBUT!$D$5:$J$110,7,FALSE)-VLOOKUP(J79,DEBUT!$D$5:$J$110,7,FALSE)),2))/CARTE!$O$9 -> 621.6561772 | J77: =SQRT(POWER((VLOOKUP(J79,DEBUT!$D$5:$J$110,6,FALSE)-VLOOKUP(K79,DEBUT!$D$5:$J$110,6,FALSE)),2)+POWER((VLOOKUP(J79,DEBUT!$D$5:$J$110,7,FALSE)-VLOOKUP(K79,DEBUT!$D$5:$J$110,7,FALSE)),2))/CARTE!$O$9 -> 593.1870339 | K77: =SQRT(POWER((VLOOKUP(K79,DEBUT!$D$5:$J$110,6,FALSE)-VLOOKUP(L79,DEBUT!$D$5:$J$110,6,FALSE)),2)+POWER((VLOOKUP(K79,DEBUT!$D$5:$J$110,7,FALSE)-VLOOKUP(L79,DEBUT!$D$5:$J$110,7,FALSE)),2))/CARTE!$O$9 ->  | L77: =SQRT(POWER((VLOOKUP(L79,DEBUT!$D$5:$J$110,6,FALSE)-VLOOKUP(M79,DEBUT!$D$5:$J$110,6,FALSE)),2)+POWER((VLOOKUP(L79,DEBUT!$D$5:$J$110,7,FALSE)-VLOOKUP(M79,DEBUT!$D$5:$J$110,7,FALSE)),2))/CARTE!$O$9 ->  | M77: =SQRT(POWER((VLOOKUP(M79,DEBUT!$D$5:$J$110,6,FALSE)-VLOOKUP(N79,DEBUT!$D$5:$J$110,6,FALSE)),2)+POWER((VLOOKUP(M79,DEBUT!$D$5:$J$110,7,FALSE)-VLOOKUP(N79,DEBUT!$D$5:$J$110,7,FALSE)),2))/CARTE!$O$9 ->  | N77: =SQRT(POWER((VLOOKUP(N79,DEBUT!$D$5:$J$110,6,FALSE)-VLOOKUP(O79,DEBUT!$D$5:$J$110,6,FALSE)),2)+POWER((VLOOKUP(N79,DEBUT!$D$5:$J$110,7,FALSE)-VLOOKUP(O79,DEBUT!$D$5:$J$110,7,FALSE)),2))/CARTE!$O$9 -> 1002.187204 | P77: Analyse | R77: / 2
D78: Balises prévues | E78: =IF(ISTEXT($D77),HLOOKUP($D77,DEBUT!$O$3:$XX$100,3,FALSE),"") -> A | F78: =IF(ISTEXT($D77),HLOOKUP($D77,DEBUT!$O$3:$XX$100,4,FALSE),"") -> B | G78: =IF(ISTEXT($D77),HLOOKUP($D77,DEBUT!$O$3:$XX$100,5,FALSE),"") -> C | H78: =IF(ISTEXT($D77),HLOOKUP($D77,DEBUT!$O$3:$XX$100,6,FALSE),"") -> D | I78: =IF(ISTEXT($D77),HLOOKUP($D77,DEBUT!$O$3:$XX$100,7,FALSE),"") -> E | J78: =IF(ISTEXT($D77),HLOOKUP($D77,DEBUT!$O$3:$XX$100,8,FALSE),"") -> F | K78: =IF(ISTEXT($D77),HLOOKUP($D77,DEBUT!$O$3:$XX$100,9,FALSE),"") -> G | L78: =IF(ISTEXT($D77),HLOOKUP($D77,DEBUT!$O$3:$XX$100,10,FALSE),"") -> 0 | M78: =IF(ISTEXT($D77),HLOOKUP($D77,DEBUT!$O$3:$XX$100,11,FALSE),"") -> 0 | N78: =IF(ISTEXT($D77),HLOOKUP($D77,DEBUT!$O$3:$XX$100,12,FALSE),"") -> J | O78: 2 | P78: Carton contrôle | Q78: 1 | R78: / 2
D79: Validé | E79: =IF($D79=DEBUT!$L$5,E80,"") -> 7 | F79: =IF($D79=DEBUT!$L$5,F80,"") -> 10 | G79: =IF($D79=DEBUT!$L$5,G80,"") -> 11 | H79: =IF($D79=DEBUT!$L$5,H80,"") -> 1 | I79: =IF($D79=DEBUT!$L$5,I80,"") -> 76 | J79: =IF($D79=DEBUT!$L$5,J80,"") -> 46 | K79: =IF($D79=DEBUT!$L$5,K80,"") -> 12 | L79: =IF($D79=DEBUT!$L$5,L80,"") ->  | M79: =IF($D79=DEBUT!$L$5,M80,"") ->  | N79: =IF($D79=DEBUT!$L$5,N80,"") -> 16 | P79: Conduite itinéraire | Q79: =IF($Q$4=DEBUT!$K$6,HLOOKUP(Q80,REFERENTIELS!$E$7:$M$8,2,TRUE)+COUNTIF(E81:N81,2)*0.5,HLOOKUP(Q80,REFERENTIELS!$E$7:$M$8,2,TRUE)+COUNTIF(E81:N81,3)*0.5) -> 7.5 | R79: / 10
D80: Balises CM | E80: =IFERROR(INDEX(baliseCM,MATCH(E78,lettre,0),MATCH($D76,parcours,0)),"") -> 7 | F80: =IFERROR(INDEX(baliseCM,MATCH(F78,lettre,0),MATCH($D76,parcours,0)),"") -> 10 | G80: 11 | H80: 1 | I80: 76 | J80: 46 | K80: 12 | N80: 16 | P80: Nombre balises justes | Q80: =COUNTIF(E81:N81,">0") -> 8 | R80: =IF(Q80>1,"trouvées","trouvée") -> trouvées
D81: Points | E81: =IF(E80=E79,IFERROR(INDEX(baliseCM,MATCH(E78,lettre,0),MATCH($U81,parcours,0)),""),"") -> 1 | F81: 2 | G81: 2 | H81: 2 | I81: 3 | J81: 3 | K81: 3 | N81: 3 | P81: Note | Q81: =Q76+Q77+Q78+Q79 ->  | R81: /20 | U81: =CONCATENATE(D77,"points") -> 14ORANGEpoints
B82: EQUIPE 12 | N82: =(HOUR(M83)*3600+MINUTE(M83)*60+SECOND(M83))-(HOUR($M$2)*3600+MINUTE($M$2)*60+SECOND($M$2)) ->  | T82: Analyse du parcours
B83: Alexandre | D83: =CONCATENATE(D84,"bis") -> 14ORANGEbis | E83: 22:22:09 | I83: 22:15:22 | K83: Durée : | M83: =I83-E83 -> -0.004710648148 | P83: Vitesse de course | Q83: =IF(AND(N82<0,Q87=8),HLOOKUP(N82,REFERENTIELS!$E$33:$I$34,2,TRUE),IF(AND(N82<=0,Q87<>8),2,HLOOKUP(N82,REFERENTIELS!$I$33:$L$34,2,TRUE))) ->  | R83: / 6
B84: Christian | D84: =$H$2 -> 14ORANGE | E84: =SQRT(POWER((VLOOKUP(E86,DEBUT!$D$5:$J$110,6,FALSE)-VLOOKUP(F86,DEBUT!$D$5:$J$110,6,FALSE)),2)+POWER((VLOOKUP(E86,DEBUT!$D$5:$J$110,7,FALSE)-VLOOKUP(F86,DEBUT!$D$5:$J$110,7,FALSE)),2))/CARTE!$O$9 -> 292.4132321 | F84: =SQRT(POWER((VLOOKUP(F86,DEBUT!$D$5:$J$110,6,FALSE)-VLOOKUP(G86,DEBUT!$D$5:$J$110,6,FALSE)),2)+POWER((VLOOKUP(F86,DEBUT!$D$5:$J$110,7,FALSE)-VLOOKUP(G86,DEBUT!$D$5:$J$110,7,FALSE)),2))/CARTE!$O$9 -> 185.4526003 | G84: =SQRT(POWER((VLOOKUP(G86,DEBUT!$D$5:$J$110,6,FALSE)-VLOOKUP(H86,DEBUT!$D$5:$J$110,6,FALSE)),2)+POWER((VLOOKUP(G86,DEBUT!$D$5:$J$110,7,FALSE)-VLOOKUP(H86,DEBUT!$D$5:$J$110,7,FALSE)),2))/CARTE!$O$9 -> 388.8815813 | H84: =SQRT(POWER((VLOOKUP(H86,DEBUT!$D$5:$J$110,6,FALSE)-VLOOKUP(I86,DEBUT!$D$5:$J$110,6,FALSE)),2)+POWER((VLOOKUP(H86,DEBUT!$D$5:$J$110,7,FALSE)-VLOOKUP(I86,DEBUT!$D$5:$J$110,7,FALSE)),2))/CARTE!$O$9 -> 1321.193177 | I84: =SQRT(POWER((VLOOKUP(I86,DEBUT!$D$5:$J$110,6,FALSE)-VLOOKUP(J86,DEBUT!$D$5:$J$110,6,FALSE)),2)+POWER((VLOOKUP(I86,DEBUT!$D$5:$J$110,7,FALSE)-VLOOKUP(J86,DEBUT!$D$5:$J$110,7,FALSE)),2))/CARTE!$O$9 -> 621.6561772 | J84: =SQRT(POWER((VLOOKUP(J86,DEBUT!$D$5:$J$110,6,FALSE)-VLOOKUP(K86,DEBUT!$D$5:$J$110,6,FALSE)),2)+POWER((VLOOKUP(J86,DEBUT!$D$5:$J$110,7,FALSE)-VLOOKUP(K86,DEBUT!$D$5:$J$110,7,FALSE)),2))/CARTE!$O$9 -> 593.1870339 | K84: =SQRT(POWER((VLOOKUP(K86,DEBUT!$D$5:$J$110,6,FALSE)-VLOOKUP(L86,DEBUT!$D$5:$J$110,6,FALSE)),2)+POWER((VLOOKUP(K86,DEBUT!$D$5:$J$110,7,FALSE)-VLOOKUP(L86,DEBUT!$D$5:$J$110,7,FALSE)),2))/CARTE!$O$9 ->  | L84: =SQRT(POWER((VLOOKUP(L86,DEBUT!$D$5:$J$110,6,FALSE)-VLOOKUP(M86,DEBUT!$D$5:$J$110,6,FALSE)),2)+POWER((VLOOKUP(L86,DEBUT!$D$5:$J$110,7,FALSE)-VLOOKUP(M86,DEBUT!$D$5:$J$110,7,FALSE)),2))/CARTE!$O$9 ->  | M84: =SQRT(POWER((VLOOKUP(M86,DEBUT!$D$5:$J$110,6,FALSE)-VLOOKUP(N86,DEBUT!$D$5:$J$110,6,FALSE)),2)+POWER((VLOOKUP(M86,DEBUT!$D$5:$J$110,7,FALSE)-VLOOKUP(N86,DEBUT!$D$5:$J$110,7,FALSE)),2))/CARTE!$O$9 ->  | N84: =SQRT(POWER((VLOOKUP(N86,DEBUT!$D$5:$J$110,6,FALSE)-VLOOKUP(O86,DEBUT!$D$5:$J$110,6,FALSE)),2)+POWER((VLOOKUP(N86,DEBUT!$D$5:$J$110,7,FALSE)-VLOOKUP(O86,DEBUT!$D$5:$J$110,7,FALSE)),2))/CARTE!$O$9 -> 1002.187204 | P84: Analyse | R84: / 2
B85: Claudine | D85: Balises prévues | E85: =IF(ISTEXT($D84),HLOOKUP($D84,DEBUT!$O$3:$XX$100,3,FALSE),"") -> A | F85: =IF(ISTEXT($D84),HLOOKUP($D84,DEBUT!$O$3:$XX$100,4,FALSE),"") -> B | G85: =IF(ISTEXT($D84),HLOOKUP($D84,DEBUT!$O$3:$XX$100,5,FALSE),"") -> C | H85: =IF(ISTEXT($D84),HLOOKUP($D84,DEBUT!$O$3:$XX$100,6,FALSE),"") -> D | I85: =IF(ISTEXT($D84),HLOOKUP($D84,DEBUT!$O$3:$XX$100,7,FALSE),"") -> E | J85: =IF(ISTEXT($D84),HLOOKUP($D84,DEBUT!$O$3:$XX$100,8,FALSE),"") -> F | K85: =IF(ISTEXT($D84),HLOOKUP($D84,DEBUT!$O$3:$XX$100,9,FALSE),"") -> G | L85: =IF(ISTEXT($D84),HLOOKUP($D84,DEBUT!$O$3:$XX$100,10,FALSE),"") -> 0 | M85: =IF(ISTEXT($D84),HLOOKUP($D84,DEBUT!$O$3:$XX$100,11,FALSE),"") -> 0 | N85: =IF(ISTEXT($D84),HLOOKUP($D84,DEBUT!$O$3:$XX$100,12,FALSE),"") -> J | O85: 2 | P85: Carton contrôle | Q85: 1 | R85: / 2
D86: Validé | E86: =IF($D86=DEBUT!$L$5,E$10,"") -> 7 | F86: =IF($D86=DEBUT!$L$5,F$10,"") -> 10 | G86: =IF($D86=DEBUT!$L$5,G$10,"") -> 11 | H86: =IF($D86=DEBUT!$L$5,H$10,"") -> 1 | I86: =IF($D86=DEBUT!$L$5,I$10,"") -> 76 | J86: =IF($D86=DEBUT!$L$5,J$10,"") -> 46 | K86: =IF($D86=DEBUT!$L$5,K$10,"") -> 12 | L86: =IF($D86=DEBUT!$L$5,L$10,"") ->  | M86: =IF($D86=DEBUT!$L$5,M$10,"") ->  | N86: =IF($D86=DEBUT!$L$5,N$10,"") -> 16 | P86: Conduite itinéraire | Q86: =IF($Q$4=DEBUT!$K$6,HLOOKUP(Q87,REFERENTIELS!$E$7:$M$8,2,TRUE)+COUNTIF(E88:N88,2)*0.5,HLOOKUP(Q87,REFERENTIELS!$E$7:$M$8,2,TRUE)+COUNTIF(E88:N88,3)*0.5) -> 7.5 | R86: / 10
D87: Balises CM | E87: =IFERROR(INDEX(baliseCM,MATCH(E85,lettre,0),MATCH($D83,parcours,0)),"") -> 7 | F87: =IFERROR(INDEX(baliseCM,MATCH(F85,lettre,0),MATCH($D83,parcours,0)),"") -> 10 | G87: 11 | H87: 1 | I87: 76 | J87: 46 | K87: 12 | N87: 16 | P87: Nombre balises justes | Q87: =COUNTIF(E88:N88,">0") -> 8 | R87: =IF(Q87>1,"trouvées","trouvée") -> trouvées
D88: Points | E88: =IF(E87=E86,IFERROR(INDEX(baliseCM,MATCH(E85,lettre,0),MATCH($U88,parcours,0)),""),"") -> 1 | F88: 2 | G88: 2 | H88: 2 | I88: 3 | J88: 3 | K88: 3 | N88: 3 | P88: Note | Q88: =Q83+Q84+Q85+Q86 ->  | R88: /20 | U88: =CONCATENATE(D84,"points") -> 14ORANGEpoints

Sheet ETOILE
H1: =CONCATENATE(H2,"bis") -> 21Stevebis | M1: Temps limite
B2: STAGE | E2: 23:08:42 | H2: 21Steve | M2: 30.02430556 | N2: min
I3: =IF(ISTEXT($H2),HLOOKUP($H2,DEBUT!$O$3:$XX$100,7,FALSE),"") -> E
I4: =IFERROR(INDEX(baliseCM,MATCH(I3,lettre,0),MATCH($H$1,parcours,0)),"") -> 35 | P4: ETOILE | Q4: N3
B5: EQUIPE 1 | C5: D | D5: 15:54:04 | E5: 15:54:06 | F5: 15:54:07 | G5: 15:54:09 | H5: 15:54:12 | I5: 15:54:13 | J5: 15:54:14 | K5: 15:54:15 | L5: 15:54:16 | M5: 15:54:17 | N5: 15:54:18 | T5: Analyse du parcours | AL5: 1 | AM5: =OFFSET(INDEX(eleves,MATCH(AL5,chiffre,0),MATCH($B$2,classes,0)),0,1) -> POL
B6: Alexandre | D6: =CONCATENATE(D7,"bis") -> 21Stevebis | E6: =E5-D5 -> 00:00:02 | F6: =F5-E5 -> 00:00:01 | G6: 00:00:02 | H6: 00:00:03 | I6: 00:00:01 | J6: 00:00:01 | K6: 00:00:01 | L6: 00:00:01 | M6: 00:00:01 | N6: 00:00:01 | P6: Temps de course | Q6: =SUMIF(E6:N6,">0",E6:N6) -> 00:00:14 | R6: =ABS((HOUR(Q6)*3600+MINUTE(Q6)*60+SECOND(Q6))) -> 14 | AL6: 2 | AM6: CARINE
D7: =$H$2 -> 21Steve | E7: =IFERROR(SQRT(POWER((VLOOKUP($C$5,DEBUT!$D$5:$J$110,6,FALSE)-VLOOKUP(E9,DEBUT!$D$5:$J$110,6,FALSE)),2)+POWER((VLOOKUP($C$5,DEBUT!$D$5:$J$110,7,FALSE)-VLOOKUP(E9,DEBUT!$D$5:$J$110,7,FALSE)),2))/CARTE!$O$9,0) -> 0 | F7: =IFERROR(SQRT(POWER((VLOOKUP($C$5,DEBUT!$D$5:$J$110,6,FALSE)-VLOOKUP(F9,DEBUT!$D$5:$J$110,6,FALSE)),2)+POWER((VLOOKUP($C$5,DEBUT!$D$5:$J$110,7,FALSE)-VLOOKUP(F9,DEBUT!$D$5:$J$110,7,FALSE)),2))/CARTE!$O$9,0) -> 0 | G7: =IFERROR(SQRT(POWER((VLOOKUP($C$5,DEBUT!$D$5:$J$110,6,FALSE)-VLOOKUP(G9,DEBUT!$D$5:$J$110,6,FALSE)),2)+POWER((VLOOKUP($C$5,DEBUT!$D$5:$J$110,7,FALSE)-VLOOKUP(G9,DEBUT!$D$5:$J$110,7,FALSE)),2))/CARTE!$O$9,0) -> 0 | H7: =IFERROR(SQRT(POWER((VLOOKUP($C$5,DEBUT!$D$5:$J$110,6,FALSE)-VLOOKUP(H9,DEBUT!$D$5:$J$110,6,FALSE)),2)+POWER((VLOOKUP($C$5,DEBUT!$D$5:$J$110,7,FALSE)-VLOOKUP(H9,DEBUT!$D$5:$J$110,7,FALSE)),2))/CARTE!$O$9,0) -> 0 | I7: =IFERROR(SQRT(POWER((VLOOKUP($C$5,DEBUT!$D$5:$J$110,6,FALSE)-VLOOKUP(I9,DEBUT!$D$5:$J$110,6,FALSE)),2)+POWER((VLOOKUP($C$5,DEBUT!$D$5:$J$110,7,FALSE)-VLOOKUP(I9,DEBUT!$D$5:$J$110,7,FALSE)),2))/CARTE!$O$9,0) -> 0 | J7: =IFERROR(SQRT(POWER((VLOOKUP($C$5,DEBUT!$D$5:$J$110,6,FALSE)-VLOOKUP(J9,DEBUT!$D$5:$J$110,6,FALSE)),2)+POWER((VLOOKUP($C$5,DEBUT!$D$5:$J$110,7,FALSE)-VLOOKUP(J9,DEBUT!$D$5:$J$110,7,FALSE)),2))/CARTE!$O$9,0) -> 0 | K7: =IFERROR(SQRT(POWER((VLOOKUP($C$5,DEBUT!$D$5:$J$110,6,FALSE)-VLOOKUP(K9,DEBUT!$D$5:$J$110,6,FALSE)),2)+POWER((VLOOKUP($C$5,DEBUT!$D$5:$J$110,7,FALSE)-VLOOKUP(K9,DEBUT!$D$5:$J$110,7,FALSE)),2))/CARTE!$O$9,0) -> 0 | L7: =IFERROR(SQRT(POWER((VLOOKUP($C$5,DEBUT!$D$5:$J$110,6,FALSE)-VLOOKUP(L9,DEBUT!$D$5:$J$110,6,FALSE)),2)+POWER((VLOOKUP($C$5,DEBUT!$D$5:$J$110,7,FALSE)-VLOOKUP(L9,DEBUT!$D$5:$J$110,7,FALSE)),2))/CARTE!$O$9,0) -> 0 | M7: =IFERROR(SQRT(POWER((VLOOKUP($C$5,DEBUT!$D$5:$J$110,6,FALSE)-VLOOKUP(M9,DEBUT!$D$5:$J$110,6,FALSE)),2)+POWER((VLOOKUP($C$5,DEBUT!$D$5:$J$110,7,FALSE)-VLOOKUP(M9,DEBUT!$D$5:$J$110,7,FALSE)),2))/CARTE!$O$9,0) -> 0 | N7: =IFERROR(SQRT(POWER((VLOOKUP($C$5,DEBUT!$D$5:$J$110,6,FALSE)-VLOOKUP(N9,DEBUT!$D$5:$J$110,6,FALSE)),2)+POWER((VLOOKUP($C$5,DEBUT!$D$5:$J$110,7,FALSE)-VLOOKUP(N9,DEBUT!$D$5:$J$110,7,FALSE)),2))/CARTE!$O$9,0) -> 0 | O7: m | P7: Distance | Q7: =SUM(E7:N7) -> 0 | R7: m | AL7: 3 | AM7: BASTIEN
D8: Balises prévues | E8: =IF(ISTEXT($D7),HLOOKUP($D7,DEBUT!$O$3:$XX$100,3,FALSE),"") -> A | F8: =IF(ISTEXT($D7),HLOOKUP($D7,DEBUT!$O$3:$XX$100,4,FALSE),"") -> B | G8: =IF(ISTEXT($D7),HLOOKUP($D7,DEBUT!$O$3:$XX$100,5,FALSE),"") -> C | H8: =IF(ISTEXT($D7),HLOOKUP($D7,DEBUT!$O$3:$XX$100,6,FALSE),"") -> D | I8: =IF(ISTEXT($D7),HLOOKUP($D7,DEBUT!$O$3:$XX$100,7,FALSE),"") -> E | J8: =IF(ISTEXT($D7),HLOOKUP($D7,DEBUT!$O$3:$XX$100,8,FALSE),"") -> F | K8: =IF(ISTEXT($D7),HLOOKUP($D7,DEBUT!$O$3:$XX$100,9,FALSE),"") -> G | L8: =IF(ISTEXT($D7),HLOOKUP($D7,DEBUT!$O$3:$XX$100,10,FALSE),"") -> H | M8: =IF(ISTEXT($D7),HLOOKUP($D7,DEBUT!$O$3:$XX$100,11,FALSE),"") -> I | N8: =IF(ISTEXT($D7),HLOOKUP($D7,DEBUT!$O$3:$XX$100,12,FALSE),"") -> J | P8: Nombre balises prévues | Q8: =SUMPRODUCT(N(ISTEXT(E8:N8))) -> 10 | R8: prévues | AL8: 4 | AM8: CORALINE
D9: En course | E9: =IF($D9=DEBUT!$L$5,E10,"") ->  | F9: =IF($D9=DEBUT!$L$5,F10,"") ->  | G9: =IF($D9=DEBUT!$L$5,G10,"") ->  | H9: =IF($D9=DEBUT!$L$5,H10,"") ->  | I9: =IF($D9=DEBUT!$L$5,I10,"") ->  | J9: =IF($D9=DEBUT!$L$5,J10,"") ->  | K9: =IF($D9=DEBUT!$L$5,K10,"") ->  | L9: =IF($D9=DEBUT!$L$5,L10,"") ->  | M9: =IF($D9=DEBUT!$L$5,M10,"") ->  | N9: =IF($D9=DEBUT!$L$5,N10,"") ->  | P9: Nombre balises trouvées | Q9: =SUMPRODUCT(N(ISNUMBER(E9:N9))) -> 0 | R9: =IF(Q9>1,"trouvées","trouvée") -> trouvée | AL9: 5 | AM9: GREGORY
D10: Balises CM | E10: =IFERROR(INDEX(baliseCM,MATCH(E8,lettre,0),MATCH($D6,parcours,0)),"") -> 12 | F10: =IFERROR(INDEX(baliseCM,MATCH(F8,lettre,0),MATCH($D6,parcours,0)),"") -> 13 | G10: 11 | H10: 16 | I10: 35 | J10: 28 | K10: 26 | L10: 40 | M10: 39 | N10: 45 | AL10: 6 | AM10: THOMAS
D11: Vitesse | E11: =(E7/ABS((HOUR(E6)*3600+MINUTE(E6)*60+SECOND(E6))))*3.6 -> 0 | F11: =(F7/ABS((HOUR(F6)*3600+MINUTE(F6)*60+SECOND(F6))))*3.6 -> 0 | G11: 0 | H11: 0 | I11: 0 | J11: 0 | K11: 0 | L11: 0 | M11: 0 | N11: =(N7/ABS((HOUR(N6)*3600+MINUTE(N6)*60+SECOND(N6))))*3.6 -> 0 | O11: Km/h | P11: Vitesse moyenne | Q11: =Q7/R6*3.6 -> 0 | R11: km/h | AL11: 7 | AM11: ALAIN
B12: EQUIPE 2 | D12: 11:32:48 | E12: 11:32:50 | F12: 11:32:51 | G12: 11:32:51 | H12: 11:32:52 | I12: 11:32:53 | J12: 11:32:54 | K12: 11:32:55 | L12: 11:32:56 | M12: 11:32:57 | N12: 11:33:00 | T12: Analyse du parcours | AL12: 8 | AM12: QUENTIN
D13: =CONCATENATE(D14,"bis") -> 21Stevebis | E13: =E12-D12 -> 00:00:02 | F13: =F12-E12 -> 00:00:01 | G13: =G12-F12 -> 00:00:00 | H13: =H12-G12 -> 00:00:01 | I13: =I12-H12 -> 00:00:01 | J13: =J12-I12 -> 00:00:01 | K13: =K12-J12 -> 00:00:01 | L13: =L12-K12 -> 00:00:01 | M13: =M12-L12 -> 00:00:01 | N13: =N12-M12 -> 00:00:03 | P13: Temps de course | Q13: =SUMIF(E13:N13,">0",E13:N13) -> 00:00:12 | R13: =ABS((HOUR(Q13)*3600+MINUTE(Q13)*60+SECOND(Q13))) -> 12 | AL13: 9 | AM13: BAPTISTE
D14: =$H$2 -> 21Steve | E14: =IFERROR(SQRT(POWER((VLOOKUP($C$5,DEBUT!$D$5:$J$110,6,FALSE)-VLOOKUP(E16,DEBUT!$D$5:$J$110,6,FALSE)),2)+POWER((VLOOKUP($C$5,DEBUT!$D$5:$J$110,7,FALSE)-VLOOKUP(E16,DEBUT!$D$5:$J$110,7,FALSE)),2))/CARTE!$O$9,0) -> 439.0808613 | F14: =IFERROR(SQRT(POWER((VLOOKUP($C$5,DEBUT!$D$5:$J$110,6,FALSE)-VLOOKUP(F16,DEBUT!$D$5:$J$110,6,FALSE)),2)+POWER((VLOOKUP($C$5,DEBUT!$D$5:$J$110,7,FALSE)-VLOOKUP(F16,DEBUT!$D$5:$J$110,7,FALSE)),2))/CARTE!$O$9,0) -> 522.9565707 | G14: =IFERROR(SQRT(POWER((VLOOKUP($C$5,DEBUT!$D$5:$J$110,6,FALSE)-VLOOKUP(G16,DEBUT!$D$5:$J$110,6,FALSE)),2)+POWER((VLOOKUP($C$5,DEBUT!$D$5:$J$110,7,FALSE)-VLOOKUP(G16,DEBUT!$D$5:$J$110,7,FALSE)),2))/CARTE!$O$9,0) -> 292.3681185 | H14: =IFERROR(SQRT(POWER((VLOOKUP($C$5,DEBUT!$D$5:$J$110,6,FALSE)-VLOOKUP(H16,DEBUT!$D$5:$J$110,6,FALSE)),2)+POWER((VLOOKUP($C$5,DEBUT!$D$5:$J$110,7,FALSE)-VLOOKUP(H16,DEBUT!$D$5:$J$110,7,FALSE)),2))/CARTE!$O$9,0) -> 347.7495012 | I14: =IFERROR(SQRT(POWER((VLOOKUP($C$5,DEBUT!$D$5:$J$110,6,FALSE)-VLOOKUP(I16,DEBUT!$D$5:$J$110,6,FALSE)),2)+POWER((VLOOKUP($C$5,DEBUT!$D$5:$J$110,7,FALSE)-VLOOKUP(I16,DEBUT!$D$5:$J$110,7,FALSE)),2))/CARTE!$O$9,0) -> 204.1483459 | J14: =IFERROR(SQRT(POWER((VLOOKUP($C$5,DEBUT!$D$5:$J$110,6,FALSE)-VLOOKUP(J16,DEBUT!$D$5:$J$110,6,FALSE)),2)+POWER((VLOOKUP($C$5,DEBUT!$D$5:$J$110,7,FALSE)-VLOOKUP(J16,DEBUT!$D$5:$J$110,7,FALSE)),2))/CARTE!$O$9,0) -> 588.0239501 | K14: =IFERROR(SQRT(POWER((VLOOKUP($C$5,DEBUT!$D$5:$J$110,6,FALSE)-VLOOKUP(K16,DEBUT!$D$5:$J$110,6,FALSE)),2)+POWER((VLOOKUP($C$5,DEBUT!$D$5:$J$110,7,FALSE)-VLOOKUP(K16,DEBUT!$D$5:$J$110,7,FALSE)),2))/CARTE!$O$9,0) -> 746.7129062 | L14: =IFERROR(SQRT(POWER((VLOOKUP($C$5,DEBUT!$D$5:$J$110,6,FALSE)-VLOOKUP(L16,DEBUT!$D$5:$J$110,6,FALSE)),2)+POWER((VLOOKUP($C$5,DEBUT!$D$5:$J$110,7,FALSE)-VLOOKUP(L16,DEBUT!$D$5:$J$110,7,FALSE)),2))/CARTE!$O$9,0) -> 422.6699126 | M14: =IFERROR(SQRT(POWER((VLOOKUP($C$5,DEBUT!$D$5:$J$110,6,FALSE)-VLOOKUP(M16,DEBUT!$D$5:$J$110,6,FALSE)),2)+POWER((VLOOKUP($C$5,DEBUT!$D$5:$J$110,7,FALSE)-VLOOKUP(M16,DEBUT!$D$5:$J$110,7,FALSE)),2))/CARTE!$O$9,0) -> 350.5463625 | N14: =IFERROR(SQRT(POWER((VLOOKUP($C$5,DEBUT!$D$5:$J$110,6,FALSE)-VLOOKUP(N16,DEBUT!$D$5:$J$110,6,FALSE)),2)+POWER((VLOOKUP($C$5,DEBUT!$D$5:$J$110,7,FALSE)-VLOOKUP(N16,DEBUT!$D$5:$J$110,7,FALSE)),2))/CARTE!$O$9,0) -> 365.2365685 | O14: m | P14: Distance | Q14: =SUM(E14:N14) -> 4279.493098 | R14: m | AL14: 10 | AM14: FRANCK
D15: Balises prévues | E15: =IF(ISTEXT($D14),HLOOKUP($D14,DEBUT!$O$3:$XX$100,3,FALSE),"") -> A | F15: =IF(ISTEXT($D14),HLOOKUP($D14,DEBUT!$O$3:$XX$100,4,FALSE),"") -> B | G15: =IF(ISTEXT($D14),HLOOKUP($D14,DEBUT!$O$3:$XX$100,5,FALSE),"") -> C | H15: =IF(ISTEXT($D14),HLOOKUP($D14,DEBUT!$O$3:$XX$100,6,FALSE),"") -> D | I15: =IF(ISTEXT($D14),HLOOKUP($D14,DEBUT!$O$3:$XX$100,7,FALSE),"") -> E | J15: =IF(ISTEXT($D14),HLOOKUP($D14,DEBUT!$O$3:$XX$100,8,FALSE),"") -> F | K15: =IF(ISTEXT($D14),HLOOKUP($D14,DEBUT!$O$3:$XX$100,9,FALSE),"") -> G | L15: =IF(ISTEXT($D14),HLOOKUP($D14,DEBUT!$O$3:$XX$100,10,FALSE),"") -> H | M15: =IF(ISTEXT($D14),HLOOKUP($D14,DEBUT!$O$3:$XX$100,11,FALSE),"") -> I | N15: =IF(ISTEXT($D14),HLOOKUP($D14,DEBUT!$O$3:$XX$100,12,FALSE),"") -> J | P15: Nombre balises prévues | Q15: =SUMPRODUCT(N(ISTEXT(E15:N15))) -> 10 | R15: prévues | AL15: 11 | AM15: VALENTIN
D16: Validé | E16: =IF($D16=DEBUT!$L$5,E17,"") -> 12 | F16: =IF($D16=DEBUT!$L$5,F17,"") -> 13 | G16: =IF($D16=DEBUT!$L$5,G17,"") -> 11 | H16: =IF($D16=DEBUT!$L$5,H17,"") -> 16 | I16: =IF($D16=DEBUT!$L$5,I17,"") -> 35 | J16: =IF($D16=DEBUT!$L$5,J17,"") -> 28 | K16: =IF($D16=DEBUT!$L$5,K17,"") -> 26 | L16: =IF($D16=DEBUT!$L$5,L17,"") -> 40 | M16: =IF($D16=DEBUT!$L$5,M17,"") -> 39 | N16: =IF($D16=DEBUT!$L$5,N17,"") -> 45 | P16: Nombre balises trouvées | Q16: =SUMPRODUCT(N(ISNUMBER(E16:N16))) -> 10 | R16: =IF(Q16>1,"trouvées","trouvée") -> trouvées | AL16: 12 | AM16: BENJAMIN
D17: Balises CM | E17: =IFERROR(INDEX(baliseCM,MATCH(E15,lettre,0),MATCH($D13,parcours,0)),"") -> 12 | F17: =IFERROR(INDEX(baliseCM,MATCH(F15,lettre,0),MATCH($D13,parcours,0)),"") -> 13 | G17: 11 | H17: 16 | I17: 35 | J17: 28 | K17: 26 | L17: 40 | M17: 39 | N17: 45 | AL17: 13 | AM17: ANDY
D18: Vitesse | E18: =(E14/ABS((HOUR(E13)*3600+MINUTE(E13)*60+SECOND(E13))))*3.6 -> 790.3455503 | F18: =(F14/ABS((HOUR(F13)*3600+MINUTE(F13)*60+SECOND(F13))))*3.6 -> 1882.643655 | H18: 1251.898204 | I18: 734.9340453 | J18: 2116.88622 | K18: 2688.166462 | L18: 1521.611685 | M18: 1261.966905 | N18: =(N14/ABS((HOUR(N13)*3600+MINUTE(N13)*60+SECOND(N13))))*3.6 -> 438.2838823 | O18: Km/h | P18: Vitesse moyenne | Q18: =Q14/R13*3.6 -> 1283.847929 | R18: km/h | AL18: 14 | AM18: OLIVIER
B19: EQUIPE 3 | D19: 11:34:16 | E19: 11:34:17 | F19: 11:34:18 | G19: 11:34:19 | H19: 11:34:20 | I19: 11:34:21 | J19: 11:34:22 | K19: 11:34:24 | L19: 11:34:25 | M19: 11:34:27 | N19: 11:34:29 | T19: Analyse du parcours | AL19: 15 | AM19: CHRISTIAN
D20: =CONCATENATE(D21,"bis") -> 21Stevebis | E20: =E19-D19 -> 00:00:01 | F20: =F19-E19 -> 00:00:01 | G20: =G19-F19 -> 00:00:01 | H20: =H19-G19 -> 00:00:01 | I20: =I19-H19 -> 00:00:01 | J20: =J19-I19 -> 00:00:01 | K20: =K19-J19 -> 00:00:02 | L20: =L19-K19 -> 00:00:01 | M20: =M19-L19 -> 00:00:02 | N20: =N19-M19 -> 00:00:02 | P20: Temps de course | Q20: =SUMIF(E20:N20,">0",E20:N20) -> 00:00:13 | R20: =ABS((HOUR(Q20)*3600+MINUTE(Q20)*60+SECOND(Q20))) -> 13 | AL20: 16 | AM20: CELINE
D21: =$H$2 -> 21Steve | E21: =IFERROR(SQRT(POWER((VLOOKUP($C$5,DEBUT!$D$5:$J$110,6,FALSE)-VLOOKUP(E23,DEBUT!$D$5:$J$110,6,FALSE)),2)+POWER((VLOOKUP($C$5,DEBUT!$D$5:$J$110,7,FALSE)-VLOOKUP(E23,DEBUT!$D$5:$J$110,7,FALSE)),2))/CARTE!$O$9,0) -> 439.0808613 | F21: =IFERROR(SQRT(POWER((VLOOKUP($C$5,DEBUT!$D$5:$J$110,6,FALSE)-VLOOKUP(F23,DEBUT!$D$5:$J$110,6,FALSE)),2)+POWER((VLOOKUP($C$5,DEBUT!$D$5:$J$110,7,FALSE)-VLOOKUP(F23,DEBUT!$D$5:$J$110,7,FALSE)),2))/CARTE!$O$9,0) -> 522.9565707 | G21: =IFERROR(SQRT(POWER((VLOOKUP($C$5,DEBUT!$D$5:$J$110,6,FALSE)-VLOOKUP(G23,DEBUT!$D$5:$J$110,6,FALSE)),2)+POWER((VLOOKUP($C$5,DEBUT!$D$5:$J$110,7,FALSE)-VLOOKUP(G23,DEBUT!$D$5:$J$110,7,FALSE)),2))/CARTE!$O$9,0) -> 292.3681185 | H21: =IFERROR(SQRT(POWER((VLOOKUP($C$5,DEBUT!$D$5:$J$110,6,FALSE)-VLOOKUP(H23,DEBUT!$D$5:$J$110,6,FALSE)),2)+POWER((VLOOKUP($C$5,DEBUT!$D$5:$J$110,7,FALSE)-VLOOKUP(H23,DEBUT!$D$5:$J$110,7,FALSE)),2))/CARTE!$O$9,0) -> 347.7495012 | I21: =IFERROR(SQRT(POWER((VLOOKUP($C$5,DEBUT!$D$5:$J$110,6,FALSE)-VLOOKUP(I23,DEBUT!$D$5:$J$110,6,FALSE)),2)+POWER((VLOOKUP($C$5,DEBUT!$D$5:$J$110,7,FALSE)-VLOOKUP(I23,DEBUT!$D$5:$J$110,7,FALSE)),2))/CARTE!$O$9,0) -> 204.1483459 | J21: =IFERROR(SQRT(POWER((VLOOKUP($C$5,DEBUT!$D$5:$J$110,6,FALSE)-VLOOKUP(J23,DEBUT!$D$5:$J$110,6,FALSE)),2)+POWER((VLOOKUP($C$5,DEBUT!$D$5:$J$110,7,FALSE)-VLOOKUP(J23,DEBUT!$D$5:$J$110,7,FALSE)),2))/CARTE!$O$9,0) -> 588.0239501 | K21: =IFERROR(SQRT(POWER((VLOOKUP($C$5,DEBUT!$D$5:$J$110,6,FALSE)-VLOOKUP(K23,DEBUT!$D$5:$J$110,6,FALSE)),2)+POWER((VLOOKUP($C$5,DEBUT!$D$5:$J$110,7,FALSE)-VLOOKUP(K23,DEBUT!$D$5:$J$110,7,FALSE)),2))/CARTE!$O$9,0) -> 746.7129062 | L21: =IFERROR(SQRT(POWER((VLOOKUP($C$5,DEBUT!$D$5:$J$110,6,FALSE)-VLOOKUP(L23,DEBUT!$D$5:$J$110,6,FALSE)),2)+POWER((VLOOKUP($C$5,DEBUT!$D$5:$J$110,7,FALSE)-VLOOKUP(L23,DEBUT!$D$5:$J$110,7,FALSE)),2))/CARTE!$O$9,0) -> 422.6699126 | M21: =IFERROR(SQRT(POWER((VLOOKUP($C$5,DEBUT!$D$5:$J$110,6,FALSE)-VLOOKUP(M23,DEBUT!$D$5:$J$110,6,FALSE)),2)+POWER((VLOOKUP($C$5,DEBUT!$D$5:$J$110,7,FALSE)-VLOOKUP(M23,DEBUT!$D$5:$J$110,7,FALSE)),2))/CARTE!$O$9,0) -> 350.5463625 | N21: =IFERROR(SQRT(POWER((VLOOKUP($C$5,DEBUT!$D$5:$J$110,6,FALSE)-VLOOKUP(N23,DEBUT!$D$5:$J$110,6,FALSE)),2)+POWER((VLOOKUP($C$5,DEBUT!$D$5:$J$110,7,FALSE)-VLOOKUP(N23,DEBUT!$D$5:$J$110,7,FALSE)),2))/CARTE!$O$9,0) -> 365.2365685 | O21: m | P21: Distance | Q21: =SUM(E21:N21) -> 4279.493098 | R21: m | AL21: 17 | AM21: SEBASTIEN
D22: Balises prévues | E22: =IF(ISTEXT($D21),HLOOKUP($D21,DEBUT!$O$3:$XX$100,3,FALSE),"") -> A | F22: =IF(ISTEXT($D21),HLOOKUP($D21,DEBUT!$O$3:$XX$100,4,FALSE),"") -> B | G22: =IF(ISTEXT($D21),HLOOKUP($D21,DEBUT!$O$3:$XX$100,5,FALSE),"") -> C | H22: =IF(ISTEXT($D21),HLOOKUP($D21,DEBUT!$O$3:$XX$100,6,FALSE),"") -> D | I22: =IF(ISTEXT($D21),HLOOKUP($D21,DEBUT!$O$3:$XX$100,7,FALSE),"") -> E | J22: =IF(ISTEXT($D21),HLOOKUP($D21,DEBUT!$O$3:$XX$100,8,FALSE),"") -> F | K22: =IF(ISTEXT($D21),HLOOKUP($D21,DEBUT!$O$3:$XX$100,9,FALSE),"") -> G | L22: =IF(ISTEXT($D21),HLOOKUP($D21,DEBUT!$O$3:$XX$100,10,FALSE),"") -> H | M22: =IF(ISTEXT($D21),HLOOKUP($D21,DEBUT!$O$3:$XX$100,11,FALSE),"") -> I | N22: =IF(ISTEXT($D21),HLOOKUP($D21,DEBUT!$O$3:$XX$100,12,FALSE),"") -> J | P22: Nombre balises prévues | Q22: =SUMPRODUCT(N(ISTEXT(E22:N22))) -> 10 | R22: prévues | AL22: 18 | AM22: PASCAL
D23: Validé | E23: =IF($D23=DEBUT!$L$5,E24,"") -> 12 | F23: =IF($D23=DEBUT!$L$5,F24,"") -> 13 | G23: =IF($D23=DEBUT!$L$5,G24,"") -> 11 | H23: =IF($D23=DEBUT!$L$5,H24,"") -> 16 | I23: =IF($D23=DEBUT!$L$5,I24,"") -> 35 | J23: =IF($D23=DEBUT!$L$5,J24,"") -> 28 | K23: =IF($D23=DEBUT!$L$5,K24,"") -> 26 | L23: =IF($D23=DEBUT!$L$5,L24,"") -> 40 | M23: =IF($D23=DEBUT!$L$5,M24,"") -> 39 | N23: =IF($D23=DEBUT!$L$5,N24,"") -> 45 | P23: Nombre balises trouvées | Q23: =SUMPRODUCT(N(ISNUMBER(E23:N23))) -> 10 | R23: =IF(Q23>1,"trouvées","trouvée") -> trouvées | AL23: 19 | AM23: CAROLE
D24: Balises CM | E24: =IFERROR(INDEX(baliseCM,MATCH(E22,lettre,0),MATCH($D20,parcours,0)),"") -> 12 | F24: =IFERROR(INDEX(baliseCM,MATCH(F22,lettre,0),MATCH($D20,parcours,0)),"") -> 13 | G24: 11 | H24: 16 | I24: 35 | J24: 28 | K24: 26 | L24: 40 | M24: 39 | N24: 45 | AL24: 20 | AM24: ISABELLE
D25: Vitesse | E25: =(E21/ABS((HOUR(E20)*3600+MINUTE(E20)*60+SECOND(E20))))*3.6 -> 1580.691101 | F25: =(F21/ABS((HOUR(F20)*3600+MINUTE(F20)*60+SECOND(F20))))*3.6 -> 1882.643655 | G25: 1052.525226 | H25: 1251.898204 | I25: 734.9340453 | J25: 2116.88622 | K25: 1344.083231 | L25: 1521.611685 | M25: 630.9834526 | N25: =(N21/ABS((HOUR(N20)*3600+MINUTE(N20)*60+SECOND(N20))))*3.6 -> 657.4258234 | O25: Km/h | P25: Vitesse moyenne | Q25: =Q21/R20*3.6 -> 1185.090396 | R25: km/h | AL25: 21 | AM25: DAVID
B26: EQUIPE 4 | D26: 15:51:45 | T26: Analyse du parcours | AL26: 22 | AM26: FRANCOIS
D27: =CONCATENATE(D28,"bis") -> 21Stevebis | E27: =E26-D26 -> -0.6609375 | F27: =F26-E26 -> 00:00:00 | G27: =G26-F26 -> 00:00:00 | H27: =H26-G26 -> 00:00:00 | I27: =I26-H26 -> 00:00:00 | J27: =J26-I26 -> 00:00:00 | K27: =K26-J26 -> 00:00:00 | L27: =L26-K26 -> 00:00:00 | M27: =M26-L26 -> 00:00:00 | N27: =N26-M26 -> 00:00:00 | P27: Temps de course | Q27: =SUMIF(E27:N27,">0",E27:N27) -> 00:00:00 | R27: =ABS((HOUR(Q27)*3600+MINUTE(Q27)*60+SECOND(Q27))) -> 0 | AL27: 23 | AM27: Mick
D28: =$H$2 -> 21Steve | E28: =IFERROR(SQRT(POWER((VLOOKUP($C$5,DEBUT!$D$5:$J$110,6,FALSE)-VLOOKUP(E30,DEBUT!$D$5:$J$110,6,FALSE)),2)+POWER((VLOOKUP($C$5,DEBUT!$D$5:$J$110,7,FALSE)-VLOOKUP(E30,DEBUT!$D$5:$J$110,7,FALSE)),2))/CARTE!$O$9,0) -> 439.0808613 | F28: =IFERROR(SQRT(POWER((VLOOKUP($C$5,DEBUT!$D$5:$J$110,6,FALSE)-VLOOKUP(F30,DEBUT!$D$5:$J$110,6,FALSE)),2)+POWER((VLOOKUP($C$5,DEBUT!$D$5:$J$110,7,FALSE)-VLOOKUP(F30,DEBUT!$D$5:$J$110,7,FALSE)),2))/CARTE!$O$9,0) -> 522.9565707 | G28: =IFERROR(SQRT(POWER((VLOOKUP($C$5,DEBUT!$D$5:$J$110,6,FALSE)-VLOOKUP(G30,DEBUT!$D$5:$J$110,6,FALSE)),2)+POWER((VLOOKUP($C$5,DEBUT!$D$5:$J$110,7,FALSE)-VLOOKUP(G30,DEBUT!$D$5:$J$110,7,FALSE)),2))/CARTE!$O$9,0) -> 292.3681185 | H28: =IFERROR(SQRT(POWER((VLOOKUP($C$5,DEBUT!$D$5:$J$110,6,FALSE)-VLOOKUP(H30,DEBUT!$D$5:$J$110,6,FALSE)),2)+POWER((VLOOKUP($C$5,DEBUT!$D$5:$J$110,7,FALSE)-VLOOKUP(H30,DEBUT!$D$5:$J$110,7,FALSE)),2))/CARTE!$O$9,0) -> 347.7495012 | I28: =IFERROR(SQRT(POWER((VLOOKUP($C$5,DEBUT!$D$5:$J$110,6,FALSE)-VLOOKUP(I30,DEBUT!$D$5:$J$110,6,FALSE)),2)+POWER((VLOOKUP($C$5,DEBUT!$D$5:$J$110,7,FALSE)-VLOOKUP(I30,DEBUT!$D$5:$J$110,7,FALSE)),2))/CARTE!$O$9,0) -> 204.1483459 | J28: =IFERROR(SQRT(POWER((VLOOKUP($C$5,DEBUT!$D$5:$J$110,6,FALSE)-VLOOKUP(J30,DEBUT!$D$5:$J$110,6,FALSE)),2)+POWER((VLOOKUP($C$5,DEBUT!$D$5:$J$110,7,FALSE)-VLOOKUP(J30,DEBUT!$D$5:$J$110,7,FALSE)),2))/CARTE!$O$9,0) -> 588.0239501 | K28: =IFERROR(SQRT(POWER((VLOOKUP($C$5,DEBUT!$D$5:$J$110,6,FALSE)-VLOOKUP(K30,DEBUT!$D$5:$J$110,6,FALSE)),2)+POWER((VLOOKUP($C$5,DEBUT!$D$5:$J$110,7,FALSE)-VLOOKUP(K30,DEBUT!$D$5:$J$110,7,FALSE)),2))/CARTE!$O$9,0) -> 746.7129062 | L28: =IFERROR(SQRT(POWER((VLOOKUP($C$5,DEBUT!$D$5:$J$110,6,FALSE)-VLOOKUP(L30,DEBUT!$D$5:$J$110,6,FALSE)),2)+POWER((VLOOKUP($C$5,DEBUT!$D$5:$J$110,7,FALSE)-VLOOKUP(L30,DEBUT!$D$5:$J$110,7,FALSE)),2))/CARTE!$O$9,0) -> 422.6699126 | M28: =IFERROR(SQRT(POWER((VLOOKUP($C$5,DEBUT!$D$5:$J$110,6,FALSE)-VLOOKUP(M30,DEBUT!$D$5:$J$110,6,FALSE)),2)+POWER((VLOOKUP($C$5,DEBUT!$D$5:$J$110,7,FALSE)-VLOOKUP(M30,DEBUT!$D$5:$J$110,7,FALSE)),2))/CARTE!$O$9,0) -> 350.5463625 | N28: =IFERROR(SQRT(POWER((VLOOKUP($C$5,DEBUT!$D$5:$J$110,6,FALSE)-VLOOKUP(N30,DEBUT!$D$5:$J$110,6,FALSE)),2)+POWER((VLOOKUP($C$5,DEBUT!$D$5:$J$110,7,FALSE)-VLOOKUP(N30,DEBUT!$D$5:$J$110,7,FALSE)),2))/CARTE!$O$9,0) -> 365.2365685 | O28: m | P28: Distance | Q28: =SUM(E28:N28) -> 4279.493098 | R28: m | AL28: 24 | AM28: 0
D29: Balises prévues | E29: =IF(ISTEXT($D28),HLOOKUP($D28,DEBUT!$O$3:$XX$100,3,FALSE),"") -> A | F29: =IF(ISTEXT($D28),HLOOKUP($D28,DEBUT!$O$3:$XX$100,4,FALSE),"") -> B | G29: =IF(ISTEXT($D28),HLOOKUP($D28,DEBUT!$O$3:$XX$100,5,FALSE),"") -> C | H29: =IF(ISTEXT($D28),HLOOKUP($D28,DEBUT!$O$3:$XX$100,6,FALSE),"") -> D | I29: =IF(ISTEXT($D28),HLOOKUP($D28,DEBUT!$O$3:$XX$100,7,FALSE),"") -> E | J29: =IF(ISTEXT($D28),HLOOKUP($D28,DEBUT!$O$3:$XX$100,8,FALSE),"") -> F | K29: =IF(ISTEXT($D28),HLOOKUP($D28,DEBUT!$O$3:$XX$100,9,FALSE),"") -> G | L29: =IF(ISTEXT($D28),HLOOKUP($D28,DEBUT!$O$3:$XX$100,10,FALSE),"") -> H | M29: =IF(ISTEXT($D28),HLOOKUP($D28,DEBUT!$O$3:$XX$100,11,FALSE),"") -> I | N29: =IF(ISTEXT($D28),HLOOKUP($D28,DEBUT!$O$3:$XX$100,12,FALSE),"") -> J | P29: Nombre balises prévues | Q29: =SUMPRODUCT(N(ISTEXT(E29:N29))) -> 10 | R29: prévues | AL29: 25 | AM29: 0
D30: Validé | E30: =IF($D30=DEBUT!$L$5,E31,"") -> 12 | F30: =IF($D30=DEBUT!$L$5,F31,"") -> 13 | G30: =IF($D30=DEBUT!$L$5,G31,"") -> 11 | H30: =IF($D30=DEBUT!$L$5,H31,"") -> 16 | I30: =IF($D30=DEBUT!$L$5,I31,"") -> 35 | J30: =IF($D30=DEBUT!$L$5,J31,"") -> 28 | K30: =IF($D30=DEBUT!$L$5,K31,"") -> 26 | L30: =IF($D30=DEBUT!$L$5,L31,"") -> 40 | M30: =IF($D30=DEBUT!$L$5,M31,"") -> 39 | N30: =IF($D30=DEBUT!$L$5,N31,"") -> 45 | P30: Nombre balises trouvées | Q30: =SUMPRODUCT(N(ISNUMBER(E30:N30))) -> 10 | R30: =IF(Q30>1,"trouvées","trouvée") -> trouvées | AL30: 26 | AM30: 0
D31: Balises CM | E31: =IFERROR(INDEX(baliseCM,MATCH(E29,lettre,0),MATCH($D27,parcours,0)),"") -> 12 | F31: =IFERROR(INDEX(baliseCM,MATCH(F29,lettre,0),MATCH($D27,parcours,0)),"") -> 13 | G31: 11 | H31: 16 | I31: 35 | J31: 28 | K31: 26 | L31: 40 | M31: 39 | N31: 45 | AL31: 27 | AM31: 0
D32: Vitesse | E32: =(E28/ABS((HOUR(E27)*3600+MINUTE(E27)*60+SECOND(E27))))*3.6 ->  | F32: =(F28/ABS((HOUR(F27)*3600+MINUTE(F27)*60+SECOND(F27))))*3.6 ->  | N32: =(N28/ABS((HOUR(N27)*3600+MINUTE(N27)*60+SECOND(N27))))*3.6 ->  | O32: Km/h | P32: Vitesse moyenne | Q32: =Q28/R27*3.6 ->  | R32: km/h | AL32: 28 | AM32: 0
B33: EQUIPE 5 | D33: 15:51:45 | T33: Analyse du parcours | AL33: 29 | AM33: 0
D34: =CONCATENATE(D35,"bis") -> 21Stevebis | E34: =E33-D33 -> -0.6609375 | F34: =F33-E33 -> 00:00:00 | G34: =G33-F33 -> 00:00:00 | H34: =H33-G33 -> 00:00:00 | I34: =I33-H33 -> 00:00:00 | J34: =J33-I33 -> 00:00:00 | K34: =K33-J33 -> 00:00:00 | L34: =L33-K33 -> 00:00:00 | M34: =M33-L33 -> 00:00:00 | N34: =N33-M33 -> 00:00:00 | P34: Temps de course | Q34: =SUMIF(E34:N34,">0",E34:N34) -> 00:00:00 | R34: =ABS((HOUR(Q34)*3600+MINUTE(Q34)*60+SECOND(Q34))) -> 0 | AL34: 30 | AM34: 0
D35: =$H$2 -> 21Steve | E35: =IFERROR(SQRT(POWER((VLOOKUP($C$5,DEBUT!$D$5:$J$110,6,FALSE)-VLOOKUP(E37,DEBUT!$D$5:$J$110,6,FALSE)),2)+POWER((VLOOKUP($C$5,DEBUT!$D$5:$J$110,7,FALSE)-VLOOKUP(E37,DEBUT!$D$5:$J$110,7,FALSE)),2))/CARTE!$O$9,0) -> 439.0808613 | F35: =IFERROR(SQRT(POWER((VLOOKUP($C$5,DEBUT!$D$5:$J$110,6,FALSE)-VLOOKUP(F37,DEBUT!$D$5:$J$110,6,FALSE)),2)+POWER((VLOOKUP($C$5,DEBUT!$D$5:$J$110,7,FALSE)-VLOOKUP(F37,DEBUT!$D$5:$J$110,7,FALSE)),2))/CARTE!$O$9,0) -> 522.9565707 | G35: =IFERROR(SQRT(POWER((VLOOKUP($C$5,DEBUT!$D$5:$J$110,6,FALSE)-VLOOKUP(G37,DEBUT!$D$5:$J$110,6,FALSE)),2)+POWER((VLOOKUP($C$5,DEBUT!$D$5:$J$110,7,FALSE)-VLOOKUP(G37,DEBUT!$D$5:$J$110,7,FALSE)),2))/CARTE!$O$9,0) -> 292.3681185 | H35: =IFERROR(SQRT(POWER((VLOOKUP($C$5,DEBUT!$D$5:$J$110,6,FALSE)-VLOOKUP(H37,DEBUT!$D$5:$J$110,6,FALSE)),2)+POWER((VLOOKUP($C$5,DEBUT!$D$5:$J$110,7,FALSE)-VLOOKUP(H37,DEBUT!$D$5:$J$110,7,FALSE)),2))/CARTE!$O$9,0) -> 347.7495012 | I35: =IFERROR(SQRT(POWER((VLOOKUP($C$5,DEBUT!$D$5:$J$110,6,FALSE)-VLOOKUP(I37,DEBUT!$D$5:$J$110,6,FALSE)),2)+POWER((VLOOKUP($C$5,DEBUT!$D$5:$J$110,7,FALSE)-VLOOKUP(I37,DEBUT!$D$5:$J$110,7,FALSE)),2))/CARTE!$O$9,0) -> 204.1483459 | J35: =IFERROR(SQRT(POWER((VLOOKUP($C$5,DEBUT!$D$5:$J$110,6,FALSE)-VLOOKUP(J37,DEBUT!$D$5:$J$110,6,FALSE)),2)+POWER((VLOOKUP($C$5,DEBUT!$D$5:$J$110,7,FALSE)-VLOOKUP(J37,DEBUT!$D$5:$J$110,7,FALSE)),2))/CARTE!$O$9,0) -> 588.0239501 | K35: =IFERROR(SQRT(POWER((VLOOKUP($C$5,DEBUT!$D$5:$J$110,6,FALSE)-VLOOKUP(K37,DEBUT!$D$5:$J$110,6,FALSE)),2)+POWER((VLOOKUP($C$5,DEBUT!$D$5:$J$110,7,FALSE)-VLOOKUP(K37,DEBUT!$D$5:$J$110,7,FALSE)),2))/CARTE!$O$9,0) -> 746.7129062 | L35: =IFERROR(SQRT(POWER((VLOOKUP($C$5,DEBUT!$D$5:$J$110,6,FALSE)-VLOOKUP(L37,DEBUT!$D$5:$J$110,6,FALSE)),2)+POWER((VLOOKUP($C$5,DEBUT!$D$5:$J$110,7,FALSE)-VLOOKUP(L37,DEBUT!$D$5:$J$110,7,FALSE)),2))/CARTE!$O$9,0) -> 422.6699126 | M35: =IFERROR(SQRT(POWER((VLOOKUP($C$5,DEBUT!$D$5:$J$110,6,FALSE)-VLOOKUP(M37,DEBUT!$D$5:$J$110,6,FALSE)),2)+POWER((VLOOKUP($C$5,DEBUT!$D$5:$J$110,7,FALSE)-VLOOKUP(M37,DEBUT!$D$5:$J$110,7,FALSE)),2))/CARTE!$O$9,0) -> 350.5463625 | N35: =IFERROR(SQRT(POWER((VLOOKUP($C$5,DEBUT!$D$5:$J$110,6,FALSE)-VLOOKUP(N37,DEBUT!$D$5:$J$110,6,FALSE)),2)+POWER((VLOOKUP($C$5,DEBUT!$D$5:$J$110,7,FALSE)-VLOOKUP(N37,DEBUT!$D$5:$J$110,7,FALSE)),2))/CARTE!$O$9,0) -> 365.2365685 | O35: m | P35: Distance | Q35: =SUM(E35:N35) -> 4279.493098 | R35: m | AL35: 31 | AM35: 0
D36: Balises prévues | E36: =IF(ISTEXT($D35),HLOOKUP($D35,DEBUT!$O$3:$XX$100,3,FALSE),"") -> A | F36: =IF(ISTEXT($D35),HLOOKUP($D35,DEBUT!$O$3:$XX$100,4,FALSE),"") -> B | G36: =IF(ISTEXT($D35),HLOOKUP($D35,DEBUT!$O$3:$XX$100,5,FALSE),"") -> C | H36: =IF(ISTEXT($D35),HLOOKUP($D35,DEBUT!$O$3:$XX$100,6,FALSE),"") -> D | I36: =IF(ISTEXT($D35),HLOOKUP($D35,DEBUT!$O$3:$XX$100,7,FALSE),"") -> E | J36: =IF(ISTEXT($D35),HLOOKUP($D35,DEBUT!$O$3:$XX$100,8,FALSE),"") -> F | K36: =IF(ISTEXT($D35),HLOOKUP($D35,DEBUT!$O$3:$XX$100,9,FALSE),"") -> G | L36: =IF(ISTEXT($D35),HLOOKUP($D35,DEBUT!$O$3:$XX$100,10,FALSE),"") -> H | M36: =IF(ISTEXT($D35),HLOOKUP($D35,DEBUT!$O$3:$XX$100,11,FALSE),"") -> I | N36: =IF(ISTEXT($D35),HLOOKUP($D35,DEBUT!$O$3:$XX$100,12,FALSE),"") -> J | P36: Nombre balises prévues | Q36: =SUMPRODUCT(N(ISTEXT(E36:N36))) -> 10 | R36: prévues | AL36: 32 | AM36: 0
D37: Validé | E37: =IF($D37=DEBUT!$L$5,E38,"") -> 12 | F37: =IF($D37=DEBUT!$L$5,F38,"") -> 13 | G37: =IF($D37=DEBUT!$L$5,G38,"") -> 11 | H37: =IF($D37=DEBUT!$L$5,H38,"") -> 16 | I37: =IF($D37=DEBUT!$L$5,I38,"") -> 35 | J37: =IF($D37=DEBUT!$L$5,J38,"") -> 28 | K37: =IF($D37=DEBUT!$L$5,K38,"") -> 26 | L37: =IF($D37=DEBUT!$L$5,L38,"") -> 40 | M37: =IF($D37=DEBUT!$L$5,M38,"") -> 39 | N37: =IF($D37=DEBUT!$L$5,N38,"") -> 45 | P37: Nombre balises trouvées | Q37: =SUMPRODUCT(N(ISNUMBER(E37:N37))) -> 10 | R37: =IF(Q37>1,"trouvées","trouvée") -> trouvées | AL37: 33 | AM37: 0
D38: Balises CM | E38: =IFERROR(INDEX(baliseCM,MATCH(E36,lettre,0),MATCH($D34,parcours,0)),"") -> 12 | F38: =IFERROR(INDEX(baliseCM,MATCH(F36,lettre,0),MATCH($D34,parcours,0)),"") -> 13 | G38: 11 | H38: 16 | I38: 35 | J38: 28 | K38: 26 | L38: 40 | M38: 39 | N38: 45 | AL38: 34 | AM38: 0
D39: Vitesse | E39: =(E35/ABS((HOUR(E34)*3600+MINUTE(E34)*60+SECOND(E34))))*3.6 ->  | F39: =(F35/ABS((HOUR(F34)*3600+MINUTE(F34)*60+SECOND(F34))))*3.6 ->  | N39: =(N35/ABS((HOUR(N34)*3600+MINUTE(N34)*60+SECOND(N34))))*3.6 ->  | O39: Km/h | P39: Vitesse moyenne | Q39: =Q35/R34*3.6 ->  | R39: km/h | AL39: 35 | AM39: 0
B40: EQUIPE 6 | D40: 15:51:45 | T40: Analyse du parcours | AL40: 36 | AM40: 0
D41: =CONCATENATE(D42,"bis") -> 21Stevebis | E41: =E40-D40 -> -0.6609375 | F41: =F40-E40 -> 00:00:00 | G41: =G40-F40 -> 00:00:00 | H41: =H40-G40 -> 00:00:00 | I41: =I40-H40 -> 00:00:00 | J41: =J40-I40 -> 00:00:00 | K41: =K40-J40 -> 00:00:00 | L41: =L40-K40 -> 00:00:00 | M41: =M40-L40 -> 00:00:00 | N41: =N40-M40 -> 00:00:00 | P41: Temps de course | Q41: =SUMIF(E41:N41,">0",E41:N41) -> 00:00:00 | R41: =ABS((HOUR(Q41)*3600+MINUTE(Q41)*60+SECOND(Q41))) -> 0
D42: =$H$2 -> 21Steve | E42: =IFERROR(SQRT(POWER((VLOOKUP($C$5,DEBUT!$D$5:$J$110,6,FALSE)-VLOOKUP(E44,DEBUT!$D$5:$J$110,6,FALSE)),2)+POWER((VLOOKUP($C$5,DEBUT!$D$5:$J$110,7,FALSE)-VLOOKUP(E44,DEBUT!$D$5:$J$110,7,FALSE)),2))/CARTE!$O$9,0) -> 439.0808613 | F42: =IFERROR(SQRT(POWER((VLOOKUP($C$5,DEBUT!$D$5:$J$110,6,FALSE)-VLOOKUP(F44,DEBUT!$D$5:$J$110,6,FALSE)),2)+POWER((VLOOKUP($C$5,DEBUT!$D$5:$J$110,7,FALSE)-VLOOKUP(F44,DEBUT!$D$5:$J$110,7,FALSE)),2))/CARTE!$O$9,0) -> 522.9565707 | G42: =IFERROR(SQRT(POWER((VLOOKUP($C$5,DEBUT!$D$5:$J$110,6,FALSE)-VLOOKUP(G44,DEBUT!$D$5:$J$110,6,FALSE)),2)+POWER((VLOOKUP($C$5,DEBUT!$D$5:$J$110,7,FALSE)-VLOOKUP(G44,DEBUT!$D$5:$J$110,7,FALSE)),2))/CARTE!$O$9,0) -> 292.3681185 | H42: =IFERROR(SQRT(POWER((VLOOKUP($C$5,DEBUT!$D$5:$J$110,6,FALSE)-VLOOKUP(H44,DEBUT!$D$5:$J$110,6,FALSE)),2)+POWER((VLOOKUP($C$5,DEBUT!$D$5:$J$110,7,FALSE)-VLOOKUP(H44,DEBUT!$D$5:$J$110,7,FALSE)),2))/CARTE!$O$9,0) -> 347.7495012 | I42: =IFERROR(SQRT(POWER((VLOOKUP($C$5,DEBUT!$D$5:$J$110,6,FALSE)-VLOOKUP(I44,DEBUT!$D$5:$J$110,6,FALSE)),2)+POWER((VLOOKUP($C$5,DEBUT!$D$5:$J$110,7,FALSE)-VLOOKUP(I44,DEBUT!$D$5:$J$110,7,FALSE)),2))/CARTE!$O$9,0) -> 204.1483459 | J42: =IFERROR(SQRT(POWER((VLOOKUP($C$5,DEBUT!$D$5:$J$110,6,FALSE)-VLOOKUP(J44,DEBUT!$D$5:$J$110,6,FALSE)),2)+POWER((VLOOKUP($C$5,DEBUT!$D$5:$J$110,7,FALSE)-VLOOKUP(J44,DEBUT!$D$5:$J$110,7,FALSE)),2))/CARTE!$O$9,0) -> 588.0239501 | K42: =IFERROR(SQRT(POWER((VLOOKUP($C$5,DEBUT!$D$5:$J$110,6,FALSE)-VLOOKUP(K44,DEBUT!$D$5:$J$110,6,FALSE)),2)+POWER((VLOOKUP($C$5,DEBUT!$D$5:$J$110,7,FALSE)-VLOOKUP(K44,DEBUT!$D$5:$J$110,7,FALSE)),2))/CARTE!$O$9,0) -> 746.7129062 | L42: =IFERROR(SQRT(POWER((VLOOKUP($C$5,DEBUT!$D$5:$J$110,6,FALSE)-VLOOKUP(L44,DEBUT!$D$5:$J$110,6,FALSE)),2)+POWER((VLOOKUP($C$5,DEBUT!$D$5:$J$110,7,FALSE)-VLOOKUP(L44,DEBUT!$D$5:$J$110,7,FALSE)),2))/CARTE!$O$9,0) -> 422.6699126 | M42: =IFERROR(SQRT(POWER((VLOOKUP($C$5,DEBUT!$D$5:$J$110,6,FALSE)-VLOOKUP(M44,DEBUT!$D$5:$J$110,6,FALSE)),2)+POWER((VLOOKUP($C$5,DEBUT!$D$5:$J$110,7,FALSE)-VLOOKUP(M44,DEBUT!$D$5:$J$110,7,FALSE)),2))/CARTE!$O$9,0) -> 350.5463625 | N42: =IFERROR(SQRT(POWER((VLOOKUP($C$5,DEBUT!$D$5:$J$110,6,FALSE)-VLOOKUP(N44,DEBUT!$D$5:$J$110,6,FALSE)),2)+POWER((VLOOKUP($C$5,DEBUT!$D$5:$J$110,7,FALSE)-VLOOKUP(N44,DEBUT!$D$5:$J$110,7,FALSE)),2))/CARTE!$O$9,0) -> 365.2365685 | O42: m | P42: Distance | Q42: =SUM(E42:N42) -> 4279.493098 | R42: m
D43: Balises prévues | E43: =IF(ISTEXT($D42),HLOOKUP($D42,DEBUT!$O$3:$XX$100,3,FALSE),"") -> A | F43: =IF(ISTEXT($D42),HLOOKUP($D42,DEBUT!$O$3:$XX$100,4,FALSE),"") -> B | G43: =IF(ISTEXT($D42),HLOOKUP($D42,DEBUT!$O$3:$XX$100,5,FALSE),"") -> C | H43: =IF(ISTEXT($D42),HLOOKUP($D42,DEBUT!$O$3:$XX$100,6,FALSE),"") -> D | I43: =IF(ISTEXT($D42),HLOOKUP($D42,DEBUT!$O$3:$XX$100,7,FALSE),"") -> E | J43: =IF(ISTEXT($D42),HLOOKUP($D42,DEBUT!$O$3:$XX$100,8,FALSE),"") -> F | K43: =IF(ISTEXT($D42),HLOOKUP($D42,DEBUT!$O$3:$XX$100,9,FALSE),"") -> G | L43: =IF(ISTEXT($D42),HLOOKUP($D42,DEBUT!$O$3:$XX$100,10,FALSE),"") -> H | M43: =IF(ISTEXT($D42),HLOOKUP($D42,DEBUT!$O$3:$XX$100,11,FALSE),"") -> I | N43: =IF(ISTEXT($D42),HLOOKUP($D42,DEBUT!$O$3:$XX$100,12,FALSE),"") -> J | P43: Nombre balises prévues | Q43: =SUMPRODUCT(N(ISTEXT(E43:N43))) -> 10 | R43: prévues
D44: Validé | E44: =IF($D44=DEBUT!$L$5,E45,"") -> 12 | F44: =IF($D44=DEBUT!$L$5,F45,"") -> 13 | G44: =IF($D44=DEBUT!$L$5,G45,"") -> 11 | H44: =IF($D44=DEBUT!$L$5,H45,"") -> 16 | I44: =IF($D44=DEBUT!$L$5,I45,"") -> 35 | J44: =IF($D44=DEBUT!$L$5,J45,"") -> 28 | K44: =IF($D44=DEBUT!$L$5,K45,"") -> 26 | L44: =IF($D44=DEBUT!$L$5,L45,"") -> 40 | M44: =IF($D44=DEBUT!$L$5,M45,"") -> 39 | N44: =IF($D44=DEBUT!$L$5,N45,"") -> 45 | P44: Nombre balises trouvées | Q44: =SUMPRODUCT(N(ISNUMBER(E44:N44))) -> 10 | R44: =IF(Q44>1,"trouvées","trouvée") -> trouvées
D45: Balises CM | E45: =IFERROR(INDEX(baliseCM,MATCH(E43,lettre,0),MATCH($D41,parcours,0)),"") -> 12 | F45: =IFERROR(INDEX(baliseCM,MATCH(F43,lettre,0),MATCH($D41,parcours,0)),"") -> 13 | G45: 11 | H45: 16 | I45: 35 | J45: 28 | K45: 26 | L45: 40 | M45: 39 | N45: 45
D46: Vitesse | E46: =(E42/ABS((HOUR(E41)*3600+MINUTE(E41)*60+SECOND(E41))))*3.6 ->  | F46: =(F42/ABS((HOUR(F41)*3600+MINUTE(F41)*60+SECOND(F41))))*3.6 ->  | N46: =(N42/ABS((HOUR(N41)*3600+MINUTE(N41)*60+SECOND(N41))))*3.6 ->  | O46: Km/h | P46: Vitesse moyenne | Q46: =Q42/R41*3.6 ->  | R46: km/h
B47: EQUIPE 7 | D47: 15:51:45 | T47: Analyse du parcours
D48: =CONCATENATE(D49,"bis") -> 21Stevebis | E48: =E47-D47 -> -0.6609375 | F48: =F47-E47 -> 00:00:00 | G48: =G47-F47 -> 00:00:00 | H48: =H47-G47 -> 00:00:00 | I48: =I47-H47 -> 00:00:00 | J48: =J47-I47 -> 00:00:00 | K48: =K47-J47 -> 00:00:00 | L48: =L47-K47 -> 00:00:00 | M48: =M47-L47 -> 00:00:00 | N48: =N47-M47 -> 00:00:00 | P48: Temps de course | Q48: =SUMIF(E48:N48,">0",E48:N48) -> 00:00:00 | R48: =ABS((HOUR(Q48)*3600+MINUTE(Q48)*60+SECOND(Q48))) -> 0
D49: =$H$2 -> 21Steve | E49: =IFERROR(SQRT(POWER((VLOOKUP($C$5,DEBUT!$D$5:$J$110,6,FALSE)-VLOOKUP(E51,DEBUT!$D$5:$J$110,6,FALSE)),2)+POWER((VLOOKUP($C$5,DEBUT!$D$5:$J$110,7,FALSE)-VLOOKUP(E51,DEBUT!$D$5:$J$110,7,FALSE)),2))/CARTE!$O$9,0) -> 439.0808613 | F49: =IFERROR(SQRT(POWER((VLOOKUP($C$5,DEBUT!$D$5:$J$110,6,FALSE)-VLOOKUP(F51,DEBUT!$D$5:$J$110,6,FALSE)),2)+POWER((VLOOKUP($C$5,DEBUT!$D$5:$J$110,7,FALSE)-VLOOKUP(F51,DEBUT!$D$5:$J$110,7,FALSE)),2))/CARTE!$O$9,0) -> 522.9565707 | G49: =IFERROR(SQRT(POWER((VLOOKUP($C$5,DEBUT!$D$5:$J$110,6,FALSE)-VLOOKUP(G51,DEBUT!$D$5:$J$110,6,FALSE)),2)+POWER((VLOOKUP($C$5,DEBUT!$D$5:$J$110,7,FALSE)-VLOOKUP(G51,DEBUT!$D$5:$J$110,7,FALSE)),2))/CARTE!$O$9,0) -> 292.3681185 | H49: =IFERROR(SQRT(POWER((VLOOKUP($C$5,DEBUT!$D$5:$J$110,6,FALSE)-VLOOKUP(H51,DEBUT!$D$5:$J$110,6,FALSE)),2)+POWER((VLOOKUP($C$5,DEBUT!$D$5:$J$110,7,FALSE)-VLOOKUP(H51,DEBUT!$D$5:$J$110,7,FALSE)),2))/CARTE!$O$9,0) -> 347.7495012 | I49: =IFERROR(SQRT(POWER((VLOOKUP($C$5,DEBUT!$D$5:$J$110,6,FALSE)-VLOOKUP(I51,DEBUT!$D$5:$J$110,6,FALSE)),2)+POWER((VLOOKUP($C$5,DEBUT!$D$5:$J$110,7,FALSE)-VLOOKUP(I51,DEBUT!$D$5:$J$110,7,FALSE)),2))/CARTE!$O$9,0) -> 204.1483459 | J49: =IFERROR(SQRT(POWER((VLOOKUP($C$5,DEBUT!$D$5:$J$110,6,FALSE)-VLOOKUP(J51,DEBUT!$D$5:$J$110,6,FALSE)),2)+POWER((VLOOKUP($C$5,DEBUT!$D$5:$J$110,7,FALSE)-VLOOKUP(J51,DEBUT!$D$5:$J$110,7,FALSE)),2))/CARTE!$O$9,0) -> 588.0239501 | K49: =IFERROR(SQRT(POWER((VLOOKUP($C$5,DEBUT!$D$5:$J$110,6,FALSE)-VLOOKUP(K51,DEBUT!$D$5:$J$110,6,FALSE)),2)+POWER((VLOOKUP($C$5,DEBUT!$D$5:$J$110,7,FALSE)-VLOOKUP(K51,DEBUT!$D$5:$J$110,7,FALSE)),2))/CARTE!$O$9,0) -> 746.7129062 | L49: =IFERROR(SQRT(POWER((VLOOKUP($C$5,DEBUT!$D$5:$J$110,6,FALSE)-VLOOKUP(L51,DEBUT!$D$5:$J$110,6,FALSE)),2)+POWER((VLOOKUP($C$5,DEBUT!$D$5:$J$110,7,FALSE)-VLOOKUP(L51,DEBUT!$D$5:$J$110,7,FALSE)),2))/CARTE!$O$9,0) -> 422.6699126 | M49: =IFERROR(SQRT(POWER((VLOOKUP($C$5,DEBUT!$D$5:$J$110,6,FALSE)-VLOOKUP(M51,DEBUT!$D$5:$J$110,6,FALSE)),2)+POWER((VLOOKUP($C$5,DEBUT!$D$5:$J$110,7,FALSE)-VLOOKUP(M51,DEBUT!$D$5:$J$110,7,FALSE)),2))/CARTE!$O$9,0) -> 350.5463625 | N49: =IFERROR(SQRT(POWER((VLOOKUP($C$5,DEBUT!$D$5:$J$110,6,FALSE)-VLOOKUP(N51,DEBUT!$D$5:$J$110,6,FALSE)),2)+POWER((VLOOKUP($C$5,DEBUT!$D$5:$J$110,7,FALSE)-VLOOKUP(N51,DEBUT!$D$5:$J$110,7,FALSE)),2))/CARTE!$O$9,0) -> 365.2365685 | O49: m | P49: Distance | Q49: =SUM(E49:N49) -> 4279.493098 | R49: m
D50: Balises prévues | E50: =IF(ISTEXT($D49),HLOOKUP($D49,DEBUT!$O$3:$XX$100,3,FALSE),"") -> A | F50: =IF(ISTEXT($D49),HLOOKUP($D49,DEBUT!$O$3:$XX$100,4,FALSE),"") -> B | G50: =IF(ISTEXT($D49),HLOOKUP($D49,DEBUT!$O$3:$XX$100,5,FALSE),"") -> C | H50: =IF(ISTEXT($D49),HLOOKUP($D49,DEBUT!$O$3:$XX$100,6,FALSE),"") -> D | I50: =IF(ISTEXT($D49),HLOOKUP($D49,DEBUT!$O$3:$XX$100,7,FALSE),"") -> E | J50: =IF(ISTEXT($D49),HLOOKUP($D49,DEBUT!$O$3:$XX$100,8,FALSE),"") -> F | K50: =IF(ISTEXT($D49),HLOOKUP($D49,DEBUT!$O$3:$XX$100,9,FALSE),"") -> G | L50: =IF(ISTEXT($D49),HLOOKUP($D49,DEBUT!$O$3:$XX$100,10,FALSE),"") -> H | M50: =IF(ISTEXT($D49),HLOOKUP($D49,DEBUT!$O$3:$XX$100,11,FALSE),"") -> I | N50: =IF(ISTEXT($D49),HLOOKUP($D49,DEBUT!$O$3:$XX$100,12,FALSE),"") -> J | P50: Nombre balises prévues | Q50: =SUMPRODUCT(N(ISTEXT(E50:N50))) -> 10 | R50: prévues
D51: Validé | E51: =IF($D51=DEBUT!$L$5,E52,"") -> 12 | F51: =IF($D51=DEBUT!$L$5,F52,"") -> 13 | G51: =IF($D51=DEBUT!$L$5,G52,"") -> 11 | H51: =IF($D51=DEBUT!$L$5,H52,"") -> 16 | I51: =IF($D51=DEBUT!$L$5,I52,"") -> 35 | J51: =IF($D51=DEBUT!$L$5,J52,"") -> 28 | K51: =IF($D51=DEBUT!$L$5,K52,"") -> 26 | L51: =IF($D51=DEBUT!$L$5,L52,"") -> 40 | M51: =IF($D51=DEBUT!$L$5,M52,"") -> 39 | N51: =IF($D51=DEBUT!$L$5,N52,"") -> 45 | P51: Nombre balises trouvées | Q51: =SUMPRODUCT(N(ISNUMBER(E51:N51))) -> 10 | R51: =IF(Q51>1,"trouvées","trouvée") -> trouvées
D52: Balises CM | E52: =IFERROR(INDEX(baliseCM,MATCH(E50,lettre,0),MATCH($D48,parcours,0)),"") -> 12 | F52: =IFERROR(INDEX(baliseCM,MATCH(F50,lettre,0),MATCH($D48,parcours,0)),"") -> 13 | G52: 11 | H52: 16 | I52: 35 | J52: 28 | K52: 26 | L52: 40 | M52: 39 | N52: 45
D53: Vitesse | E53: =(E49/ABS((HOUR(E48)*3600+MINUTE(E48)*60+SECOND(E48))))*3.6 ->  | F53: =(F49/ABS((HOUR(F48)*3600+MINUTE(F48)*60+SECOND(F48))))*3.6 ->  | N53: =(N49/ABS((HOUR(N48)*3600+MINUTE(N48)*60+SECOND(N48))))*3.6 ->  | O53: Km/h | P53: Vitesse moyenne | Q53: =Q49/R48*3.6 ->  | R53: km/h
B54: EQUIPE 8 | D54: 15:46:38 | E54: 15:46:40 | F54: 15:46:41 | T54: Analyse du parcours
D55: =CONCATENATE(D56,"bis") -> 21Stevebis | E55: =E54-D54 -> 00:00:02 | F55: =F54-E54 -> 00:00:01 | G55: =G54-F54 -> -0.6574189815 | H55: =H54-G54 -> 00:00:00 | I55: =I54-H54 -> 00:00:00 | J55: =J54-I54 -> 00:00:00 | K55: =K54-J54 -> 00:00:00 | L55: =L54-K54 -> 00:00:00 | M55: =M54-L54 -> 00:00:00 | N55: =N54-M54 -> 00:00:00 | P55: Temps de course | Q55: =SUMIF(E55:N55,">0",E55:N55) -> 00:00:03 | R55: =ABS((HOUR(Q55)*3600+MINUTE(Q55)*60+SECOND(Q55))) -> 3
D56: =$H$2 -> 21Steve | E56: =IFERROR(SQRT(POWER((VLOOKUP($C$5,DEBUT!$D$5:$J$110,6,FALSE)-VLOOKUP(E58,DEBUT!$D$5:$J$110,6,FALSE)),2)+POWER((VLOOKUP($C$5,DEBUT!$D$5:$J$110,7,FALSE)-VLOOKUP(E58,DEBUT!$D$5:$J$110,7,FALSE)),2))/CARTE!$O$9,0) -> 439.0808613 | F56: =IFERROR(SQRT(POWER((VLOOKUP($C$5,DEBUT!$D$5:$J$110,6,FALSE)-VLOOKUP(F58,DEBUT!$D$5:$J$110,6,FALSE)),2)+POWER((VLOOKUP($C$5,DEBUT!$D$5:$J$110,7,FALSE)-VLOOKUP(F58,DEBUT!$D$5:$J$110,7,FALSE)),2))/CARTE!$O$9,0) -> 522.9565707 | G56: =IFERROR(SQRT(POWER((VLOOKUP($C$5,DEBUT!$D$5:$J$110,6,FALSE)-VLOOKUP(G58,DEBUT!$D$5:$J$110,6,FALSE)),2)+POWER((VLOOKUP($C$5,DEBUT!$D$5:$J$110,7,FALSE)-VLOOKUP(G58,DEBUT!$D$5:$J$110,7,FALSE)),2))/CARTE!$O$9,0) -> 292.3681185 | H56: =IFERROR(SQRT(POWER((VLOOKUP($C$5,DEBUT!$D$5:$J$110,6,FALSE)-VLOOKUP(H58,DEBUT!$D$5:$J$110,6,FALSE)),2)+POWER((VLOOKUP($C$5,DEBUT!$D$5:$J$110,7,FALSE)-VLOOKUP(H58,DEBUT!$D$5:$J$110,7,FALSE)),2))/CARTE!$O$9,0) -> 347.7495012 | I56: =IFERROR(SQRT(POWER((VLOOKUP($C$5,DEBUT!$D$5:$J$110,6,FALSE)-VLOOKUP(I58,DEBUT!$D$5:$J$110,6,FALSE)),2)+POWER((VLOOKUP($C$5,DEBUT!$D$5:$J$110,7,FALSE)-VLOOKUP(I58,DEBUT!$D$5:$J$110,7,FALSE)),2))/CARTE!$O$9,0) -> 204.1483459 | J56: =IFERROR(SQRT(POWER((VLOOKUP($C$5,DEBUT!$D$5:$J$110,6,FALSE)-VLOOKUP(J58,DEBUT!$D$5:$J$110,6,FALSE)),2)+POWER((VLOOKUP($C$5,DEBUT!$D$5:$J$110,7,FALSE)-VLOOKUP(J58,DEBUT!$D$5:$J$110,7,FALSE)),2))/CARTE!$O$9,0) -> 588.0239501 | K56: =IFERROR(SQRT(POWER((VLOOKUP($C$5,DEBUT!$D$5:$J$110,6,FALSE)-VLOOKUP(K58,DEBUT!$D$5:$J$110,6,FALSE)),2)+POWER((VLOOKUP($C$5,DEBUT!$D$5:$J$110,7,FALSE)-VLOOKUP(K58,DEBUT!$D$5:$J$110,7,FALSE)),2))/CARTE!$O$9,0) -> 746.7129062 | L56: =IFERROR(SQRT(POWER((VLOOKUP($C$5,DEBUT!$D$5:$J$110,6,FALSE)-VLOOKUP(L58,DEBUT!$D$5:$J$110,6,FALSE)),2)+POWER((VLOOKUP($C$5,DEBUT!$D$5:$J$110,7,FALSE)-VLOOKUP(L58,DEBUT!$D$5:$J$110,7,FALSE)),2))/CARTE!$O$9,0) -> 422.6699126 | M56: =IFERROR(SQRT(POWER((VLOOKUP($C$5,DEBUT!$D$5:$J$110,6,FALSE)-VLOOKUP(M58,DEBUT!$D$5:$J$110,6,FALSE)),2)+POWER((VLOOKUP($C$5,DEBUT!$D$5:$J$110,7,FALSE)-VLOOKUP(M58,DEBUT!$D$5:$J$110,7,FALSE)),2))/CARTE!$O$9,0) -> 350.5463625 | N56: =IFERROR(SQRT(POWER((VLOOKUP($C$5,DEBUT!$D$5:$J$110,6,FALSE)-VLOOKUP(N58,DEBUT!$D$5:$J$110,6,FALSE)),2)+POWER((VLOOKUP($C$5,DEBUT!$D$5:$J$110,7,FALSE)-VLOOKUP(N58,DEBUT!$D$5:$J$110,7,FALSE)),2))/CARTE!$O$9,0) -> 365.2365685 | O56: m | P56: Distance | Q56: =SUM(E56:N56) -> 4279.493098 | R56: m
D57: Balises prévues | E57: =IF(ISTEXT($D56),HLOOKUP($D56,DEBUT!$O$3:$XX$100,3,FALSE),"") -> A | F57: =IF(ISTEXT($D56),HLOOKUP($D56,DEBUT!$O$3:$XX$100,4,FALSE),"") -> B | G57: =IF(ISTEXT($D56),HLOOKUP($D56,DEBUT!$O$3:$XX$100,5,FALSE),"") -> C | H57: =IF(ISTEXT($D56),HLOOKUP($D56,DEBUT!$O$3:$XX$100,6,FALSE),"") -> D | I57: =IF(ISTEXT($D56),HLOOKUP($D56,DEBUT!$O$3:$XX$100,7,FALSE),"") -> E | J57: =IF(ISTEXT($D56),HLOOKUP($D56,DEBUT!$O$3:$XX$100,8,FALSE),"") -> F | K57: =IF(ISTEXT($D56),HLOOKUP($D56,DEBUT!$O$3:$XX$100,9,FALSE),"") -> G | L57: =IF(ISTEXT($D56),HLOOKUP($D56,DEBUT!$O$3:$XX$100,10,FALSE),"") -> H | M57: =IF(ISTEXT($D56),HLOOKUP($D56,DEBUT!$O$3:$XX$100,11,FALSE),"") -> I | N57: =IF(ISTEXT($D56),HLOOKUP($D56,DEBUT!$O$3:$XX$100,12,FALSE),"") -> J | P57: Nombre balises prévues | Q57: =SUMPRODUCT(N(ISTEXT(E57:N57))) -> 10 | R57: prévues
D58: Validé | E58: =IF($D58=DEBUT!$L$5,E59,"") -> 12 | F58: =IF($D58=DEBUT!$L$5,F59,"") -> 13 | G58: =IF($D58=DEBUT!$L$5,G59,"") -> 11 | H58: =IF($D58=DEBUT!$L$5,H59,"") -> 16 | I58: =IF($D58=DEBUT!$L$5,I59,"") -> 35 | J58: =IF($D58=DEBUT!$L$5,J59,"") -> 28 | K58: =IF($D58=DEBUT!$L$5,K59,"") -> 26 | L58: =IF($D58=DEBUT!$L$5,L59,"") -> 40 | M58: =IF($D58=DEBUT!$L$5,M59,"") -> 39 | N58: =IF($D58=DEBUT!$L$5,N59,"") -> 45 | P58: Nombre balises trouvées | Q58: =SUMPRODUCT(N(ISNUMBER(E58:N58))) -> 10 | R58: =IF(Q58>1,"trouvées","trouvée") -> trouvées
D59: Balises CM | E59: =IFERROR(INDEX(baliseCM,MATCH(E57,lettre,0),MATCH($D55,parcours,0)),"") -> 12 | F59: =IFERROR(INDEX(baliseCM,MATCH(F57,lettre,0),MATCH($D55,parcours,0)),"") -> 13 | G59: 11 | H59: 16 | I59: 35 | J59: 28 | K59: 26 | L59: 40 | M59: 39 | N59: 45
D60: Vitesse | E60: =(E56/ABS((HOUR(E55)*3600+MINUTE(E55)*60+SECOND(E55))))*3.6 -> 790.3455503 | F60: =(F56/ABS((HOUR(F55)*3600+MINUTE(F55)*60+SECOND(F55))))*3.6 -> 1882.643655 | N60: =(N56/ABS((HOUR(N55)*3600+MINUTE(N55)*60+SECOND(N55))))*3.6 ->  | O60: Km/h | P60: Vitesse moyenne | Q60: =Q56/R55*3.6 -> 5135.391717 | R60: km/h
B61: EQUIPE 9 | D61: 15:51:45 | E61: 07:31:22 | T61: Analyse du parcours
D62: =CONCATENATE(D63,"bis") -> 21Stevebis | E62: =E61-D61 -> -0.3474884259 | F62: =F61-E61 -> -0.3134490741 | G62: =G61-F61 -> 00:00:00 | H62: =H61-G61 -> 00:00:00 | I62: =I61-H61 -> 00:00:00 | J62: =J61-I61 -> 00:00:00 | K62: =K61-J61 -> 00:00:00 | L62: =L61-K61 -> 00:00:00 | M62: =M61-L61 -> 00:00:00 | N62: =N61-M61 -> 00:00:00 | P62: Temps de course | Q62: =SUMIF(E62:N62,">0",E62:N62) -> 00:00:00 | R62: =ABS((HOUR(Q62)*3600+MINUTE(Q62)*60+SECOND(Q62))) -> 0
D63: =$H$2 -> 21Steve | E63: =IFERROR(SQRT(POWER((VLOOKUP($C$5,DEBUT!$D$5:$J$110,6,FALSE)-VLOOKUP(E65,DEBUT!$D$5:$J$110,6,FALSE)),2)+POWER((VLOOKUP($C$5,DEBUT!$D$5:$J$110,7,FALSE)-VLOOKUP(E65,DEBUT!$D$5:$J$110,7,FALSE)),2))/CARTE!$O$9,0) -> 439.0808613 | F63: =IFERROR(SQRT(POWER((VLOOKUP($C$5,DEBUT!$D$5:$J$110,6,FALSE)-VLOOKUP(F65,DEBUT!$D$5:$J$110,6,FALSE)),2)+POWER((VLOOKUP($C$5,DEBUT!$D$5:$J$110,7,FALSE)-VLOOKUP(F65,DEBUT!$D$5:$J$110,7,FALSE)),2))/CARTE!$O$9,0) -> 522.9565707 | G63: =IFERROR(SQRT(POWER((VLOOKUP($C$5,DEBUT!$D$5:$J$110,6,FALSE)-VLOOKUP(G65,DEBUT!$D$5:$J$110,6,FALSE)),2)+POWER((VLOOKUP($C$5,DEBUT!$D$5:$J$110,7,FALSE)-VLOOKUP(G65,DEBUT!$D$5:$J$110,7,FALSE)),2))/CARTE!$O$9,0) -> 292.3681185 | H63: =IFERROR(SQRT(POWER((VLOOKUP($C$5,DEBUT!$D$5:$J$110,6,FALSE)-VLOOKUP(H65,DEBUT!$D$5:$J$110,6,FALSE)),2)+POWER((VLOOKUP($C$5,DEBUT!$D$5:$J$110,7,FALSE)-VLOOKUP(H65,DEBUT!$D$5:$J$110,7,FALSE)),2))/CARTE!$O$9,0) -> 347.7495012 | I63: =IFERROR(SQRT(POWER((VLOOKUP($C$5,DEBUT!$D$5:$J$110,6,FALSE)-VLOOKUP(I65,DEBUT!$D$5:$J$110,6,FALSE)),2)+POWER((VLOOKUP($C$5,DEBUT!$D$5:$J$110,7,FALSE)-VLOOKUP(I65,DEBUT!$D$5:$J$110,7,FALSE)),2))/CARTE!$O$9,0) -> 204.1483459 | J63: =IFERROR(SQRT(POWER((VLOOKUP($C$5,DEBUT!$D$5:$J$110,6,FALSE)-VLOOKUP(J65,DEBUT!$D$5:$J$110,6,FALSE)),2)+POWER((VLOOKUP($C$5,DEBUT!$D$5:$J$110,7,FALSE)-VLOOKUP(J65,DEBUT!$D$5:$J$110,7,FALSE)),2))/CARTE!$O$9,0) -> 588.0239501 | K63: =IFERROR(SQRT(POWER((VLOOKUP($C$5,DEBUT!$D$5:$J$110,6,FALSE)-VLOOKUP(K65,DEBUT!$D$5:$J$110,6,FALSE)),2)+POWER((VLOOKUP($C$5,DEBUT!$D$5:$J$110,7,FALSE)-VLOOKUP(K65,DEBUT!$D$5:$J$110,7,FALSE)),2))/CARTE!$O$9,0) -> 746.7129062 | L63: =IFERROR(SQRT(POWER((VLOOKUP($C$5,DEBUT!$D$5:$J$110,6,FALSE)-VLOOKUP(L65,DEBUT!$D$5:$J$110,6,FALSE)),2)+POWER((VLOOKUP($C$5,DEBUT!$D$5:$J$110,7,FALSE)-VLOOKUP(L65,DEBUT!$D$5:$J$110,7,FALSE)),2))/CARTE!$O$9,0) -> 422.6699126 | M63: =IFERROR(SQRT(POWER((VLOOKUP($C$5,DEBUT!$D$5:$J$110,6,FALSE)-VLOOKUP(M65,DEBUT!$D$5:$J$110,6,FALSE)),2)+POWER((VLOOKUP($C$5,DEBUT!$D$5:$J$110,7,FALSE)-VLOOKUP(M65,DEBUT!$D$5:$J$110,7,FALSE)),2))/CARTE!$O$9,0) -> 350.5463625 | N63: =IFERROR(SQRT(POWER((VLOOKUP($C$5,DEBUT!$D$5:$J$110,6,FALSE)-VLOOKUP(N65,DEBUT!$D$5:$J$110,6,FALSE)),2)+POWER((VLOOKUP($C$5,DEBUT!$D$5:$J$110,7,FALSE)-VLOOKUP(N65,DEBUT!$D$5:$J$110,7,FALSE)),2))/CARTE!$O$9,0) -> 365.2365685 | O63: m | P63: Distance | Q63: =SUM(E63:N63) -> 4279.493098 | R63: m
D64: Balises prévues | E64: =IF(ISTEXT($D63),HLOOKUP($D63,DEBUT!$O$3:$XX$100,3,FALSE),"") -> A | F64: =IF(ISTEXT($D63),HLOOKUP($D63,DEBUT!$O$3:$XX$100,4,FALSE),"") -> B | G64: =IF(ISTEXT($D63),HLOOKUP($D63,DEBUT!$O$3:$XX$100,5,FALSE),"") -> C | H64: =IF(ISTEXT($D63),HLOOKUP($D63,DEBUT!$O$3:$XX$100,6,FALSE),"") -> D | I64: =IF(ISTEXT($D63),HLOOKUP($D63,DEBUT!$O$3:$XX$100,7,FALSE),"") -> E | J64: =IF(ISTEXT($D63),HLOOKUP($D63,DEBUT!$O$3:$XX$100,8,FALSE),"") -> F | K64: =IF(ISTEXT($D63),HLOOKUP($D63,DEBUT!$O$3:$XX$100,9,FALSE),"") -> G | L64: =IF(ISTEXT($D63),HLOOKUP($D63,DEBUT!$O$3:$XX$100,10,FALSE),"") -> H | M64: =IF(ISTEXT($D63),HLOOKUP($D63,DEBUT!$O$3:$XX$100,11,FALSE),"") -> I | N64: =IF(ISTEXT($D63),HLOOKUP($D63,DEBUT!$O$3:$XX$100,12,FALSE),"") -> J | P64: Nombre balises prévues | Q64: =SUMPRODUCT(N(ISTEXT(E64:N64))) -> 10 | R64: prévues
D65: Validé | E65: =IF($D65=DEBUT!$L$5,E66,"") -> 12 | F65: =IF($D65=DEBUT!$L$5,F66,"") -> 13 | G65: =IF($D65=DEBUT!$L$5,G66,"") -> 11 | H65: =IF($D65=DEBUT!$L$5,H66,"") -> 16 | I65: =IF($D65=DEBUT!$L$5,I66,"") -> 35 | J65: =IF($D65=DEBUT!$L$5,J66,"") -> 28 | K65: =IF($D65=DEBUT!$L$5,K66,"") -> 26 | L65: =IF($D65=DEBUT!$L$5,L66,"") -> 40 | M65: =IF($D65=DEBUT!$L$5,M66,"") -> 39 | N65: =IF($D65=DEBUT!$L$5,N66,"") -> 45 | P65: Nombre balises trouvées | Q65: =SUMPRODUCT(N(ISNUMBER(E65:N65))) -> 10 | R65: =IF(Q65>1,"trouvées","trouvée") -> trouvées
D66: Balises CM | E66: =IFERROR(INDEX(baliseCM,MATCH(E64,lettre,0),MATCH($D62,parcours,0)),"") -> 12 | F66: =IFERROR(INDEX(baliseCM,MATCH(F64,lettre,0),MATCH($D62,parcours,0)),"") -> 13 | G66: 11 | H66: 16 | I66: 35 | J66: 28 | K66: 26 | L66: 40 | M66: 39 | N66: 45
D67: Vitesse | E67: =(E63/ABS((HOUR(E62)*3600+MINUTE(E62)*60+SECOND(E62))))*3.6 ->  | F67: =(F63/ABS((HOUR(F62)*3600+MINUTE(F62)*60+SECOND(F62))))*3.6 ->  | N67: =(N63/ABS((HOUR(N62)*3600+MINUTE(N62)*60+SECOND(N62))))*3.6 ->  | O67: Km/h | P67: Vitesse moyenne | Q67: =Q63/R62*3.6 ->  | R67: km/h
B68: EQUIPE 10 | D68: 07:31:06 | E68: 07:32:11 | F68: 07:30:01 | T68: Analyse du parcours
D69: =CONCATENATE(D70,"bis") -> 21Stevebis | E69: =E68-D68 -> 00:01:05 | F69: =F68-E68 -> -0.00150462963 | G69: =G68-F68 -> -0.3125115741 | H69: =H68-G68 -> 00:00:00 | I69: =I68-H68 -> 00:00:00 | J69: =J68-I68 -> 00:00:00 | K69: =K68-J68 -> 00:00:00 | L69: =L68-K68 -> 00:00:00 | M69: =M68-L68 -> 00:00:00 | N69: =N68-M68 -> 00:00:00 | P69: Temps de course | Q69: =SUMIF(E69:N69,">0",E69:N69) -> 00:01:05 | R69: =ABS((HOUR(Q69)*3600+MINUTE(Q69)*60+SECOND(Q69))) -> 65
D70: =$H$2 -> 21Steve | E70: =IFERROR(SQRT(POWER((VLOOKUP($C$5,DEBUT!$D$5:$J$110,6,FALSE)-VLOOKUP(E72,DEBUT!$D$5:$J$110,6,FALSE)),2)+POWER((VLOOKUP($C$5,DEBUT!$D$5:$J$110,7,FALSE)-VLOOKUP(E72,DEBUT!$D$5:$J$110,7,FALSE)),2))/CARTE!$O$9,0) -> 439.0808613 | F70: =IFERROR(SQRT(POWER((VLOOKUP($C$5,DEBUT!$D$5:$J$110,6,FALSE)-VLOOKUP(F72,DEBUT!$D$5:$J$110,6,FALSE)),2)+POWER((VLOOKUP($C$5,DEBUT!$D$5:$J$110,7,FALSE)-VLOOKUP(F72,DEBUT!$D$5:$J$110,7,FALSE)),2))/CARTE!$O$9,0) -> 522.9565707 | G70: =IFERROR(SQRT(POWER((VLOOKUP($C$5,DEBUT!$D$5:$J$110,6,FALSE)-VLOOKUP(G72,DEBUT!$D$5:$J$110,6,FALSE)),2)+POWER((VLOOKUP($C$5,DEBUT!$D$5:$J$110,7,FALSE)-VLOOKUP(G72,DEBUT!$D$5:$J$110,7,FALSE)),2))/CARTE!$O$9,0) -> 292.3681185 | H70: =IFERROR(SQRT(POWER((VLOOKUP($C$5,DEBUT!$D$5:$J$110,6,FALSE)-VLOOKUP(H72,DEBUT!$D$5:$J$110,6,FALSE)),2)+POWER((VLOOKUP($C$5,DEBUT!$D$5:$J$110,7,FALSE)-VLOOKUP(H72,DEBUT!$D$5:$J$110,7,FALSE)),2))/CARTE!$O$9,0) -> 347.7495012 | I70: =IFERROR(SQRT(POWER((VLOOKUP($C$5,DEBUT!$D$5:$J$110,6,FALSE)-VLOOKUP(I72,DEBUT!$D$5:$J$110,6,FALSE)),2)+POWER((VLOOKUP($C$5,DEBUT!$D$5:$J$110,7,FALSE)-VLOOKUP(I72,DEBUT!$D$5:$J$110,7,FALSE)),2))/CARTE!$O$9,0) -> 204.1483459 | J70: =IFERROR(SQRT(POWER((VLOOKUP($C$5,DEBUT!$D$5:$J$110,6,FALSE)-VLOOKUP(J72,DEBUT!$D$5:$J$110,6,FALSE)),2)+POWER((VLOOKUP($C$5,DEBUT!$D$5:$J$110,7,FALSE)-VLOOKUP(J72,DEBUT!$D$5:$J$110,7,FALSE)),2))/CARTE!$O$9,0) -> 588.0239501 | K70: =IFERROR(SQRT(POWER((VLOOKUP($C$5,DEBUT!$D$5:$J$110,6,FALSE)-VLOOKUP(K72,DEBUT!$D$5:$J$110,6,FALSE)),2)+POWER((VLOOKUP($C$5,DEBUT!$D$5:$J$110,7,FALSE)-VLOOKUP(K72,DEBUT!$D$5:$J$110,7,FALSE)),2))/CARTE!$O$9,0) -> 746.7129062 | L70: =IFERROR(SQRT(POWER((VLOOKUP($C$5,DEBUT!$D$5:$J$110,6,FALSE)-VLOOKUP(L72,DEBUT!$D$5:$J$110,6,FALSE)),2)+POWER((VLOOKUP($C$5,DEBUT!$D$5:$J$110,7,FALSE)-VLOOKUP(L72,DEBUT!$D$5:$J$110,7,FALSE)),2))/CARTE!$O$9,0) -> 422.6699126 | M70: =IFERROR(SQRT(POWER((VLOOKUP($C$5,DEBUT!$D$5:$J$110,6,FALSE)-VLOOKUP(M72,DEBUT!$D$5:$J$110,6,FALSE)),2)+POWER((VLOOKUP($C$5,DEBUT!$D$5:$J$110,7,FALSE)-VLOOKUP(M72,DEBUT!$D$5:$J$110,7,FALSE)),2))/CARTE!$O$9,0) -> 350.5463625 | N70: =IFERROR(SQRT(POWER((VLOOKUP($C$5,DEBUT!$D$5:$J$110,6,FALSE)-VLOOKUP(N72,DEBUT!$D$5:$J$110,6,FALSE)),2)+POWER((VLOOKUP($C$5,DEBUT!$D$5:$J$110,7,FALSE)-VLOOKUP(N72,DEBUT!$D$5:$J$110,7,FALSE)),2))/CARTE!$O$9,0) -> 365.2365685 | O70: m | P70: Distance | Q70: =SUM(E70:N70) -> 4279.493098 | R70: m
D71: Balises prévues | E71: =IF(ISTEXT($D70),HLOOKUP($D70,DEBUT!$O$3:$XX$100,3,FALSE),"") -> A | F71: =IF(ISTEXT($D70),HLOOKUP($D70,DEBUT!$O$3:$XX$100,4,FALSE),"") -> B | G71: =IF(ISTEXT($D70),HLOOKUP($D70,DEBUT!$O$3:$XX$100,5,FALSE),"") -> C | H71: =IF(ISTEXT($D70),HLOOKUP($D70,DEBUT!$O$3:$XX$100,6,FALSE),"") -> D | I71: =IF(ISTEXT($D70),HLOOKUP($D70,DEBUT!$O$3:$XX$100,7,FALSE),"") -> E | J71: =IF(ISTEXT($D70),HLOOKUP($D70,DEBUT!$O$3:$XX$100,8,FALSE),"") -> F | K71: =IF(ISTEXT($D70),HLOOKUP($D70,DEBUT!$O$3:$XX$100,9,FALSE),"") -> G | L71: =IF(ISTEXT($D70),HLOOKUP($D70,DEBUT!$O$3:$XX$100,10,FALSE),"") -> H | M71: =IF(ISTEXT($D70),HLOOKUP($D70,DEBUT!$O$3:$XX$100,11,FALSE),"") -> I | N71: =IF(ISTEXT($D70),HLOOKUP($D70,DEBUT!$O$3:$XX$100,12,FALSE),"") -> J | P71: Nombre balises prévues | Q71: =SUMPRODUCT(N(ISTEXT(E71:N71))) -> 10 | R71: prévues
D72: Validé | E72: =IF($D72=DEBUT!$L$5,E73,"") -> 12 | F72: =IF($D72=DEBUT!$L$5,F73,"") -> 13 | G72: =IF($D72=DEBUT!$L$5,G73,"") -> 11 | H72: =IF($D72=DEBUT!$L$5,H73,"") -> 16 | I72: =IF($D72=DEBUT!$L$5,I73,"") -> 35 | J72: =IF($D72=DEBUT!$L$5,J73,"") -> 28 | K72: =IF($D72=DEBUT!$L$5,K73,"") -> 26 | L72: =IF($D72=DEBUT!$L$5,L73,"") -> 40 | M72: =IF($D72=DEBUT!$L$5,M73,"") -> 39 | N72: =IF($D72=DEBUT!$L$5,N73,"") -> 45 | P72: Nombre balises trouvées | Q72: =SUMPRODUCT(N(ISNUMBER(E72:N72))) -> 10 | R72: =IF(Q72>1,"trouvées","trouvée") -> trouvées
D73: Balises CM | E73: =IFERROR(INDEX(baliseCM,MATCH(E71,lettre,0),MATCH($D69,parcours,0)),"") -> 12 | F73: =IFERROR(INDEX(baliseCM,MATCH(F71,lettre,0),MATCH($D69,parcours,0)),"") -> 13 | G73: 11 | H73: 16 | I73: 35 | J73: 28 | K73: 26 | L73: 40 | M73: 39 | N73: 45
D74: Vitesse | E74: =(E70/ABS((HOUR(E69)*3600+MINUTE(E69)*60+SECOND(E69))))*3.6 -> 24.31832462 | F74: =(F70/ABS((HOUR(F69)*3600+MINUTE(F69)*60+SECOND(F69))))*3.6 ->  | N74: =(N70/ABS((HOUR(N69)*3600+MINUTE(N69)*60+SECOND(N69))))*3.6 ->  | O74: Km/h | P74: Vitesse moyenne | Q74: =Q70/R69*3.6 -> 237.0180792 | R74: km/h
B75: EQUIPE 11 | D75: 07:30:39 | E75: 07:30:41 | T75: Analyse du parcours
D76: =CONCATENATE(D77,"bis") -> 21Stevebis | E76: =E75-D75 -> 00:00:02 | F76: =F75-E75 -> -0.312974537 | G76: =G75-F75 -> 00:00:00 | H76: =H75-G75 -> 00:00:00 | I76: =I75-H75 -> 00:00:00 | J76: =J75-I75 -> 00:00:00 | K76: =K75-J75 -> 00:00:00 | L76: =L75-K75 -> 00:00:00 | M76: =M75-L75 -> 00:00:00 | N76: =N75-M75 -> 00:00:00 | P76: Temps de course | Q76: =SUMIF(E76:N76,">0",E76:N76) -> 00:00:02 | R76: =ABS((HOUR(Q76)*3600+MINUTE(Q76)*60+SECOND(Q76))) -> 2
D77: =$H$2 -> 21Steve | E77: =IFERROR(SQRT(POWER((VLOOKUP($C$5,DEBUT!$D$5:$J$110,6,FALSE)-VLOOKUP(E79,DEBUT!$D$5:$J$110,6,FALSE)),2)+POWER((VLOOKUP($C$5,DEBUT!$D$5:$J$110,7,FALSE)-VLOOKUP(E79,DEBUT!$D$5:$J$110,7,FALSE)),2))/CARTE!$O$9,0) -> 439.0808613 | F77: =IFERROR(SQRT(POWER((VLOOKUP($C$5,DEBUT!$D$5:$J$110,6,FALSE)-VLOOKUP(F79,DEBUT!$D$5:$J$110,6,FALSE)),2)+POWER((VLOOKUP($C$5,DEBUT!$D$5:$J$110,7,FALSE)-VLOOKUP(F79,DEBUT!$D$5:$J$110,7,FALSE)),2))/CARTE!$O$9,0) -> 522.9565707 | G77: =IFERROR(SQRT(POWER((VLOOKUP($C$5,DEBUT!$D$5:$J$110,6,FALSE)-VLOOKUP(G79,DEBUT!$D$5:$J$110,6,FALSE)),2)+POWER((VLOOKUP($C$5,DEBUT!$D$5:$J$110,7,FALSE)-VLOOKUP(G79,DEBUT!$D$5:$J$110,7,FALSE)),2))/CARTE!$O$9,0) -> 292.3681185 | H77: =IFERROR(SQRT(POWER((VLOOKUP($C$5,DEBUT!$D$5:$J$110,6,FALSE)-VLOOKUP(H79,DEBUT!$D$5:$J$110,6,FALSE)),2)+POWER((VLOOKUP($C$5,DEBUT!$D$5:$J$110,7,FALSE)-VLOOKUP(H79,DEBUT!$D$5:$J$110,7,FALSE)),2))/CARTE!$O$9,0) -> 347.7495012 | I77: =IFERROR(SQRT(POWER((VLOOKUP($C$5,DEBUT!$D$5:$J$110,6,FALSE)-VLOOKUP(I79,DEBUT!$D$5:$J$110,6,FALSE)),2)+POWER((VLOOKUP($C$5,DEBUT!$D$5:$J$110,7,FALSE)-VLOOKUP(I79,DEBUT!$D$5:$J$110,7,FALSE)),2))/CARTE!$O$9,0) -> 204.1483459 | J77: =IFERROR(SQRT(POWER((VLOOKUP($C$5,DEBUT!$D$5:$J$110,6,FALSE)-VLOOKUP(J79,DEBUT!$D$5:$J$110,6,FALSE)),2)+POWER((VLOOKUP($C$5,DEBUT!$D$5:$J$110,7,FALSE)-VLOOKUP(J79,DEBUT!$D$5:$J$110,7,FALSE)),2))/CARTE!$O$9,0) -> 588.0239501 | K77: =IFERROR(SQRT(POWER((VLOOKUP($C$5,DEBUT!$D$5:$J$110,6,FALSE)-VLOOKUP(K79,DEBUT!$D$5:$J$110,6,FALSE)),2)+POWER((VLOOKUP($C$5,DEBUT!$D$5:$J$110,7,FALSE)-VLOOKUP(K79,DEBUT!$D$5:$J$110,7,FALSE)),2))/CARTE!$O$9,0) -> 746.7129062 | L77: =IFERROR(SQRT(POWER((VLOOKUP($C$5,DEBUT!$D$5:$J$110,6,FALSE)-VLOOKUP(L79,DEBUT!$D$5:$J$110,6,FALSE)),2)+POWER((VLOOKUP($C$5,DEBUT!$D$5:$J$110,7,FALSE)-VLOOKUP(L79,DEBUT!$D$5:$J$110,7,FALSE)),2))/CARTE!$O$9,0) -> 422.6699126 | M77: =IFERROR(SQRT(POWER((VLOOKUP($C$5,DEBUT!$D$5:$J$110,6,FALSE)-VLOOKUP(M79,DEBUT!$D$5:$J$110,6,FALSE)),2)+POWER((VLOOKUP($C$5,DEBUT!$D$5:$J$110,7,FALSE)-VLOOKUP(M79,DEBUT!$D$5:$J$110,7,FALSE)),2))/CARTE!$O$9,0) -> 350.5463625 | N77: =IFERROR(SQRT(POWER((VLOOKUP($C$5,DEBUT!$D$5:$J$110,6,FALSE)-VLOOKUP(N79,DEBUT!$D$5:$J$110,6,FALSE)),2)+POWER((VLOOKUP($C$5,DEBUT!$D$5:$J$110,7,FALSE)-VLOOKUP(N79,DEBUT!$D$5:$J$110,7,FALSE)),2))/CARTE!$O$9,0) -> 365.2365685 | O77: m | P77: Distance | Q77: =SUM(E77:N77) -> 4279.493098 | R77: m
D78: Balises prévues | E78: =IF(ISTEXT($D77),HLOOKUP($D77,DEBUT!$O$3:$XX$100,3,FALSE),"") -> A | F78: =IF(ISTEXT($D77),HLOOKUP($D77,DEBUT!$O$3:$XX$100,4,FALSE),"") -> B | G78: =IF(ISTEXT($D77),HLOOKUP($D77,DEBUT!$O$3:$XX$100,5,FALSE),"") -> C | H78: =IF(ISTEXT($D77),HLOOKUP($D77,DEBUT!$O$3:$XX$100,6,FALSE),"") -> D | I78: =IF(ISTEXT($D77),HLOOKUP($D77,DEBUT!$O$3:$XX$100,7,FALSE),"") -> E | J78: =IF(ISTEXT($D77),HLOOKUP($D77,DEBUT!$O$3:$XX$100,8,FALSE),"") -> F | K78: =IF(ISTEXT($D77),HLOOKUP($D77,DEBUT!$O$3:$XX$100,9,FALSE),"") -> G | L78: =IF(ISTEXT($D77),HLOOKUP($D77,DEBUT!$O$3:$XX$100,10,FALSE),"") -> H | M78: =IF(ISTEXT($D77),HLOOKUP($D77,DEBUT!$O$3:$XX$100,11,FALSE),"") -> I | N78: =IF(ISTEXT($D77),HLOOKUP($D77,DEBUT!$O$3:$XX$100,12,FALSE),"") -> J | P78: Nombre balises prévues | Q78: =SUMPRODUCT(N(ISTEXT(E78:N78))) -> 10 | R78: prévues
D79: Validé | E79: =IF($D79=DEBUT!$L$5,E80,"") -> 12 | F79: =IF($D79=DEBUT!$L$5,F80,"") -> 13 | G79: =IF($D79=DEBUT!$L$5,G80,"") -> 11 | H79: =IF($D79=DEBUT!$L$5,H80,"") -> 16 | I79: =IF($D79=DEBUT!$L$5,I80,"") -> 35 | J79: =IF($D79=DEBUT!$L$5,J80,"") -> 28 | K79: =IF($D79=DEBUT!$L$5,K80,"") -> 26 | L79: =IF($D79=DEBUT!$L$5,L80,"") -> 40 | M79: =IF($D79=DEBUT!$L$5,M80,"") -> 39 | N79: =IF($D79=DEBUT!$L$5,N80,"") -> 45 | P79: Nombre balises trouvées | Q79: =SUMPRODUCT(N(ISNUMBER(E79:N79))) -> 10 | R79: =IF(Q79>1,"trouvées","trouvée") -> trouvées
D80: Balises CM | E80: =IFERROR(INDEX(baliseCM,MATCH(E78,lettre,0),MATCH($D76,parcours,0)),"") -> 12 | F80: =IFERROR(INDEX(baliseCM,MATCH(F78,lettre,0),MATCH($D76,parcours,0)),"") -> 13 | G80: 11 | H80: 16 | I80: 35 | J80: 28 | K80: 26 | L80: 40 | M80: 39 | N80: 45
D81: Vitesse | E81: =(E77/ABS((HOUR(E76)*3600+MINUTE(E76)*60+SECOND(E76))))*3.6 -> 790.3455503 | F81: =(F77/ABS((HOUR(F76)*3600+MINUTE(F76)*60+SECOND(F76))))*3.6 ->  | N81: =(N77/ABS((HOUR(N76)*3600+MINUTE(N76)*60+SECOND(N76))))*3.6 ->  | O81: Km/h | P81: Vitesse moyenne | Q81: =Q77/R76*3.6 -> 7703.087576 | R81: km/h
B82: EQUIPE 12 | D82: 07:30:47 | E82: 07:30:49 | T82: Analyse du parcours
B83: Alexandre | D83: =CONCATENATE(D84,"bis") -> 21Stevebis | E83: =E82-D82 -> 00:00:02 | F83: =F82-E82 -> -0.3130671296 | G83: =G82-F82 -> 00:00:00 | H83: =H82-G82 -> 00:00:00 | I83: =I82-H82 -> 00:00:00 | J83: =J82-I82 -> 00:00:00 | K83: =K82-J82 -> 00:00:00 | L83: =L82-K82 -> 00:00:00 | M83: =M82-L82 -> 00:00:00 | N83: =N82-M82 -> 00:00:00 | P83: Temps de course | Q83: =SUMIF(E83:N83,">0",E83:N83) -> 00:00:02 | R83: =ABS((HOUR(Q83)*3600+MINUTE(Q83)*60+SECOND(Q83))) -> 2
B84: Christian | D84: =$H$2 -> 21Steve | E84: =IFERROR(SQRT(POWER((VLOOKUP($C$5,DEBUT!$D$5:$J$110,6,FALSE)-VLOOKUP(E86,DEBUT!$D$5:$J$110,6,FALSE)),2)+POWER((VLOOKUP($C$5,DEBUT!$D$5:$J$110,7,FALSE)-VLOOKUP(E86,DEBUT!$D$5:$J$110,7,FALSE)),2))/CARTE!$O$9,0) -> 439.0808613 | F84: =IFERROR(SQRT(POWER((VLOOKUP($C$5,DEBUT!$D$5:$J$110,6,FALSE)-VLOOKUP(F86,DEBUT!$D$5:$J$110,6,FALSE)),2)+POWER((VLOOKUP($C$5,DEBUT!$D$5:$J$110,7,FALSE)-VLOOKUP(F86,DEBUT!$D$5:$J$110,7,FALSE)),2))/CARTE!$O$9,0) -> 522.9565707 | G84: =IFERROR(SQRT(POWER((VLOOKUP($C$5,DEBUT!$D$5:$J$110,6,FALSE)-VLOOKUP(G86,DEBUT!$D$5:$J$110,6,FALSE)),2)+POWER((VLOOKUP($C$5,DEBUT!$D$5:$J$110,7,FALSE)-VLOOKUP(G86,DEBUT!$D$5:$J$110,7,FALSE)),2))/CARTE!$O$9,0) -> 292.3681185 | H84: =IFERROR(SQRT(POWER((VLOOKUP($C$5,DEBUT!$D$5:$J$110,6,FALSE)-VLOOKUP(H86,DEBUT!$D$5:$J$110,6,FALSE)),2)+POWER((VLOOKUP($C$5,DEBUT!$D$5:$J$110,7,FALSE)-VLOOKUP(H86,DEBUT!$D$5:$J$110,7,FALSE)),2))/CARTE!$O$9,0) -> 347.7495012 | I84: =IFERROR(SQRT(POWER((VLOOKUP($C$5,DEBUT!$D$5:$J$110,6,FALSE)-VLOOKUP(I86,DEBUT!$D$5:$J$110,6,FALSE)),2)+POWER((VLOOKUP($C$5,DEBUT!$D$5:$J$110,7,FALSE)-VLOOKUP(I86,DEBUT!$D$5:$J$110,7,FALSE)),2))/CARTE!$O$9,0) -> 204.1483459 | J84: =IFERROR(SQRT(POWER((VLOOKUP($C$5,DEBUT!$D$5:$J$110,6,FALSE)-VLOOKUP(J86,DEBUT!$D$5:$J$110,6,FALSE)),2)+POWER((VLOOKUP($C$5,DEBUT!$D$5:$J$110,7,FALSE)-VLOOKUP(J86,DEBUT!$D$5:$J$110,7,FALSE)),2))/CARTE!$O$9,0) -> 588.0239501 | K84: =IFERROR(SQRT(POWER((VLOOKUP($C$5,DEBUT!$D$5:$J$110,6,FALSE)-VLOOKUP(K86,DEBUT!$D$5:$J$110,6,FALSE)),2)+POWER((VLOOKUP($C$5,DEBUT!$D$5:$J$110,7,FALSE)-VLOOKUP(K86,DEBUT!$D$5:$J$110,7,FALSE)),2))/CARTE!$O$9,0) -> 746.7129062 | L84: =IFERROR(SQRT(POWER((VLOOKUP($C$5,DEBUT!$D$5:$J$110,6,FALSE)-VLOOKUP(L86,DEBUT!$D$5:$J$110,6,FALSE)),2)+POWER((VLOOKUP($C$5,DEBUT!$D$5:$J$110,7,FALSE)-VLOOKUP(L86,DEBUT!$D$5:$J$110,7,FALSE)),2))/CARTE!$O$9,0) -> 422.6699126 | M84: =IFERROR(SQRT(POWER((VLOOKUP($C$5,DEBUT!$D$5:$J$110,6,FALSE)-VLOOKUP(M86,DEBUT!$D$5:$J$110,6,FALSE)),2)+POWER((VLOOKUP($C$5,DEBUT!$D$5:$J$110,7,FALSE)-VLOOKUP(M86,DEBUT!$D$5:$J$110,7,FALSE)),2))/CARTE!$O$9,0) -> 350.5463625 | N84: =IFERROR(SQRT(POWER((VLOOKUP($C$5,DEBUT!$D$5:$J$110,6,FALSE)-VLOOKUP(N86,DEBUT!$D$5:$J$110,6,FALSE)),2)+POWER((VLOOKUP($C$5,DEBUT!$D$5:$J$110,7,FALSE)-VLOOKUP(N86,DEBUT!$D$5:$J$110,7,FALSE)),2))/CARTE!$O$9,0) -> 365.2365685 | O84: m | P84: Distance | Q84: =SUM(E84:N84) -> 4279.493098 | R84: m
B85: Claudine | D85: Balises prévues | E85: =IF(ISTEXT($D84),HLOOKUP($D84,DEBUT!$O$3:$XX$100,3,FALSE),"") -> A | F85: =IF(ISTEXT($D84),HLOOKUP($D84,DEBUT!$O$3:$XX$100,4,FALSE),"") -> B | G85: =IF(ISTEXT($D84),HLOOKUP($D84,DEBUT!$O$3:$XX$100,5,FALSE),"") -> C | H85: =IF(ISTEXT($D84),HLOOKUP($D84,DEBUT!$O$3:$XX$100,6,FALSE),"") -> D | I85: =IF(ISTEXT($D84),HLOOKUP($D84,DEBUT!$O$3:$XX$100,7,FALSE),"") -> E | J85: =IF(ISTEXT($D84),HLOOKUP($D84,DEBUT!$O$3:$XX$100,8,FALSE),"") -> F | K85: =IF(ISTEXT($D84),HLOOKUP($D84,DEBUT!$O$3:$XX$100,9,FALSE),"") -> G | L85: =IF(ISTEXT($D84),HLOOKUP($D84,DEBUT!$O$3:$XX$100,10,FALSE),"") -> H | M85: =IF(ISTEXT($D84),HLOOKUP($D84,DEBUT!$O$3:$XX$100,11,FALSE),"") -> I | N85: =IF(ISTEXT($D84),HLOOKUP($D84,DEBUT!$O$3:$XX$100,12,FALSE),"") -> J | P85: Nombre balises prévues | Q85: =SUMPRODUCT(N(ISTEXT(E85:N85))) -> 10 | R85: prévues
D86: Validé | E86: =IF($D86=DEBUT!$L$5,E87,"") -> 12 | F86: =IF($D86=DEBUT!$L$5,F87,"") -> 13 | G86: =IF($D86=DEBUT!$L$5,G87,"") -> 11 | H86: =IF($D86=DEBUT!$L$5,H87,"") -> 16 | I86: =IF($D86=DEBUT!$L$5,I87,"") -> 35 | J86: =IF($D86=DEBUT!$L$5,J87,"") -> 28 | K86: =IF($D86=DEBUT!$L$5,K87,"") -> 26 | L86: =IF($D86=DEBUT!$L$5,L87,"") -> 40 | M86: =IF($D86=DEBUT!$L$5,M87,"") -> 39 | N86: =IF($D86=DEBUT!$L$5,N87,"") -> 45 | P86: Nombre balises trouvées | Q86: =SUMPRODUCT(N(ISNUMBER(E86:N86))) -> 10 | R86: =IF(Q86>1,"trouvées","trouvée") -> trouvées
D87: Balises CM | E87: =IFERROR(INDEX(baliseCM,MATCH(E85,lettre,0),MATCH($D83,parcours,0)),"") -> 12 | F87: =IFERROR(INDEX(baliseCM,MATCH(F85,lettre,0),MATCH($D83,parcours,0)),"") -> 13 | G87: 11 | H87: 16 | I87: 35 | J87: 28 | K87: 26 | L87: 40 | M87: 39 | N87: 45
D88: Vitesse | E88: =(E84/ABS((HOUR(E83)*3600+MINUTE(E83)*60+SECOND(E83))))*3.6 -> 790.3455503 | F88: =(F84/ABS((HOUR(F83)*3600+MINUTE(F83)*60+SECOND(F83))))*3.6 ->  | N88: =(N84/ABS((HOUR(N83)*3600+MINUTE(N83)*60+SECOND(N83))))*3.6 ->  | O88: Km/h | P88: Vitesse moyenne | Q88: =Q84/R83*3.6 -> 7703.087576 | R88: km/h

Sheet 123
H1: =CONCATENATE(H2,"bis") -> 6ROUGEbis | M1: Temps limite
B2: STAGE | E2: 15:54:28 | H2: 6ROUGE | M2: 30.02430556 | N2: min
I3: =IF(ISTEXT($H2),HLOOKUP($H2,DEBUT!$O$3:$XX$100,7,FALSE),"") -> E
I4: =IFERROR(INDEX(baliseCM,MATCH(I3,lettre,0),MATCH($H$1,parcours,0)),"") -> 76 | P4: ETOILE | Q4: N3
B5: EQUIPE 1 | C5: D | D5: 15:54:28 | E5: 15:54:36 | G5: 15:54:37 | J5: 15:56:28 | N5: 15:56:30 | T5: Analyse du parcours | AL5: 1 | AM5: =OFFSET(INDEX(eleves,MATCH(AL5,chiffre,0),MATCH($B$2,classes,0)),0,1) -> POL
B6: Alexandre | D6: =CONCATENATE(D7,"bis") -> 6ROUGEbis | E6: =E5-D5 -> 00:00:08 | G6: =G5-E5 -> 00:00:01 | J6: =J5-G5 -> 00:01:51 | N6: =N5-J5 -> 00:00:02 | P6: Temps de course | Q6: =SUMIF(E6:N6,">0",E6:N6) -> 00:02:02 | R6: =ABS((HOUR(Q6)*3600+MINUTE(Q6)*60+SECOND(Q6))) -> 122 | AL6: 2 | AM6: CARINE
D7: =$H$2 -> 6ROUGE | E7: =IFERROR(SQRT(POWER((VLOOKUP($C$5,DEBUT!$D$5:$J$110,6,FALSE)-VLOOKUP(E9,DEBUT!$D$5:$J$110,6,FALSE)),2)+POWER((VLOOKUP($C$5,DEBUT!$D$5:$J$110,7,FALSE)-VLOOKUP(E9,DEBUT!$D$5:$J$110,7,FALSE)),2))/CARTE!$O$9,0) -> 177.2924731 | F7: =IFERROR(SQRT(POWER((VLOOKUP($C$5,DEBUT!$D$5:$J$110,6,FALSE)-VLOOKUP(F9,DEBUT!$D$5:$J$110,6,FALSE)),2)+POWER((VLOOKUP($C$5,DEBUT!$D$5:$J$110,7,FALSE)-VLOOKUP(F9,DEBUT!$D$5:$J$110,7,FALSE)),2))/CARTE!$O$9,0) -> 315.295747 | G7: =IFERROR(SQRT(POWER((VLOOKUP($C$5,DEBUT!$D$5:$J$110,6,FALSE)-VLOOKUP(G9,DEBUT!$D$5:$J$110,6,FALSE)),2)+POWER((VLOOKUP($C$5,DEBUT!$D$5:$J$110,7,FALSE)-VLOOKUP(G9,DEBUT!$D$5:$J$110,7,FALSE)),2))/CARTE!$O$9,0) -> 292.3681185 | H7: =IFERROR(SQRT(POWER((VLOOKUP($C$5,DEBUT!$D$5:$J$110,6,FALSE)-VLOOKUP(H9,DEBUT!$D$5:$J$110,6,FALSE)),2)+POWER((VLOOKUP($C$5,DEBUT!$D$5:$J$110,7,FALSE)-VLOOKUP(H9,DEBUT!$D$5:$J$110,7,FALSE)),2))/CARTE!$O$9,0) -> 500.9285964 | I7: =IFERROR(SQRT(POWER((VLOOKUP(H5,DEBUT!$D$5:$J$110,6,FALSE)-VLOOKUP(I9,DEBUT!$D$5:$J$110,6,FALSE)),2)+POWER((VLOOKUP(H5,DEBUT!$D$5:$J$110,7,FALSE)-VLOOKUP(I9,DEBUT!$D$5:$J$110,7,FALSE)),2))/CARTE!$O$9,0) -> 1575.791614 | J7: =IFERROR(SQRT(POWER((VLOOKUP(I5,DEBUT!$D$5:$J$110,6,FALSE)-VLOOKUP(J9,DEBUT!$D$5:$J$110,6,FALSE)),2)+POWER((VLOOKUP(I5,DEBUT!$D$5:$J$110,7,FALSE)-VLOOKUP(J9,DEBUT!$D$5:$J$110,7,FALSE)),2))/CARTE!$O$9,0) -> 1306.115985 | K7: =IFERROR(SQRT(POWER((VLOOKUP($C$5,DEBUT!$D$5:$J$110,6,FALSE)-VLOOKUP(K9,DEBUT!$D$5:$J$110,6,FALSE)),2)+POWER((VLOOKUP($C$5,DEBUT!$D$5:$J$110,7,FALSE)-VLOOKUP(K9,DEBUT!$D$5:$J$110,7,FALSE)),2))/CARTE!$O$9,0) -> 0 | L7: =IFERROR(SQRT(POWER((VLOOKUP(K5,DEBUT!$D$5:$J$110,6,FALSE)-VLOOKUP(L9,DEBUT!$D$5:$J$110,6,FALSE)),2)+POWER((VLOOKUP(K5,DEBUT!$D$5:$J$110,7,FALSE)-VLOOKUP(L9,DEBUT!$D$5:$J$110,7,FALSE)),2))/CARTE!$O$9,0) -> 0 | M7: =IFERROR(SQRT(POWER((VLOOKUP(L5,DEBUT!$D$5:$J$110,6,FALSE)-VLOOKUP(M9,DEBUT!$D$5:$J$110,6,FALSE)),2)+POWER((VLOOKUP(L5,DEBUT!$D$5:$J$110,7,FALSE)-VLOOKUP(M9,DEBUT!$D$5:$J$110,7,FALSE)),2))/CARTE!$O$9,0) -> 0 | N7: =IFERROR(SQRT(POWER((VLOOKUP(M5,DEBUT!$D$5:$J$110,6,FALSE)-VLOOKUP(N9,DEBUT!$D$5:$J$110,6,FALSE)),2)+POWER((VLOOKUP(M5,DEBUT!$D$5:$J$110,7,FALSE)-VLOOKUP(N9,DEBUT!$D$5:$J$110,7,FALSE)),2))/CARTE!$O$9,0) -> 0 | O7: m | P7: Distance | Q7: =SUM(E7:N7) -> 4167.792534 | R7: m | AL7: 3 | AM7: BASTIEN
D8: Balises prévues | E8: =IF(ISTEXT($D7),HLOOKUP($D7,DEBUT!$O$3:$XX$100,3,FALSE),"") -> A | F8: =IF(ISTEXT($D7),HLOOKUP($D7,DEBUT!$O$3:$XX$100,4,FALSE),"") -> B | G8: =IF(ISTEXT($D7),HLOOKUP($D7,DEBUT!$O$3:$XX$100,5,FALSE),"") -> C | H8: =IF(ISTEXT($D7),HLOOKUP($D7,DEBUT!$O$3:$XX$100,6,FALSE),"") -> D | I8: =IF(ISTEXT($D7),HLOOKUP($D7,DEBUT!$O$3:$XX$100,7,FALSE),"") -> E | J8: =IF(ISTEXT($D7),HLOOKUP($D7,DEBUT!$O$3:$XX$100,8,FALSE),"") -> F | K8: =IF(ISTEXT($D7),HLOOKUP($D7,DEBUT!$O$3:$XX$100,9,FALSE),"") -> 0 | L8: =IF(ISTEXT($D7),HLOOKUP($D7,DEBUT!$O$3:$XX$100,10,FALSE),"") -> 0 | M8: =IF(ISTEXT($D7),HLOOKUP($D7,DEBUT!$O$3:$XX$100,11,FALSE),"") -> 0 | N8: =IF(ISTEXT($D7),HLOOKUP($D7,DEBUT!$O$3:$XX$100,12,FALSE),"") -> 0 | P8: Nombre balises prévues | Q8: =SUMPRODUCT(N(ISTEXT(E8:N8))) -> 6 | R8: prévues | AL8: 4 | AM8: CORALINE
D9: Validé | E9: =IF($D9=DEBUT!$L$5,E10,"") -> 7 | F9: =IF($D9=DEBUT!$L$5,F10,"") -> 10 | G9: =IF($D9=DEBUT!$L$5,G10,"") -> 11 | H9: =IF($D9=DEBUT!$L$5,H10,"") -> 1 | I9: =IF($D9=DEBUT!$L$5,I10,"") -> 76 | J9: =IF($D9=DEBUT!$L$5,J10,"") -> 46 | K9: =IF($D9=DEBUT!$L$5,K10,"") ->  | L9: =IF($D9=DEBUT!$L$5,L10,"") ->  | M9: =IF($D9=DEBUT!$L$5,M10,"") ->  | N9: =IF($D9=DEBUT!$L$5,N10,"") ->  | P9: Nombre balises trouvées | Q9: =SUMPRODUCT(N(ISNUMBER(E9:N9))) -> 6 | R9: =IF(Q9>1,"trouvées","trouvée") -> trouvées | AL9: 5 | AM9: GREGORY
D10: Balises CM | E10: =IFERROR(INDEX(baliseCM,MATCH(E8,lettre,0),MATCH($D6,parcours,0)),"") -> 7 | F10: =IFERROR(INDEX(baliseCM,MATCH(F8,lettre,0),MATCH($D6,parcours,0)),"") -> 10 | G10: 11 | H10: 1 | I10: 76 | J10: 46 | AL10: 6 | AM10: THOMAS
D11: Vitesse | E11: =(E7/ABS((HOUR(E6)*3600+MINUTE(E6)*60+SECOND(E6))))*3.6 -> 79.78161289 | G11: =(G7/ABS((HOUR(G6)*3600+MINUTE(G6)*60+SECOND(G6))))*3.6 -> 1052.525226 | J11: 42.36051843 | N11: =(N7/ABS((HOUR(N6)*3600+MINUTE(N6)*60+SECOND(N6))))*3.6 -> 0 | O11: Km/h | P11: Vitesse moyenne | Q11: =Q7/R6*3.6 -> 122.984042 | R11: km/h | AL11: 7 | AM11: ALAIN
B12: EQUIPE 2 | D12: 15:54:29 | E12: 15:57:17 | G12: 15:57:19 | J12: 15:57:22 | N12: 15:57:24 | T12: Analyse du parcours | AL12: 8 | AM12: QUENTIN
D13: =CONCATENATE(D14,"bis") -> 6ROUGEbis | E13: =E12-D12 -> 00:02:48 | G13: =G12-E12 -> 00:00:02 | J13: =J12-G12 -> 00:00:03 | N13: =N12-J12 -> 00:00:02 | P13: Temps de course | Q13: =SUMIF(E13:N13,">0",E13:N13) -> 00:02:55 | R13: =ABS((HOUR(Q13)*3600+MINUTE(Q13)*60+SECOND(Q13))) -> 175 | AL13: 9 | AM13: BAPTISTE
D14: =$H$2 -> 6ROUGE | E14: =IFERROR(SQRT(POWER((VLOOKUP($C$5,DEBUT!$D$5:$J$110,6,FALSE)-VLOOKUP(E16,DEBUT!$D$5:$J$110,6,FALSE)),2)+POWER((VLOOKUP($C$5,DEBUT!$D$5:$J$110,7,FALSE)-VLOOKUP(E16,DEBUT!$D$5:$J$110,7,FALSE)),2))/CARTE!$O$9,0) -> 177.2924731 | F14: =IFERROR(SQRT(POWER((VLOOKUP($C$5,DEBUT!$D$5:$J$110,6,FALSE)-VLOOKUP(F16,DEBUT!$D$5:$J$110,6,FALSE)),2)+POWER((VLOOKUP($C$5,DEBUT!$D$5:$J$110,7,FALSE)-VLOOKUP(F16,DEBUT!$D$5:$J$110,7,FALSE)),2))/CARTE!$O$9,0) -> 315.295747 | G14: =IFERROR(SQRT(POWER((VLOOKUP($C$5,DEBUT!$D$5:$J$110,6,FALSE)-VLOOKUP(G16,DEBUT!$D$5:$J$110,6,FALSE)),2)+POWER((VLOOKUP($C$5,DEBUT!$D$5:$J$110,7,FALSE)-VLOOKUP(G16,DEBUT!$D$5:$J$110,7,FALSE)),2))/CARTE!$O$9,0) -> 292.3681185 | H14: =IFERROR(SQRT(POWER((VLOOKUP($C$5,DEBUT!$D$5:$J$110,6,FALSE)-VLOOKUP(H16,DEBUT!$D$5:$J$110,6,FALSE)),2)+POWER((VLOOKUP($C$5,DEBUT!$D$5:$J$110,7,FALSE)-VLOOKUP(H16,DEBUT!$D$5:$J$110,7,FALSE)),2))/CARTE!$O$9,0) -> 500.9285964 | I14: =IFERROR(SQRT(POWER((VLOOKUP(H12,DEBUT!$D$5:$J$110,6,FALSE)-VLOOKUP(I16,DEBUT!$D$5:$J$110,6,FALSE)),2)+POWER((VLOOKUP(H12,DEBUT!$D$5:$J$110,7,FALSE)-VLOOKUP(I16,DEBUT!$D$5:$J$110,7,FALSE)),2))/CARTE!$O$9,0) -> 1575.791614 | J14: =IFERROR(SQRT(POWER((VLOOKUP(I12,DEBUT!$D$5:$J$110,6,FALSE)-VLOOKUP(J16,DEBUT!$D$5:$J$110,6,FALSE)),2)+POWER((VLOOKUP(I12,DEBUT!$D$5:$J$110,7,FALSE)-VLOOKUP(J16,DEBUT!$D$5:$J$110,7,FALSE)),2))/CARTE!$O$9,0) -> 1306.115985 | K14: =IFERROR(SQRT(POWER((VLOOKUP($C$5,DEBUT!$D$5:$J$110,6,FALSE)-VLOOKUP(K16,DEBUT!$D$5:$J$110,6,FALSE)),2)+POWER((VLOOKUP($C$5,DEBUT!$D$5:$J$110,7,FALSE)-VLOOKUP(K16,DEBUT!$D$5:$J$110,7,FALSE)),2))/CARTE!$O$9,0) -> 0 | L14: =IFERROR(SQRT(POWER((VLOOKUP(K12,DEBUT!$D$5:$J$110,6,FALSE)-VLOOKUP(L16,DEBUT!$D$5:$J$110,6,FALSE)),2)+POWER((VLOOKUP(K12,DEBUT!$D$5:$J$110,7,FALSE)-VLOOKUP(L16,DEBUT!$D$5:$J$110,7,FALSE)),2))/CARTE!$O$9,0) -> 0 | M14: =IFERROR(SQRT(POWER((VLOOKUP(L12,DEBUT!$D$5:$J$110,6,FALSE)-VLOOKUP(M16,DEBUT!$D$5:$J$110,6,FALSE)),2)+POWER((VLOOKUP(L12,DEBUT!$D$5:$J$110,7,FALSE)-VLOOKUP(M16,DEBUT!$D$5:$J$110,7,FALSE)),2))/CARTE!$O$9,0) -> 0 | N14: =IFERROR(SQRT(POWER((VLOOKUP(M12,DEBUT!$D$5:$J$110,6,FALSE)-VLOOKUP(N16,DEBUT!$D$5:$J$110,6,FALSE)),2)+POWER((VLOOKUP(M12,DEBUT!$D$5:$J$110,7,FALSE)-VLOOKUP(N16,DEBUT!$D$5:$J$110,7,FALSE)),2))/CARTE!$O$9,0) -> 0 | O14: m | P14: Distance | Q14: =SUM(E14:N14) -> 4167.792534 | R14: m | AL14: 10 | AM14: FRANCK
D15: Balises prévues | E15: =IF(ISTEXT($D14),HLOOKUP($D14,DEBUT!$O$3:$XX$100,3,FALSE),"") -> A | F15: =IF(ISTEXT($D14),HLOOKUP($D14,DEBUT!$O$3:$XX$100,4,FALSE),"") -> B | G15: =IF(ISTEXT($D14),HLOOKUP($D14,DEBUT!$O$3:$XX$100,5,FALSE),"") -> C | H15: =IF(ISTEXT($D14),HLOOKUP($D14,DEBUT!$O$3:$XX$100,6,FALSE),"") -> D | I15: =IF(ISTEXT($D14),HLOOKUP($D14,DEBUT!$O$3:$XX$100,7,FALSE),"") -> E | J15: =IF(ISTEXT($D14),HLOOKUP($D14,DEBUT!$O$3:$XX$100,8,FALSE),"") -> F | K15: =IF(ISTEXT($D14),HLOOKUP($D14,DEBUT!$O$3:$XX$100,9,FALSE),"") -> 0 | L15: =IF(ISTEXT($D14),HLOOKUP($D14,DEBUT!$O$3:$XX$100,10,FALSE),"") -> 0 | M15: =IF(ISTEXT($D14),HLOOKUP($D14,DEBUT!$O$3:$XX$100,11,FALSE),"") -> 0 | N15: =IF(ISTEXT($D14),HLOOKUP($D14,DEBUT!$O$3:$XX$100,12,FALSE),"") -> 0 | P15: Nombre balises prévues | Q15: =SUMPRODUCT(N(ISTEXT(E15:N15))) -> 6 | R15: prévues | AL15: 11 | AM15: VALENTIN
D16: Validé | E16: =IF($D16=DEBUT!$L$5,E17,"") -> 7 | F16: =IF($D16=DEBUT!$L$5,F17,"") -> 10 | G16: =IF($D16=DEBUT!$L$5,G17,"") -> 11 | H16: =IF($D16=DEBUT!$L$5,H17,"") -> 1 | I16: =IF($D16=DEBUT!$L$5,I17,"") -> 76 | J16: =IF($D16=DEBUT!$L$5,J17,"") -> 46 | K16: =IF($D16=DEBUT!$L$5,K17,"") ->  | L16: =IF($D16=DEBUT!$L$5,L17,"") ->  | M16: =IF($D16=DEBUT!$L$5,M17,"") ->  | N16: =IF($D16=DEBUT!$L$5,N17,"") ->  | P16: Nombre balises trouvées | Q16: =SUMPRODUCT(N(ISNUMBER(E16:N16))) -> 6 | R16: =IF(Q16>1,"trouvées","trouvée") -> trouvées | AL16: 12 | AM16: BENJAMIN
D17: Balises CM | E17: =IFERROR(INDEX(baliseCM,MATCH(E15,lettre,0),MATCH($D13,parcours,0)),"") -> 7 | F17: =IFERROR(INDEX(baliseCM,MATCH(F15,lettre,0),MATCH($D13,parcours,0)),"") -> 10 | G17: 11 | H17: 1 | I17: 76 | J17: 46 | AL17: 13 | AM17: ANDY
D18: Vitesse | E18: =(E14/ABS((HOUR(E13)*3600+MINUTE(E13)*60+SECOND(E13))))*3.6 -> 3.799124423 | G18: =(G14/ABS((HOUR(G13)*3600+MINUTE(G13)*60+SECOND(G13))))*3.6 -> 526.2626132 | J18: =(J14/ABS((HOUR(J13)*3600+MINUTE(J13)*60+SECOND(J13))))*3.6 -> 1567.339182 | N18: =(N14/ABS((HOUR(N13)*3600+MINUTE(N13)*60+SECOND(N13))))*3.6 -> 0 | O18: Km/h | P18: Vitesse moyenne | Q18: =Q14/R13*3.6 -> 85.73744641 | R18: km/h | AL18: 14 | AM18: OLIVIER
B19: EQUIPE 3 | D19: 15:54:29 | E19: 11:34:17 | G19: 11:34:19 | J19: 11:34:22 | N19: 11:34:29 | T19: Analyse du parcours | AL19: 15 | AM19: CHRISTIAN
D20: =CONCATENATE(D21,"bis") -> 6ROUGEbis | E20: =E19-D19 -> -0.1806944444 | G20: =G19-E19 -> 00:00:02 | J20: =J19-G19 -> 00:00:03 | N20: =N19-J19 -> 00:00:07 | P20: Temps de course | Q20: =SUMIF(E20:N20,">0",E20:N20) -> 00:00:12 | R20: =ABS((HOUR(Q20)*3600+MINUTE(Q20)*60+SECOND(Q20))) -> 12 | AL20: 16 | AM20: CELINE
D21: =$H$2 -> 6ROUGE | E21: =IFERROR(SQRT(POWER((VLOOKUP($C$5,DEBUT!$D$5:$J$110,6,FALSE)-VLOOKUP(E23,DEBUT!$D$5:$J$110,6,FALSE)),2)+POWER((VLOOKUP($C$5,DEBUT!$D$5:$J$110,7,FALSE)-VLOOKUP(E23,DEBUT!$D$5:$J$110,7,FALSE)),2))/CARTE!$O$9,0) -> 177.2924731 | F21: =IFERROR(SQRT(POWER((VLOOKUP($C$5,DEBUT!$D$5:$J$110,6,FALSE)-VLOOKUP(F23,DEBUT!$D$5:$J$110,6,FALSE)),2)+POWER((VLOOKUP($C$5,DEBUT!$D$5:$J$110,7,FALSE)-VLOOKUP(F23,DEBUT!$D$5:$J$110,7,FALSE)),2))/CARTE!$O$9,0) -> 315.295747 | G21: =IFERROR(SQRT(POWER((VLOOKUP($C$5,DEBUT!$D$5:$J$110,6,FALSE)-VLOOKUP(G23,DEBUT!$D$5:$J$110,6,FALSE)),2)+POWER((VLOOKUP($C$5,DEBUT!$D$5:$J$110,7,FALSE)-VLOOKUP(G23,DEBUT!$D$5:$J$110,7,FALSE)),2))/CARTE!$O$9,0) -> 292.3681185 | H21: =IFERROR(SQRT(POWER((VLOOKUP($C$5,DEBUT!$D$5:$J$110,6,FALSE)-VLOOKUP(H23,DEBUT!$D$5:$J$110,6,FALSE)),2)+POWER((VLOOKUP($C$5,DEBUT!$D$5:$J$110,7,FALSE)-VLOOKUP(H23,DEBUT!$D$5:$J$110,7,FALSE)),2))/CARTE!$O$9,0) -> 500.9285964 | I21: =IFERROR(SQRT(POWER((VLOOKUP(H19,DEBUT!$D$5:$J$110,6,FALSE)-VLOOKUP(I23,DEBUT!$D$5:$J$110,6,FALSE)),2)+POWER((VLOOKUP(H19,DEBUT!$D$5:$J$110,7,FALSE)-VLOOKUP(I23,DEBUT!$D$5:$J$110,7,FALSE)),2))/CARTE!$O$9,0) -> 1575.791614 | J21: =IFERROR(SQRT(POWER((VLOOKUP(I19,DEBUT!$D$5:$J$110,6,FALSE)-VLOOKUP(J23,DEBUT!$D$5:$J$110,6,FALSE)),2)+POWER((VLOOKUP(I19,DEBUT!$D$5:$J$110,7,FALSE)-VLOOKUP(J23,DEBUT!$D$5:$J$110,7,FALSE)),2))/CARTE!$O$9,0) -> 1306.115985 | K21: =IFERROR(SQRT(POWER((VLOOKUP($C$5,DEBUT!$D$5:$J$110,6,FALSE)-VLOOKUP(K23,DEBUT!$D$5:$J$110,6,FALSE)),2)+POWER((VLOOKUP($C$5,DEBUT!$D$5:$J$110,7,FALSE)-VLOOKUP(K23,DEBUT!$D$5:$J$110,7,FALSE)),2))/CARTE!$O$9,0) -> 0 | L21: =IFERROR(SQRT(POWER((VLOOKUP(K19,DEBUT!$D$5:$J$110,6,FALSE)-VLOOKUP(L23,DEBUT!$D$5:$J$110,6,FALSE)),2)+POWER((VLOOKUP(K19,DEBUT!$D$5:$J$110,7,FALSE)-VLOOKUP(L23,DEBUT!$D$5:$J$110,7,FALSE)),2))/CARTE!$O$9,0) -> 0 | M21: =IFERROR(SQRT(POWER((VLOOKUP(L19,DEBUT!$D$5:$J$110,6,FALSE)-VLOOKUP(M23,DEBUT!$D$5:$J$110,6,FALSE)),2)+POWER((VLOOKUP(L19,DEBUT!$D$5:$J$110,7,FALSE)-VLOOKUP(M23,DEBUT!$D$5:$J$110,7,FALSE)),2))/CARTE!$O$9,0) -> 0 | N21: =IFERROR(SQRT(POWER((VLOOKUP(M19,DEBUT!$D$5:$J$110,6,FALSE)-VLOOKUP(N23,DEBUT!$D$5:$J$110,6,FALSE)),2)+POWER((VLOOKUP(M19,DEBUT!$D$5:$J$110,7,FALSE)-VLOOKUP(N23,DEBUT!$D$5:$J$110,7,FALSE)),2))/CARTE!$O$9,0) -> 0 | O21: m | P21: Distance | Q21: =SUM(E21:N21) -> 4167.792534 | R21: m | AL21: 17 | AM21: SEBASTIEN
D22: Balises prévues | E22: =IF(ISTEXT($D21),HLOOKUP($D21,DEBUT!$O$3:$XX$100,3,FALSE),"") -> A | F22: =IF(ISTEXT($D21),HLOOKUP($D21,DEBUT!$O$3:$XX$100,4,FALSE),"") -> B | G22: =IF(ISTEXT($D21),HLOOKUP($D21,DEBUT!$O$3:$XX$100,5,FALSE),"") -> C | H22: =IF(ISTEXT($D21),HLOOKUP($D21,DEBUT!$O$3:$XX$100,6,FALSE),"") -> D | I22: =IF(ISTEXT($D21),HLOOKUP($D21,DEBUT!$O$3:$XX$100,7,FALSE),"") -> E | J22: =IF(ISTEXT($D21),HLOOKUP($D21,DEBUT!$O$3:$XX$100,8,FALSE),"") -> F | K22: =IF(ISTEXT($D21),HLOOKUP($D21,DEBUT!$O$3:$XX$100,9,FALSE),"") -> 0 | L22: =IF(ISTEXT($D21),HLOOKUP($D21,DEBUT!$O$3:$XX$100,10,FALSE),"") -> 0 | M22: =IF(ISTEXT($D21),HLOOKUP($D21,DEBUT!$O$3:$XX$100,11,FALSE),"") -> 0 | N22: =IF(ISTEXT($D21),HLOOKUP($D21,DEBUT!$O$3:$XX$100,12,FALSE),"") -> 0 | P22: Nombre balises prévues | Q22: =SUMPRODUCT(N(ISTEXT(E22:N22))) -> 6 | R22: prévues | AL22: 18 | AM22: PASCAL
D23: Validé | E23: =IF($D23=DEBUT!$L$5,E24,"") -> 7 | F23: =IF($D23=DEBUT!$L$5,F24,"") -> 10 | G23: =IF($D23=DEBUT!$L$5,G24,"") -> 11 | H23: =IF($D23=DEBUT!$L$5,H24,"") -> 1 | I23: =IF($D23=DEBUT!$L$5,I24,"") -> 76 | J23: =IF($D23=DEBUT!$L$5,J24,"") -> 46 | K23: =IF($D23=DEBUT!$L$5,K24,"") ->  | L23: =IF($D23=DEBUT!$L$5,L24,"") ->  | M23: =IF($D23=DEBUT!$L$5,M24,"") ->  | N23: =IF($D23=DEBUT!$L$5,N24,"") ->  | P23: Nombre balises trouvées | Q23: =SUMPRODUCT(N(ISNUMBER(E23:N23))) -> 6 | R23: =IF(Q23>1,"trouvées","trouvée") -> trouvées | AL23: 19 | AM23: CAROLE
D24: Balises CM | E24: =IFERROR(INDEX(baliseCM,MATCH(E22,lettre,0),MATCH($D20,parcours,0)),"") -> 7 | F24: =IFERROR(INDEX(baliseCM,MATCH(F22,lettre,0),MATCH($D20,parcours,0)),"") -> 10 | G24: 11 | H24: 1 | I24: 76 | J24: 46 | AL24: 20 | AM24: ISABELLE
D25: Vitesse | E25: =(E21/ABS((HOUR(E20)*3600+MINUTE(E20)*60+SECOND(E20))))*3.6 ->  | G25: =(G21/ABS((HOUR(G20)*3600+MINUTE(G20)*60+SECOND(G20))))*3.6 -> 526.2626132 | J25: =(J21/ABS((HOUR(J20)*3600+MINUTE(J20)*60+SECOND(J20))))*3.6 -> 1567.339182 | N25: =(N21/ABS((HOUR(N20)*3600+MINUTE(N20)*60+SECOND(N20))))*3.6 -> 0 | O25: Km/h | P25: Vitesse moyenne | Q25: =Q21/R20*3.6 -> 1250.33776 | R25: km/h | AL25: 21 | AM25: DAVID
B26: EQUIPE 4 | D26: 15:54:30 | T26: Analyse du parcours | AL26: 22 | AM26: FRANCOIS
D27: =CONCATENATE(D28,"bis") -> 6ROUGEbis | E27: =E26-D26 -> -0.6628472222 | G27: =G26-E26 -> 00:00:00 | J27: =J26-G26 -> 00:00:00 | N27: =N26-J26 -> 00:00:00 | P27: Temps de course | Q27: =SUMIF(E27:N27,">0",E27:N27) -> 00:00:00 | R27: =ABS((HOUR(Q27)*3600+MINUTE(Q27)*60+SECOND(Q27))) -> 0 | AL27: 23 | AM27: Mick
D28: =$H$2 -> 6ROUGE | E28: =IFERROR(SQRT(POWER((VLOOKUP($C$5,DEBUT!$D$5:$J$110,6,FALSE)-VLOOKUP(E30,DEBUT!$D$5:$J$110,6,FALSE)),2)+POWER((VLOOKUP($C$5,DEBUT!$D$5:$J$110,7,FALSE)-VLOOKUP(E30,DEBUT!$D$5:$J$110,7,FALSE)),2))/CARTE!$O$9,0) -> 177.2924731 | F28: =IFERROR(SQRT(POWER((VLOOKUP($C$5,DEBUT!$D$5:$J$110,6,FALSE)-VLOOKUP(F30,DEBUT!$D$5:$J$110,6,FALSE)),2)+POWER((VLOOKUP($C$5,DEBUT!$D$5:$J$110,7,FALSE)-VLOOKUP(F30,DEBUT!$D$5:$J$110,7,FALSE)),2))/CARTE!$O$9,0) -> 315.295747 | G28: =IFERROR(SQRT(POWER((VLOOKUP($C$5,DEBUT!$D$5:$J$110,6,FALSE)-VLOOKUP(G30,DEBUT!$D$5:$J$110,6,FALSE)),2)+POWER((VLOOKUP($C$5,DEBUT!$D$5:$J$110,7,FALSE)-VLOOKUP(G30,DEBUT!$D$5:$J$110,7,FALSE)),2))/CARTE!$O$9,0) -> 292.3681185 | H28: =IFERROR(SQRT(POWER((VLOOKUP($C$5,DEBUT!$D$5:$J$110,6,FALSE)-VLOOKUP(H30,DEBUT!$D$5:$J$110,6,FALSE)),2)+POWER((VLOOKUP($C$5,DEBUT!$D$5:$J$110,7,FALSE)-VLOOKUP(H30,DEBUT!$D$5:$J$110,7,FALSE)),2))/CARTE!$O$9,0) -> 500.9285964 | I28: =IFERROR(SQRT(POWER((VLOOKUP(H26,DEBUT!$D$5:$J$110,6,FALSE)-VLOOKUP(I30,DEBUT!$D$5:$J$110,6,FALSE)),2)+POWER((VLOOKUP(H26,DEBUT!$D$5:$J$110,7,FALSE)-VLOOKUP(I30,DEBUT!$D$5:$J$110,7,FALSE)),2))/CARTE!$O$9,0) -> 1575.791614 | J28: =IFERROR(SQRT(POWER((VLOOKUP(I26,DEBUT!$D$5:$J$110,6,FALSE)-VLOOKUP(J30,DEBUT!$D$5:$J$110,6,FALSE)),2)+POWER((VLOOKUP(I26,DEBUT!$D$5:$J$110,7,FALSE)-VLOOKUP(J30,DEBUT!$D$5:$J$110,7,FALSE)),2))/CARTE!$O$9,0) -> 1306.115985 | K28: =IFERROR(SQRT(POWER((VLOOKUP($C$5,DEBUT!$D$5:$J$110,6,FALSE)-VLOOKUP(K30,DEBUT!$D$5:$J$110,6,FALSE)),2)+POWER((VLOOKUP($C$5,DEBUT!$D$5:$J$110,7,FALSE)-VLOOKUP(K30,DEBUT!$D$5:$J$110,7,FALSE)),2))/CARTE!$O$9,0) -> 0 | L28: =IFERROR(SQRT(POWER((VLOOKUP(K26,DEBUT!$D$5:$J$110,6,FALSE)-VLOOKUP(L30,DEBUT!$D$5:$J$110,6,FALSE)),2)+POWER((VLOOKUP(K26,DEBUT!$D$5:$J$110,7,FALSE)-VLOOKUP(L30,DEBUT!$D$5:$J$110,7,FALSE)),2))/CARTE!$O$9,0) -> 0 | M28: =IFERROR(SQRT(POWER((VLOOKUP(L26,DEBUT!$D$5:$J$110,6,FALSE)-VLOOKUP(M30,DEBUT!$D$5:$J$110,6,FALSE)),2)+POWER((VLOOKUP(L26,DEBUT!$D$5:$J$110,7,FALSE)-VLOOKUP(M30,DEBUT!$D$5:$J$110,7,FALSE)),2))/CARTE!$O$9,0) -> 0 | N28: =IFERROR(SQRT(POWER((VLOOKUP(M26,DEBUT!$D$5:$J$110,6,FALSE)-VLOOKUP(N30,DEBUT!$D$5:$J$110,6,FALSE)),2)+POWER((VLOOKUP(M26,DEBUT!$D$5:$J$110,7,FALSE)-VLOOKUP(N30,DEBUT!$D$5:$J$110,7,FALSE)),2))/CARTE!$O$9,0) -> 0 | O28: m | P28: Distance | Q28: =SUM(E28:N28) -> 4167.792534 | R28: m | AL28: 24 | AM28: 0
D29: Balises prévues | E29: =IF(ISTEXT($D28),HLOOKUP($D28,DEBUT!$O$3:$XX$100,3,FALSE),"") -> A | F29: =IF(ISTEXT($D28),HLOOKUP($D28,DEBUT!$O$3:$XX$100,4,FALSE),"") -> B | G29: =IF(ISTEXT($D28),HLOOKUP($D28,DEBUT!$O$3:$XX$100,5,FALSE),"") -> C | H29: =IF(ISTEXT($D28),HLOOKUP($D28,DEBUT!$O$3:$XX$100,6,FALSE),"") -> D | I29: =IF(ISTEXT($D28),HLOOKUP($D28,DEBUT!$O$3:$XX$100,7,FALSE),"") -> E | J29: =IF(ISTEXT($D28),HLOOKUP($D28,DEBUT!$O$3:$XX$100,8,FALSE),"") -> F | K29: =IF(ISTEXT($D28),HLOOKUP($D28,DEBUT!$O$3:$XX$100,9,FALSE),"") -> 0 | L29: =IF(ISTEXT($D28),HLOOKUP($D28,DEBUT!$O$3:$XX$100,10,FALSE),"") -> 0 | M29: =IF(ISTEXT($D28),HLOOKUP($D28,DEBUT!$O$3:$XX$100,11,FALSE),"") -> 0 | N29: =IF(ISTEXT($D28),HLOOKUP($D28,DEBUT!$O$3:$XX$100,12,FALSE),"") -> 0 | P29: Nombre balises prévues | Q29: =SUMPRODUCT(N(ISTEXT(E29:N29))) -> 6 | R29: prévues | AL29: 25 | AM29: 0
D30: Validé | E30: =IF($D30=DEBUT!$L$5,E31,"") -> 7 | F30: =IF($D30=DEBUT!$L$5,F31,"") -> 10 | G30: =IF($D30=DEBUT!$L$5,G31,"") -> 11 | H30: =IF($D30=DEBUT!$L$5,H31,"") -> 1 | I30: =IF($D30=DEBUT!$L$5,I31,"") -> 76 | J30: =IF($D30=DEBUT!$L$5,J31,"") -> 46 | K30: =IF($D30=DEBUT!$L$5,K31,"") ->  | L30: =IF($D30=DEBUT!$L$5,L31,"") ->  | M30: =IF($D30=DEBUT!$L$5,M31,"") ->  | N30: =IF($D30=DEBUT!$L$5,N31,"") ->  | P30: Nombre balises trouvées | Q30: =SUMPRODUCT(N(ISNUMBER(E30:N30))) -> 6 | R30: =IF(Q30>1,"trouvées","trouvée") -> trouvées | AL30: 26 | AM30: 0
D31: Balises CM | E31: =IFERROR(INDEX(baliseCM,MATCH(E29,lettre,0),MATCH($D27,parcours,0)),"") -> 7 | F31: =IFERROR(INDEX(baliseCM,MATCH(F29,lettre,0),MATCH($D27,parcours,0)),"") -> 10 | G31: 11 | H31: 1 | I31: 76 | J31: 46 | AL31: 27 | AM31: 0
D32: Vitesse | E32: =(E28/ABS((HOUR(E27)*3600+MINUTE(E27)*60+SECOND(E27))))*3.6 ->  | G32: =(G28/ABS((HOUR(G27)*3600+MINUTE(G27)*60+SECOND(G27))))*3.6 ->  | J32: =(J28/ABS((HOUR(J27)*3600+MINUTE(J27)*60+SECOND(J27))))*3.6 ->  | N32: =(N28/ABS((HOUR(N27)*3600+MINUTE(N27)*60+SECOND(N27))))*3.6 ->  | O32: Km/h | P32: Vitesse moyenne | Q32: =Q28/R27*3.6 ->  | R32: km/h | AL32: 28 | AM32: 0
B33: EQUIPE 5 | D33: 15:54:30 | T33: Analyse du parcours | AL33: 29 | AM33: 0
D34: =CONCATENATE(D35,"bis") -> 6ROUGEbis | E34: =E33-D33 -> -0.6628472222 | G34: =G33-E33 -> 00:00:00 | J34: =J33-G33 -> 00:00:00 | N34: =N33-J33 -> 00:00:00 | P34: Temps de course | Q34: =SUMIF(E34:N34,">0",E34:N34) -> 00:00:00 | R34: =ABS((HOUR(Q34)*3600+MINUTE(Q34)*60+SECOND(Q34))) -> 0 | AL34: 30 | AM34: 0
D35: =$H$2 -> 6ROUGE | E35: =IFERROR(SQRT(POWER((VLOOKUP($C$5,DEBUT!$D$5:$J$110,6,FALSE)-VLOOKUP(E37,DEBUT!$D$5:$J$110,6,FALSE)),2)+POWER((VLOOKUP($C$5,DEBUT!$D$5:$J$110,7,FALSE)-VLOOKUP(E37,DEBUT!$D$5:$J$110,7,FALSE)),2))/CARTE!$O$9,0) -> 177.2924731 | F35: =IFERROR(SQRT(POWER((VLOOKUP($C$5,DEBUT!$D$5:$J$110,6,FALSE)-VLOOKUP(F37,DEBUT!$D$5:$J$110,6,FALSE)),2)+POWER((VLOOKUP($C$5,DEBUT!$D$5:$J$110,7,FALSE)-VLOOKUP(F37,DEBUT!$D$5:$J$110,7,FALSE)),2))/CARTE!$O$9,0) -> 315.295747 | G35: =IFERROR(SQRT(POWER((VLOOKUP($C$5,DEBUT!$D$5:$J$110,6,FALSE)-VLOOKUP(G37,DEBUT!$D$5:$J$110,6,FALSE)),2)+POWER((VLOOKUP($C$5,DEBUT!$D$5:$J$110,7,FALSE)-VLOOKUP(G37,DEBUT!$D$5:$J$110,7,FALSE)),2))/CARTE!$O$9,0) -> 292.3681185 | H35: =IFERROR(SQRT(POWER((VLOOKUP($C$5,DEBUT!$D$5:$J$110,6,FALSE)-VLOOKUP(H37,DEBUT!$D$5:$J$110,6,FALSE)),2)+POWER((VLOOKUP($C$5,DEBUT!$D$5:$J$110,7,FALSE)-VLOOKUP(H37,DEBUT!$D$5:$J$110,7,FALSE)),2))/CARTE!$O$9,0) -> 500.9285964 | I35: =IFERROR(SQRT(POWER((VLOOKUP(H33,DEBUT!$D$5:$J$110,6,FALSE)-VLOOKUP(I37,DEBUT!$D$5:$J$110,6,FALSE)),2)+POWER((VLOOKUP(H33,DEBUT!$D$5:$J$110,7,FALSE)-VLOOKUP(I37,DEBUT!$D$5:$J$110,7,FALSE)),2))/CARTE!$O$9,0) -> 1575.791614 | J35: =IFERROR(SQRT(POWER((VLOOKUP(I33,DEBUT!$D$5:$J$110,6,FALSE)-VLOOKUP(J37,DEBUT!$D$5:$J$110,6,FALSE)),2)+POWER((VLOOKUP(I33,DEBUT!$D$5:$J$110,7,FALSE)-VLOOKUP(J37,DEBUT!$D$5:$J$110,7,FALSE)),2))/CARTE!$O$9,0) -> 1306.115985 | K35: =IFERROR(SQRT(POWER((VLOOKUP($C$5,DEBUT!$D$5:$J$110,6,FALSE)-VLOOKUP(K37,DEBUT!$D$5:$J$110,6,FALSE)),2)+POWER((VLOOKUP($C$5,DEBUT!$D$5:$J$110,7,FALSE)-VLOOKUP(K37,DEBUT!$D$5:$J$110,7,FALSE)),2))/CARTE!$O$9,0) -> 0 | L35: =IFERROR(SQRT(POWER((VLOOKUP(K33,DEBUT!$D$5:$J$110,6,FALSE)-VLOOKUP(L37,DEBUT!$D$5:$J$110,6,FALSE)),2)+POWER((VLOOKUP(K33,DEBUT!$D$5:$J$110,7,FALSE)-VLOOKUP(L37,DEBUT!$D$5:$J$110,7,FALSE)),2))/CARTE!$O$9,0) -> 0 | M35: =IFERROR(SQRT(POWER((VLOOKUP(L33,DEBUT!$D$5:$J$110,6,FALSE)-VLOOKUP(M37,DEBUT!$D$5:$J$110,6,FALSE)),2)+POWER((VLOOKUP(L33,DEBUT!$D$5:$J$110,7,FALSE)-VLOOKUP(M37,DEBUT!$D$5:$J$110,7,FALSE)),2))/CARTE!$O$9,0) -> 0 | N35: =IFERROR(SQRT(POWER((VLOOKUP(M33,DEBUT!$D$5:$J$110,6,FALSE)-VLOOKUP(N37,DEBUT!$D$5:$J$110,6,FALSE)),2)+POWER((VLOOKUP(M33,DEBUT!$D$5:$J$110,7,FALSE)-VLOOKUP(N37,DEBUT!$D$5:$J$110,7,FALSE)),2))/CARTE!$O$9,0) -> 0 | O35: m | P35: Distance | Q35: =SUM(E35:N35) -> 4167.792534 | R35: m | AL35: 31 | AM35: 0
D36: Balises prévues | E36: =IF(ISTEXT($D35),HLOOKUP($D35,DEBUT!$O$3:$XX$100,3,FALSE),"") -> A | F36: =IF(ISTEXT($D35),HLOOKUP($D35,DEBUT!$O$3:$XX$100,4,FALSE),"") -> B | G36: =IF(ISTEXT($D35),HLOOKUP($D35,DEBUT!$O$3:$XX$100,5,FALSE),"") -> C | H36: =IF(ISTEXT($D35),HLOOKUP($D35,DEBUT!$O$3:$XX$100,6,FALSE),"") -> D | I36: =IF(ISTEXT($D35),HLOOKUP($D35,DEBUT!$O$3:$XX$100,7,FALSE),"") -> E | J36: =IF(ISTEXT($D35),HLOOKUP($D35,DEBUT!$O$3:$XX$100,8,FALSE),"") -> F | K36: =IF(ISTEXT($D35),HLOOKUP($D35,DEBUT!$O$3:$XX$100,9,FALSE),"") -> 0 | L36: =IF(ISTEXT($D35),HLOOKUP($D35,DEBUT!$O$3:$XX$100,10,FALSE),"") -> 0 | M36: =IF(ISTEXT($D35),HLOOKUP($D35,DEBUT!$O$3:$XX$100,11,FALSE),"") -> 0 | N36: =IF(ISTEXT($D35),HLOOKUP($D35,DEBUT!$O$3:$XX$100,12,FALSE),"") -> 0 | P36: Nombre balises prévues | Q36: =SUMPRODUCT(N(ISTEXT(E36:N36))) -> 6 | R36: prévues | AL36: 32 | AM36: 0
D37: Validé | E37: =IF($D37=DEBUT!$L$5,E38,"") -> 7 | F37: =IF($D37=DEBUT!$L$5,F38,"") -> 10 | G37: =IF($D37=DEBUT!$L$5,G38,"") -> 11 | H37: =IF($D37=DEBUT!$L$5,H38,"") -> 1 | I37: =IF($D37=DEBUT!$L$5,I38,"") -> 76 | J37: =IF($D37=DEBUT!$L$5,J38,"") -> 46 | K37: =IF($D37=DEBUT!$L$5,K38,"") ->  | L37: =IF($D37=DEBUT!$L$5,L38,"") ->  | M37: =IF($D37=DEBUT!$L$5,M38,"") ->  | N37: =IF($D37=DEBUT!$L$5,N38,"") ->  | P37: Nombre balises trouvées | Q37: =SUMPRODUCT(N(ISNUMBER(E37:N37))) -> 6 | R37: =IF(Q37>1,"trouvées","trouvée") -> trouvées | AL37: 33 | AM37: 0
D38: Balises CM | E38: =IFERROR(INDEX(baliseCM,MATCH(E36,lettre,0),MATCH($D34,parcours,0)),"") -> 7 | F38: =IFERROR(INDEX(baliseCM,MATCH(F36,lettre,0),MATCH($D34,parcours,0)),"") -> 10 | G38: 11 | H38: 1 | I38: 76 | J38: 46 | AL38: 34 | AM38: 0
D39: Vitesse | E39: =(E35/ABS((HOUR(E34)*3600+MINUTE(E34)*60+SECOND(E34))))*3.6 ->  | G39: =(G35/ABS((HOUR(G34)*3600+MINUTE(G34)*60+SECOND(G34))))*3.6 ->  | J39: =(J35/ABS((HOUR(J34)*3600+MINUTE(J34)*60+SECOND(J34))))*3.6 ->  | N39: =(N35/ABS((HOUR(N34)*3600+MINUTE(N34)*60+SECOND(N34))))*3.6 ->  | O39: Km/h | P39: Vitesse moyenne | Q39: =Q35/R34*3.6 ->  | R39: km/h | AL39: 35 | AM39: 0
B40: EQUIPE 6 | D40: 15:54:31 | T40: Analyse du parcours | AL40: 36 | AM40: 0
D41: =CONCATENATE(D42,"bis") -> 6ROUGEbis | E41: =E40-D40 -> -0.6628587963 | G41: =G40-E40 -> 00:00:00 | J41: =J40-G40 -> 00:00:00 | N41: =N40-J40 -> 00:00:00 | P41: Temps de course | Q41: =SUMIF(E41:N41,">0",E41:N41) -> 00:00:00 | R41: =ABS((HOUR(Q41)*3600+MINUTE(Q41)*60+SECOND(Q41))) -> 0
D42: =$H$2 -> 6ROUGE | E42: =IFERROR(SQRT(POWER((VLOOKUP($C$5,DEBUT!$D$5:$J$110,6,FALSE)-VLOOKUP(E44,DEBUT!$D$5:$J$110,6,FALSE)),2)+POWER((VLOOKUP($C$5,DEBUT!$D$5:$J$110,7,FALSE)-VLOOKUP(E44,DEBUT!$D$5:$J$110,7,FALSE)),2))/CARTE!$O$9,0) -> 177.2924731 | F42: =IFERROR(SQRT(POWER((VLOOKUP($C$5,DEBUT!$D$5:$J$110,6,FALSE)-VLOOKUP(F44,DEBUT!$D$5:$J$110,6,FALSE)),2)+POWER((VLOOKUP($C$5,DEBUT!$D$5:$J$110,7,FALSE)-VLOOKUP(F44,DEBUT!$D$5:$J$110,7,FALSE)),2))/CARTE!$O$9,0) -> 315.295747 | G42: =IFERROR(SQRT(POWER((VLOOKUP($C$5,DEBUT!$D$5:$J$110,6,FALSE)-VLOOKUP(G44,DEBUT!$D$5:$J$110,6,FALSE)),2)+POWER((VLOOKUP($C$5,DEBUT!$D$5:$J$110,7,FALSE)-VLOOKUP(G44,DEBUT!$D$5:$J$110,7,FALSE)),2))/CARTE!$O$9,0) -> 292.3681185 | H42: =IFERROR(SQRT(POWER((VLOOKUP($C$5,DEBUT!$D$5:$J$110,6,FALSE)-VLOOKUP(H44,DEBUT!$D$5:$J$110,6,FALSE)),2)+POWER((VLOOKUP($C$5,DEBUT!$D$5:$J$110,7,FALSE)-VLOOKUP(H44,DEBUT!$D$5:$J$110,7,FALSE)),2))/CARTE!$O$9,0) -> 500.9285964 | I42: =IFERROR(SQRT(POWER((VLOOKUP(H40,DEBUT!$D$5:$J$110,6,FALSE)-VLOOKUP(I44,DEBUT!$D$5:$J$110,6,FALSE)),2)+POWER((VLOOKUP(H40,DEBUT!$D$5:$J$110,7,FALSE)-VLOOKUP(I44,DEBUT!$D$5:$J$110,7,FALSE)),2))/CARTE!$O$9,0) -> 1575.791614 | J42: =IFERROR(SQRT(POWER((VLOOKUP(I40,DEBUT!$D$5:$J$110,6,FALSE)-VLOOKUP(J44,DEBUT!$D$5:$J$110,6,FALSE)),2)+POWER((VLOOKUP(I40,DEBUT!$D$5:$J$110,7,FALSE)-VLOOKUP(J44,DEBUT!$D$5:$J$110,7,FALSE)),2))/CARTE!$O$9,0) -> 1306.115985 | K42: =IFERROR(SQRT(POWER((VLOOKUP($C$5,DEBUT!$D$5:$J$110,6,FALSE)-VLOOKUP(K44,DEBUT!$D$5:$J$110,6,FALSE)),2)+POWER((VLOOKUP($C$5,DEBUT!$D$5:$J$110,7,FALSE)-VLOOKUP(K44,DEBUT!$D$5:$J$110,7,FALSE)),2))/CARTE!$O$9,0) -> 0 | L42: =IFERROR(SQRT(POWER((VLOOKUP(K40,DEBUT!$D$5:$J$110,6,FALSE)-VLOOKUP(L44,DEBUT!$D$5:$J$110,6,FALSE)),2)+POWER((VLOOKUP(K40,DEBUT!$D$5:$J$110,7,FALSE)-VLOOKUP(L44,DEBUT!$D$5:$J$110,7,FALSE)),2))/CARTE!$O$9,0) -> 0 | M42: =IFERROR(SQRT(POWER((VLOOKUP(L40,DEBUT!$D$5:$J$110,6,FALSE)-VLOOKUP(M44,DEBUT!$D$5:$J$110,6,FALSE)),2)+POWER((VLOOKUP(L40,DEBUT!$D$5:$J$110,7,FALSE)-VLOOKUP(M44,DEBUT!$D$5:$J$110,7,FALSE)),2))/CARTE!$O$9,0) -> 0 | N42: =IFERROR(SQRT(POWER((VLOOKUP(M40,DEBUT!$D$5:$J$110,6,FALSE)-VLOOKUP(N44,DEBUT!$D$5:$J$110,6,FALSE)),2)+POWER((VLOOKUP(M40,DEBUT!$D$5:$J$110,7,FALSE)-VLOOKUP(N44,DEBUT!$D$5:$J$110,7,FALSE)),2))/CARTE!$O$9,0) -> 0 | O42: m | P42: Distance | Q42: =SUM(E42:N42) -> 4167.792534 | R42: m
D43: Balises prévues | E43: =IF(ISTEXT($D42),HLOOKUP($D42,DEBUT!$O$3:$XX$100,3,FALSE),"") -> A | F43: =IF(ISTEXT($D42),HLOOKUP($D42,DEBUT!$O$3:$XX$100,4,FALSE),"") -> B | G43: =IF(ISTEXT($D42),HLOOKUP($D42,DEBUT!$O$3:$XX$100,5,FALSE),"") -> C | H43: =IF(ISTEXT($D42),HLOOKUP($D42,DEBUT!$O$3:$XX$100,6,FALSE),"") -> D | I43: =IF(ISTEXT($D42),HLOOKUP($D42,DEBUT!$O$3:$XX$100,7,FALSE),"") -> E | J43: =IF(ISTEXT($D42),HLOOKUP($D42,DEBUT!$O$3:$XX$100,8,FALSE),"") -> F | K43: =IF(ISTEXT($D42),HLOOKUP($D42,DEBUT!$O$3:$XX$100,9,FALSE),"") -> 0 | L43: =IF(ISTEXT($D42),HLOOKUP($D42,DEBUT!$O$3:$XX$100,10,FALSE),"") -> 0 | M43: =IF(ISTEXT($D42),HLOOKUP($D42,DEBUT!$O$3:$XX$100,11,FALSE),"") -> 0 | N43: =IF(ISTEXT($D42),HLOOKUP($D42,DEBUT!$O$3:$XX$100,12,FALSE),"") -> 0 | P43: Nombre balises prévues | Q43: =SUMPRODUCT(N(ISTEXT(E43:N43))) -> 6 | R43: prévues
D44: Validé | E44: =IF($D44=DEBUT!$L$5,E45,"") -> 7 | F44: =IF($D44=DEBUT!$L$5,F45,"") -> 10 | G44: =IF($D44=DEBUT!$L$5,G45,"") -> 11 | H44: =IF($D44=DEBUT!$L$5,H45,"") -> 1 | I44: =IF($D44=DEBUT!$L$5,I45,"") -> 76 | J44: =IF($D44=DEBUT!$L$5,J45,"") -> 46 | K44: =IF($D44=DEBUT!$L$5,K45,"") ->  | L44: =IF($D44=DEBUT!$L$5,L45,"") ->  | M44: =IF($D44=DEBUT!$L$5,M45,"") ->  | N44: =IF($D44=DEBUT!$L$5,N45,"") ->  | P44: Nombre balises trouvées | Q44: =SUMPRODUCT(N(ISNUMBER(E44:N44))) -> 6 | R44: =IF(Q44>1,"trouvées","trouvée") -> trouvées
D45: Balises CM | E45: =IFERROR(INDEX(baliseCM,MATCH(E43,lettre,0),MATCH($D41,parcours,0)),"") -> 7 | F45: =IFERROR(INDEX(baliseCM,MATCH(F43,lettre,0),MATCH($D41,parcours,0)),"") -> 10 | G45: 11 | H45: 1 | I45: 76 | J45: 46
D46: Vitesse | E46: =(E42/ABS((HOUR(E41)*3600+MINUTE(E41)*60+SECOND(E41))))*3.6 ->  | G46: =(G42/ABS((HOUR(G41)*3600+MINUTE(G41)*60+SECOND(G41))))*3.6 ->  | J46: =(J42/ABS((HOUR(J41)*3600+MINUTE(J41)*60+SECOND(J41))))*3.6 ->  | N46: =(N42/ABS((HOUR(N41)*3600+MINUTE(N41)*60+SECOND(N41))))*3.6 ->  | O46: Km/h | P46: Vitesse moyenne | Q46: =Q42/R41*3.6 ->  | R46: km/h
B47: EQUIPE 7 | D47: 15:54:31 | T47: Analyse du parcours
D48: =CONCATENATE(D49,"bis") -> 6ROUGEbis | E48: =E47-D47 -> -0.6628587963 | G48: =G47-E47 -> 00:00:00 | J48: =J47-G47 -> 00:00:00 | N48: =N47-J47 -> 00:00:00 | P48: Temps de course | Q48: =SUMIF(E48:N48,">0",E48:N48) -> 00:00:00 | R48: =ABS((HOUR(Q48)*3600+MINUTE(Q48)*60+SECOND(Q48))) -> 0
D49: =$H$2 -> 6ROUGE | E49: =IFERROR(SQRT(POWER((VLOOKUP($C$5,DEBUT!$D$5:$J$110,6,FALSE)-VLOOKUP(E51,DEBUT!$D$5:$J$110,6,FALSE)),2)+POWER((VLOOKUP($C$5,DEBUT!$D$5:$J$110,7,FALSE)-VLOOKUP(E51,DEBUT!$D$5:$J$110,7,FALSE)),2))/CARTE!$O$9,0) -> 177.2924731 | F49: =IFERROR(SQRT(POWER((VLOOKUP($C$5,DEBUT!$D$5:$J$110,6,FALSE)-VLOOKUP(F51,DEBUT!$D$5:$J$110,6,FALSE)),2)+POWER((VLOOKUP($C$5,DEBUT!$D$5:$J$110,7,FALSE)-VLOOKUP(F51,DEBUT!$D$5:$J$110,7,FALSE)),2))/CARTE!$O$9,0) -> 315.295747 | G49: =IFERROR(SQRT(POWER((VLOOKUP($C$5,DEBUT!$D$5:$J$110,6,FALSE)-VLOOKUP(G51,DEBUT!$D$5:$J$110,6,FALSE)),2)+POWER((VLOOKUP($C$5,DEBUT!$D$5:$J$110,7,FALSE)-VLOOKUP(G51,DEBUT!$D$5:$J$110,7,FALSE)),2))/CARTE!$O$9,0) -> 292.3681185 | H49: =IFERROR(SQRT(POWER((VLOOKUP($C$5,DEBUT!$D$5:$J$110,6,FALSE)-VLOOKUP(H51,DEBUT!$D$5:$J$110,6,FALSE)),2)+POWER((VLOOKUP($C$5,DEBUT!$D$5:$J$110,7,FALSE)-VLOOKUP(H51,DEBUT!$D$5:$J$110,7,FALSE)),2))/CARTE!$O$9,0) -> 500.9285964 | I49: =IFERROR(SQRT(POWER((VLOOKUP(H47,DEBUT!$D$5:$J$110,6,FALSE)-VLOOKUP(I51,DEBUT!$D$5:$J$110,6,FALSE)),2)+POWER((VLOOKUP(H47,DEBUT!$D$5:$J$110,7,FALSE)-VLOOKUP(I51,DEBUT!$D$5:$J$110,7,FALSE)),2))/CARTE!$O$9,0) -> 1575.791614 | J49: =IFERROR(SQRT(POWER((VLOOKUP(I47,DEBUT!$D$5:$J$110,6,FALSE)-VLOOKUP(J51,DEBUT!$D$5:$J$110,6,FALSE)),2)+POWER((VLOOKUP(I47,DEBUT!$D$5:$J$110,7,FALSE)-VLOOKUP(J51,DEBUT!$D$5:$J$110,7,FALSE)),2))/CARTE!$O$9,0) -> 1306.115985 | K49: =IFERROR(SQRT(POWER((VLOOKUP($C$5,DEBUT!$D$5:$J$110,6,FALSE)-VLOOKUP(K51,DEBUT!$D$5:$J$110,6,FALSE)),2)+POWER((VLOOKUP($C$5,DEBUT!$D$5:$J$110,7,FALSE)-VLOOKUP(K51,DEBUT!$D$5:$J$110,7,FALSE)),2))/CARTE!$O$9,0) -> 0 | L49: =IFERROR(SQRT(POWER((VLOOKUP(K47,DEBUT!$D$5:$J$110,6,FALSE)-VLOOKUP(L51,DEBUT!$D$5:$J$110,6,FALSE)),2)+POWER((VLOOKUP(K47,DEBUT!$D$5:$J$110,7,FALSE)-VLOOKUP(L51,DEBUT!$D$5:$J$110,7,FALSE)),2))/CARTE!$O$9,0) -> 0 | M49: =IFERROR(SQRT(POWER((VLOOKUP(L47,DEBUT!$D$5:$J$110,6,FALSE)-VLOOKUP(M51,DEBUT!$D$5:$J$110,6,FALSE)),2)+POWER((VLOOKUP(L47,DEBUT!$D$5:$J$110,7,FALSE)-VLOOKUP(M51,DEBUT!$D$5:$J$110,7,FALSE)),2))/CARTE!$O$9,0) -> 0 | N49: =IFERROR(SQRT(POWER((VLOOKUP(M47,DEBUT!$D$5:$J$110,6,FALSE)-VLOOKUP(N51,DEBUT!$D$5:$J$110,6,FALSE)),2)+POWER((VLOOKUP(M47,DEBUT!$D$5:$J$110,7,FALSE)-VLOOKUP(N51,DEBUT!$D$5:$J$110,7,FALSE)),2))/CARTE!$O$9,0) -> 0 | O49: m | P49: Distance | Q49: =SUM(E49:N49) -> 4167.792534 | R49: m
D50: Balises prévues | E50: =IF(ISTEXT($D49),HLOOKUP($D49,DEBUT!$O$3:$XX$100,3,FALSE),"") -> A | F50: =IF(ISTEXT($D49),HLOOKUP($D49,DEBUT!$O$3:$XX$100,4,FALSE),"") -> B | G50: =IF(ISTEXT($D49),HLOOKUP($D49,DEBUT!$O$3:$XX$100,5,FALSE),"") -> C | H50: =IF(ISTEXT($D49),HLOOKUP($D49,DEBUT!$O$3:$XX$100,6,FALSE),"") -> D | I50: =IF(ISTEXT($D49),HLOOKUP($D49,DEBUT!$O$3:$XX$100,7,FALSE),"") -> E | J50: =IF(ISTEXT($D49),HLOOKUP($D49,DEBUT!$O$3:$XX$100,8,FALSE),"") -> F | K50: =IF(ISTEXT($D49),HLOOKUP($D49,DEBUT!$O$3:$XX$100,9,FALSE),"") -> 0 | L50: =IF(ISTEXT($D49),HLOOKUP($D49,DEBUT!$O$3:$XX$100,10,FALSE),"") -> 0 | M50: =IF(ISTEXT($D49),HLOOKUP($D49,DEBUT!$O$3:$XX$100,11,FALSE),"") -> 0 | N50: =IF(ISTEXT($D49),HLOOKUP($D49,DEBUT!$O$3:$XX$100,12,FALSE),"") -> 0 | P50: Nombre balises prévues | Q50: =SUMPRODUCT(N(ISTEXT(E50:N50))) -> 6 | R50: prévues
D51: Validé | E51: =IF($D51=DEBUT!$L$5,E52,"") -> 7 | F51: =IF($D51=DEBUT!$L$5,F52,"") -> 10 | G51: =IF($D51=DEBUT!$L$5,G52,"") -> 11 | H51: =IF($D51=DEBUT!$L$5,H52,"") -> 1 | I51: =IF($D51=DEBUT!$L$5,I52,"") -> 76 | J51: =IF($D51=DEBUT!$L$5,J52,"") -> 46 | K51: =IF($D51=DEBUT!$L$5,K52,"") ->  | L51: =IF($D51=DEBUT!$L$5,L52,"") ->  | M51: =IF($D51=DEBUT!$L$5,M52,"") ->  | N51: =IF($D51=DEBUT!$L$5,N52,"") ->  | P51: Nombre balises trouvées | Q51: =SUMPRODUCT(N(ISNUMBER(E51:N51))) -> 6 | R51: =IF(Q51>1,"trouvées","trouvée") -> trouvées
D52: Balises CM | E52: =IFERROR(INDEX(baliseCM,MATCH(E50,lettre,0),MATCH($D48,parcours,0)),"") -> 7 | F52: =IFERROR(INDEX(baliseCM,MATCH(F50,lettre,0),MATCH($D48,parcours,0)),"") -> 10 | G52: 11 | H52: 1 | I52: 76 | J52: 46
D53: Vitesse | E53: =(E49/ABS((HOUR(E48)*3600+MINUTE(E48)*60+SECOND(E48))))*3.6 ->  | G53: =(G49/ABS((HOUR(G48)*3600+MINUTE(G48)*60+SECOND(G48))))*3.6 ->  | J53: =(J49/ABS((HOUR(J48)*3600+MINUTE(J48)*60+SECOND(J48))))*3.6 ->  | N53: =(N49/ABS((HOUR(N48)*3600+MINUTE(N48)*60+SECOND(N48))))*3.6 ->  | O53: Km/h | P53: Vitesse moyenne | Q53: =Q49/R48*3.6 ->  | R53: km/h
B54: EQUIPE 8 | D54: 15:54:32 | T54: Analyse du parcours
D55: =CONCATENATE(D56,"bis") -> 6ROUGEbis | E55: =E54-D54 -> -0.6628703704 | G55: =G54-E54 -> 00:00:00 | J55: =J54-G54 -> 00:00:00 | N55: =N54-J54 -> 00:00:00 | P55: Temps de course | Q55: =SUMIF(E55:N55,">0",E55:N55) -> 00:00:00 | R55: =ABS((HOUR(Q55)*3600+MINUTE(Q55)*60+SECOND(Q55))) -> 0
D56: =$H$2 -> 6ROUGE | E56: =IFERROR(SQRT(POWER((VLOOKUP($C$5,DEBUT!$D$5:$J$110,6,FALSE)-VLOOKUP(E58,DEBUT!$D$5:$J$110,6,FALSE)),2)+POWER((VLOOKUP($C$5,DEBUT!$D$5:$J$110,7,FALSE)-VLOOKUP(E58,DEBUT!$D$5:$J$110,7,FALSE)),2))/CARTE!$O$9,0) -> 177.2924731 | F56: =IFERROR(SQRT(POWER((VLOOKUP($C$5,DEBUT!$D$5:$J$110,6,FALSE)-VLOOKUP(F58,DEBUT!$D$5:$J$110,6,FALSE)),2)+POWER((VLOOKUP($C$5,DEBUT!$D$5:$J$110,7,FALSE)-VLOOKUP(F58,DEBUT!$D$5:$J$110,7,FALSE)),2))/CARTE!$O$9,0) -> 315.295747 | G56: =IFERROR(SQRT(POWER((VLOOKUP($C$5,DEBUT!$D$5:$J$110,6,FALSE)-VLOOKUP(G58,DEBUT!$D$5:$J$110,6,FALSE)),2)+POWER((VLOOKUP($C$5,DEBUT!$D$5:$J$110,7,FALSE)-VLOOKUP(G58,DEBUT!$D$5:$J$110,7,FALSE)),2))/CARTE!$O$9,0) -> 292.3681185 | H56: =IFERROR(SQRT(POWER((VLOOKUP($C$5,DEBUT!$D$5:$J$110,6,FALSE)-VLOOKUP(H58,DEBUT!$D$5:$J$110,6,FALSE)),2)+POWER((VLOOKUP($C$5,DEBUT!$D$5:$J$110,7,FALSE)-VLOOKUP(H58,DEBUT!$D$5:$J$110,7,FALSE)),2))/CARTE!$O$9,0) -> 500.9285964 | I56: =IFERROR(SQRT(POWER((VLOOKUP(H54,DEBUT!$D$5:$J$110,6,FALSE)-VLOOKUP(I58,DEBUT!$D$5:$J$110,6,FALSE)),2)+POWER((VLOOKUP(H54,DEBUT!$D$5:$J$110,7,FALSE)-VLOOKUP(I58,DEBUT!$D$5:$J$110,7,FALSE)),2))/CARTE!$O$9,0) -> 1575.791614 | J56: =IFERROR(SQRT(POWER((VLOOKUP(I54,DEBUT!$D$5:$J$110,6,FALSE)-VLOOKUP(J58,DEBUT!$D$5:$J$110,6,FALSE)),2)+POWER((VLOOKUP(I54,DEBUT!$D$5:$J$110,7,FALSE)-VLOOKUP(J58,DEBUT!$D$5:$J$110,7,FALSE)),2))/CARTE!$O$9,0) -> 1306.115985 | K56: =IFERROR(SQRT(POWER((VLOOKUP($C$5,DEBUT!$D$5:$J$110,6,FALSE)-VLOOKUP(K58,DEBUT!$D$5:$J$110,6,FALSE)),2)+POWER((VLOOKUP($C$5,DEBUT!$D$5:$J$110,7,FALSE)-VLOOKUP(K58,DEBUT!$D$5:$J$110,7,FALSE)),2))/CARTE!$O$9,0) -> 0 | L56: =IFERROR(SQRT(POWER((VLOOKUP(K54,DEBUT!$D$5:$J$110,6,FALSE)-VLOOKUP(L58,DEBUT!$D$5:$J$110,6,FALSE)),2)+POWER((VLOOKUP(K54,DEBUT!$D$5:$J$110,7,FALSE)-VLOOKUP(L58,DEBUT!$D$5:$J$110,7,FALSE)),2))/CARTE!$O$9,0) -> 0 | M56: =IFERROR(SQRT(POWER((VLOOKUP(L54,DEBUT!$D$5:$J$110,6,FALSE)-VLOOKUP(M58,DEBUT!$D$5:$J$110,6,FALSE)),2)+POWER((VLOOKUP(L54,DEBUT!$D$5:$J$110,7,FALSE)-VLOOKUP(M58,DEBUT!$D$5:$J$110,7,FALSE)),2))/CARTE!$O$9,0) -> 0 | N56: =IFERROR(SQRT(POWER((VLOOKUP(M54,DEBUT!$D$5:$J$110,6,FALSE)-VLOOKUP(N58,DEBUT!$D$5:$J$110,6,FALSE)),2)+POWER((VLOOKUP(M54,DEBUT!$D$5:$J$110,7,FALSE)-VLOOKUP(N58,DEBUT!$D$5:$J$110,7,FALSE)),2))/CARTE!$O$9,0) -> 0 | O56: m | P56: Distance | Q56: =SUM(E56:N56) -> 4167.792534 | R56: m
D57: Balises prévues | E57: =IF(ISTEXT($D56),HLOOKUP($D56,DEBUT!$O$3:$XX$100,3,FALSE),"") -> A | F57: =IF(ISTEXT($D56),HLOOKUP($D56,DEBUT!$O$3:$XX$100,4,FALSE),"") -> B | G57: =IF(ISTEXT($D56),HLOOKUP($D56,DEBUT!$O$3:$XX$100,5,FALSE),"") -> C | H57: =IF(ISTEXT($D56),HLOOKUP($D56,DEBUT!$O$3:$XX$100,6,FALSE),"") -> D | I57: =IF(ISTEXT($D56),HLOOKUP($D56,DEBUT!$O$3:$XX$100,7,FALSE),"") -> E | J57: =IF(ISTEXT($D56),HLOOKUP($D56,DEBUT!$O$3:$XX$100,8,FALSE),"") -> F | K57: =IF(ISTEXT($D56),HLOOKUP($D56,DEBUT!$O$3:$XX$100,9,FALSE),"") -> 0 | L57: =IF(ISTEXT($D56),HLOOKUP($D56,DEBUT!$O$3:$XX$100,10,FALSE),"") -> 0 | M57: =IF(ISTEXT($D56),HLOOKUP($D56,DEBUT!$O$3:$XX$100,11,FALSE),"") -> 0 | N57: =IF(ISTEXT($D56),HLOOKUP($D56,DEBUT!$O$3:$XX$100,12,FALSE),"") -> 0 | P57: Nombre balises prévues | Q57: =SUMPRODUCT(N(ISTEXT(E57:N57))) -> 6 | R57: prévues
D58: Validé | E58: =IF($D58=DEBUT!$L$5,E59,"") -> 7 | F58: =IF($D58=DEBUT!$L$5,F59,"") -> 10 | G58: =IF($D58=DEBUT!$L$5,G59,"") -> 11 | H58: =IF($D58=DEBUT!$L$5,H59,"") -> 1 | I58: =IF($D58=DEBUT!$L$5,I59,"") -> 76 | J58: =IF($D58=DEBUT!$L$5,J59,"") -> 46 | K58: =IF($D58=DEBUT!$L$5,K59,"") ->  | L58: =IF($D58=DEBUT!$L$5,L59,"") ->  | M58: =IF($D58=DEBUT!$L$5,M59,"") ->  | N58: =IF($D58=DEBUT!$L$5,N59,"") ->  | P58: Nombre balises trouvées | Q58: =SUMPRODUCT(N(ISNUMBER(E58:N58))) -> 6 | R58: =IF(Q58>1,"trouvées","trouvée") -> trouvées
D59: Balises CM | E59: =IFERROR(INDEX(baliseCM,MATCH(E57,lettre,0),MATCH($D55,parcours,0)),"") -> 7 | F59: =IFERROR(INDEX(baliseCM,MATCH(F57,lettre,0),MATCH($D55,parcours,0)),"") -> 10 | G59: 11 | H59: 1 | I59: 76 | J59: 46
D60: Vitesse | E60: =(E56/ABS((HOUR(E55)*3600+MINUTE(E55)*60+SECOND(E55))))*3.6 ->  | G60: =(G56/ABS((HOUR(G55)*3600+MINUTE(G55)*60+SECOND(G55))))*3.6 ->  | J60: =(J56/ABS((HOUR(J55)*3600+MINUTE(J55)*60+SECOND(J55))))*3.6 ->  | N60: =(N56/ABS((HOUR(N55)*3600+MINUTE(N55)*60+SECOND(N55))))*3.6 ->  | O60: Km/h | P60: Vitesse moyenne | Q60: =Q56/R55*3.6 ->  | R60: km/h
B61: EQUIPE 9 | D61: 15:54:32 | E61: 07:31:22 | T61: Analyse du parcours
D62: =CONCATENATE(D63,"bis") -> 6ROUGEbis | E62: =E61-D61 -> -0.3494212963 | G62: =G61-E61 -> -0.3134490741 | J62: =J61-G61 -> 00:00:00 | N62: =N61-J61 -> 00:00:00 | P62: Temps de course | Q62: =SUMIF(E62:N62,">0",E62:N62) -> 00:00:00 | R62: =ABS((HOUR(Q62)*3600+MINUTE(Q62)*60+SECOND(Q62))) -> 0
D63: =$H$2 -> 6ROUGE | E63: =IFERROR(SQRT(POWER((VLOOKUP($C$5,DEBUT!$D$5:$J$110,6,FALSE)-VLOOKUP(E65,DEBUT!$D$5:$J$110,6,FALSE)),2)+POWER((VLOOKUP($C$5,DEBUT!$D$5:$J$110,7,FALSE)-VLOOKUP(E65,DEBUT!$D$5:$J$110,7,FALSE)),2))/CARTE!$O$9,0) -> 177.2924731 | F63: =IFERROR(SQRT(POWER((VLOOKUP($C$5,DEBUT!$D$5:$J$110,6,FALSE)-VLOOKUP(F65,DEBUT!$D$5:$J$110,6,FALSE)),2)+POWER((VLOOKUP($C$5,DEBUT!$D$5:$J$110,7,FALSE)-VLOOKUP(F65,DEBUT!$D$5:$J$110,7,FALSE)),2))/CARTE!$O$9,0) -> 315.295747 | G63: =IFERROR(SQRT(POWER((VLOOKUP($C$5,DEBUT!$D$5:$J$110,6,FALSE)-VLOOKUP(G65,DEBUT!$D$5:$J$110,6,FALSE)),2)+POWER((VLOOKUP($C$5,DEBUT!$D$5:$J$110,7,FALSE)-VLOOKUP(G65,DEBUT!$D$5:$J$110,7,FALSE)),2))/CARTE!$O$9,0) -> 292.3681185 | H63: =IFERROR(SQRT(POWER((VLOOKUP($C$5,DEBUT!$D$5:$J$110,6,FALSE)-VLOOKUP(H65,DEBUT!$D$5:$J$110,6,FALSE)),2)+POWER((VLOOKUP($C$5,DEBUT!$D$5:$J$110,7,FALSE)-VLOOKUP(H65,DEBUT!$D$5:$J$110,7,FALSE)),2))/CARTE!$O$9,0) -> 500.9285964 | I63: =IFERROR(SQRT(POWER((VLOOKUP(H61,DEBUT!$D$5:$J$110,6,FALSE)-VLOOKUP(I65,DEBUT!$D$5:$J$110,6,FALSE)),2)+POWER((VLOOKUP(H61,DEBUT!$D$5:$J$110,7,FALSE)-VLOOKUP(I65,DEBUT!$D$5:$J$110,7,FALSE)),2))/CARTE!$O$9,0) -> 1575.791614 | J63: =IFERROR(SQRT(POWER((VLOOKUP(I61,DEBUT!$D$5:$J$110,6,FALSE)-VLOOKUP(J65,DEBUT!$D$5:$J$110,6,FALSE)),2)+POWER((VLOOKUP(I61,DEBUT!$D$5:$J$110,7,FALSE)-VLOOKUP(J65,DEBUT!$D$5:$J$110,7,FALSE)),2))/CARTE!$O$9,0) -> 1306.115985 | K63: =IFERROR(SQRT(POWER((VLOOKUP($C$5,DEBUT!$D$5:$J$110,6,FALSE)-VLOOKUP(K65,DEBUT!$D$5:$J$110,6,FALSE)),2)+POWER((VLOOKUP($C$5,DEBUT!$D$5:$J$110,7,FALSE)-VLOOKUP(K65,DEBUT!$D$5:$J$110,7,FALSE)),2))/CARTE!$O$9,0) -> 0 | L63: =IFERROR(SQRT(POWER((VLOOKUP(K61,DEBUT!$D$5:$J$110,6,FALSE)-VLOOKUP(L65,DEBUT!$D$5:$J$110,6,FALSE)),2)+POWER((VLOOKUP(K61,DEBUT!$D$5:$J$110,7,FALSE)-VLOOKUP(L65,DEBUT!$D$5:$J$110,7,FALSE)),2))/CARTE!$O$9,0) -> 0 | M63: =IFERROR(SQRT(POWER((VLOOKUP(L61,DEBUT!$D$5:$J$110,6,FALSE)-VLOOKUP(M65,DEBUT!$D$5:$J$110,6,FALSE)),2)+POWER((VLOOKUP(L61,DEBUT!$D$5:$J$110,7,FALSE)-VLOOKUP(M65,DEBUT!$D$5:$J$110,7,FALSE)),2))/CARTE!$O$9,0) -> 0 | N63: =IFERROR(SQRT(POWER((VLOOKUP(M61,DEBUT!$D$5:$J$110,6,FALSE)-VLOOKUP(N65,DEBUT!$D$5:$J$110,6,FALSE)),2)+POWER((VLOOKUP(M61,DEBUT!$D$5:$J$110,7,FALSE)-VLOOKUP(N65,DEBUT!$D$5:$J$110,7,FALSE)),2))/CARTE!$O$9,0) -> 0 | O63: m | P63: Distance | Q63: =SUM(E63:N63) -> 4167.792534 | R63: m
D64: Balises prévues | E64: =IF(ISTEXT($D63),HLOOKUP($D63,DEBUT!$O$3:$XX$100,3,FALSE),"") -> A | F64: =IF(ISTEXT($D63),HLOOKUP($D63,DEBUT!$O$3:$XX$100,4,FALSE),"") -> B | G64: =IF(ISTEXT($D63),HLOOKUP($D63,DEBUT!$O$3:$XX$100,5,FALSE),"") -> C | H64: =IF(ISTEXT($D63),HLOOKUP($D63,DEBUT!$O$3:$XX$100,6,FALSE),"") -> D | I64: =IF(ISTEXT($D63),HLOOKUP($D63,DEBUT!$O$3:$XX$100,7,FALSE),"") -> E | J64: =IF(ISTEXT($D63),HLOOKUP($D63,DEBUT!$O$3:$XX$100,8,FALSE),"") -> F | K64: =IF(ISTEXT($D63),HLOOKUP($D63,DEBUT!$O$3:$XX$100,9,FALSE),"") -> 0 | L64: =IF(ISTEXT($D63),HLOOKUP($D63,DEBUT!$O$3:$XX$100,10,FALSE),"") -> 0 | M64: =IF(ISTEXT($D63),HLOOKUP($D63,DEBUT!$O$3:$XX$100,11,FALSE),"") -> 0 | N64: =IF(ISTEXT($D63),HLOOKUP($D63,DEBUT!$O$3:$XX$100,12,FALSE),"") -> 0 | P64: Nombre balises prévues | Q64: =SUMPRODUCT(N(ISTEXT(E64:N64))) -> 6 | R64: prévues
D65: Validé | E65: =IF($D65=DEBUT!$L$5,E66,"") -> 7 | F65: =IF($D65=DEBUT!$L$5,F66,"") -> 10 | G65: =IF($D65=DEBUT!$L$5,G66,"") -> 11 | H65: =IF($D65=DEBUT!$L$5,H66,"") -> 1 | I65: =IF($D65=DEBUT!$L$5,I66,"") -> 76 | J65: =IF($D65=DEBUT!$L$5,J66,"") -> 46 | K65: =IF($D65=DEBUT!$L$5,K66,"") ->  | L65: =IF($D65=DEBUT!$L$5,L66,"") ->  | M65: =IF($D65=DEBUT!$L$5,M66,"") ->  | N65: =IF($D65=DEBUT!$L$5,N66,"") ->  | P65: Nombre balises trouvées | Q65: =SUMPRODUCT(N(ISNUMBER(E65:N65))) -> 6 | R65: =IF(Q65>1,"trouvées","trouvée") -> trouvées
D66: Balises CM | E66: =IFERROR(INDEX(baliseCM,MATCH(E64,lettre,0),MATCH($D62,parcours,0)),"") -> 7 | F66: =IFERROR(INDEX(baliseCM,MATCH(F64,lettre,0),MATCH($D62,parcours,0)),"") -> 10 | G66: 11 | H66: 1 | I66: 76 | J66: 46
D67: Vitesse | E67: =(E63/ABS((HOUR(E62)*3600+MINUTE(E62)*60+SECOND(E62))))*3.6 ->  | G67: =(G63/ABS((HOUR(G62)*3600+MINUTE(G62)*60+SECOND(G62))))*3.6 ->  | J67: =(J63/ABS((HOUR(J62)*3600+MINUTE(J62)*60+SECOND(J62))))*3.6 ->  | N67: =(N63/ABS((HOUR(N62)*3600+MINUTE(N62)*60+SECOND(N62))))*3.6 ->  | O67: Km/h | P67: Vitesse moyenne | Q67: =Q63/R62*3.6 ->  | R67: km/h
B68: EQUIPE 10 | D68: 15:54:33 | E68: 07:32:11 | T68: Analyse du parcours
D69: =CONCATENATE(D70,"bis") -> 6ROUGEbis | E69: =E68-D68 -> -0.3488657407 | G69: =G68-E68 -> -0.3140162037 | J69: =J68-G68 -> 00:00:00 | N69: =N68-J68 -> 00:00:00 | P69: Temps de course | Q69: =SUMIF(E69:N69,">0",E69:N69) -> 00:00:00 | R69: =ABS((HOUR(Q69)*3600+MINUTE(Q69)*60+SECOND(Q69))) -> 0
D70: =$H$2 -> 6ROUGE | E70: =IFERROR(SQRT(POWER((VLOOKUP($C$5,DEBUT!$D$5:$J$110,6,FALSE)-VLOOKUP(E72,DEBUT!$D$5:$J$110,6,FALSE)),2)+POWER((VLOOKUP($C$5,DEBUT!$D$5:$J$110,7,FALSE)-VLOOKUP(E72,DEBUT!$D$5:$J$110,7,FALSE)),2))/CARTE!$O$9,0) -> 177.2924731 | F70: =IFERROR(SQRT(POWER((VLOOKUP($C$5,DEBUT!$D$5:$J$110,6,FALSE)-VLOOKUP(F72,DEBUT!$D$5:$J$110,6,FALSE)),2)+POWER((VLOOKUP($C$5,DEBUT!$D$5:$J$110,7,FALSE)-VLOOKUP(F72,DEBUT!$D$5:$J$110,7,FALSE)),2))/CARTE!$O$9,0) -> 315.295747 | G70: =IFERROR(SQRT(POWER((VLOOKUP($C$5,DEBUT!$D$5:$J$110,6,FALSE)-VLOOKUP(G72,DEBUT!$D$5:$J$110,6,FALSE)),2)+POWER((VLOOKUP($C$5,DEBUT!$D$5:$J$110,7,FALSE)-VLOOKUP(G72,DEBUT!$D$5:$J$110,7,FALSE)),2))/CARTE!$O$9,0) -> 292.3681185 | H70: =IFERROR(SQRT(POWER((VLOOKUP($C$5,DEBUT!$D$5:$J$110,6,FALSE)-VLOOKUP(H72,DEBUT!$D$5:$J$110,6,FALSE)),2)+POWER((VLOOKUP($C$5,DEBUT!$D$5:$J$110,7,FALSE)-VLOOKUP(H72,DEBUT!$D$5:$J$110,7,FALSE)),2))/CARTE!$O$9,0) -> 500.9285964 | I70: =IFERROR(SQRT(POWER((VLOOKUP(H68,DEBUT!$D$5:$J$110,6,FALSE)-VLOOKUP(I72,DEBUT!$D$5:$J$110,6,FALSE)),2)+POWER((VLOOKUP(H68,DEBUT!$D$5:$J$110,7,FALSE)-VLOOKUP(I72,DEBUT!$D$5:$J$110,7,FALSE)),2))/CARTE!$O$9,0) -> 1575.791614 | J70: =IFERROR(SQRT(POWER((VLOOKUP(I68,DEBUT!$D$5:$J$110,6,FALSE)-VLOOKUP(J72,DEBUT!$D$5:$J$110,6,FALSE)),2)+POWER((VLOOKUP(I68,DEBUT!$D$5:$J$110,7,FALSE)-VLOOKUP(J72,DEBUT!$D$5:$J$110,7,FALSE)),2))/CARTE!$O$9,0) -> 1306.115985 | K70: =IFERROR(SQRT(POWER((VLOOKUP($C$5,DEBUT!$D$5:$J$110,6,FALSE)-VLOOKUP(K72,DEBUT!$D$5:$J$110,6,FALSE)),2)+POWER((VLOOKUP($C$5,DEBUT!$D$5:$J$110,7,FALSE)-VLOOKUP(K72,DEBUT!$D$5:$J$110,7,FALSE)),2))/CARTE!$O$9,0) -> 0 | L70: =IFERROR(SQRT(POWER((VLOOKUP(K68,DEBUT!$D$5:$J$110,6,FALSE)-VLOOKUP(L72,DEBUT!$D$5:$J$110,6,FALSE)),2)+POWER((VLOOKUP(K68,DEBUT!$D$5:$J$110,7,FALSE)-VLOOKUP(L72,DEBUT!$D$5:$J$110,7,FALSE)),2))/CARTE!$O$9,0) -> 0 | M70: =IFERROR(SQRT(POWER((VLOOKUP(L68,DEBUT!$D$5:$J$110,6,FALSE)-VLOOKUP(M72,DEBUT!$D$5:$J$110,6,FALSE)),2)+POWER((VLOOKUP(L68,DEBUT!$D$5:$J$110,7,FALSE)-VLOOKUP(M72,DEBUT!$D$5:$J$110,7,FALSE)),2))/CARTE!$O$9,0) -> 0 | N70: =IFERROR(SQRT(POWER((VLOOKUP(M68,DEBUT!$D$5:$J$110,6,FALSE)-VLOOKUP(N72,DEBUT!$D$5:$J$110,6,FALSE)),2)+POWER((VLOOKUP(M68,DEBUT!$D$5:$J$110,7,FALSE)-VLOOKUP(N72,DEBUT!$D$5:$J$110,7,FALSE)),2))/CARTE!$O$9,0) -> 0 | O70: m | P70: Distance | Q70: =SUM(E70:N70) -> 4167.792534 | R70: m
D71: Balises prévues | E71: =IF(ISTEXT($D70),HLOOKUP($D70,DEBUT!$O$3:$XX$100,3,FALSE),"") -> A | F71: =IF(ISTEXT($D70),HLOOKUP($D70,DEBUT!$O$3:$XX$100,4,FALSE),"") -> B | G71: =IF(ISTEXT($D70),HLOOKUP($D70,DEBUT!$O$3:$XX$100,5,FALSE),"") -> C | H71: =IF(ISTEXT($D70),HLOOKUP($D70,DEBUT!$O$3:$XX$100,6,FALSE),"") -> D | I71: =IF(ISTEXT($D70),HLOOKUP($D70,DEBUT!$O$3:$XX$100,7,FALSE),"") -> E | J71: =IF(ISTEXT($D70),HLOOKUP($D70,DEBUT!$O$3:$XX$100,8,FALSE),"") -> F | K71: =IF(ISTEXT($D70),HLOOKUP($D70,DEBUT!$O$3:$XX$100,9,FALSE),"") -> 0 | L71: =IF(ISTEXT($D70),HLOOKUP($D70,DEBUT!$O$3:$XX$100,10,FALSE),"") -> 0 | M71: =IF(ISTEXT($D70),HLOOKUP($D70,DEBUT!$O$3:$XX$100,11,FALSE),"") -> 0 | N71: =IF(ISTEXT($D70),HLOOKUP($D70,DEBUT!$O$3:$XX$100,12,FALSE),"") -> 0 | P71: Nombre balises prévues | Q71: =SUMPRODUCT(N(ISTEXT(E71:N71))) -> 6 | R71: prévues
D72: Validé | E72: =IF($D72=DEBUT!$L$5,E73,"") -> 7 | F72: =IF($D72=DEBUT!$L$5,F73,"") -> 10 | G72: =IF($D72=DEBUT!$L$5,G73,"") -> 11 | H72: =IF($D72=DEBUT!$L$5,H73,"") -> 1 | I72: =IF($D72=DEBUT!$L$5,I73,"") -> 76 | J72: =IF($D72=DEBUT!$L$5,J73,"") -> 46 | K72: =IF($D72=DEBUT!$L$5,K73,"") ->  | L72: =IF($D72=DEBUT!$L$5,L73,"") ->  | M72: =IF($D72=DEBUT!$L$5,M73,"") ->  | N72: =IF($D72=DEBUT!$L$5,N73,"") ->  | P72: Nombre balises trouvées | Q72: =SUMPRODUCT(N(ISNUMBER(E72:N72))) -> 6 | R72: =IF(Q72>1,"trouvées","trouvée") -> trouvées
D73: Balises CM | E73: =IFERROR(INDEX(baliseCM,MATCH(E71,lettre,0),MATCH($D69,parcours,0)),"") -> 7 | F73: =IFERROR(INDEX(baliseCM,MATCH(F71,lettre,0),MATCH($D69,parcours,0)),"") -> 10 | G73: 11 | H73: 1 | I73: 76 | J73: 46
D74: Vitesse | E74: =(E70/ABS((HOUR(E69)*3600+MINUTE(E69)*60+SECOND(E69))))*3.6 ->  | G74: =(G70/ABS((HOUR(G69)*3600+MINUTE(G69)*60+SECOND(G69))))*3.6 ->  | J74: =(J70/ABS((HOUR(J69)*3600+MINUTE(J69)*60+SECOND(J69))))*3.6 ->  | N74: =(N70/ABS((HOUR(N69)*3600+MINUTE(N69)*60+SECOND(N69))))*3.6 ->  | O74: Km/h | P74: Vitesse moyenne | Q74: =Q70/R69*3.6 ->  | R74: km/h
B75: EQUIPE 11 | D75: 15:54:33 | E75: 07:30:41 | T75: Analyse du parcours
D76: =CONCATENATE(D77,"bis") -> 6ROUGEbis | E76: =E75-D75 -> -0.3499074074 | G76: =G75-E75 -> -0.312974537 | J76: =J75-G75 -> 00:00:00 | N76: =N75-J75 -> 00:00:00 | P76: Temps de course | Q76: =SUMIF(E76:N76,">0",E76:N76) -> 00:00:00 | R76: =ABS((HOUR(Q76)*3600+MINUTE(Q76)*60+SECOND(Q76))) -> 0
D77: =$H$2 -> 6ROUGE | E77: =IFERROR(SQRT(POWER((VLOOKUP($C$5,DEBUT!$D$5:$J$110,6,FALSE)-VLOOKUP(E79,DEBUT!$D$5:$J$110,6,FALSE)),2)+POWER((VLOOKUP($C$5,DEBUT!$D$5:$J$110,7,FALSE)-VLOOKUP(E79,DEBUT!$D$5:$J$110,7,FALSE)),2))/CARTE!$O$9,0) -> 177.2924731 | F77: =IFERROR(SQRT(POWER((VLOOKUP($C$5,DEBUT!$D$5:$J$110,6,FALSE)-VLOOKUP(F79,DEBUT!$D$5:$J$110,6,FALSE)),2)+POWER((VLOOKUP($C$5,DEBUT!$D$5:$J$110,7,FALSE)-VLOOKUP(F79,DEBUT!$D$5:$J$110,7,FALSE)),2))/CARTE!$O$9,0) -> 315.295747 | G77: =IFERROR(SQRT(POWER((VLOOKUP($C$5,DEBUT!$D$5:$J$110,6,FALSE)-VLOOKUP(G79,DEBUT!$D$5:$J$110,6,FALSE)),2)+POWER((VLOOKUP($C$5,DEBUT!$D$5:$J$110,7,FALSE)-VLOOKUP(G79,DEBUT!$D$5:$J$110,7,FALSE)),2))/CARTE!$O$9,0) -> 292.3681185 | H77: =IFERROR(SQRT(POWER((VLOOKUP($C$5,DEBUT!$D$5:$J$110,6,FALSE)-VLOOKUP(H79,DEBUT!$D$5:$J$110,6,FALSE)),2)+POWER((VLOOKUP($C$5,DEBUT!$D$5:$J$110,7,FALSE)-VLOOKUP(H79,DEBUT!$D$5:$J$110,7,FALSE)),2))/CARTE!$O$9,0) -> 500.9285964 | I77: =IFERROR(SQRT(POWER((VLOOKUP(H75,DEBUT!$D$5:$J$110,6,FALSE)-VLOOKUP(I79,DEBUT!$D$5:$J$110,6,FALSE)),2)+POWER((VLOOKUP(H75,DEBUT!$D$5:$J$110,7,FALSE)-VLOOKUP(I79,DEBUT!$D$5:$J$110,7,FALSE)),2))/CARTE!$O$9,0) -> 1575.791614 | J77: =IFERROR(SQRT(POWER((VLOOKUP(I75,DEBUT!$D$5:$J$110,6,FALSE)-VLOOKUP(J79,DEBUT!$D$5:$J$110,6,FALSE)),2)+POWER((VLOOKUP(I75,DEBUT!$D$5:$J$110,7,FALSE)-VLOOKUP(J79,DEBUT!$D$5:$J$110,7,FALSE)),2))/CARTE!$O$9,0) -> 1306.115985 | K77: =IFERROR(SQRT(POWER((VLOOKUP($C$5,DEBUT!$D$5:$J$110,6,FALSE)-VLOOKUP(K79,DEBUT!$D$5:$J$110,6,FALSE)),2)+POWER((VLOOKUP($C$5,DEBUT!$D$5:$J$110,7,FALSE)-VLOOKUP(K79,DEBUT!$D$5:$J$110,7,FALSE)),2))/CARTE!$O$9,0) -> 0 | L77: =IFERROR(SQRT(POWER((VLOOKUP(K75,DEBUT!$D$5:$J$110,6,FALSE)-VLOOKUP(L79,DEBUT!$D$5:$J$110,6,FALSE)),2)+POWER((VLOOKUP(K75,DEBUT!$D$5:$J$110,7,FALSE)-VLOOKUP(L79,DEBUT!$D$5:$J$110,7,FALSE)),2))/CARTE!$O$9,0) -> 0 | M77: =IFERROR(SQRT(POWER((VLOOKUP(L75,DEBUT!$D$5:$J$110,6,FALSE)-VLOOKUP(M79,DEBUT!$D$5:$J$110,6,FALSE)),2)+POWER((VLOOKUP(L75,DEBUT!$D$5:$J$110,7,FALSE)-VLOOKUP(M79,DEBUT!$D$5:$J$110,7,FALSE)),2))/CARTE!$O$9,0) -> 0 | N77: =IFERROR(SQRT(POWER((VLOOKUP(M75,DEBUT!$D$5:$J$110,6,FALSE)-VLOOKUP(N79,DEBUT!$D$5:$J$110,6,FALSE)),2)+POWER((VLOOKUP(M75,DEBUT!$D$5:$J$110,7,FALSE)-VLOOKUP(N79,DEBUT!$D$5:$J$110,7,FALSE)),2))/CARTE!$O$9,0) -> 0 | O77: m | P77: Distance | Q77: =SUM(E77:N77) -> 4167.792534 | R77: m
D78: Balises prévues | E78: =IF(ISTEXT($D77),HLOOKUP($D77,DEBUT!$O$3:$XX$100,3,FALSE),"") -> A | F78: =IF(ISTEXT($D77),HLOOKUP($D77,DEBUT!$O$3:$XX$100,4,FALSE),"") -> B | G78: =IF(ISTEXT($D77),HLOOKUP($D77,DEBUT!$O$3:$XX$100,5,FALSE),"") -> C | H78: =IF(ISTEXT($D77),HLOOKUP($D77,DEBUT!$O$3:$XX$100,6,FALSE),"") -> D | I78: =IF(ISTEXT($D77),HLOOKUP($D77,DEBUT!$O$3:$XX$100,7,FALSE),"") -> E | J78: =IF(ISTEXT($D77),HLOOKUP($D77,DEBUT!$O$3:$XX$100,8,FALSE),"") -> F | K78: =IF(ISTEXT($D77),HLOOKUP($D77,DEBUT!$O$3:$XX$100,9,FALSE),"") -> 0 | L78: =IF(ISTEXT($D77),HLOOKUP($D77,DEBUT!$O$3:$XX$100,10,FALSE),"") -> 0 | M78: =IF(ISTEXT($D77),HLOOKUP($D77,DEBUT!$O$3:$XX$100,11,FALSE),"") -> 0 | N78: =IF(ISTEXT($D77),HLOOKUP($D77,DEBUT!$O$3:$XX$100,12,FALSE),"") -> 0 | P78: Nombre balises prévues | Q78: =SUMPRODUCT(N(ISTEXT(E78:N78))) -> 6 | R78: prévues
D79: Validé | E79: =IF($D79=DEBUT!$L$5,E80,"") -> 7 | F79: =IF($D79=DEBUT!$L$5,F80,"") -> 10 | G79: =IF($D79=DEBUT!$L$5,G80,"") -> 11 | H79: =IF($D79=DEBUT!$L$5,H80,"") -> 1 | I79: =IF($D79=DEBUT!$L$5,I80,"") -> 76 | J79: =IF($D79=DEBUT!$L$5,J80,"") -> 46 | K79: =IF($D79=DEBUT!$L$5,K80,"") ->  | L79: =IF($D79=DEBUT!$L$5,L80,"") ->  | M79: =IF($D79=DEBUT!$L$5,M80,"") ->  | N79: =IF($D79=DEBUT!$L$5,N80,"") ->  | P79: Nombre balises trouvées | Q79: =SUMPRODUCT(N(ISNUMBER(E79:N79))) -> 6 | R79: =IF(Q79>1,"trouvées","trouvée") -> trouvées
D80: Balises CM | E80: =IFERROR(INDEX(baliseCM,MATCH(E78,lettre,0),MATCH($D76,parcours,0)),"") -> 7 | F80: =IFERROR(INDEX(baliseCM,MATCH(F78,lettre,0),MATCH($D76,parcours,0)),"") -> 10 | G80: 11 | H80: 1 | I80: 76 | J80: 46
D81: Vitesse | E81: =(E77/ABS((HOUR(E76)*3600+MINUTE(E76)*60+SECOND(E76))))*3.6 ->  | G81: =(G77/ABS((HOUR(G76)*3600+MINUTE(G76)*60+SECOND(G76))))*3.6 ->  | J81: =(J77/ABS((HOUR(J76)*3600+MINUTE(J76)*60+SECOND(J76))))*3.6 ->  | N81: =(N77/ABS((HOUR(N76)*3600+MINUTE(N76)*60+SECOND(N76))))*3.6 ->  | O81: Km/h | P81: Vitesse moyenne | Q81: =Q77/R76*3.6 ->  | R81: km/h
B82: EQUIPE 12 | D82: 15:54:34 | E82: 07:30:49 | T82: Analyse du parcours
D83: =CONCATENATE(D84,"bis") -> 6ROUGEbis | E83: =E82-D82 -> -0.3498263889 | G83: =G82-E82 -> -0.3130671296 | J83: =J82-G82 -> 00:00:00 | N83: =N82-J82 -> 00:00:00 | P83: Temps de course | Q83: =SUMIF(E83:N83,">0",E83:N83) -> 00:00:00 | R83: =ABS((HOUR(Q83)*3600+MINUTE(Q83)*60+SECOND(Q83))) -> 0
D84: =$H$2 -> 6ROUGE | E84: =IFERROR(SQRT(POWER((VLOOKUP($C$5,DEBUT!$D$5:$J$110,6,FALSE)-VLOOKUP(E86,DEBUT!$D$5:$J$110,6,FALSE)),2)+POWER((VLOOKUP($C$5,DEBUT!$D$5:$J$110,7,FALSE)-VLOOKUP(E86,DEBUT!$D$5:$J$110,7,FALSE)),2))/CARTE!$O$9,0) -> 177.2924731 | F84: =IFERROR(SQRT(POWER((VLOOKUP($C$5,DEBUT!$D$5:$J$110,6,FALSE)-VLOOKUP(F86,DEBUT!$D$5:$J$110,6,FALSE)),2)+POWER((VLOOKUP($C$5,DEBUT!$D$5:$J$110,7,FALSE)-VLOOKUP(F86,DEBUT!$D$5:$J$110,7,FALSE)),2))/CARTE!$O$9,0) -> 315.295747 | G84: =IFERROR(SQRT(POWER((VLOOKUP($C$5,DEBUT!$D$5:$J$110,6,FALSE)-VLOOKUP(G86,DEBUT!$D$5:$J$110,6,FALSE)),2)+POWER((VLOOKUP($C$5,DEBUT!$D$5:$J$110,7,FALSE)-VLOOKUP(G86,DEBUT!$D$5:$J$110,7,FALSE)),2))/CARTE!$O$9,0) -> 292.3681185 | H84: =IFERROR(SQRT(POWER((VLOOKUP($C$5,DEBUT!$D$5:$J$110,6,FALSE)-VLOOKUP(H86,DEBUT!$D$5:$J$110,6,FALSE)),2)+POWER((VLOOKUP($C$5,DEBUT!$D$5:$J$110,7,FALSE)-VLOOKUP(H86,DEBUT!$D$5:$J$110,7,FALSE)),2))/CARTE!$O$9,0) -> 500.9285964 | I84: =IFERROR(SQRT(POWER((VLOOKUP(H82,DEBUT!$D$5:$J$110,6,FALSE)-VLOOKUP(I86,DEBUT!$D$5:$J$110,6,FALSE)),2)+POWER((VLOOKUP(H82,DEBUT!$D$5:$J$110,7,FALSE)-VLOOKUP(I86,DEBUT!$D$5:$J$110,7,FALSE)),2))/CARTE!$O$9,0) -> 1575.791614 | J84: =IFERROR(SQRT(POWER((VLOOKUP(I82,DEBUT!$D$5:$J$110,6,FALSE)-VLOOKUP(J86,DEBUT!$D$5:$J$110,6,FALSE)),2)+POWER((VLOOKUP(I82,DEBUT!$D$5:$J$110,7,FALSE)-VLOOKUP(J86,DEBUT!$D$5:$J$110,7,FALSE)),2))/CARTE!$O$9,0) -> 1306.115985 | K84: =IFERROR(SQRT(POWER((VLOOKUP($C$5,DEBUT!$D$5:$J$110,6,FALSE)-VLOOKUP(K86,DEBUT!$D$5:$J$110,6,FALSE)),2)+POWER((VLOOKUP($C$5,DEBUT!$D$5:$J$110,7,FALSE)-VLOOKUP(K86,DEBUT!$D$5:$J$110,7,FALSE)),2))/CARTE!$O$9,0) -> 0 | L84: =IFERROR(SQRT(POWER((VLOOKUP(K82,DEBUT!$D$5:$J$110,6,FALSE)-VLOOKUP(L86,DEBUT!$D$5:$J$110,6,FALSE)),2)+POWER((VLOOKUP(K82,DEBUT!$D$5:$J$110,7,FALSE)-VLOOKUP(L86,DEBUT!$D$5:$J$110,7,FALSE)),2))/CARTE!$O$9,0) -> 0 | M84: =IFERROR(SQRT(POWER((VLOOKUP(L82,DEBUT!$D$5:$J$110,6,FALSE)-VLOOKUP(M86,DEBUT!$D$5:$J$110,6,FALSE)),2)+POWER((VLOOKUP(L82,DEBUT!$D$5:$J$110,7,FALSE)-VLOOKUP(M86,DEBUT!$D$5:$J$110,7,FALSE)),2))/CARTE!$O$9,0) -> 0 | N84: =IFERROR(SQRT(POWER((VLOOKUP(M82,DEBUT!$D$5:$J$110,6,FALSE)-VLOOKUP(N86,DEBUT!$D$5:$J$110,6,FALSE)),2)+POWER((VLOOKUP(M82,DEBUT!$D$5:$J$110,7,FALSE)-VLOOKUP(N86,DEBUT!$D$5:$J$110,7,FALSE)),2))/CARTE!$O$9,0) -> 0 | O84: m | P84: Distance | Q84: =SUM(E84:N84) -> 4167.792534 | R84: m
D85: Balises prévues | E85: =IF(ISTEXT($D84),HLOOKUP($D84,DEBUT!$O$3:$XX$100,3,FALSE),"") -> A | F85: =IF(ISTEXT($D84),HLOOKUP($D84,DEBUT!$O$3:$XX$100,4,FALSE),"") -> B | G85: =IF(ISTEXT($D84),HLOOKUP($D84,DEBUT!$O$3:$XX$100,5,FALSE),"") -> C | H85: =IF(ISTEXT($D84),HLOOKUP($D84,DEBUT!$O$3:$XX$100,6,FALSE),"") -> D | I85: =IF(ISTEXT($D84),HLOOKUP($D84,DEBUT!$O$3:$XX$100,7,FALSE),"") -> E | J85: =IF(ISTEXT($D84),HLOOKUP($D84,DEBUT!$O$3:$XX$100,8,FALSE),"") -> F | K85: =IF(ISTEXT($D84),HLOOKUP($D84,DEBUT!$O$3:$XX$100,9,FALSE),"") -> 0 | L85: =IF(ISTEXT($D84),HLOOKUP($D84,DEBUT!$O$3:$XX$100,10,FALSE),"") -> 0 | M85: =IF(ISTEXT($D84),HLOOKUP($D84,DEBUT!$O$3:$XX$100,11,FALSE),"") -> 0 | N85: =IF(ISTEXT($D84),HLOOKUP($D84,DEBUT!$O$3:$XX$100,12,FALSE),"") -> 0 | P85: Nombre balises prévues | Q85: =SUMPRODUCT(N(ISTEXT(E85:N85))) -> 6 | R85: prévues
D86: Validé | E86: =IF($D86=DEBUT!$L$5,E87,"") -> 7 | F86: =IF($D86=DEBUT!$L$5,F87,"") -> 10 | G86: =IF($D86=DEBUT!$L$5,G87,"") -> 11 | H86: =IF($D86=DEBUT!$L$5,H87,"") -> 1 | I86: =IF($D86=DEBUT!$L$5,I87,"") -> 76 | J86: =IF($D86=DEBUT!$L$5,J87,"") -> 46 | K86: =IF($D86=DEBUT!$L$5,K87,"") ->  | L86: =IF($D86=DEBUT!$L$5,L87,"") ->  | M86: =IF($D86=DEBUT!$L$5,M87,"") ->  | N86: =IF($D86=DEBUT!$L$5,N87,"") ->  | P86: Nombre balises trouvées | Q86: =SUMPRODUCT(N(ISNUMBER(E86:N86))) -> 6 | R86: =IF(Q86>1,"trouvées","trouvée") -> trouvées
D87: Balises CM | E87: =IFERROR(INDEX(baliseCM,MATCH(E85,lettre,0),MATCH($D83,parcours,0)),"") -> 7 | F87: =IFERROR(INDEX(baliseCM,MATCH(F85,lettre,0),MATCH($D83,parcours,0)),"") -> 10 | G87: 11 | H87: 1 | I87: 76 | J87: 46
D88: Vitesse | E88: =(E84/ABS((HOUR(E83)*3600+MINUTE(E83)*60+SECOND(E83))))*3.6 ->  | G88: =(G84/ABS((HOUR(G83)*3600+MINUTE(G83)*60+SECOND(G83))))*3.6 ->  | J88: =(J84/ABS((HOUR(J83)*3600+MINUTE(J83)*60+SECOND(J83))))*3.6 ->  | N88: =(N84/ABS((HOUR(N83)*3600+MINUTE(N83)*60+SECOND(N83))))*3.6 ->  | O88: Km/h | P88: Vitesse moyenne | Q88: =Q84/R83*3.6 ->  | R88: km/h

Sheet PAPILLON
H1: =CONCATENATE(H2,"bis") -> alchimistebis | M1: Temps limite
B2: STAGE | E2: 23:08:42 | H2: alchimiste | M2: 30.02430556 | N2: min
H3: =IF(ISTEXT($H2),HLOOKUP($H2,DEBUT!$O$3:$XX$100,6,FALSE),"") -> D | I3: =IF(ISTEXT($H2),HLOOKUP($H2,DEBUT!$O$3:$XX$100,7,FALSE),"") -> E | J3: =IF(ISTEXT($H2),HLOOKUP($H2,DEBUT!$O$3:$XX$100,8,FALSE),"") -> F | N3: =IF(ISTEXT($H2),HLOOKUP($H2,DEBUT!$O$3:$XX$100,12,FALSE),"") -> 0
H4: =IFERROR(INDEX(baliseCM,MATCH(H3,lettre,0),MATCH($H$1,parcours,0)),"") -> 1 | I4: 76 | J4: 46 | P4: PAPILLON | Q4: N3
B5: EQUIPE 1 | C5: D | D5: 12:15:19 | T5: Analyse du parcours | AL5: 1 | AM5: =OFFSET(INDEX(eleves,MATCH(AL5,chiffre,0),MATCH($B$2,classes,0)),0,1) -> POL
B6: Alexandre | D6: =CONCATENATE(D7,"bis") -> alchimistebis | G6: =G5-D5 -> -0.5106365741 | J6: =J5-G5 -> 00:00:00 | K6: =K5-J5 -> 00:00:00 | L6: 00:00:00 | M6: =M5-J5 -> 00:00:00 | P6: Temps de course | Q6: =SUMIF(E6:M6,">0",E6:M6) -> 00:00:00 | R6: =ABS((HOUR(Q6)*3600+MINUTE(Q6)*60+SECOND(Q6))) -> 0 | AL6: 2 | AM6: CARINE
D7: =$H$2 -> alchimiste | E7: =IFERROR(SQRT(POWER((VLOOKUP($C$5,DEBUT!$D$5:$J$110,6,FALSE)-VLOOKUP(E9,DEBUT!$D$5:$J$110,6,FALSE)),2)+POWER((VLOOKUP($C$5,DEBUT!$D$5:$J$110,7,FALSE)-VLOOKUP(E9,DEBUT!$D$5:$J$110,7,FALSE)),2))/CARTE!$O$9,0) -> 177.2924731 | F7: =IFERROR(SQRT(POWER((VLOOKUP(E9,DEBUT!$D$5:$J$110,6,FALSE)-VLOOKUP(F9,DEBUT!$D$5:$J$110,6,FALSE)),2)+POWER((VLOOKUP(E9,DEBUT!$D$5:$J$110,7,FALSE)-VLOOKUP(F9,DEBUT!$D$5:$J$110,7,FALSE)),2))/CARTE!$O$9,0) -> 292.4132321 | G7: =IFERROR(SQRT(POWER((VLOOKUP(F9,DEBUT!$D$5:$J$110,6,FALSE)-VLOOKUP(G9,DEBUT!$D$5:$J$110,6,FALSE)),2)+POWER((VLOOKUP(F9,DEBUT!$D$5:$J$110,7,FALSE)-VLOOKUP(G9,DEBUT!$D$5:$J$110,7,FALSE)),2))/CARTE!$O$9,0) -> 185.4526003 | H7: =IFERROR(SQRT(POWER((VLOOKUP(G9,DEBUT!$D$5:$J$110,6,FALSE)-VLOOKUP(H9,DEBUT!$D$5:$J$110,6,FALSE)),2)+POWER((VLOOKUP(G9,DEBUT!$D$5:$J$110,7,FALSE)-VLOOKUP(H9,DEBUT!$D$5:$J$110,7,FALSE)),2))/CARTE!$O$9,0) -> 388.8815813 | I7: =IFERROR(SQRT(POWER((VLOOKUP(H9,DEBUT!$D$5:$J$110,6,FALSE)-VLOOKUP(I9,DEBUT!$D$5:$J$110,6,FALSE)),2)+POWER((VLOOKUP(H9,DEBUT!$D$5:$J$110,7,FALSE)-VLOOKUP(I9,DEBUT!$D$5:$J$110,7,FALSE)),2))/CARTE!$O$9,0) -> 1321.193177 | J7: =IFERROR(SQRT(POWER((VLOOKUP(I9,DEBUT!$D$5:$J$110,6,FALSE)-VLOOKUP(J9,DEBUT!$D$5:$J$110,6,FALSE)),2)+POWER((VLOOKUP(I9,DEBUT!$D$5:$J$110,7,FALSE)-VLOOKUP(J9,DEBUT!$D$5:$J$110,7,FALSE)),2))/CARTE!$O$9,0) -> 621.6561772 | K7: =IFERROR(SQRT(POWER((VLOOKUP(J9,DEBUT!$D$5:$J$110,6,FALSE)-VLOOKUP(K9,DEBUT!$D$5:$J$110,6,FALSE)),2)+POWER((VLOOKUP(J9,DEBUT!$D$5:$J$110,7,FALSE)-VLOOKUP(K9,DEBUT!$D$5:$J$110,7,FALSE)),2))/CARTE!$O$9,0) -> 0 | L7: =IFERROR(SQRT(POWER((VLOOKUP(K9,DEBUT!$D$5:$J$110,6,FALSE)-VLOOKUP(L9,DEBUT!$D$5:$J$110,6,FALSE)),2)+POWER((VLOOKUP(K9,DEBUT!$D$5:$J$110,7,FALSE)-VLOOKUP(L9,DEBUT!$D$5:$J$110,7,FALSE)),2))/CARTE!$O$9,0) -> 0 | M7: =IFERROR(SQRT(POWER((VLOOKUP(L9,DEBUT!$D$5:$J$110,6,FALSE)-VLOOKUP(M9,DEBUT!$D$5:$J$110,6,FALSE)),2)+POWER((VLOOKUP(L9,DEBUT!$D$5:$J$110,7,FALSE)-VLOOKUP(M9,DEBUT!$D$5:$J$110,7,FALSE)),2))/CARTE!$O$9,0) -> 0 | N7: min | O7: m | P7: Distance | Q7: =SUM(E7:M7) -> 2986.889241 | R7: m | AL7: 3 | AM7: BASTIEN
D8: Balises prévues | E8: =IF(ISTEXT($D7),HLOOKUP($D7,DEBUT!$O$3:$XX$100,3,FALSE),"") -> A | F8: =IF(ISTEXT($D7),HLOOKUP($D7,DEBUT!$O$3:$XX$100,4,FALSE),"") -> B | G8: =IF(ISTEXT($D7),HLOOKUP($D7,DEBUT!$O$3:$XX$100,5,FALSE),"") -> C | H8: =IF(ISTEXT($D7),HLOOKUP($D7,DEBUT!$O$3:$XX$100,6,FALSE),"") -> D | I8: =IF(ISTEXT($D7),HLOOKUP($D7,DEBUT!$O$3:$XX$100,7,FALSE),"") -> E | J8: =IF(ISTEXT($D7),HLOOKUP($D7,DEBUT!$O$3:$XX$100,8,FALSE),"") -> F | K8: =IF(ISTEXT($D7),HLOOKUP($D7,DEBUT!$O$3:$XX$100,9,FALSE),"") -> 0 | L8: =IF(ISTEXT($D7),HLOOKUP($D7,DEBUT!$O$3:$XX$100,10,FALSE),"") -> 0 | M8: =IF(ISTEXT($D7),HLOOKUP($D7,DEBUT!$O$3:$XX$100,11,FALSE),"") -> 0 | N8: =IF(ISTEXT($D7),HLOOKUP($D7,DEBUT!$O$3:$XX$100,12,FALSE),"") -> 0 | P8: Nombre balises prévues | Q8: =SUMPRODUCT(N(ISTEXT(E8:M8))) -> 6 | R8: prévues | AL8: 4 | AM8: CORALINE
D9: Validé | E9: =IF($D9=DEBUT!$L$5,E10,"") -> 7 | F9: =IF($D9=DEBUT!$L$5,F10,"") -> 10 | G9: =IF($D9=DEBUT!$L$5,G10,"") -> 11 | H9: =IF($D9=DEBUT!$L$5,H10,"") -> 1 | I9: =IF($D9=DEBUT!$L$5,I10,"") -> 76 | J9: =IF($D9=DEBUT!$L$5,J10,"") -> 46 | K9: =IF($D9=DEBUT!$L$5,K10,"") ->  | L9: =IF($D9=DEBUT!$L$5,L10,"") ->  | M9: =IF($D9=DEBUT!$L$5,M10,"") ->  | P9: Nombre balises trouvées | Q9: =SUMPRODUCT(N(ISNUMBER(E9:M9))) -> 6 | R9: =IF(Q9>1,"trouvées","trouvée") -> trouvées | AL9: 5 | AM9: GREGORY
D10: Balises CM | E10: =IFERROR(INDEX(baliseCM,MATCH(E8,lettre,0),MATCH($D6,parcours,0)),"") -> 7 | F10: =IFERROR(INDEX(baliseCM,MATCH(F8,lettre,0),MATCH($D6,parcours,0)),"") -> 10 | G10: 11 | H10: 1 | I10: 76 | J10: 46 | AL10: 6 | AM10: THOMAS
D11: Vitesse | G11: =((E7+F7+G7)/ABS((HOUR(G6)*3600+MINUTE(G6)*60+SECOND(G6))))*3.6 ->  | J11: =((H7+I7+J7)/ABS((HOUR(J6)*3600+MINUTE(J6)*60+SECOND(J6))))*3.6 ->  | M11: =((K7+L7+M7)/ABS((HOUR(M6)*3600+MINUTE(M6)*60+SECOND(M6))))*3.6 ->  | O11: Km/h | P11: Vitesse moyenne | Q11: =Q7/R6*3.6 ->  | R11: km/h | AL11: 7 | AM11: ALAIN
B12: EQUIPE 2 | D12: 16:02:12 | T12: Analyse du parcours | AL12: 8 | AM12: QUENTIN
D13: =CONCATENATE(D14,"bis") -> alchimistebis | G13: =G12-D12 -> -0.6681944444 | J13: =J12-G12 -> 00:00:00 | K13: =K12-J12 -> 00:00:00 | L13: =L12-K12 -> 00:00:00 | M13: =M12-J12 -> 00:00:00 | P13: Temps de course | Q13: =SUMIF(E13:M13,">0",E13:M13) -> 00:00:00 | R13: =ABS((HOUR(Q13)*3600+MINUTE(Q13)*60+SECOND(Q13))) -> 0 | AL13: 9 | AM13: BAPTISTE
